Workbook

Sheet Q_1
A1: 1. S kým z triedy by si chcel sedieť v jednej lavici?
B2: 3
B3: 20 | D3: 1 | E3: 2 | F3: 3 | G3: 4 | H3: 5 | I3: 6 | J3: 7 | K3: 8 | L3: 9 | M3: 10 | N3: 11 | O3: 12 | P3: 13 | Q3: 14 | R3: 15 | S3: 16 | T3: 17 | U3: 18 | V3: 19 | W3: 20
D4: 01_Oso m | E4: 02_Oso m | F4: 03_Oso m | G4: 04_Osor m | H4: 05_Oso m | I4: 06_Oso m | J4: 07_Oso m | K4: 08_Oso m | L4: 09_Oso m | M4: 10_Oso m | N4: 11_Oso m | O4: 12_Oso m | P4: 13_Oso m | Q4: 14_Oso f | R4: 15_Oso f | S4: 16_Oso f | T4: 17_Oso f | U4: 18_Oso f | V4: 19_Oso f | W4: 20_Oso f
A5: → | B5: 1 | C5: 01_Oso m | L5: 1 | O5: 2 | X5: 2 | AQ5: 2 | AR5: 2 | AS5: 1 | AT5: 5 | AU5: 4 | AV5: 2 | AW5: 1 | AX5: 1 | AY5: 4 | AZ5: 2 | BA5: 0 | BB5: 2 | BC5: 5 | BD5: 2 | BE5: 1 | BF5: 4 | BG5: 2 | BH5: 3 | BI5: 1 | BJ5: 0
B6: 2 | C6: 02_Oso m | G6: 3 | H6: 2 | P6: 1 | X6: 3 | AQ6: 2 | AR6: 1 | AS6: 1 | AT6: 1 | AU6: 1 | AV6: 2 | AW6: 0 | AX6: 1 | AY6: 1 | AZ6: 1 | BA6: 0 | BB6: 0 | BC6: 2 | BD6: 1 | BE6: 0 | BF6: 3 | BG6: 0 | BH6: 0 | BI6: 1 | BJ6: 0
B7: 3 | C7: 03_Oso m | H7: 1 | J7: 2 | P7: 3 | X7: 3 | AQ7: 0 | AR7: 0 | AS7: 0 | AT7: 0 | AU7: 3 | AV7: 0 | AW7: 1 | AX7: 0 | AY7: 2 | AZ7: 1 | BA7: 0 | BB7: 2 | BC7: 0 | BD7: 1 | BE7: 1 | BF7: 0 | BG7: 2 | BH7: 1 | BI7: 0 | BJ7: 0
B8: 4 | C8: 04_Osor m | M8: 1 | X8: 1 | AQ8: 0 | AR8: 1 | AS8: 0 | AT8: 4 | AU8: 0 | AV8: 0 | AW8: 0 | AX8: 0 | AY8: 1 | AZ8: 0 | BA8: 0 | BB8: 0 | BC8: 3 | BD8: 0 | BE8: 0 | BF8: 1 | BG8: 0 | BH8: 2 | BI8: 0 | BJ8: 0
B9: 5 | C9: 05_Oso m | G9: 3 | I9: 1 | M9: 2 | X9: 3 | AQ9: 10 | AR9: 5 | AS9: 5 | AT9: 5 | AU9: 5 | AV9: 10 | AW9: 0 | AX9: 5 | AY9: 5 | AZ9: 5 | BA9: 0 | BB9: 0 | BC9: 10 | BD9: 5 | BE9: 0 | BF9: 15 | BG9: 0 | BH9: 0 | BI9: 5 | BJ9: 0
B10: 6 | C10: 06_Oso m | G10: 3 | H10: 2 | K10: 1 | X10: 3 | AQ10: 0 | AR10: 0 | AS10: 0 | AT10: 0 | AU10: 15 | AV10: 0 | AW10: 5 | AX10: 0 | AY10: 10 | AZ10: 5 | BA10: 0 | BB10: 10 | BC10: 0 | BD10: 5 | BE10: 5 | BF10: 0 | BG10: 10 | BH10: 5 | BI10: 0 | BJ10: 0
B11: 7 | C11: 07_Oso m | F11: 1 | X11: 1 | AQ11: 0 | AR11: 5 | AS11: 0 | AT11: 20 | AU11: 0 | AV11: 0 | AW11: 0 | AX11: 0 | AY11: 5 | AZ11: 0 | BA11: 0 | BB11: 0 | BC11: 15 | BD11: 0 | BE11: 0 | BF11: 5 | BG11: 0 | BH11: 10 | BI11: 0 | BJ11: 0
B12: 8 | C12: 08_Oso m | H12: 2 | I12: 1 | L12: 3 | X12: 3 | AQ12: 10 | AR12: 10 | AS12: 5 | AT12: 25 | AU12: 20 | AV12: 10 | AW12: 5 | AX12: 5 | AY12: 20 | AZ12: 10 | BA12: 0 | BB12: 10 | BC12: 25 | BD12: 10 | BE12: 5 | BF12: 20 | BG12: 10 | BH12: 15 | BI12: 5 | BJ12: 0
B13: 9 | C13: 09_Oso m | D13: 1 | O13: 2 | P13: 3 | X13: 3
B14: 10 | C14: 10_Oso m | E14: 3 | G14: 1 | R14: 2 | X14: 3
B15: 11 | C15: 11_Oso m | P15: 1 | X15: 1
B16: 12 | C16: 12_Oso m | D16: 1 | L16: 2 | P16: 3 | X16: 3
B17: 13 | C17: 13_Oso m | E17: 1 | G17: 3 | L17: 2 | X17: 3
B18: 14 | C18: 14_Oso f | S18: 1 | X18: 1
B19: 15 | C19: 15_Oso f | S19: 3 | U19: 2 | V19: 1 | X19: 3
B20: 16 | C20: 16_Oso f | Q20: 1 | T20: 2 | U20: 3 | X20: 3
B21: 17 | C21: 17_Oso f | Q21: 2 | S21: 1 | U21: 3 | X21: 3
B22: 18 | C22: 18_Oso f | S22: 1 | T22: 2 | X22: 2
B23: 19 | C23: 19_Oso f | X23: 0
B24: 20 | C24: 20_Oso f | X24: 0
C25: Suma volieb 1 + 2 + 3 spolu | D25: 2 | E25: 2 | F25: 1 | G25: 5 | H25: 4 | I25: 2 | J25: 1 | K25: 1 | L25: 4 | M25: 2 | N25: 0 | O25: 2 | P25: 5 | Q25: 2 | R25: 1 | S25: 4 | T25: 2 | U25: 3 | V25: 1 | W25: 0 | X25: =SUM($D$25:$W$25) -> 44
C26: Suma volieb 1 | D26: =COUNTIF(D5:D24,1) -> 2 | E26: 1 | F26: 1 | G26: 1 | H26: 1 | I26: 2 | J26: 0 | K26: 1 | L26: 1 | M26: 1 | N26: 0 | O26: 0 | P26: 2 | Q26: 1 | R26: 0 | S26: 3 | T26: 0 | U26: 0 | V26: 1 | W26: 0
C27: Suma volieb 2 | D27: =COUNTIF(D5:D24,2) -> 0 | E27: 0 | F27: 0 | G27: 0 | H27: 3 | I27: 0 | J27: 1 | K27: 0 | L27: 2 | M27: 1 | N27: 0 | O27: 2 | P27: 0 | Q27: 1 | R27: 1 | S27: 0 | T27: 2 | U27: 1 | V27: 0 | W27: 0
C28: Suma volieb 3 | D28: =COUNTIF(D5:D24,3) -> 0 | E28: 1 | F28: 0 | G28: 4 | H28: 0 | I28: 0 | J28: 0 | K28: 0 | L28: 1 | M28: 0 | N28: 0 | O28: 0 | P28: 3 | Q28: 0 | R28: 0 | S28: 1 | T28: 0 | U28: 2 | V28: 0 | W28: 0
C29: Percento Suma volieb 1 | D29: =(D26/$B$3)*100 -> 10 | E29: 5 | F29: 5 | G29: 5 | H29: 5 | I29: 10 | J29: 0 | K29: 5 | L29: 5 | M29: 5 | N29: 0 | O29: 0 | P29: 10 | Q29: 5 | R29: 0 | S29: 15 | T29: 0 | U29: 0 | V29: 5 | W29: 0
C30: Percento Suma volieb 2 | D30: =(D27/$B$3)*100 -> 0 | E30: 0 | F30: 0 | G30: 0 | H30: 15 | I30: 0 | J30: 5 | K30: 0 | L30: 10 | M30: 5 | N30: 0 | O30: 10 | P30: 0 | Q30: 5 | R30: 5 | S30: 0 | T30: 10 | U30: 5 | V30: 0 | W30: 0
C31: Percento Suma volieb 3 | D31: =(D28/$B$3)*100 -> 0 | E31: 5 | F31: 0 | G31: 20 | H31: 0 | I31: 0 | J31: 0 | K31: 0 | L31: 5 | M31: 0 | N31: 0 | O31: 0 | P31: 15 | Q31: 0 | R31: 0 | S31: 5 | T31: 0 | U31: 10 | V31: 0 | W31: 0
C32: Percento Suma volieb 1 + 2 + 3 spolu | D32: =(D25/$B$3)*100 -> 10 | E32: 10 | F32: 5 | G32: 25 | H32: 20 | I32: 10 | J32: 5 | K32: 5 | L32: 20 | M32: 10 | N32: 0 | O32: 10 | P32: 25 | Q32: 10 | R32: 5 | S32: 20 | T32: 10 | U32: 15 | V32: 5 | W32: 0
D34: 1 | E34: 2 | F34: 3 | G34: 4 | H34: 5 | I34: 6 | J34: 7 | K34: 8 | L34: 9 | M34: 10 | N34: 11 | O34: 12 | P34: 13 | Q34: 14 | R34: 15 | S34: 16 | T34: 17 | U34: 18 | V34: 19 | W34: 20
D35: 01_Oso m | E35: 02_Oso m | F35: 03_Oso m | G35: 04_Osor m | H35: 05_Oso m | I35: 06_Oso m | J35: 07_Oso m | K35: 08_Oso m | L35: 09_Oso m | M35: 10_Oso m | N35: 11_Oso m | O35: 12_Oso m | P35: 13_Oso m | Q35: 14_Oso f | R35: 15_Oso f | S35: 16_Oso f | T35: 17_Oso f | U35: 18_Oso f | V35: 19_Oso f | W35: 20_Oso f
B36: 1 | C36: 01_Oso m | D36: =IF(D5<>0,D$3,"") ->  | L36: 9 | O36: 12 | Y36: 9, 12, 0, | AC36: 9 | AD36: 12 | AE36: 0 | AF36: 2
B37: 2 | C37: 02_Oso m | D37: =IF(D6<>0,D$3,"") ->  | G37: 4 | H37: 5 | P37: 13 | Y37: 4, 5, 13, | AC37: 4 | AD37: 5 | AE37: 13 | AF37: 1
B38: 3 | C38: 03_Oso m | D38: =IF(D7<>0,D$3,"") ->  | H38: 5 | J38: 7 | P38: 13 | Y38: 5, 7, 13, | AC38: 5 | AD38: 7 | AE38: 13 | AF38: 1
B39: 4 | C39: 04_Osor m | D39: =IF(D8<>0,D$3,"") ->  | M39: 10 | Y39: 10, 0, 0, | AC39: 10 | AD39: 0 | AE39: 0 | AF39: 1
B40: 5 | C40: 05_Oso m | D40: =IF(D9<>0,D$3,"") ->  | G40: 4 | I40: 6 | M40: 10 | Y40: 4, 6, 10, | AC40: 4 | AD40: 6 | AE40: 10 | AF40: 1
B41: 6 | C41: 06_Oso m | D41: =IF(D10<>0,D$3,"") ->  | G41: 4 | H41: 5 | K41: 8 | Y41: 4, 5, 8, | AC41: 4 | AD41: 5 | AE41: 8 | AF41: 2
B42: 7 | C42: 07_Oso m | D42: =IF(D11<>0,D$3,"") ->  | F42: 3 | Y42: 3, 0, 0, | AC42: 3 | AD42: 0 | AE42: 0 | AF42: 1
B43: 8 | C43: 08_Oso m | D43: =IF(D12<>0,D$3,"") ->  | H43: 5 | I43: 6 | L43: 9 | Y43: 5, 6, 9, | AC43: 5 | AD43: 6 | AE43: 9 | AF43: 1
B44: 9 | C44: 09_Oso m | D44: =IF(D13<>0,D$3,"") -> 1 | O44: 12 | P44: 13 | Y44: 1, 12, 13, | AC44: 1 | AD44: 12 | AE44: 13 | AF44: 3
B45: 10 | C45: 10_Oso m | D45: =IF(D14<>0,D$3,"") ->  | E45: 2 | G45: 4 | R45: 15 | Y45: 2, 4, 15, | AC45: 2 | AD45: 4 | AE45: 15 | AF45: 1
B46: 11 | C46: 11_Oso m | D46: =IF(D15<>0,D$3,"") ->  | P46: 13 | Y46: 13, 0, 0, | AC46: 13 | AD46: 0 | AE46: 0 | AF46: 0
B47: 12 | C47: 12_Oso m | D47: =IF(D16<>0,D$3,"") -> 1 | L47: 9 | P47: 13 | Y47: 1, 9, 13, | AC47: 1 | AD47: 9 | AE47: 13 | AF47: 2
B48: 13 | C48: 13_Oso m | D48: =IF(D17<>0,D$3,"") ->  | E48: 2 | G48: 4 | L48: 9 | Y48: 2, 4, 9, | AC48: 2 | AD48: 4 | AE48: 9 | AF48: 2
B49: 14 | C49: 14_Oso f | D49: =IF(D18<>0,D$3,"") ->  | S49: 16 | Y49: 16, 0, 0, | AC49: 16 | AD49: 0 | AE49: 0 | AF49: 1
B50: 15 | C50: 15_Oso f | D50: =IF(D19<>0,D$3,"") ->  | S50: 16 | U50: 18 | V50: 19 | Y50: 16, 18, 19, | AC50: 16 | AD50: 18 | AE50: 19 | AF50: 0
B51: 16 | C51: 16_Oso f | D51: =IF(D20<>0,D$3,"") ->  | Q51: 14 | T51: 17 | U51: 18 | Y51: 14, 17, 18, | AC51: 14 | AD51: 17 | AE51: 18 | AF51: 3
B52: 17 | C52: 17_Oso f | D52: =IF(D21<>0,D$3,"") ->  | Q52: 14 | S52: 16 | U52: 18 | Y52: 14, 16, 18, | AC52: 14 | AD52: 16 | AE52: 18 | AF52: 2
B53: 18 | C53: 18_Oso f | D53: =IF(D22<>0,D$3,"") ->  | S53: 16 | T53: 17 | Y53: 16, 17, 0, | AC53: 16 | AD53: 17 | AE53: 0 | AF53: 2
B54: 19 | C54: 19_Oso f | D54: =IF(D23<>0,D$3,"") ->  | Y54: 0, 0, 0, | AC54: 0 | AD54: 0 | AE54: 0 | AF54: 0
B55: 20 | C55: 20_Oso f | D55: =IF(D24<>0,D$3,"") ->  | Y55: 0, 0, 0, | AC55: 0 | AD55: 0 | AE55: 0 | AF55: 0
AF56: =SUM($AF$36:$AF$55) -> 26

Sheet Q_2
A1: 2. S kým z triedy by si najradšej písaval úlohy a učieval sa?
B2: 3
B3: 20 | D3: 1 | E3: 2 | F3: 3 | G3: 4 | H3: 5 | I3: 6 | J3: 7 | K3: 8 | L3: 9 | M3: 10 | N3: 11 | O3: 12 | P3: 13 | Q3: 14 | R3: 15 | S3: 16 | T3: 17 | U3: 18 | V3: 19 | W3: 20
D4: 01_Oso m | E4: 02_Oso m | F4: 03_Oso m | G4: 04_Osor m | H4: 05_Oso m | I4: 06_Oso m | J4: 07_Oso m | K4: 08_Oso m | L4: 09_Oso m | M4: 10_Oso m | N4: 11_Oso m | O4: 12_Oso m | P4: 13_Oso m | Q4: 14_Oso f | R4: 15_Oso f | S4: 16_Oso f | T4: 17_Oso f | U4: 18_Oso f | V4: 19_Oso f | W4: 20_Oso f
A5: → | B5: 1 | C5: 01_Oso m | L5: 1 | X5: 1 | AQ5: 3 | AR5: 3 | AS5: 0 | AT5: 4 | AU5: 2 | AV5: 1 | AW5: 0 | AX5: 3 | AY5: 2 | AZ5: 4 | BA5: 1 | BB5: 1 | BC5: 1 | BD5: 3 | BE5: 2 | BF5: 3 | BG5: 1 | BH5: 3 | BI5: 0 | BJ5: 0
B6: 2 | C6: 02_Oso m | G6: 3 | H6: 2 | M6: 1 | X6: 3 | AQ6: 1 | AR6: 1 | AS6: 0 | AT6: 1 | AU6: 0 | AV6: 1 | AW6: 0 | AX6: 2 | AY6: 2 | AZ6: 3 | BA6: 0 | BB6: 1 | BC6: 0 | BD6: 1 | BE6: 0 | BF6: 3 | BG6: 0 | BH6: 1 | BI6: 0 | BJ6: 0
B7: 3 | C7: 03_Oso m | D7: 1 | K7: 2 | N7: 3 | X7: 3 | AQ7: 2 | AR7: 0 | AS7: 0 | AT7: 0 | AU7: 2 | AV7: 0 | AW7: 0 | AX7: 1 | AY7: 0 | AZ7: 1 | BA7: 0 | BB7: 0 | BC7: 0 | BD7: 2 | BE7: 1 | BF7: 0 | BG7: 1 | BH7: 0 | BI7: 0 | BJ7: 0
B8: 4 | C8: 04_Osor m | M8: 1 | X8: 1 | AQ8: 0 | AR8: 2 | AS8: 0 | AT8: 3 | AU8: 0 | AV8: 0 | AW8: 0 | AX8: 0 | AY8: 0 | AZ8: 0 | BA8: 1 | BB8: 0 | BC8: 1 | BD8: 0 | BE8: 1 | BF8: 0 | BG8: 0 | BH8: 2 | BI8: 0 | BJ8: 0
B9: 5 | C9: 05_Oso m | E9: 3 | I9: 1 | M9: 2 | X9: 3 | AQ9: 5 | AR9: 5 | AS9: 0 | AT9: 5 | AU9: 0 | AV9: 5 | AW9: 0 | AX9: 10 | AY9: 10 | AZ9: 15 | BA9: 0 | BB9: 5 | BC9: 0 | BD9: 5 | BE9: 0 | BF9: 15 | BG9: 0 | BH9: 5 | BI9: 0 | BJ9: 0
B10: 6 | C10: 06_Oso m | G10: 3 | H10: 2 | K10: 1 | X10: 3 | AQ10: 10 | AR10: 0 | AS10: 0 | AT10: 0 | AU10: 10 | AV10: 0 | AW10: 0 | AX10: 5 | AY10: 0 | AZ10: 5 | BA10: 0 | BB10: 0 | BC10: 0 | BD10: 10 | BE10: 5 | BF10: 0 | BG10: 5 | BH10: 0 | BI10: 0 | BJ10: 0
B11: 7 | C11: 07_Oso m | X11: 0 | AQ11: 0 | AR11: 10 | AS11: 0 | AT11: 15 | AU11: 0 | AV11: 0 | AW11: 0 | AX11: 0 | AY11: 0 | AZ11: 0 | BA11: 5 | BB11: 0 | BC11: 5 | BD11: 0 | BE11: 5 | BF11: 0 | BG11: 0 | BH11: 10 | BI11: 0 | BJ11: 0
B12: 8 | C12: 08_Oso m | E12: 1 | X12: 1 | AQ12: 15 | AR12: 15 | AS12: 0 | AT12: 20 | AU12: 10 | AV12: 5 | AW12: 0 | AX12: 15 | AY12: 10 | AZ12: 20 | BA12: 5 | BB12: 5 | BC12: 5 | BD12: 15 | BE12: 10 | BF12: 15 | BG12: 5 | BH12: 15 | BI12: 0 | BJ12: 0
B13: 9 | C13: 09_Oso m | D13: 2 | G13: 3 | O13: 1 | X13: 3
B14: 10 | C14: 10_Oso m | E14: 3 | G14: 1 | R14: 2 | X14: 3
B15: 11 | C15: 11_Oso m | K15: 1 | X15: 1
B16: 12 | C16: 12_Oso m | D16: 2 | L16: 1 | P16: 3 | X16: 3
B17: 13 | C17: 13_Oso m | M17: 1 | X17: 1
B18: 14 | C18: 14_Oso f | S18: 1 | X18: 1
B19: 15 | C19: 15_Oso f | U19: 1 | X19: 1
B20: 16 | C20: 16_Oso f | Q20: 1 | T20: 2 | U20: 3 | X20: 3
B21: 17 | C21: 17_Oso f | Q21: 2 | S21: 1 | U21: 3 | X21: 3
B22: 18 | C22: 18_Oso f | Q22: 2 | R22: 3 | S22: 1 | X22: 3
B23: 19 | C23: 19_Oso f | X23: 0
B24: 20 | C24: 20_Oso f | X24: 0
C25: Suma volieb 1 + 2 + 3 spolu | D25: 3 | E25: 3 | F25: 0 | G25: 4 | H25: 2 | I25: 1 | J25: 0 | K25: 3 | L25: 2 | M25: 4 | N25: 1 | O25: 1 | P25: 1 | Q25: 3 | R25: 2 | S25: 3 | T25: 1 | U25: 3 | V25: 0 | W25: 0 | X25: =SUM($D$25:$W$25) -> 37
C26: Suma volieb 1 | D26: =COUNTIF(D5:D24,1) -> 1 | E26: 1 | F26: 0 | G26: 1 | H26: 0 | I26: 1 | J26: 0 | K26: 2 | L26: 2 | M26: 3 | N26: 0 | O26: 1 | P26: 0 | Q26: 1 | R26: 0 | S26: 3 | T26: 0 | U26: 1 | V26: 0 | W26: 0
C27: Suma volieb 2 | D27: =COUNTIF(D5:D24,2) -> 2 | E27: 0 | F27: 0 | G27: 0 | H27: 2 | I27: 0 | J27: 0 | K27: 1 | L27: 0 | M27: 1 | N27: 0 | O27: 0 | P27: 0 | Q27: 2 | R27: 1 | S27: 0 | T27: 1 | U27: 0 | V27: 0 | W27: 0
C28: Suma volieb 3 | D28: =COUNTIF(D5:D24,3) -> 0 | E28: 2 | F28: 0 | G28: 3 | H28: 0 | I28: 0 | J28: 0 | K28: 0 | L28: 0 | M28: 0 | N28: 1 | O28: 0 | P28: 1 | Q28: 0 | R28: 1 | S28: 0 | T28: 0 | U28: 2 | V28: 0 | W28: 0
C29: Percento Suma volieb 1 | D29: =(D26/$B$3)*100 -> 5 | E29: 5 | F29: 0 | G29: 5 | H29: 0 | I29: 5 | J29: 0 | K29: 10 | L29: 10 | M29: 15 | N29: 0 | O29: 5 | P29: 0 | Q29: 5 | R29: 0 | S29: 15 | T29: 0 | U29: 5 | V29: 0 | W29: 0
C30: Percento Suma volieb 2 | D30: =(D27/$B$3)*100 -> 10 | E30: 0 | F30: 0 | G30: 0 | H30: 10 | I30: 0 | J30: 0 | K30: 5 | L30: 0 | M30: 5 | N30: 0 | O30: 0 | P30: 0 | Q30: 10 | R30: 5 | S30: 0 | T30: 5 | U30: 0 | V30: 0 | W30: 0
C31: Percento Suma volieb 3 | D31: =(D28/$B$3)*100 -> 0 | E31: 10 | F31: 0 | G31: 15 | H31: 0 | I31: 0 | J31: 0 | K31: 0 | L31: 0 | M31: 0 | N31: 5 | O31: 0 | P31: 5 | Q31: 0 | R31: 5 | S31: 0 | T31: 0 | U31: 10 | V31: 0 | W31: 0
C32: Percento Suma volieb 1 + 2 + 3 spolu | D32: =(D25/$B$3)*100 -> 15 | E32: 15 | F32: 0 | G32: 20 | H32: 10 | I32: 5 | J32: 0 | K32: 15 | L32: 10 | M32: 20 | N32: 5 | O32: 5 | P32: 5 | Q32: 15 | R32: 10 | S32: 15 | T32: 5 | U32: 15 | V32: 0 | W32: 0
D34: 1 | E34: 2 | F34: 3 | G34: 4 | H34: 5 | I34: 6 | J34: 7 | K34: 8 | L34: 9 | M34: 10 | N34: 11 | O34: 12 | P34: 13 | Q34: 14 | R34: 15 | S34: 16 | T34: 17 | U34: 18 | V34: 19 | W34: 20
D35: 01_Oso m | E35: 02_Oso m | F35: 03_Oso m | G35: 04_Osor m | H35: 05_Oso m | I35: 06_Oso m | J35: 07_Oso m | K35: 08_Oso m | L35: 09_Oso m | M35: 10_Oso m | N35: 11_Oso m | O35: 12_Oso m | P35: 13_Oso m | Q35: 14_Oso f | R35: 15_Oso f | S35: 16_Oso f | T35: 17_Oso f | U35: 18_Oso f | V35: 19_Oso f | W35: 20_Oso f
B36: 1 | C36: 01_Oso m | D36: =IF(D5<>0,D$3,"") ->  | L36: 9 | Y36: 9, 0, 0, | AC36: 9 | AD36: 0 | AE36: 0 | AF36: 1
B37: 2 | C37: 02_Oso m | G37: 4 | H37: 5 | M37: 10 | Y37: 4, 5, 10, | AC37: 4 | AD37: 5 | AE37: 10 | AF37: 2
B38: 3 | C38: 03_Oso m | D38: 1 | K38: 8 | N38: 11 | Y38: 1, 8, 11, | AC38: 1 | AD38: 8 | AE38: 11 | AF38: 0
B39: 4 | C39: 04_Osor m | M39: 10 | Y39: 10, 0, 0, | AC39: 10 | AD39: 0 | AE39: 0 | AF39: 1
B40: 5 | C40: 05_Oso m | E40: 2 | I40: 6 | M40: 10 | Y40: 2, 6, 10, | AC40: 2 | AD40: 6 | AE40: 10 | AF40: 2
B41: 6 | C41: 06_Oso m | G41: 4 | H41: 5 | K41: 8 | Y41: 4, 5, 8, | AC41: 4 | AD41: 5 | AE41: 8 | AF41: 1
B42: 7 | C42: 07_Oso m | Y42: 0, 0, 0, | AC42: 0 | AD42: 0 | AE42: 0 | AF42: 0
B43: 8 | C43: 08_Oso m | E43: 2 | Y43: 2, 0, 0, | AC43: 2 | AD43: 0 | AE43: 0 | AF43: 0
B44: 9 | C44: 09_Oso m | D44: 1 | G44: 4 | O44: 12 | Y44: 1, 4, 12, | AC44: 1 | AD44: 4 | AE44: 12 | AF44: 2
B45: 10 | C45: 10_Oso m | E45: 2 | G45: 4 | R45: 15 | Y45: 2, 4, 15, | AC45: 2 | AD45: 4 | AE45: 15 | AF45: 2
B46: 11 | C46: 11_Oso m | K46: 8 | Y46: 8, 0, 0, | AC46: 8 | AD46: 0 | AE46: 0 | AF46: 0
B47: 12 | C47: 12_Oso m | D47: 1 | L47: 9 | P47: 13 | Y47: 1, 9, 13, | AC47: 1 | AD47: 9 | AE47: 13 | AF47: 1
B48: 13 | C48: 13_Oso m | M48: 10 | S48: =IF(S17<>0,S$3,"") ->  | T48: =IF(T17<>0,T$3,"") ->  | U48: =IF(U17<>0,U$3,"") ->  | V48: =IF(V17<>0,V$3,"") ->  | W48: =IF(W17<>0,W$3,"") ->  | Y48: 10, 0, 0, | AC48: 10 | AD48: 0 | AE48: 0 | AF48: 0
B49: 14 | C49: 14_Oso f | D49: =IF(D18<>0,D$3,"") ->  | S49: 16 | Y49: 16, 0, 0, | AC49: 16 | AD49: 0 | AE49: 0 | AF49: 1
B50: 15 | C50: 15_Oso f | U50: 18 | Y50: 18, 0, 0, | AC50: 18 | AD50: 0 | AE50: 0 | AF50: 1
B51: 16 | C51: 16_Oso f | Q51: 14 | T51: 17 | U51: 18 | Y51: 14, 17, 18, | AC51: 14 | AD51: 17 | AE51: 18 | AF51: 3
B52: 17 | C52: 17_Oso f | Q52: 14 | S52: 16 | U52: 18 | Y52: 14, 16, 18, | AC52: 14 | AD52: 16 | AE52: 18 | AF52: 1
B53: 18 | C53: 18_Oso f | Q53: 14 | R53: 15 | S53: 16 | Y53: 14, 15, 16, | AC53: 14 | AD53: 15 | AE53: 16 | AF53: 2
B54: 19 | C54: 19_Oso f | Y54: 0, 0, 0, | AC54: 0 | AD54: 0 | AE54: 0 | AF54: 0
B55: 20 | C55: 20_Oso f | Y55: 0, 0, 0, | AC55: 0 | AD55: 0 | AE55: 0 | AF55: 0
AF56: =SUM($AF$36:$AF$55) -> 20

Sheet Q_3
A1: 3. S kým z triedy by si chcel stráviť prázdniny na pustom ostrove?
B2: 3
B3: 20 | D3: 1 | E3: 2 | F3: 3 | G3: 4 | H3: 5 | I3: 6 | J3: 7 | K3: 8 | L3: 9 | M3: 10 | N3: 11 | O3: 12 | P3: 13 | Q3: 14 | R3: 15 | S3: 16 | T3: 17 | U3: 18 | V3: 19 | W3: 20
D4: 01_Oso m | E4: 02_Oso m | F4: 03_Oso m | G4: 04_Osor m | H4: 05_Oso m | I4: 06_Oso m | J4: 07_Oso m | K4: 08_Oso m | L4: 09_Oso m | M4: 10_Oso m | N4: 11_Oso m | O4: 12_Oso m | P4: 13_Oso m | Q4: 14_Oso f | R4: 15_Oso f | S4: 16_Oso f | T4: 17_Oso f | U4: 18_Oso f | V4: 19_Oso f | W4: 20_Oso f
A5: → | B5: 1 | C5: 01_Oso m | L5: 1 | X5: 1 | AQ5: 3 | AR5: 2 | AS5: 0 | AT5: 6 | AU5: 4 | AV5: 1 | AW5: 0 | AX5: 1 | AY5: 2 | AZ5: 3 | BA5: 1 | BB5: 1 | BC5: 5 | BD5: 2 | BE5: 3 | BF5: 4 | BG5: 3 | BH5: 2 | BI5: 0 | BJ5: 1
B6: 2 | C6: 02_Oso m | G6: 1 | H6: 2 | P6: 3 | X6: 3 | AQ6: 1 | AR6: 1 | AS6: 0 | AT6: 2 | AU6: 2 | AV6: 1 | AW6: 0 | AX6: 0 | AY6: 2 | AZ6: 2 | BA6: 0 | BB6: 1 | BC6: 1 | BD6: 2 | BE6: 0 | BF6: 2 | BG6: 0 | BH6: 1 | BI6: 0 | BJ6: 0
B7: 3 | C7: 03_Oso m | D7: 1 | G7: 2 | P7: 3 | X7: 3 | AQ7: 2 | AR7: 0 | AS7: 0 | AT7: 2 | AU7: 2 | AV7: 0 | AW7: 0 | AX7: 1 | AY7: 0 | AZ7: 1 | BA7: 0 | BB7: 0 | BC7: 0 | BD7: 0 | BE7: 2 | BF7: 2 | BG7: 2 | BH7: 0 | BI7: 0 | BJ7: 0
B8: 4 | C8: 04_Osor m | H8: 2 | M8: 1 | X8: 2 | AQ8: 0 | AR8: 1 | AS8: 0 | AT8: 2 | AU8: 0 | AV8: 0 | AW8: 0 | AX8: 0 | AY8: 0 | AZ8: 0 | BA8: 1 | BB8: 0 | BC8: 4 | BD8: 0 | BE8: 1 | BF8: 0 | BG8: 1 | BH8: 1 | BI8: 0 | BJ8: 1
B9: 5 | C9: 05_Oso m | G9: 3 | I9: 1 | M9: 2 | X9: 3 | AQ9: 5 | AR9: 5 | AS9: 0 | AT9: 10 | AU9: 10 | AV9: 5 | AW9: 0 | AX9: 0 | AY9: 10 | AZ9: 10 | BA9: 0 | BB9: 5 | BC9: 5 | BD9: 10 | BE9: 0 | BF9: 10 | BG9: 0 | BH9: 5 | BI9: 0 | BJ9: 0
B10: 6 | C10: 06_Oso m | G10: 3 | H10: 1 | K10: 2 | X10: 3 | AQ10: 10 | AR10: 0 | AS10: 0 | AT10: 10 | AU10: 10 | AV10: 0 | AW10: 0 | AX10: 5 | AY10: 0 | AZ10: 5 | BA10: 0 | BB10: 0 | BC10: 0 | BD10: 0 | BE10: 10 | BF10: 10 | BG10: 10 | BH10: 0 | BI10: 0 | BJ10: 0
B11: 7 | C11: 07_Oso m | H11: 1 | X11: 1 | AQ11: 0 | AR11: 5 | AS11: 0 | AT11: 10 | AU11: 0 | AV11: 0 | AW11: 0 | AX11: 0 | AY11: 0 | AZ11: 0 | BA11: 5 | BB11: 0 | BC11: 20 | BD11: 0 | BE11: 5 | BF11: 0 | BG11: 5 | BH11: 5 | BI11: 0 | BJ11: 5
B12: 8 | C12: 08_Oso m | E12: 1 | X12: 1 | AQ12: 15 | AR12: 10 | AS12: 0 | AT12: 30 | AU12: 20 | AV12: 5 | AW12: 0 | AX12: 5 | AY12: 10 | AZ12: 15 | BA12: 5 | BB12: 5 | BC12: 25 | BD12: 10 | BE12: 15 | BF12: 20 | BG12: 15 | BH12: 10 | BI12: 0 | BJ12: 5
B13: 9 | C13: 09_Oso m | D13: 2 | O13: 1 | P13: 3 | X13: 3
B14: 10 | C14: 10_Oso m | E14: 3 | G14: 1 | R14: 2 | X14: 3
B15: 11 | C15: 11_Oso m | P15: 1 | X15: 1
B16: 12 | C16: 12_Oso m | D16: 2 | L16: 1 | P16: 3 | X16: 3
B17: 13 | C17: 13_Oso m | G17: 2 | M17: 1 | N17: 3 | X17: 3
B18: 14 | C18: 14_Oso f | S18: 1 | T18: 2 | X18: 2
B19: 15 | C19: 15_Oso f | S19: 2 | U19: 1 | W19: 3 | X19: 3
B20: 16 | C20: 16_Oso f | Q20: 1 | R20: 3 | T20: 2 | X20: 3
B21: 17 | C21: 17_Oso f | R21: 2 | S21: 1 | U21: 3 | X21: 3
B22: 18 | C22: 18_Oso f | Q22: 1 | S22: 2 | T22: 3 | X22: 3
B23: 19 | C23: 19_Oso f | X23: 0
B24: 20 | C24: 20_Oso f | X24: 0
C25: Suma volieb 1 + 2 + 3 spolu | D25: 3 | E25: 2 | F25: 0 | G25: 6 | H25: 4 | I25: 1 | J25: 0 | K25: 1 | L25: 2 | M25: 3 | N25: 1 | O25: 1 | P25: 5 | Q25: 2 | R25: 3 | S25: 4 | T25: 3 | U25: 2 | V25: 0 | W25: 1 | X25: =SUM($D$25:$W$25) -> 44
C26: Suma volieb 1 | D26: =COUNTIF(D5:D24,1) -> 1 | E26: 1 | F26: 0 | G26: 2 | H26: 2 | I26: 1 | J26: 0 | K26: 0 | L26: 2 | M26: 2 | N26: 0 | O26: 1 | P26: 1 | Q26: 2 | R26: 0 | S26: 2 | T26: 0 | U26: 1 | V26: 0 | W26: 0
C27: Suma volieb 2 | D27: =COUNTIF(D5:D24,2) -> 2 | E27: 0 | F27: 0 | G27: 2 | H27: 2 | I27: 0 | J27: 0 | K27: 1 | L27: 0 | M27: 1 | N27: 0 | O27: 0 | P27: 0 | Q27: 0 | R27: 2 | S27: 2 | T27: 2 | U27: 0 | V27: 0 | W27: 0
C28: Suma volieb 3 | D28: =COUNTIF(D5:D24,3) -> 0 | E28: 1 | F28: 0 | G28: 2 | H28: 0 | I28: 0 | J28: 0 | K28: 0 | L28: 0 | M28: 0 | N28: 1 | O28: 0 | P28: 4 | Q28: 0 | R28: 1 | S28: 0 | T28: 1 | U28: 1 | V28: 0 | W28: 1
C29: Percento Suma volieb 1 | D29: =(D26/$B$3)*100 -> 5 | E29: 5 | F29: 0 | G29: 10 | H29: 10 | I29: 5 | J29: 0 | K29: 0 | L29: 10 | M29: 10 | N29: 0 | O29: 5 | P29: 5 | Q29: 10 | R29: 0 | S29: 10 | T29: 0 | U29: 5 | V29: 0 | W29: 0
C30: Percento Suma volieb 2 | D30: =(D27/$B$3)*100 -> 10 | E30: 0 | F30: 0 | G30: 10 | H30: 10 | I30: 0 | J30: 0 | K30: 5 | L30: 0 | M30: 5 | N30: 0 | O30: 0 | P30: 0 | Q30: 0 | R30: 10 | S30: 10 | T30: 10 | U30: 0 | V30: 0 | W30: 0
C31: Percento Suma volieb 3 | D31: =(D28/$B$3)*100 -> 0 | E31: 5 | F31: 0 | G31: 10 | H31: 0 | I31: 0 | J31: 0 | K31: 0 | L31: 0 | M31: 0 | N31: 5 | O31: 0 | P31: 20 | Q31: 0 | R31: 5 | S31: 0 | T31: 5 | U31: 5 | V31: 0 | W31: 5
C32: Percento Suma volieb 1 + 2 + 3 spolu | D32: =(D25/$B$3)*100 -> 15 | E32: 10 | F32: 0 | G32: 30 | H32: 20 | I32: 5 | J32: 0 | K32: 5 | L32: 10 | M32: 15 | N32: 5 | O32: 5 | P32: 25 | Q32: 10 | R32: 15 | S32: 20 | T32: 15 | U32: 10 | V32: 0 | W32: 5
D34: 1 | E34: 2 | F34: 3 | G34: 4 | H34: 5 | I34: 6 | J34: 7 | K34: 8 | L34: 9 | M34: 10 | N34: 11 | O34: 12 | P34: 13 | Q34: 14 | R34: 15 | S34: 16 | T34: 17 | U34: 18 | V34: 19 | W34: 20
D35: 01_Oso m | E35: 02_Oso m | F35: 03_Oso m | G35: 04_Osor m | H35: 05_Oso m | I35: 06_Oso m | J35: 07_Oso m | K35: 08_Oso m | L35: 09_Oso m | M35: 10_Oso m | N35: 11_Oso m | O35: 12_Oso m | P35: 13_Oso m | Q35: 14_Oso f | R35: 15_Oso f | S35: 16_Oso f | T35: 17_Oso f | U35: 18_Oso f | V35: 19_Oso f | W35: 20_Oso f
B36: 1 | C36: 01_Oso m | D36: =IF(D5<>0,D$3,"") ->  | L36: 9 | Y36: 9, 0, 0, | AC36: 9 | AD36: 0 | AE36: 0 | AF36: 1
B37: 2 | C37: 02_Oso m | G37: 4 | H37: 5 | P37: 13 | Y37: 4, 5, 13, | AC37: 4 | AD37: 5 | AE37: 13 | AF37: 0
B38: 3 | C38: 03_Oso m | D38: 1 | G38: 4 | P38: 13 | Y38: 1, 4, 13, | AC38: 1 | AD38: 4 | AE38: 13 | AF38: 0
B39: 4 | C39: 04_Osor m | H39: 5 | M39: 10 | Y39: 5, 10, 0, | AC39: 5 | AD39: 10 | AE39: 0 | AF39: 2
B40: 5 | C40: 05_Oso m | G40: 4 | I40: 6 | M40: 10 | Y40: 4, 6, 10, | AC40: 4 | AD40: 6 | AE40: 10 | AF40: 2
B41: 6 | C41: 06_Oso m | G41: 4 | H41: 5 | K41: 8 | Y41: 4, 5, 8, | AC41: 4 | AD41: 5 | AE41: 8 | AF41: 1
B42: 7 | C42: 07_Oso m | H42: 5 | Y42: 5, 0, 0, | AC42: 5 | AD42: 0 | AE42: 0 | AF42: 0
B43: 8 | C43: 08_Oso m | E43: 2 | Y43: 2, 0, 0, | AC43: 2 | AD43: 0 | AE43: 0 | AF43: 0
B44: 9 | C44: 09_Oso m | D44: 1 | O44: 12 | P44: 13 | Y44: 1, 12, 13, | AC44: 1 | AD44: 12 | AE44: 13 | AF44: 2
B45: 10 | C45: 10_Oso m | E45: 2 | G45: 4 | R45: 15 | Y45: 2, 4, 15, | AC45: 2 | AD45: 4 | AE45: 15 | AF45: 1
B46: 11 | C46: 11_Oso m | P46: 13 | Y46: 13, 0, 0, | AC46: 13 | AD46: 0 | AE46: 0 | AF46: 1
B47: 12 | C47: 12_Oso m | D47: 1 | L47: 9 | P47: 13 | Y47: 1, 9, 13, | AC47: 1 | AD47: 9 | AE47: 13 | AF47: 1
B48: 13 | C48: 13_Oso m | G48: 4 | M48: 10 | N48: 11 | S48: =IF(S17<>0,S$3,"") ->  | T48: =IF(T17<>0,T$3,"") ->  | U48: =IF(U17<>0,U$3,"") ->  | V48: =IF(V17<>0,V$3,"") ->  | W48: =IF(W17<>0,W$3,"") ->  | Y48: 4, 10, 11, | AC48: 4 | AD48: 10 | AE48: 11 | AF48: 1
B49: 14 | C49: 14_Oso f | D49: =IF(D18<>0,D$3,"") ->  | S49: 16 | T49: 17 | Y49: 16, 17, 0, | AC49: 16 | AD49: 17 | AE49: 0 | AF49: 1
B50: 15 | C50: 15_Oso f | S50: 16 | U50: 18 | W50: 20 | Y50: 16, 18, 20, | AC50: 16 | AD50: 18 | AE50: 20 | AF50: 1
B51: 16 | C51: 16_Oso f | Q51: 14 | R51: 15 | T51: 17 | Y51: 14, 15, 17, | AC51: 14 | AD51: 15 | AE51: 17 | AF51: 3
B52: 17 | C52: 17_Oso f | R52: 15 | S52: 16 | U52: 18 | Y52: 15, 16, 18, | AC52: 15 | AD52: 16 | AE52: 18 | AF52: 2
B53: 18 | C53: 18_Oso f | Q53: 14 | S53: 16 | T53: 17 | Y53: 14, 16, 17, | AC53: 14 | AD53: 16 | AE53: 17 | AF53: 1
B54: 19 | C54: 19_Oso f | Y54: 0, 0, 0, | AC54: 0 | AD54: 0 | AE54: 0 | AF54: 0
B55: 20 | C55: 20_Oso f | Y55: 0, 0, 0, | AC55: 0 | AD55: 0 | AE55: 0 | AF55: 0
AF56: =SUM($AF$36:$AF$55) -> 20

Sheet Q_4
A1: 4. Kto by najlepšie dokázal hájiť záujmy triedy?
B2: 3
B3: 20 | D3: 1 | E3: 2 | F3: 3 | G3: 4 | H3: 5 | I3: 6 | J3: 7 | K3: 8 | L3: 9 | M3: 10 | N3: 11 | O3: 12 | P3: 13 | Q3: 14 | R3: 15 | S3: 16 | T3: 17 | U3: 18 | V3: 19 | W3: 20
D4: 01_Oso m | E4: 02_Oso m | F4: 03_Oso m | G4: 04_Osor m | H4: 05_Oso m | I4: 06_Oso m | J4: 07_Oso m | K4: 08_Oso m | L4: 09_Oso m | M4: 10_Oso m | N4: 11_Oso m | O4: 12_Oso m | P4: 13_Oso m | Q4: 14_Oso f | R4: 15_Oso f | S4: 16_Oso f | T4: 17_Oso f | U4: 18_Oso f | V4: 19_Oso f | W4: 20_Oso f
A5: → | B5: 1 | C5: 01_Oso m | X5: 0 | AQ5: 0 | AR5: 1 | AS5: 0 | AT5: 1 | AU5: 3 | AV5: 0 | AW5: 0 | AX5: 0 | AY5: 0 | AZ5: 10 | BA5: 0 | BB5: 0 | BC5: 1 | BD5: 1 | BE5: 1 | BF5: 6 | BG5: 0 | BH5: 4 | BI5: 0 | BJ5: 5
B6: 2 | C6: 02_Oso m | M6: 1 | X6: 1 | AQ6: 0 | AR6: 0 | AS6: 0 | AT6: 0 | AU6: 2 | AV6: 0 | AW6: 0 | AX6: 0 | AY6: 0 | AZ6: 8 | BA6: 0 | BB6: 0 | BC6: 1 | BD6: 0 | BE6: 0 | BF6: 2 | BG6: 0 | BH6: 2 | BI6: 0 | BJ6: 1
B7: 3 | C7: 03_Oso m | E7: 2 | G7: 3 | M7: 1 | X7: 3 | AQ7: 0 | AR7: 1 | AS7: 0 | AT7: 0 | AU7: 0 | AV7: 0 | AW7: 0 | AX7: 0 | AY7: 0 | AZ7: 2 | BA7: 0 | BB7: 0 | BC7: 0 | BD7: 0 | BE7: 0 | BF7: 1 | BG7: 0 | BH7: 1 | BI7: 0 | BJ7: 4
B8: 4 | C8: 04_Osor m | S8: 1 | X8: 1 | AQ8: 0 | AR8: 0 | AS8: 0 | AT8: 1 | AU8: 1 | AV8: 0 | AW8: 0 | AX8: 0 | AY8: 0 | AZ8: 0 | BA8: 0 | BB8: 0 | BC8: 0 | BD8: 1 | BE8: 1 | BF8: 3 | BG8: 0 | BH8: 1 | BI8: 0 | BJ8: 0
B9: 5 | C9: 05_Oso m | M9: 1 | U9: 3 | W9: 2 | X9: 3 | AQ9: 0 | AR9: 0 | AS9: 0 | AT9: 0 | AU9: 10 | AV9: 0 | AW9: 0 | AX9: 0 | AY9: 0 | AZ9: 40 | BA9: 0 | BB9: 0 | BC9: 5 | BD9: 0 | BE9: 0 | BF9: 10 | BG9: 0 | BH9: 10 | BI9: 0 | BJ9: 5
B10: 6 | C10: 06_Oso m | H10: 1 | X10: 1 | AQ10: 0 | AR10: 5 | AS10: 0 | AT10: 0 | AU10: 0 | AV10: 0 | AW10: 0 | AX10: 0 | AY10: 0 | AZ10: 10 | BA10: 0 | BB10: 0 | BC10: 0 | BD10: 0 | BE10: 0 | BF10: 5 | BG10: 0 | BH10: 5 | BI10: 0 | BJ10: 20
B11: 7 | C11: 07_Oso m | M11: 1 | X11: 1 | AQ11: 0 | AR11: 0 | AS11: 0 | AT11: 5 | AU11: 5 | AV11: 0 | AW11: 0 | AX11: 0 | AY11: 0 | AZ11: 0 | BA11: 0 | BB11: 0 | BC11: 0 | BD11: 5 | BE11: 5 | BF11: 15 | BG11: 0 | BH11: 5 | BI11: 0 | BJ11: 0
B12: 8 | C12: 08_Oso m | X12: 0 | AQ12: 0 | AR12: 5 | AS12: 0 | AT12: 5 | AU12: 15 | AV12: 0 | AW12: 0 | AX12: 0 | AY12: 0 | AZ12: 50 | BA12: 0 | BB12: 0 | BC12: 5 | BD12: 5 | BE12: 5 | BF12: 30 | BG12: 0 | BH12: 20 | BI12: 0 | BJ12: 25
B13: 9 | C13: 09_Oso m | M13: 1 | S13: 3 | W13: 2 | X13: 3
B14: 10 | C14: 10_Oso m | H14: 1 | S14: 3 | W14: 2 | X14: 3
B15: 11 | C15: 11_Oso m | P15: 1 | X15: 1
B16: 12 | C16: 12_Oso m | M16: 1 | S16: 3 | W16: 2 | X16: 3
B17: 13 | C17: 13_Oso m | M17: 1 | X17: 1
B18: 14 | C18: 14_Oso f | M18: 2 | U18: 1 | X18: 2
B19: 15 | C19: 15_Oso f | W19: 1 | X19: 1
B20: 16 | C20: 16_Oso f | H20: 3 | M20: 2 | U20: 1 | X20: 3
B21: 17 | C21: 17_Oso f | R21: 3 | S21: 1 | U21: 2 | X21: 3
B22: 18 | C22: 18_Oso f | M22: 1 | Q22: 3 | S22: 2 | X22: 3
B23: 19 | C23: 19_Oso f | X23: 0
B24: 20 | C24: 20_Oso f | X24: 0
C25: Suma volieb 1 + 2 + 3 spolu | D25: 0 | E25: 1 | F25: 0 | G25: 1 | H25: 3 | I25: 0 | J25: 0 | K25: 0 | L25: 0 | M25: 10 | N25: 0 | O25: 0 | P25: 1 | Q25: 1 | R25: 1 | S25: 6 | T25: 0 | U25: 4 | V25: 0 | W25: 5 | X25: =SUM($D$25:$W$25) -> 33
C26: Suma volieb 1 | D26: =COUNTIF(D5:D24,1) -> 0 | E26: 0 | F26: 0 | G26: 0 | H26: 2 | I26: 0 | J26: 0 | K26: 0 | L26: 0 | M26: 8 | N26: 0 | O26: 0 | P26: 1 | Q26: 0 | R26: 0 | S26: 2 | T26: 0 | U26: 2 | V26: 0 | W26: 1
C27: Suma volieb 2 | D27: =COUNTIF(D5:D24,2) -> 0 | E27: 1 | F27: 0 | G27: 0 | H27: 0 | I27: 0 | J27: 0 | K27: 0 | L27: 0 | M27: 2 | N27: 0 | O27: 0 | P27: 0 | Q27: 0 | R27: 0 | S27: 1 | T27: 0 | U27: 1 | V27: 0 | W27: 4
C28: Suma volieb 3 | D28: =COUNTIF(D5:D24,3) -> 0 | E28: 0 | F28: 0 | G28: 1 | H28: 1 | I28: 0 | J28: 0 | K28: 0 | L28: 0 | M28: 0 | N28: 0 | O28: 0 | P28: 0 | Q28: 1 | R28: 1 | S28: 3 | T28: 0 | U28: 1 | V28: 0 | W28: 0
C29: Percento Suma volieb 1 | D29: =(D26/$B$3)*100 -> 0 | E29: 0 | F29: 0 | G29: 0 | H29: 10 | I29: 0 | J29: 0 | K29: 0 | L29: 0 | M29: 40 | N29: 0 | O29: 0 | P29: 5 | Q29: 0 | R29: 0 | S29: 10 | T29: 0 | U29: 10 | V29: 0 | W29: 5
C30: Percento Suma volieb 2 | D30: =(D27/$B$3)*100 -> 0 | E30: 5 | F30: 0 | G30: 0 | H30: 0 | I30: 0 | J30: 0 | K30: 0 | L30: 0 | M30: 10 | N30: 0 | O30: 0 | P30: 0 | Q30: 0 | R30: 0 | S30: 5 | T30: 0 | U30: 5 | V30: 0 | W30: 20
C31: Percento Suma volieb 3 | D31: =(D28/$B$3)*100 -> 0 | E31: 0 | F31: 0 | G31: 5 | H31: 5 | I31: 0 | J31: 0 | K31: 0 | L31: 0 | M31: 0 | N31: 0 | O31: 0 | P31: 0 | Q31: 5 | R31: 5 | S31: 15 | T31: 0 | U31: 5 | V31: 0 | W31: 0
C32: Percento Suma volieb 1 + 2 + 3 spolu | D32: =(D25/$B$3)*100 -> 0 | E32: 5 | F32: 0 | G32: 5 | H32: 15 | I32: 0 | J32: 0 | K32: 0 | L32: 0 | M32: 50 | N32: 0 | O32: 0 | P32: 5 | Q32: 5 | R32: 5 | S32: 30 | T32: 0 | U32: 20 | V32: 0 | W32: 25
D34: 1 | E34: 2 | F34: 3 | G34: 4 | H34: 5 | I34: 6 | J34: 7 | K34: 8 | L34: 9 | M34: 10 | N34: 11 | O34: 12 | P34: 13 | Q34: 14 | R34: 15 | S34: 16 | T34: 17 | U34: 18 | V34: 19 | W34: 20
D35: 01_Oso m | E35: 02_Oso m | F35: 03_Oso m | G35: 04_Osor m | H35: 05_Oso m | I35: 06_Oso m | J35: 07_Oso m | K35: 08_Oso m | L35: 09_Oso m | M35: 10_Oso m | N35: 11_Oso m | O35: 12_Oso m | P35: 13_Oso m | Q35: 14_Oso f | R35: 15_Oso f | S35: 16_Oso f | T35: 17_Oso f | U35: 18_Oso f | V35: 19_Oso f | W35: 20_Oso f
B36: 1 | C36: 01_Oso m | D36: =IF(D5<>0,D$3,"") ->  | Y36: 0, 0, 0, | AC36: 0 | AD36: 0 | AE36: 0 | AF36: 0
B37: 2 | C37: 02_Oso m | M37: 10 | Y37: 10, 0, 0, | AC37: 10 | AD37: 0 | AE37: 0 | AF37: 0
B38: 3 | C38: 03_Oso m | E38: 2 | G38: 4 | M38: 10 | Y38: 2, 4, 10, | AC38: 2 | AD38: 4 | AE38: 10 | AF38: 0
B39: 4 | C39: 04_Osor m | S39: 16 | Y39: 16, 0, 0, | AC39: 16 | AD39: 0 | AE39: 0 | AF39: 0
B40: 5 | C40: 05_Oso m | M40: 10 | U40: 18 | W40: 20 | Y40: 10, 18, 20, | AC40: 10 | AD40: 18 | AE40: 20 | AF40: 1
B41: 6 | C41: 06_Oso m | H41: 5 | Y41: 5, 0, 0, | AC41: 5 | AD41: 0 | AE41: 0 | AF41: 0
B42: 7 | C42: 07_Oso m | M42: 10 | Y42: 10, 0, 0, | AC42: 10 | AD42: 0 | AE42: 0 | AF42: 0
B43: 8 | C43: 08_Oso m | Y43: 0, 0, 0, | AC43: 0 | AD43: 0 | AE43: 0 | AF43: 0
B44: 9 | C44: 09_Oso m | M44: 10 | S44: 16 | W44: 20 | Y44: 10, 16, 20, | AC44: 10 | AD44: 16 | AE44: 20 | AF44: 0
B45: 10 | C45: 10_Oso m | H45: 5 | S45: 16 | W45: 20 | Y45: 5, 16, 20, | AC45: 5 | AD45: 16 | AE45: 20 | AF45: 2
B46: 11 | C46: 11_Oso m | P46: 13 | Y46: 13, 0, 0, | AC46: 13 | AD46: 0 | AE46: 0 | AF46: 0
B47: 12 | C47: 12_Oso m | M47: 10 | S47: 16 | W47: 20 | Y47: 10, 16, 20, | AC47: 10 | AD47: 16 | AE47: 20 | AF47: 0
B48: 13 | C48: 13_Oso m | M48: 10 | S48: =IF(S17<>0,S$3,"") ->  | T48: =IF(T17<>0,T$3,"") ->  | U48: =IF(U17<>0,U$3,"") ->  | V48: =IF(V17<>0,V$3,"") ->  | W48: =IF(W17<>0,W$3,"") ->  | Y48: 10, 0, 0, | AC48: 10 | AD48: 0 | AE48: 0 | AF48: 0
B49: 14 | C49: 14_Oso f | D49: =IF(D18<>0,D$3,"") ->  | M49: 10 | U49: 18 | Y49: 10, 18, 0, | AC49: 10 | AD49: 18 | AE49: 0 | AF49: 1
B50: 15 | C50: 15_Oso f | W50: 20 | Y50: 20, 0, 0, | AC50: 20 | AD50: 0 | AE50: 0 | AF50: 0
B51: 16 | C51: 16_Oso f | H51: 5 | M51: 10 | U51: 18 | Y51: 5, 10, 18, | AC51: 5 | AD51: 10 | AE51: 18 | AF51: 2
B52: 17 | C52: 17_Oso f | R52: 15 | S52: 16 | U52: 18 | Y52: 15, 16, 18, | AC52: 15 | AD52: 16 | AE52: 18 | AF52: 0
B53: 18 | C53: 18_Oso f | M53: 10 | Q53: 14 | S53: 16 | Y53: 10, 14, 16, | AC53: 10 | AD53: 14 | AE53: 16 | AF53: 2
B54: 19 | C54: 19_Oso f | Y54: 0, 0, 0, | AC54: 0 | AD54: 0 | AE54: 0 | AF54: 0
B55: 20 | C55: 20_Oso f | Y55: 0, 0, 0, | AC55: 0 | AD55: 0 | AE55: 0 | AF55: 0
AF56: =SUM($AF$36:$AF$55) -> 8

Sheet Q_5
A1: 5. Komu z triedy by si zveril svoje tajomstvo?
B2: 3
B3: 20 | D3: 1 | E3: 2 | F3: 3 | G3: 4 | H3: 5 | I3: 6 | J3: 7 | K3: 8 | L3: 9 | M3: 10 | N3: 11 | O3: 12 | P3: 13 | Q3: 14 | R3: 15 | S3: 16 | T3: 17 | U3: 18 | V3: 19 | W3: 20
D4: 01_Oso m | E4: 02_Oso m | F4: 03_Oso m | G4: 04_Osor m | H4: 05_Oso m | I4: 06_Oso m | J4: 07_Oso m | K4: 08_Oso m | L4: 09_Oso m | M4: 10_Oso m | N4: 11_Oso m | O4: 12_Oso m | P4: 13_Oso m | Q4: 14_Oso f | R4: 15_Oso f | S4: 16_Oso f | T4: 17_Oso f | U4: 18_Oso f | V4: 19_Oso f | W4: 20_Oso f
A5: → | B5: 1 | C5: 01_Oso m | X5: 0 | AQ5: 2 | AR5: 1 | AS5: 0 | AT5: 2 | AU5: 2 | AV5: 2 | AW5: 1 | AX5: 2 | AY5: 1 | AZ5: 3 | BA5: 0 | BB5: 1 | BC5: 2 | BD5: 1 | BE5: 3 | BF5: 2 | BG5: 2 | BH5: 1 | BI5: 0 | BJ5: 0
B6: 2 | C6: 02_Oso m | H6: 1 | X6: 1 | AQ6: 0 | AR6: 0 | AS6: 0 | AT6: 1 | AU6: 1 | AV6: 1 | AW6: 1 | AX6: 1 | AY6: 1 | AZ6: 3 | BA6: 0 | BB6: 1 | BC6: 0 | BD6: 1 | BE6: 0 | BF6: 2 | BG6: 0 | BH6: 0 | BI6: 0 | BJ6: 0
B7: 3 | C7: 03_Oso m | X7: 0 | AQ7: 2 | AR7: 0 | AS7: 0 | AT7: 0 | AU7: 1 | AV7: 1 | AW7: 0 | AX7: 0 | AY7: 0 | AZ7: 0 | BA7: 0 | BB7: 0 | BC7: 0 | BD7: 0 | BE7: 2 | BF7: 0 | BG7: 2 | BH7: 0 | BI7: 0 | BJ7: 0
B8: 4 | C8: 04_Osor m | M8: 1 | X8: 1 | AQ8: 0 | AR8: 1 | AS8: 0 | AT8: 1 | AU8: 0 | AV8: 0 | AW8: 0 | AX8: 1 | AY8: 0 | AZ8: 0 | BA8: 0 | BB8: 0 | BC8: 2 | BD8: 0 | BE8: 1 | BF8: 0 | BG8: 0 | BH8: 1 | BI8: 0 | BJ8: 0
B9: 5 | C9: 05_Oso m | E9: 3 | I9: 2 | M9: 1 | X9: 3 | AQ9: 0 | AR9: 0 | AS9: 0 | AT9: 5 | AU9: 5 | AV9: 5 | AW9: 5 | AX9: 5 | AY9: 5 | AZ9: 15 | BA9: 0 | BB9: 5 | BC9: 0 | BD9: 5 | BE9: 0 | BF9: 10 | BG9: 0 | BH9: 0 | BI9: 0 | BJ9: 0
B10: 6 | C10: 06_Oso m | G10: 3 | H10: 2 | K10: 1 | X10: 3 | AQ10: 10 | AR10: 0 | AS10: 0 | AT10: 0 | AU10: 5 | AV10: 5 | AW10: 0 | AX10: 0 | AY10: 0 | AZ10: 0 | BA10: 0 | BB10: 0 | BC10: 0 | BD10: 0 | BE10: 10 | BF10: 0 | BG10: 10 | BH10: 0 | BI10: 0 | BJ10: 0
B11: 7 | C11: 07_Oso m | X11: 0 | AQ11: 0 | AR11: 5 | AS11: 0 | AT11: 5 | AU11: 0 | AV11: 0 | AW11: 0 | AX11: 5 | AY11: 0 | AZ11: 0 | BA11: 0 | BB11: 0 | BC11: 10 | BD11: 0 | BE11: 5 | BF11: 0 | BG11: 0 | BH11: 5 | BI11: 0 | BJ11: 0
B12: 8 | C12: 08_Oso m | I12: 1 | X12: 1 | AQ12: 10 | AR12: 5 | AS12: 0 | AT12: 10 | AU12: 10 | AV12: 10 | AW12: 5 | AX12: 10 | AY12: 5 | AZ12: 15 | BA12: 0 | BB12: 5 | BC12: 10 | BD12: 5 | BE12: 15 | BF12: 10 | BG12: 10 | BH12: 5 | BI12: 0 | BJ12: 0
B13: 9 | C13: 09_Oso m | D13: 2 | O13: 1 | P13: 3 | X13: 3
B14: 10 | C14: 10_Oso m | G14: 1 | K14: 3 | R14: 2 | X14: 3
B15: 11 | C15: 11_Oso m | J15: 1 | X15: 1
B16: 12 | C16: 12_Oso m | D16: 2 | L16: 1 | P16: 3 | X16: 3
B17: 13 | C17: 13_Oso m | M17: 1 | X17: 1
B18: 14 | C18: 14_Oso f | S18: 1 | T18: 2 | X18: 2
B19: 15 | C19: 15_Oso f | X19: 0
B20: 16 | C20: 16_Oso f | Q20: 1 | R20: 3 | T20: 2 | X20: 3
B21: 17 | C21: 17_Oso f | R21: 2 | S21: 1 | U21: 3 | X21: 3
B22: 18 | C22: 18_Oso f | X22: 0
B23: 19 | C23: 19_Oso f | X23: 0
B24: 20 | C24: 20_Oso f | X24: 0
C25: Suma volieb 1 + 2 + 3 spolu | D25: 2 | E25: 1 | F25: 0 | G25: 2 | H25: 2 | I25: 2 | J25: 1 | K25: 2 | L25: 1 | M25: 3 | N25: 0 | O25: 1 | P25: 2 | Q25: 1 | R25: 3 | S25: 2 | T25: 2 | U25: 1 | V25: 0 | W25: 0 | X25: =SUM($D$25:$W$25) -> 28
C26: Suma volieb 1 | D26: =COUNTIF(D5:D24,1) -> 0 | E26: 0 | F26: 0 | G26: 1 | H26: 1 | I26: 1 | J26: 1 | K26: 1 | L26: 1 | M26: 3 | N26: 0 | O26: 1 | P26: 0 | Q26: 1 | R26: 0 | S26: 2 | T26: 0 | U26: 0 | V26: 0 | W26: 0
C27: Suma volieb 2 | D27: =COUNTIF(D5:D24,2) -> 2 | E27: 0 | F27: 0 | G27: 0 | H27: 1 | I27: 1 | J27: 0 | K27: 0 | L27: 0 | M27: 0 | N27: 0 | O27: 0 | P27: 0 | Q27: 0 | R27: 2 | S27: 0 | T27: 2 | U27: 0 | V27: 0 | W27: 0
C28: Suma volieb 3 | D28: =COUNTIF(D5:D24,3) -> 0 | E28: 1 | F28: 0 | G28: 1 | H28: 0 | I28: 0 | J28: 0 | K28: 1 | L28: 0 | M28: 0 | N28: 0 | O28: 0 | P28: 2 | Q28: 0 | R28: 1 | S28: 0 | T28: 0 | U28: 1 | V28: 0 | W28: 0
C29: Percento Suma volieb 1 | D29: =(D26/$B$3)*100 -> 0 | E29: 0 | F29: 0 | G29: 5 | H29: 5 | I29: 5 | J29: 5 | K29: 5 | L29: 5 | M29: 15 | N29: 0 | O29: 5 | P29: 0 | Q29: 5 | R29: 0 | S29: 10 | T29: 0 | U29: 0 | V29: 0 | W29: 0
C30: Percento Suma volieb 2 | D30: =(D27/$B$3)*100 -> 10 | E30: 0 | F30: 0 | G30: 0 | H30: 5 | I30: 5 | J30: 0 | K30: 0 | L30: 0 | M30: 0 | N30: 0 | O30: 0 | P30: 0 | Q30: 0 | R30: 10 | S30: 0 | T30: 10 | U30: 0 | V30: 0 | W30: 0
C31: Percento Suma volieb 3 | D31: =(D28/$B$3)*100 -> 0 | E31: 5 | F31: 0 | G31: 5 | H31: 0 | I31: 0 | J31: 0 | K31: 5 | L31: 0 | M31: 0 | N31: 0 | O31: 0 | P31: 10 | Q31: 0 | R31: 5 | S31: 0 | T31: 0 | U31: 5 | V31: 0 | W31: 0
C32: Percento Suma volieb 1 + 2 + 3 spolu | D32: =(D25/$B$3)*100 -> 10 | E32: 5 | F32: 0 | G32: 10 | H32: 10 | I32: 10 | J32: 5 | K32: 10 | L32: 5 | M32: 15 | N32: 0 | O32: 5 | P32: 10 | Q32: 5 | R32: 15 | S32: 10 | T32: 10 | U32: 5 | V32: 0 | W32: 0
D34: 1 | E34: 2 | F34: 3 | G34: 4 | H34: 5 | I34: 6 | J34: 7 | K34: 8 | L34: 9 | M34: 10 | N34: 11 | O34: 12 | P34: 13 | Q34: 14 | R34: 15 | S34: 16 | T34: 17 | U34: 18 | V34: 19 | W34: 20
D35: 01_Oso m | E35: 02_Oso m | F35: 03_Oso m | G35: 04_Osor m | H35: 05_Oso m | I35: 06_Oso m | J35: 07_Oso m | K35: 08_Oso m | L35: 09_Oso m | M35: 10_Oso m | N35: 11_Oso m | O35: 12_Oso m | P35: 13_Oso m | Q35: 14_Oso f | R35: 15_Oso f | S35: 16_Oso f | T35: 17_Oso f | U35: 18_Oso f | V35: 19_Oso f | W35: 20_Oso f
B36: 1 | C36: 01_Oso m | D36: =IF(D5<>0,D$3,"") ->  | Y36: 0, 0, 0, | AC36: 0 | AD36: 0 | AE36: 0 | AF36: 0
B37: 2 | C37: 02_Oso m | H37: 5 | Y37: 5, 0, 0, | AC37: 5 | AD37: 0 | AE37: 0 | AF37: 1
B38: 3 | C38: 03_Oso m | Y38: 0, 0, 0, | AC38: 0 | AD38: 0 | AE38: 0 | AF38: 0
B39: 4 | C39: 04_Osor m | M39: 10 | Y39: 10, 0, 0, | AC39: 10 | AD39: 0 | AE39: 0 | AF39: 1
B40: 5 | C40: 05_Oso m | E40: 2 | I40: 6 | M40: 10 | Y40: 2, 6, 10, | AC40: 2 | AD40: 6 | AE40: 10 | AF40: 2
B41: 6 | C41: 06_Oso m | G41: 4 | H41: 5 | K41: 8 | Y41: 4, 5, 8, | AC41: 4 | AD41: 5 | AE41: 8 | AF41: 2
B42: 7 | C42: 07_Oso m | Y42: 0, 0, 0, | AC42: 0 | AD42: 0 | AE42: 0 | AF42: 0
B43: 8 | C43: 08_Oso m | I43: 6 | Y43: 6, 0, 0, | AC43: 6 | AD43: 0 | AE43: 0 | AF43: 1
B44: 9 | C44: 09_Oso m | D44: 1 | O44: 12 | P44: 13 | Y44: 1, 12, 13, | AC44: 1 | AD44: 12 | AE44: 13 | AF44: 1
B45: 10 | C45: 10_Oso m | G45: 4 | K45: 8 | R45: 15 | Y45: 4, 8, 15, | AC45: 4 | AD45: 8 | AE45: 15 | AF45: 1
B46: 11 | C46: 11_Oso m | J46: 7 | Y46: 7, 0, 0, | AC46: 7 | AD46: 0 | AE46: 0 | AF46: 0
B47: 12 | C47: 12_Oso m | D47: 1 | L47: 9 | P47: 13 | Y47: 1, 9, 13, | AC47: 1 | AD47: 9 | AE47: 13 | AF47: 1
B48: 13 | C48: 13_Oso m | M48: 10 | S48: =IF(S17<>0,S$3,"") ->  | T48: =IF(T17<>0,T$3,"") ->  | U48: =IF(U17<>0,U$3,"") ->  | V48: =IF(V17<>0,V$3,"") ->  | W48: =IF(W17<>0,W$3,"") ->  | Y48: 10, 0, 0, | AC48: 10 | AD48: 0 | AE48: 0 | AF48: 0
B49: 14 | C49: 14_Oso f | D49: =IF(D18<>0,D$3,"") ->  | S49: 16 | T49: 17 | Y49: 16, 17, 0, | AC49: 16 | AD49: 17 | AE49: 0 | AF49: 1
B50: 15 | C50: 15_Oso f | Y50: 0, 0, 0, | AC50: 0 | AD50: 0 | AE50: 0 | AF50: 0
B51: 16 | C51: 16_Oso f | Q51: 14 | R51: 15 | T51: 17 | Y51: 14, 15, 17, | AC51: 14 | AD51: 15 | AE51: 17 | AF51: 2
B52: 17 | C52: 17_Oso f | R52: 15 | S52: 16 | U52: 18 | Y52: 15, 16, 18, | AC52: 15 | AD52: 16 | AE52: 18 | AF52: 1
B53: 18 | C53: 18_Oso f | Y53: 0, 0, 0, | AC53: 0 | AD53: 0 | AE53: 0 | AF53: 0
B54: 19 | C54: 19_Oso f | Y54: 0, 0, 0, | AC54: 0 | AD54: 0 | AE54: 0 | AF54: 0
B55: 20 | C55: 20_Oso f | Y55: 0, 0, 0, | AC55: 0 | AD55: 0 | AE55: 0 | AF55: 0
AF56: =SUM($AF$36:$AF$55) -> 14

Sheet Q_6
A1: 6. S kým z triedy by si nechcel sedieť v jednej lavici?
B2: 3
B3: 20 | D3: 1 | E3: 2 | F3: 3 | G3: 4 | H3: 5 | I3: 6 | J3: 7 | K3: 8 | L3: 9 | M3: 10 | N3: 11 | O3: 12 | P3: 13 | Q3: 14 | R3: 15 | S3: 16 | T3: 17 | U3: 18 | V3: 19 | W3: 20
D4: 01_Oso m | E4: 02_Oso m | F4: 03_Oso m | G4: 04_Osor m | H4: 05_Oso m | I4: 06_Oso m | J4: 07_Oso m | K4: 08_Oso m | L4: 09_Oso m | M4: 10_Oso m | N4: 11_Oso m | O4: 12_Oso m | P4: 13_Oso m | Q4: 14_Oso f | R4: 15_Oso f | S4: 16_Oso f | T4: 17_Oso f | U4: 18_Oso f | V4: 19_Oso f | W4: 20_Oso f
A5: → | B5: 1 | C5: 01_Oso m | N5: 2 | V5: 1 | X5: 2 | AQ5: 1 | AR5: 0 | AS5: 4 | AT5: 1 | AU5: 1 | AV5: 0 | AW5: 0 | AX5: 0 | AY5: 3 | AZ5: 1 | BA5: 6 | BB5: 0 | BC5: 1 | BD5: 4 | BE5: 3 | BF5: 4 | BG5: 2 | BH5: 0 | BI5: 10 | BJ5: 5
B6: 2 | C6: 02_Oso m | S6: 3 | V6: 1 | W6: 2 | X6: 3 | AQ6: 0 | AR6: 0 | AS6: 0 | AT6: 0 | AU6: 1 | AV6: 0 | AW6: 0 | AX6: 0 | AY6: 1 | AZ6: 0 | BA6: 1 | BB6: 0 | BC6: 1 | BD6: 0 | BE6: 0 | BF6: 1 | BG6: 0 | BH6: 0 | BI6: 9 | BJ6: 3
B7: 3 | C7: 03_Oso m | G7: 2 | M7: 3 | V7: 1 | X7: 3 | AQ7: 1 | AR7: 0 | AS7: 3 | AT7: 1 | AU7: 0 | AV7: 0 | AW7: 0 | AX7: 0 | AY7: 0 | AZ7: 0 | BA7: 4 | BB7: 0 | BC7: 0 | BD7: 1 | BE7: 1 | BF7: 2 | BG7: 1 | BH7: 0 | BI7: 1 | BJ7: 1
B8: 4 | C8: 04_Osor m | L8: 1 | Q8: 3 | V8: 2 | X8: 3 | AQ8: 0 | AR8: 0 | AS8: 1 | AT8: 0 | AU8: 0 | AV8: 0 | AW8: 0 | AX8: 0 | AY8: 2 | AZ8: 1 | BA8: 1 | BB8: 0 | BC8: 0 | BD8: 3 | BE8: 2 | BF8: 1 | BG8: 1 | BH8: 0 | BI8: 0 | BJ8: 1
B9: 5 | C9: 05_Oso m | Q9: 3 | S9: 2 | V9: 1 | X9: 3 | AQ9: 0 | AR9: 0 | AS9: 0 | AT9: 0 | AU9: 5 | AV9: 0 | AW9: 0 | AX9: 0 | AY9: 5 | AZ9: 0 | BA9: 5 | BB9: 0 | BC9: 5 | BD9: 0 | BE9: 0 | BF9: 5 | BG9: 0 | BH9: 0 | BI9: 45 | BJ9: 15
B10: 6 | C10: 06_Oso m | Q10: 3 | T10: 2 | V10: 1 | X10: 3 | AQ10: 5 | AR10: 0 | AS10: 15 | AT10: 5 | AU10: 0 | AV10: 0 | AW10: 0 | AX10: 0 | AY10: 0 | AZ10: 0 | BA10: 20 | BB10: 0 | BC10: 0 | BD10: 5 | BE10: 5 | BF10: 10 | BG10: 5 | BH10: 0 | BI10: 5 | BJ10: 5
B11: 7 | C11: 07_Oso m | X11: 0 | AQ11: 0 | AR11: 0 | AS11: 5 | AT11: 0 | AU11: 0 | AV11: 0 | AW11: 0 | AX11: 0 | AY11: 10 | AZ11: 5 | BA11: 5 | BB11: 0 | BC11: 0 | BD11: 15 | BE11: 10 | BF11: 5 | BG11: 5 | BH11: 0 | BI11: 0 | BJ11: 5
B12: 8 | C12: 08_Oso m | V12: 1 | X12: 1 | AQ12: 5 | AR12: 0 | AS12: 20 | AT12: 5 | AU12: 5 | AV12: 0 | AW12: 0 | AX12: 0 | AY12: 15 | AZ12: 5 | BA12: 30 | BB12: 0 | BC12: 5 | BD12: 20 | BE12: 15 | BF12: 20 | BG12: 10 | BH12: 0 | BI12: 50 | BJ12: 25
B13: 9 | C13: 09_Oso m | N13: 2 | R13: 3 | V13: 1 | X13: 3
B14: 10 | C14: 10_Oso m | L14: 3 | N14: 2 | P14: 1 | X14: 3
B15: 11 | C15: 11_Oso m | Q15: 2 | S15: 1 | T15: 3 | X15: 3
B16: 12 | C16: 12_Oso m | N16: 2 | R16: 3 | V16: 1 | X16: 3
B17: 13 | C17: 13_Oso m | S17: 2 | V17: 1 | W17: 3 | X17: 3
B18: 14 | C18: 14_Oso f | F18: 2 | W18: 1 | X18: 2
B19: 15 | C19: 15_Oso f | F19: 2 | N19: 1 | X19: 2
B20: 16 | C20: 16_Oso f | F20: 3 | R20: 2 | W20: 1 | X20: 3
B21: 17 | C21: 17_Oso f | D21: 2 | H21: 1 | L21: 3 | W21: 1 | X21: 4
B22: 18 | C22: 18_Oso f | F22: 2 | N22: 3 | X22: 2
B23: 19 | C23: 19_Oso f | X23: 0
B24: 20 | C24: 20_Oso f | X24: 0
C25: Suma volieb 1 + 2 + 3 spolu | D25: 1 | E25: 0 | F25: 4 | G25: 1 | H25: 1 | I25: 0 | J25: 0 | K25: 0 | L25: 3 | M25: 1 | N25: 6 | O25: 0 | P25: 1 | Q25: 4 | R25: 3 | S25: 4 | T25: 2 | U25: 0 | V25: 10 | W25: 5 | X25: =SUM($D$25:$W$25) -> 46
C26: Suma volieb 1 | D26: =COUNTIF(D5:D24,1) -> 0 | E26: 0 | F26: 0 | G26: 0 | H26: 1 | I26: 0 | J26: 0 | K26: 0 | L26: 1 | M26: 0 | N26: 1 | O26: 0 | P26: 1 | Q26: 0 | R26: 0 | S26: 1 | T26: 0 | U26: 0 | V26: 9 | W26: 3
C27: Suma volieb 2 | D27: =COUNTIF(D5:D24,2) -> 1 | E27: 0 | F27: 3 | G27: 1 | H27: 0 | I27: 0 | J27: 0 | K27: 0 | L27: 0 | M27: 0 | N27: 4 | O27: 0 | P27: 0 | Q27: 1 | R27: 1 | S27: 2 | T27: 1 | U27: 0 | V27: 1 | W27: 1
C28: Suma volieb 3 | D28: =COUNTIF(D5:D24,3) -> 0 | E28: 0 | F28: 1 | G28: 0 | H28: 0 | I28: 0 | J28: 0 | K28: 0 | L28: 2 | M28: 1 | N28: 1 | O28: 0 | P28: 0 | Q28: 3 | R28: 2 | S28: 1 | T28: 1 | U28: 0 | V28: 0 | W28: 1
C29: Percento Suma volieb 1 | D29: =(D26/$B$3)*100 -> 0 | E29: 0 | F29: 0 | G29: 0 | H29: 5 | I29: 0 | J29: 0 | K29: 0 | L29: 5 | M29: 0 | N29: 5 | O29: 0 | P29: 5 | Q29: 0 | R29: 0 | S29: 5 | T29: 0 | U29: 0 | V29: 45 | W29: 15
C30: Percento Suma volieb 2 | D30: =(D27/$B$3)*100 -> 5 | E30: 0 | F30: 15 | G30: 5 | H30: 0 | I30: 0 | J30: 0 | K30: 0 | L30: 0 | M30: 0 | N30: 20 | O30: 0 | P30: 0 | Q30: 5 | R30: 5 | S30: 10 | T30: 5 | U30: 0 | V30: 5 | W30: 5
C31: Percento Suma volieb 3 | D31: =(D28/$B$3)*100 -> 0 | E31: 0 | F31: 5 | G31: 0 | H31: 0 | I31: 0 | J31: 0 | K31: 0 | L31: 10 | M31: 5 | N31: 5 | O31: 0 | P31: 0 | Q31: 15 | R31: 10 | S31: 5 | T31: 5 | U31: 0 | V31: 0 | W31: 5
C32: Percento Suma volieb 1 + 2 + 3 spolu | D32: =(D25/$B$3)*100 -> 5 | E32: 0 | F32: 20 | G32: 5 | H32: 5 | I32: 0 | J32: 0 | K32: 0 | L32: 15 | M32: 5 | N32: 30 | O32: 0 | P32: 5 | Q32: 20 | R32: 15 | S32: 20 | T32: 10 | U32: 0 | V32: 50 | W32: 25
D34: 1 | E34: 2 | F34: 3 | G34: 4 | H34: 5 | I34: 6 | J34: 7 | K34: 8 | L34: 9 | M34: 10 | N34: 11 | O34: 12 | P34: 13 | Q34: 14 | R34: 15 | S34: 16 | T34: 17 | U34: 18 | V34: 19 | W34: 20
D35: 01_Oso m | E35: 02_Oso m | F35: 03_Oso m | G35: 04_Osor m | H35: 05_Oso m | I35: 06_Oso m | J35: 07_Oso m | K35: 08_Oso m | L35: 09_Oso m | M35: 10_Oso m | N35: 11_Oso m | O35: 12_Oso m | P35: 13_Oso m | Q35: 14_Oso f | R35: 15_Oso f | S35: 16_Oso f | T35: 17_Oso f | U35: 18_Oso f | V35: 19_Oso f | W35: 20_Oso f
B36: 1 | C36: 01_Oso m | D36: =IF(D5<>0,D$3,"") ->  | N36: 11 | V36: 19 | Y36: 11, 19, 0, | AC36: 11 | AD36: 19 | AE36: 0 | AF36: 0
B37: 2 | C37: 02_Oso m | S37: 16 | V37: 19 | W37: 20 | Y37: 16, 19, 20, | AC37: 16 | AD37: 19 | AE37: 20 | AF37: 0
B38: 3 | C38: 03_Oso m | G38: 4 | M38: 10 | V38: 19 | Y38: 4, 10, 19, | AC38: 4 | AD38: 10 | AE38: 19 | AF38: 0
B39: 4 | C39: 04_Osor m | L39: 9 | Q39: 14 | V39: 19 | Y39: 9, 14, 19, | AC39: 9 | AD39: 14 | AE39: 19 | AF39: 0
B40: 5 | C40: 05_Oso m | Q40: 14 | S40: 16 | V40: 19 | Y40: 14, 16, 19, | AC40: 14 | AD40: 16 | AE40: 19 | AF40: 0
B41: 6 | C41: 06_Oso m | Q41: 14 | T41: 17 | V41: 19 | Y41: 14, 17, 19, | AC41: 14 | AD41: 17 | AE41: 19 | AF41: 0
B42: 7 | C42: 07_Oso m | Y42: 0, 0, 0, | AC42: 0 | AD42: 0 | AE42: 0 | AF42: 0
B43: 8 | C43: 08_Oso m | V43: 19 | Y43: 19, 0, 0, | AC43: 19 | AD43: 0 | AE43: 0 | AF43: 0
B44: 9 | C44: 09_Oso m | N44: 11 | R44: 15 | V44: 19 | Y44: 11, 15, 19, | AC44: 11 | AD44: 15 | AE44: 19 | AF44: 0
B45: 10 | C45: 10_Oso m | L45: 9 | N45: 11 | P45: 13 | Y45: 9, 11, 13, | AC45: 9 | AD45: 11 | AE45: 13 | AF45: 0
B46: 11 | C46: 11_Oso m | Q46: 14 | S46: 16 | T46: 17 | Y46: 14, 16, 17, | AC46: 14 | AD46: 16 | AE46: 17 | AF46: 0
B47: 12 | C47: 12_Oso m | N47: 11 | R47: 15 | V47: 19 | Y47: 11, 15, 19, | AC47: 11 | AD47: 15 | AE47: 19 | AF47: 0
B48: 13 | C48: 13_Oso m | S48: =IF(S17<>0,S$3,"") -> 16 | T48: =IF(T17<>0,T$3,"") ->  | U48: =IF(U17<>0,U$3,"") ->  | V48: =IF(V17<>0,V$3,"") -> 19 | W48: =IF(W17<>0,W$3,"") -> 20 | Y48: 16, 19, 20, | AC48: 16 | AD48: 19 | AE48: 20 | AF48: 0
B49: 14 | C49: 14_Oso f | D49: =IF(D18<>0,D$3,"") ->  | F49: 3 | W49: 20 | Y49: 3, 20, 0, | AC49: 3 | AD49: 20 | AE49: 0 | AF49: 0
B50: 15 | C50: 15_Oso f | F50: 3 | N50: 11 | Y50: 3, 11, 0, | AC50: 3 | AD50: 11 | AE50: 0 | AF50: 0
B51: 16 | C51: 16_Oso f | F51: 3 | R51: 15 | W51: 20 | Y51: 3, 15, 20, | AC51: 3 | AD51: 15 | AE51: 20 | AF51: 0
B52: 17 | C52: 17_Oso f | D52: 1 | H52: 5 | L52: 9 | W52: 20 | Y52: 1, 5, 9, | AC52: 1 | AD52: 5 | AE52: 9 | AF52: 0
B53: 18 | C53: 18_Oso f | F53: 3 | N53: 11 | Y53: 3, 11, 0, | AC53: 3 | AD53: 11 | AE53: 0 | AF53: 0
B54: 19 | C54: 19_Oso f | Y54: 0, 0, 0, | AC54: 0 | AD54: 0 | AE54: 0 | AF54: 0
B55: 20 | C55: 20_Oso f | Y55: 0, 0, 0, | AC55: 0 | AD55: 0 | AE55: 0 | AF55: 0
AF56: =SUM($AF$36:$AF$55) -> 0

Sheet Q_7
A1: 7. S kým z triedy by si v žiadnom prípade nechcel písavať úlohy a učievať sa?
B2: 3
B3: 20 | D3: 1 | E3: 2 | F3: 3 | G3: 4 | H3: 5 | I3: 6 | J3: 7 | K3: 8 | L3: 9 | M3: 10 | N3: 11 | O3: 12 | P3: 13 | Q3: 14 | R3: 15 | S3: 16 | T3: 17 | U3: 18 | V3: 19 | W3: 20
D4: 01_Oso m | E4: 02_Oso m | F4: 03_Oso m | G4: 04_Osor m | H4: 05_Oso m | I4: 06_Oso m | J4: 07_Oso m | K4: 08_Oso m | L4: 09_Oso m | M4: 10_Oso m | N4: 11_Oso m | O4: 12_Oso m | P4: 13_Oso m | Q4: 14_Oso f | R4: 15_Oso f | S4: 16_Oso f | T4: 17_Oso f | U4: 18_Oso f | V4: 19_Oso f | W4: 20_Oso f
A5: → | B5: 1 | C5: 01_Oso m | J5: 2 | N5: 1 | X5: 2 | AQ5: 0 | AR5: 1 | AS5: 1 | AT5: 2 | AU5: 2 | AV5: 1 | AW5: 4 | AX5: 0 | AY5: 3 | AZ5: 0 | BA5: 5 | BB5: 2 | BC5: 4 | BD5: 0 | BE5: 3 | BF5: 2 | BG5: 1 | BH5: 0 | BI5: 4 | BJ5: 3
B6: 2 | C6: 02_Oso m | S6: 2 | V6: 1 | W6: 3 | X6: 3 | AQ6: 0 | AR6: 0 | AS6: 0 | AT6: 1 | AU6: 1 | AV6: 0 | AW6: 3 | AX6: 0 | AY6: 2 | AZ6: 0 | BA6: 1 | BB6: 0 | BC6: 2 | BD6: 0 | BE6: 0 | BF6: 1 | BG6: 0 | BH6: 0 | BI6: 3 | BJ6: 2
B7: 3 | C7: 03_Oso m | E7: 3 | L7: 1 | O7: 2 | X7: 3 | AQ7: 0 | AR7: 0 | AS7: 0 | AT7: 0 | AU7: 0 | AV7: 0 | AW7: 1 | AX7: 0 | AY7: 1 | AZ7: 0 | BA7: 3 | BB7: 2 | BC7: 1 | BD7: 0 | BE7: 3 | BF7: 1 | BG7: 0 | BH7: 0 | BI7: 0 | BJ7: 0
B8: 4 | C8: 04_Osor m | L8: 1 | X8: 1 | AQ8: 0 | AR8: 1 | AS8: 1 | AT8: 1 | AU8: 1 | AV8: 1 | AW8: 0 | AX8: 0 | AY8: 0 | AZ8: 0 | BA8: 1 | BB8: 0 | BC8: 1 | BD8: 0 | BE8: 0 | BF8: 0 | BG8: 1 | BH8: 0 | BI8: 1 | BJ8: 1
B9: 5 | C9: 05_Oso m | J9: 1 | N9: 2 | P9: 3 | X9: 3 | AQ9: 0 | AR9: 0 | AS9: 0 | AT9: 5 | AU9: 5 | AV9: 0 | AW9: 15 | AX9: 0 | AY9: 10 | AZ9: 0 | BA9: 5 | BB9: 0 | BC9: 10 | BD9: 0 | BE9: 0 | BF9: 5 | BG9: 0 | BH9: 0 | BI9: 15 | BJ9: 10
B10: 6 | C10: 06_Oso m | N10: 2 | P10: 1 | V10: 3 | X10: 3 | AQ10: 0 | AR10: 0 | AS10: 0 | AT10: 0 | AU10: 0 | AV10: 0 | AW10: 5 | AX10: 0 | AY10: 5 | AZ10: 0 | BA10: 15 | BB10: 10 | BC10: 5 | BD10: 0 | BE10: 15 | BF10: 5 | BG10: 0 | BH10: 0 | BI10: 0 | BJ10: 0
B11: 7 | C11: 07_Oso m | X11: 0 | AQ11: 0 | AR11: 5 | AS11: 5 | AT11: 5 | AU11: 5 | AV11: 5 | AW11: 0 | AX11: 0 | AY11: 0 | AZ11: 0 | BA11: 5 | BB11: 0 | BC11: 5 | BD11: 0 | BE11: 0 | BF11: 0 | BG11: 5 | BH11: 0 | BI11: 5 | BJ11: 5
B12: 8 | C12: 08_Oso m | S12: 1 | X12: 1 | AQ12: 0 | AR12: 5 | AS12: 5 | AT12: 10 | AU12: 10 | AV12: 5 | AW12: 20 | AX12: 0 | AY12: 15 | AZ12: 0 | BA12: 25 | BB12: 10 | BC12: 20 | BD12: 0 | BE12: 15 | BF12: 10 | BG12: 5 | BH12: 0 | BI12: 20 | BJ12: 15
B13: 9 | C13: 09_Oso m | R13: 2 | T13: 3 | V13: 1 | X13: 3
B14: 10 | C14: 10_Oso m | F14: 3 | N14: 2 | P14: 1 | X14: 3
B15: 11 | C15: 11_Oso m | H15: 1 | X15: 1
B16: 12 | C16: 12_Oso m | N16: 3 | R16: 2 | V16: 1 | X16: 3
B17: 13 | C17: 13_Oso m | J17: 1 | X17: 1
B18: 14 | C18: 14_Oso f | G18: 1 | I18: 3 | P18: 2 | X18: 3
B19: 15 | C19: 15_Oso f | X19: 0
B20: 16 | C20: 16_Oso f | G20: 3 | R20: 2 | W20: 1 | X20: 3
B21: 17 | C21: 17_Oso f | H21: 3 | L21: 2 | W21: 1 | X21: 3
B22: 18 | C22: 18_Oso f | J22: 1 | O22: 2 | X22: 2
B23: 19 | C23: 19_Oso f | X23: 0
B24: 20 | C24: 20_Oso f | X24: 0
C25: Suma volieb 1 + 2 + 3 spolu | D25: 0 | E25: 1 | F25: 1 | G25: 2 | H25: 2 | I25: 1 | J25: 4 | K25: 0 | L25: 3 | M25: 0 | N25: 5 | O25: 2 | P25: 4 | Q25: 0 | R25: 3 | S25: 2 | T25: 1 | U25: 0 | V25: 4 | W25: 3 | X25: =SUM($D$25:$W$25) -> 38
C26: Suma volieb 1 | D26: =COUNTIF(D5:D24,1) -> 0 | E26: 0 | F26: 0 | G26: 1 | H26: 1 | I26: 0 | J26: 3 | K26: 0 | L26: 2 | M26: 0 | N26: 1 | O26: 0 | P26: 2 | Q26: 0 | R26: 0 | S26: 1 | T26: 0 | U26: 0 | V26: 3 | W26: 2
C27: Suma volieb 2 | D27: =COUNTIF(D5:D24,2) -> 0 | E27: 0 | F27: 0 | G27: 0 | H27: 0 | I27: 0 | J27: 1 | K27: 0 | L27: 1 | M27: 0 | N27: 3 | O27: 2 | P27: 1 | Q27: 0 | R27: 3 | S27: 1 | T27: 0 | U27: 0 | V27: 0 | W27: 0
C28: Suma volieb 3 | D28: =COUNTIF(D5:D24,3) -> 0 | E28: 1 | F28: 1 | G28: 1 | H28: 1 | I28: 1 | J28: 0 | K28: 0 | L28: 0 | M28: 0 | N28: 1 | O28: 0 | P28: 1 | Q28: 0 | R28: 0 | S28: 0 | T28: 1 | U28: 0 | V28: 1 | W28: 1
C29: Percento Suma volieb 1 | D29: =(D26/$B$3)*100 -> 0 | E29: 0 | F29: 0 | G29: 5 | H29: 5 | I29: 0 | J29: 15 | K29: 0 | L29: 10 | M29: 0 | N29: 5 | O29: 0 | P29: 10 | Q29: 0 | R29: 0 | S29: 5 | T29: 0 | U29: 0 | V29: 15 | W29: 10
C30: Percento Suma volieb 2 | D30: =(D27/$B$3)*100 -> 0 | E30: 0 | F30: 0 | G30: 0 | H30: 0 | I30: 0 | J30: 5 | K30: 0 | L30: 5 | M30: 0 | N30: 15 | O30: 10 | P30: 5 | Q30: 0 | R30: 15 | S30: 5 | T30: 0 | U30: 0 | V30: 0 | W30: 0
C31: Percento Suma volieb 3 | D31: =(D28/$B$3)*100 -> 0 | E31: 5 | F31: 5 | G31: 5 | H31: 5 | I31: 5 | J31: 0 | K31: 0 | L31: 0 | M31: 0 | N31: 5 | O31: 0 | P31: 5 | Q31: 0 | R31: 0 | S31: 0 | T31: 5 | U31: 0 | V31: 5 | W31: 5
C32: Percento Suma volieb 1 + 2 + 3 spolu | D32: =(D25/$B$3)*100 -> 0 | E32: 5 | F32: 5 | G32: 10 | H32: 10 | I32: 5 | J32: 20 | K32: 0 | L32: 15 | M32: 0 | N32: 25 | O32: 10 | P32: 20 | Q32: 0 | R32: 15 | S32: 10 | T32: 5 | U32: 0 | V32: 20 | W32: 15
D34: 1 | E34: 2 | F34: 3 | G34: 4 | H34: 5 | I34: 6 | J34: 7 | K34: 8 | L34: 9 | M34: 10 | N34: 11 | O34: 12 | P34: 13 | Q34: 14 | R34: 15 | S34: 16 | T34: 17 | U34: 18 | V34: 19 | W34: 20
D35: 01_Oso m | E35: 02_Oso m | F35: 03_Oso m | G35: 04_Osor m | H35: 05_Oso m | I35: 06_Oso m | J35: 07_Oso m | K35: 08_Oso m | L35: 09_Oso m | M35: 10_Oso m | N35: 11_Oso m | O35: 12_Oso m | P35: 13_Oso m | Q35: 14_Oso f | R35: 15_Oso f | S35: 16_Oso f | T35: 17_Oso f | U35: 18_Oso f | V35: 19_Oso f | W35: 20_Oso f
B36: 1 | C36: 01_Oso m | D36: =IF(D5<>0,D$3,"") ->  | J36: 7 | N36: 11 | Y36: 7, 11, 0, | AC36: 7 | AD36: 11 | AE36: 0 | AF36: 0
B37: 2 | C37: 02_Oso m | S37: 16 | V37: 19 | W37: 20 | Y37: 16, 19, 20, | AC37: 16 | AD37: 19 | AE37: 20 | AF37: 0
B38: 3 | C38: 03_Oso m | E38: 2 | L38: 9 | O38: 12 | Y38: 2, 9, 12, | AC38: 2 | AD38: 9 | AE38: 12 | AF38: 0
B39: 4 | C39: 04_Osor m | L39: 9 | Y39: 9, 0, 0, | AC39: 9 | AD39: 0 | AE39: 0 | AF39: 0
B40: 5 | C40: 05_Oso m | J40: 7 | N40: 11 | P40: 13 | Y40: 7, 11, 13, | AC40: 7 | AD40: 11 | AE40: 13 | AF40: 1
B41: 6 | C41: 06_Oso m | N41: 11 | P41: 13 | V41: 19 | Y41: 11, 13, 19, | AC41: 11 | AD41: 13 | AE41: 19 | AF41: 0
B42: 7 | C42: 07_Oso m | Y42: 0, 0, 0, | AC42: 0 | AD42: 0 | AE42: 0 | AF42: 0
B43: 8 | C43: 08_Oso m | S43: 16 | Y43: 16, 0, 0, | AC43: 16 | AD43: 0 | AE43: 0 | AF43: 0
B44: 9 | C44: 09_Oso m | R44: 15 | T44: 17 | V44: 19 | Y44: 15, 17, 19, | AC44: 15 | AD44: 17 | AE44: 19 | AF44: 1
B45: 10 | C45: 10_Oso m | F45: 3 | N45: 11 | P45: 13 | Y45: 3, 11, 13, | AC45: 3 | AD45: 11 | AE45: 13 | AF45: 0
B46: 11 | C46: 11_Oso m | H46: 5 | Y46: 5, 0, 0, | AC46: 5 | AD46: 0 | AE46: 0 | AF46: 1
B47: 12 | C47: 12_Oso m | N47: 11 | R47: 15 | V47: 19 | Y47: 11, 15, 19, | AC47: 11 | AD47: 15 | AE47: 19 | AF47: 0
B48: 13 | C48: 13_Oso m | J48: 7 | S48: =IF(S17<>0,S$3,"") ->  | T48: =IF(T17<>0,T$3,"") ->  | U48: =IF(U17<>0,U$3,"") ->  | V48: =IF(V17<>0,V$3,"") ->  | W48: =IF(W17<>0,W$3,"") ->  | Y48: 7, 0, 0, | AC48: 7 | AD48: 0 | AE48: 0 | AF48: 0
B49: 14 | C49: 14_Oso f | D49: =IF(D18<>0,D$3,"") ->  | G49: 4 | I49: 6 | P49: 13 | Y49: 4, 6, 13, | AC49: 4 | AD49: 6 | AE49: 13 | AF49: 0
B50: 15 | C50: 15_Oso f | Y50: 0, 0, 0, | AC50: 0 | AD50: 0 | AE50: 0 | AF50: 0
B51: 16 | C51: 16_Oso f | G51: 4 | R51: 15 | W51: 20 | Y51: 4, 15, 20, | AC51: 4 | AD51: 15 | AE51: 20 | AF51: 0
B52: 17 | C52: 17_Oso f | H52: 5 | L52: 9 | W52: 20 | Y52: 5, 9, 20, | AC52: 5 | AD52: 9 | AE52: 20 | AF52: 1
B53: 18 | C53: 18_Oso f | J53: 7 | O53: 12 | Y53: 7, 12, 0, | AC53: 7 | AD53: 12 | AE53: 0 | AF53: 0
B54: 19 | C54: 19_Oso f | Y54: 0, 0, 0, | AC54: 0 | AD54: 0 | AE54: 0 | AF54: 0
B55: 20 | C55: 20_Oso f | Y55: 0, 0, 0, | AC55: 0 | AD55: 0 | AE55: 0 | AF55: 0
AF56: =SUM($AF$36:$AF$55) -> 4

Sheet Q_8
A1: 8. S kým z triedy by si nechcel stráviť prázdniny na pustom ostrove?
B2: 3
B3: 20 | D3: 1 | E3: 2 | F3: 3 | G3: 4 | H3: 5 | I3: 6 | J3: 7 | K3: 8 | L3: 9 | M3: 10 | N3: 11 | O3: 12 | P3: 13 | Q3: 14 | R3: 15 | S3: 16 | T3: 17 | U3: 18 | V3: 19 | W3: 20
D4: 01_Oso m | E4: 02_Oso m | F4: 03_Oso m | G4: 04_Osor m | H4: 05_Oso m | I4: 06_Oso m | J4: 07_Oso m | K4: 08_Oso m | L4: 09_Oso m | M4: 10_Oso m | N4: 11_Oso m | O4: 12_Oso m | P4: 13_Oso m | Q4: 14_Oso f | R4: 15_Oso f | S4: 16_Oso f | T4: 17_Oso f | U4: 18_Oso f | V4: 19_Oso f | W4: 20_Oso f
A5: → | B5: 1 | C5: 01_Oso m | V5: 1 | X5: 1 | AQ5: 2 | AR5: 0 | AS5: 3 | AT5: 1 | AU5: 2 | AV5: 0 | AW5: 1 | AX5: 1 | AY5: 1 | AZ5: 0 | BA5: 5 | BB5: 0 | BC5: 2 | BD5: 0 | BE5: 1 | BF5: 3 | BG5: 0 | BH5: 0 | BI5: 8 | BJ5: 6
B6: 2 | C6: 02_Oso m | S6: 2 | V6: 1 | W6: 3 | X6: 3 | AQ6: 1 | AR6: 0 | AS6: 1 | AT6: 0 | AU6: 1 | AV6: 0 | AW6: 0 | AX6: 1 | AY6: 0 | AZ6: 0 | BA6: 2 | BB6: 0 | BC6: 0 | BD6: 0 | BE6: 0 | BF6: 0 | BG6: 0 | BH6: 0 | BI6: 6 | BJ6: 3
B7: 3 | C7: 03_Oso m | K7: 1 | N7: 2 | V7: 3 | X7: 3 | AQ7: 1 | AR7: 0 | AS7: 0 | AT7: 0 | AU7: 1 | AV7: 0 | AW7: 0 | AX7: 0 | AY7: 0 | AZ7: 0 | BA7: 3 | BB7: 0 | BC7: 2 | BD7: 0 | BE7: 1 | BF7: 2 | BG7: 0 | BH7: 0 | BI7: 1 | BJ7: 0
B8: 4 | C8: 04_Osor m | S8: 3 | V8: 2 | W8: 1 | X8: 3 | AQ8: 0 | AR8: 0 | AS8: 2 | AT8: 1 | AU8: 0 | AV8: 0 | AW8: 1 | AX8: 0 | AY8: 1 | AZ8: 0 | BA8: 0 | BB8: 0 | BC8: 0 | BD8: 0 | BE8: 0 | BF8: 1 | BG8: 0 | BH8: 0 | BI8: 1 | BJ8: 3
B9: 5 | C9: 05_Oso m | J9: 3 | N9: 1 | P9: 2 | X9: 3 | AQ9: 5 | AR9: 0 | AS9: 5 | AT9: 0 | AU9: 5 | AV9: 0 | AW9: 0 | AX9: 5 | AY9: 0 | AZ9: 0 | BA9: 10 | BB9: 0 | BC9: 0 | BD9: 0 | BE9: 0 | BF9: 0 | BG9: 0 | BH9: 0 | BI9: 30 | BJ9: 15
B10: 6 | C10: 06_Oso m | N10: 2 | V10: 1 | X10: 2 | AQ10: 5 | AR10: 0 | AS10: 0 | AT10: 0 | AU10: 5 | AV10: 0 | AW10: 0 | AX10: 0 | AY10: 0 | AZ10: 0 | BA10: 15 | BB10: 0 | BC10: 10 | BD10: 0 | BE10: 5 | BF10: 10 | BG10: 0 | BH10: 0 | BI10: 5 | BJ10: 0
B11: 7 | C11: 07_Oso m | X11: 0 | AQ11: 0 | AR11: 0 | AS11: 10 | AT11: 5 | AU11: 0 | AV11: 0 | AW11: 5 | AX11: 0 | AY11: 5 | AZ11: 0 | BA11: 0 | BB11: 0 | BC11: 0 | BD11: 0 | BE11: 0 | BF11: 5 | BG11: 0 | BH11: 0 | BI11: 5 | BJ11: 15
B12: 8 | C12: 08_Oso m | V12: 1 | X12: 1 | AQ12: 10 | AR12: 0 | AS12: 15 | AT12: 5 | AU12: 10 | AV12: 0 | AW12: 5 | AX12: 5 | AY12: 5 | AZ12: 0 | BA12: 25 | BB12: 0 | BC12: 10 | BD12: 0 | BE12: 5 | BF12: 15 | BG12: 0 | BH12: 0 | BI12: 40 | BJ12: 30
B13: 9 | C13: 09_Oso m | V13: 1 | X13: 1
B14: 10 | C14: 10_Oso m | L14: 3 | N14: 1 | P14: 2 | X14: 3
B15: 11 | C15: 11_Oso m | H15: 1 | X15: 1
B16: 12 | C16: 12_Oso m | X16: 0
B17: 13 | C17: 13_Oso m | S17: 2 | V17: 1 | W17: 3 | X17: 3
B18: 14 | C18: 14_Oso f | D18: 1 | H18: 2 | W18: 3 | X18: 3
B19: 15 | C19: 15_Oso f | X19: 0
B20: 16 | C20: 16_Oso f | F20: 3 | R20: 2 | W20: 1 | X20: 3
B21: 17 | C21: 17_Oso f | D21: 2 | F21: 3 | W21: 1 | X21: 3
B22: 18 | C22: 18_Oso f | F22: 1 | G22: 3 | N22: 2 | X22: 3
B23: 19 | C23: 19_Oso f | X23: 0
B24: 20 | C24: 20_Oso f | X24: 0
C25: Suma volieb 1 + 2 + 3 spolu | D25: 2 | E25: 0 | F25: 3 | G25: 1 | H25: 2 | I25: 0 | J25: 1 | K25: 1 | L25: 1 | M25: 0 | N25: 5 | O25: 0 | P25: 2 | Q25: 0 | R25: 1 | S25: 3 | T25: 0 | U25: 0 | V25: 8 | W25: 6 | X25: =SUM($D$25:$W$25) -> 36
C26: Suma volieb 1 | D26: =COUNTIF(D5:D24,1) -> 1 | E26: 0 | F26: 1 | G26: 0 | H26: 1 | I26: 0 | J26: 0 | K26: 1 | L26: 0 | M26: 0 | N26: 2 | O26: 0 | P26: 0 | Q26: 0 | R26: 0 | S26: 0 | T26: 0 | U26: 0 | V26: 6 | W26: 3
C27: Suma volieb 2 | D27: =COUNTIF(D5:D24,2) -> 1 | E27: 0 | F27: 0 | G27: 0 | H27: 1 | I27: 0 | J27: 0 | K27: 0 | L27: 0 | M27: 0 | N27: 3 | O27: 0 | P27: 2 | Q27: 0 | R27: 1 | S27: 2 | T27: 0 | U27: 0 | V27: 1 | W27: 0
C28: Suma volieb 3 | D28: =COUNTIF(D5:D24,3) -> 0 | E28: 0 | F28: 2 | G28: 1 | H28: 0 | I28: 0 | J28: 1 | K28: 0 | L28: 1 | M28: 0 | N28: 0 | O28: 0 | P28: 0 | Q28: 0 | R28: 0 | S28: 1 | T28: 0 | U28: 0 | V28: 1 | W28: 3
C29: Percento Suma volieb 1 | D29: =(D26/$B$3)*100 -> 5 | E29: 0 | F29: 5 | G29: 0 | H29: 5 | I29: 0 | J29: 0 | K29: 5 | L29: 0 | M29: 0 | N29: 10 | O29: 0 | P29: 0 | Q29: 0 | R29: 0 | S29: 0 | T29: 0 | U29: 0 | V29: 30 | W29: 15
C30: Percento Suma volieb 2 | D30: =(D27/$B$3)*100 -> 5 | E30: 0 | F30: 0 | G30: 0 | H30: 5 | I30: 0 | J30: 0 | K30: 0 | L30: 0 | M30: 0 | N30: 15 | O30: 0 | P30: 10 | Q30: 0 | R30: 5 | S30: 10 | T30: 0 | U30: 0 | V30: 5 | W30: 0
C31: Percento Suma volieb 3 | D31: =(D28/$B$3)*100 -> 0 | E31: 0 | F31: 10 | G31: 5 | H31: 0 | I31: 0 | J31: 5 | K31: 0 | L31: 5 | M31: 0 | N31: 0 | O31: 0 | P31: 0 | Q31: 0 | R31: 0 | S31: 5 | T31: 0 | U31: 0 | V31: 5 | W31: 15
C32: Percento Suma volieb 1 + 2 + 3 spolu | D32: =(D25/$B$3)*100 -> 10 | E32: 0 | F32: 15 | G32: 5 | H32: 10 | I32: 0 | J32: 5 | K32: 5 | L32: 5 | M32: 0 | N32: 25 | O32: 0 | P32: 10 | Q32: 0 | R32: 5 | S32: 15 | T32: 0 | U32: 0 | V32: 40 | W32: 30
D34: 1 | E34: 2 | F34: 3 | G34: 4 | H34: 5 | I34: 6 | J34: 7 | K34: 8 | L34: 9 | M34: 10 | N34: 11 | O34: 12 | P34: 13 | Q34: 14 | R34: 15 | S34: 16 | T34: 17 | U34: 18 | V34: 19 | W34: 20
D35: 01_Oso m | E35: 02_Oso m | F35: 03_Oso m | G35: 04_Osor m | H35: 05_Oso m | I35: 06_Oso m | J35: 07_Oso m | K35: 08_Oso m | L35: 09_Oso m | M35: 10_Oso m | N35: 11_Oso m | O35: 12_Oso m | P35: 13_Oso m | Q35: 14_Oso f | R35: 15_Oso f | S35: 16_Oso f | T35: 17_Oso f | U35: 18_Oso f | V35: 19_Oso f | W35: 20_Oso f
B36: 1 | C36: 01_Oso m | D36: =IF(D5<>0,D$3,"") ->  | V36: 19 | Y36: 19, 0, 0, | AC36: 19 | AD36: 0 | AE36: 0 | AF36: 0
B37: 2 | C37: 02_Oso m | S37: 16 | V37: 19 | W37: 20 | Y37: 16, 19, 20, | AC37: 16 | AD37: 19 | AE37: 20 | AF37: 0
B38: 3 | C38: 03_Oso m | K38: 8 | N38: 11 | V38: 19 | Y38: 8, 11, 19, | AC38: 8 | AD38: 11 | AE38: 19 | AF38: 0
B39: 4 | C39: 04_Osor m | S39: 16 | V39: 19 | W39: 20 | Y39: 16, 19, 20, | AC39: 16 | AD39: 19 | AE39: 20 | AF39: 0
B40: 5 | C40: 05_Oso m | J40: 7 | N40: 11 | P40: 13 | Y40: 7, 11, 13, | AC40: 7 | AD40: 11 | AE40: 13 | AF40: 1
B41: 6 | C41: 06_Oso m | N41: 11 | V41: 19 | Y41: 11, 19, 0, | AC41: 11 | AD41: 19 | AE41: 0 | AF41: 0
B42: 7 | C42: 07_Oso m | Y42: 0, 0, 0, | AC42: 0 | AD42: 0 | AE42: 0 | AF42: 0
B43: 8 | C43: 08_Oso m | V43: 19 | Y43: 19, 0, 0, | AC43: 19 | AD43: 0 | AE43: 0 | AF43: 0
B44: 9 | C44: 09_Oso m | V44: 19 | Y44: 19, 0, 0, | AC44: 19 | AD44: 0 | AE44: 0 | AF44: 0
B45: 10 | C45: 10_Oso m | L45: 9 | N45: 11 | P45: 13 | Y45: 9, 11, 13, | AC45: 9 | AD45: 11 | AE45: 13 | AF45: 0
B46: 11 | C46: 11_Oso m | H46: 5 | Y46: 5, 0, 0, | AC46: 5 | AD46: 0 | AE46: 0 | AF46: 1
B47: 12 | C47: 12_Oso m | Y47: 0, 0, 0, | AC47: 0 | AD47: 0 | AE47: 0 | AF47: 0
B48: 13 | C48: 13_Oso m | S48: =IF(S17<>0,S$3,"") -> 16 | T48: =IF(T17<>0,T$3,"") ->  | U48: =IF(U17<>0,U$3,"") ->  | V48: =IF(V17<>0,V$3,"") -> 19 | W48: =IF(W17<>0,W$3,"") -> 20 | Y48: 16, 19, 20, | AC48: 16 | AD48: 19 | AE48: 20 | AF48: 0
B49: 14 | C49: 14_Oso f | D49: =IF(D18<>0,D$3,"") -> 1 | H49: 5 | W49: 20 | Y49: 1, 5, 20, | AC49: 1 | AD49: 5 | AE49: 20 | AF49: 0
B50: 15 | C50: 15_Oso f | Y50: 0, 0, 0, | AC50: 0 | AD50: 0 | AE50: 0 | AF50: 0
B51: 16 | C51: 16_Oso f | F51: 3 | R51: 15 | W51: 20 | Y51: 3, 15, 20, | AC51: 3 | AD51: 15 | AE51: 20 | AF51: 0
B52: 17 | C52: 17_Oso f | D52: 1 | F52: 3 | W52: 20 | Y52: 1, 3, 20, | AC52: 1 | AD52: 3 | AE52: 20 | AF52: 0
B53: 18 | C53: 18_Oso f | F53: 3 | G53: 4 | N53: 11 | Y53: 3, 4, 11, | AC53: 3 | AD53: 4 | AE53: 11 | AF53: 0
B54: 19 | C54: 19_Oso f | Y54: 0, 0, 0, | AC54: 0 | AD54: 0 | AE54: 0 | AF54: 0
B55: 20 | C55: 20_Oso f | Y55: 0, 0, 0, | AC55: 0 | AD55: 0 | AE55: 0 | AF55: 0
AF56: =SUM($AF$36:$AF$55) -> 2

Sheet Q_9
A1: 9. Koho by si vôbec nevybral na hájenie záujmov triedy?
B2: 3
B3: 20 | D3: 1 | E3: 2 | F3: 3 | G3: 4 | H3: 5 | I3: 6 | J3: 7 | K3: 8 | L3: 9 | M3: 10 | N3: 11 | O3: 12 | P3: 13 | Q3: 14 | R3: 15 | S3: 16 | T3: 17 | U3: 18 | V3: 19 | W3: 20
D4: 01_Oso m | E4: 02_Oso m | F4: 03_Oso m | G4: 04_Osor m | H4: 05_Oso m | I4: 06_Oso m | J4: 07_Oso m | K4: 08_Oso m | L4: 09_Oso m | M4: 10_Oso m | N4: 11_Oso m | O4: 12_Oso m | P4: 13_Oso m | Q4: 14_Oso f | R4: 15_Oso f | S4: 16_Oso f | T4: 17_Oso f | U4: 18_Oso f | V4: 19_Oso f | W4: 20_Oso f
A5: → | B5: 1 | C5: 01_Oso m | V5: 1 | X5: 1 | AQ5: 2 | AR5: 1 | AS5: 3 | AT5: 1 | AU5: 2 | AV5: 0 | AW5: 1 | AX5: 0 | AY5: 2 | AZ5: 0 | BA5: 8 | BB5: 0 | BC5: 4 | BD5: 1 | BE5: 1 | BF5: 1 | BG5: 0 | BH5: 0 | BI5: 8 | BJ5: 4
B6: 2 | C6: 02_Oso m | V6: 1 | X6: 1 | AQ6: 1 | AR6: 1 | AS6: 0 | AT6: 1 | AU6: 2 | AV6: 0 | AW6: 1 | AX6: 0 | AY6: 0 | AZ6: 0 | BA6: 2 | BB6: 0 | BC6: 2 | BD6: 1 | BE6: 0 | BF6: 0 | BG6: 0 | BH6: 0 | BI6: 5 | BJ6: 2
B7: 3 | C7: 03_Oso m | S7: 3 | V7: 2 | W7: 1 | X7: 3 | AQ7: 0 | AR7: 0 | AS7: 2 | AT7: 0 | AU7: 0 | AV7: 0 | AW7: 0 | AX7: 0 | AY7: 0 | AZ7: 0 | BA7: 4 | BB7: 0 | BC7: 2 | BD7: 0 | BE7: 0 | BF7: 0 | BG7: 0 | BH7: 0 | BI7: 3 | BJ7: 1
B8: 4 | C8: 04_Osor m | N8: 2 | P8: 1 | X8: 2 | AQ8: 1 | AR8: 0 | AS8: 1 | AT8: 0 | AU8: 0 | AV8: 0 | AW8: 0 | AX8: 0 | AY8: 2 | AZ8: 0 | BA8: 2 | BB8: 0 | BC8: 0 | BD8: 0 | BE8: 1 | BF8: 1 | BG8: 0 | BH8: 0 | BI8: 0 | BJ8: 1
B9: 5 | C9: 05_Oso m | J9: 1 | N9: 3 | V9: 2 | X9: 3 | AQ9: 5 | AR9: 5 | AS9: 0 | AT9: 5 | AU9: 10 | AV9: 0 | AW9: 5 | AX9: 0 | AY9: 0 | AZ9: 0 | BA9: 10 | BB9: 0 | BC9: 10 | BD9: 5 | BE9: 0 | BF9: 0 | BG9: 0 | BH9: 0 | BI9: 25 | BJ9: 10
B10: 6 | C10: 06_Oso m | N10: 2 | V10: 1 | X10: 2 | AQ10: 0 | AR10: 0 | AS10: 10 | AT10: 0 | AU10: 0 | AV10: 0 | AW10: 0 | AX10: 0 | AY10: 0 | AZ10: 0 | BA10: 20 | BB10: 0 | BC10: 10 | BD10: 0 | BE10: 0 | BF10: 0 | BG10: 0 | BH10: 0 | BI10: 15 | BJ10: 5
B11: 7 | C11: 07_Oso m | P11: 1 | X11: 1 | AQ11: 5 | AR11: 0 | AS11: 5 | AT11: 0 | AU11: 0 | AV11: 0 | AW11: 0 | AX11: 0 | AY11: 10 | AZ11: 0 | BA11: 10 | BB11: 0 | BC11: 0 | BD11: 0 | BE11: 5 | BF11: 5 | BG11: 0 | BH11: 0 | BI11: 0 | BJ11: 5
B12: 8 | C12: 08_Oso m | W12: 1 | X12: 1 | AQ12: 10 | AR12: 5 | AS12: 15 | AT12: 5 | AU12: 10 | AV12: 0 | AW12: 5 | AX12: 0 | AY12: 10 | AZ12: 0 | BA12: 40 | BB12: 0 | BC12: 20 | BD12: 5 | BE12: 5 | BF12: 5 | BG12: 0 | BH12: 0 | BI12: 40 | BJ12: 20
B13: 9 | C13: 09_Oso m | H13: 1 | N13: 3 | V13: 2 | X13: 3
B14: 10 | C14: 10_Oso m | L14: 3 | N14: 1 | P14: 2 | X14: 3
B15: 11 | C15: 11_Oso m | H15: 1 | X15: 1
B16: 12 | C16: 12_Oso m | N16: 2 | R16: 3 | V16: 1 | X16: 3
B17: 13 | C17: 13_Oso m | V17: 1 | X17: 1
B18: 14 | C18: 14_Oso f | F18: 2 | G18: 1 | W18: 3 | X18: 3
B19: 15 | C19: 15_Oso f | F19: 2 | N19: 1 | X19: 2
B20: 16 | C20: 16_Oso f | D20: 1 | F20: 3 | P20: 2 | X20: 3
B21: 17 | C21: 17_Oso f | L21: 3 | Q21: 1 | W21: 2 | X21: 3
B22: 18 | C22: 18_Oso f | D22: 3 | E22: 1 | N22: 2 | X22: 3
B23: 19 | C23: 19_Oso f | X23: 0
B24: 20 | C24: 20_Oso f | X24: 0
C25: Suma volieb 1 + 2 + 3 spolu | D25: 2 | E25: 1 | F25: 3 | G25: 1 | H25: 2 | I25: 0 | J25: 1 | K25: 0 | L25: 2 | M25: 0 | N25: 8 | O25: 0 | P25: 4 | Q25: 1 | R25: 1 | S25: 1 | T25: 0 | U25: 0 | V25: 8 | W25: 4 | X25: =SUM($D$25:$W$25) -> 39
C26: Suma volieb 1 | D26: =COUNTIF(D5:D24,1) -> 1 | E26: 1 | F26: 0 | G26: 1 | H26: 2 | I26: 0 | J26: 1 | K26: 0 | L26: 0 | M26: 0 | N26: 2 | O26: 0 | P26: 2 | Q26: 1 | R26: 0 | S26: 0 | T26: 0 | U26: 0 | V26: 5 | W26: 2
C27: Suma volieb 2 | D27: =COUNTIF(D5:D24,2) -> 0 | E27: 0 | F27: 2 | G27: 0 | H27: 0 | I27: 0 | J27: 0 | K27: 0 | L27: 0 | M27: 0 | N27: 4 | O27: 0 | P27: 2 | Q27: 0 | R27: 0 | S27: 0 | T27: 0 | U27: 0 | V27: 3 | W27: 1
C28: Suma volieb 3 | D28: =COUNTIF(D5:D24,3) -> 1 | E28: 0 | F28: 1 | G28: 0 | H28: 0 | I28: 0 | J28: 0 | K28: 0 | L28: 2 | M28: 0 | N28: 2 | O28: 0 | P28: 0 | Q28: 0 | R28: 1 | S28: 1 | T28: 0 | U28: 0 | V28: 0 | W28: 1
C29: Percento Suma volieb 1 | D29: =(D26/$B$3)*100 -> 5 | E29: 5 | F29: 0 | G29: 5 | H29: 10 | I29: 0 | J29: 5 | K29: 0 | L29: 0 | M29: 0 | N29: 10 | O29: 0 | P29: 10 | Q29: 5 | R29: 0 | S29: 0 | T29: 0 | U29: 0 | V29: 25 | W29: 10
C30: Percento Suma volieb 2 | D30: =(D27/$B$3)*100 -> 0 | E30: 0 | F30: 10 | G30: 0 | H30: 0 | I30: 0 | J30: 0 | K30: 0 | L30: 0 | M30: 0 | N30: 20 | O30: 0 | P30: 10 | Q30: 0 | R30: 0 | S30: 0 | T30: 0 | U30: 0 | V30: 15 | W30: 5
C31: Percento Suma volieb 3 | D31: =(D28/$B$3)*100 -> 5 | E31: 0 | F31: 5 | G31: 0 | H31: 0 | I31: 0 | J31: 0 | K31: 0 | L31: 10 | M31: 0 | N31: 10 | O31: 0 | P31: 0 | Q31: 0 | R31: 5 | S31: 5 | T31: 0 | U31: 0 | V31: 0 | W31: 5
C32: Percento Suma volieb 1 + 2 + 3 spolu | D32: =(D25/$B$3)*100 -> 10 | E32: 5 | F32: 15 | G32: 5 | H32: 10 | I32: 0 | J32: 5 | K32: 0 | L32: 10 | M32: 0 | N32: 40 | O32: 0 | P32: 20 | Q32: 5 | R32: 5 | S32: 5 | T32: 0 | U32: 0 | V32: 40 | W32: 20
D34: 1 | E34: 2 | F34: 3 | G34: 4 | H34: 5 | I34: 6 | J34: 7 | K34: 8 | L34: 9 | M34: 10 | N34: 11 | O34: 12 | P34: 13 | Q34: 14 | R34: 15 | S34: 16 | T34: 17 | U34: 18 | V34: 19 | W34: 20
D35: 01_Oso m | E35: 02_Oso m | F35: 03_Oso m | G35: 04_Osor m | H35: 05_Oso m | I35: 06_Oso m | J35: 07_Oso m | K35: 08_Oso m | L35: 09_Oso m | M35: 10_Oso m | N35: 11_Oso m | O35: 12_Oso m | P35: 13_Oso m | Q35: 14_Oso f | R35: 15_Oso f | S35: 16_Oso f | T35: 17_Oso f | U35: 18_Oso f | V35: 19_Oso f | W35: 20_Oso f
B36: 1 | C36: 01_Oso m | D36: =IF(D5<>0,D$3,"") ->  | V36: 19 | Y36: 19, 0, 0, | AC36: 19 | AD36: 0 | AE36: 0 | AF36: 0
B37: 2 | C37: 02_Oso m | V37: 19 | Y37: 19, 0, 0, | AC37: 19 | AD37: 0 | AE37: 0 | AF37: 0
B38: 3 | C38: 03_Oso m | S38: 16 | V38: 19 | W38: 20 | Y38: 16, 19, 20, | AC38: 16 | AD38: 19 | AE38: 20 | AF38: 1
B39: 4 | C39: 04_Osor m | N39: 11 | P39: 13 | Y39: 11, 13, 0, | AC39: 11 | AD39: 13 | AE39: 0 | AF39: 0
B40: 5 | C40: 05_Oso m | J40: 7 | N40: 11 | V40: 19 | Y40: 7, 11, 19, | AC40: 7 | AD40: 11 | AE40: 19 | AF40: 1
B41: 6 | C41: 06_Oso m | N41: 11 | V41: 19 | Y41: 11, 19, 0, | AC41: 11 | AD41: 19 | AE41: 0 | AF41: 0
B42: 7 | C42: 07_Oso m | P42: 13 | Y42: 13, 0, 0, | AC42: 13 | AD42: 0 | AE42: 0 | AF42: 0
B43: 8 | C43: 08_Oso m | W43: 20 | Y43: 20, 0, 0, | AC43: 20 | AD43: 0 | AE43: 0 | AF43: 0
B44: 9 | C44: 09_Oso m | H44: 5 | N44: 11 | V44: 19 | Y44: 5, 11, 19, | AC44: 5 | AD44: 11 | AE44: 19 | AF44: 0
B45: 10 | C45: 10_Oso m | L45: 9 | N45: 11 | P45: 13 | Y45: 9, 11, 13, | AC45: 9 | AD45: 11 | AE45: 13 | AF45: 0
B46: 11 | C46: 11_Oso m | H46: 5 | Y46: 5, 0, 0, | AC46: 5 | AD46: 0 | AE46: 0 | AF46: 1
B47: 12 | C47: 12_Oso m | N47: 11 | R47: 15 | V47: 19 | Y47: 11, 15, 19, | AC47: 11 | AD47: 15 | AE47: 19 | AF47: 0
B48: 13 | C48: 13_Oso m | S48: =IF(S17<>0,S$3,"") ->  | T48: =IF(T17<>0,T$3,"") ->  | U48: =IF(U17<>0,U$3,"") ->  | V48: =IF(V17<>0,V$3,"") -> 19 | W48: =IF(W17<>0,W$3,"") ->  | Y48: 19, 0, 0, | AC48: 19 | AD48: 0 | AE48: 0 | AF48: 0
B49: 14 | C49: 14_Oso f | D49: =IF(D18<>0,D$3,"") ->  | F49: 3 | G49: 4 | W49: 20 | Y49: 3, 4, 20, | AC49: 3 | AD49: 4 | AE49: 20 | AF49: 0
B50: 15 | C50: 15_Oso f | F50: 3 | N50: 11 | Y50: 3, 11, 0, | AC50: 3 | AD50: 11 | AE50: 0 | AF50: 0
B51: 16 | C51: 16_Oso f | D51: 1 | F51: 3 | P51: 13 | Y51: 1, 3, 13, | AC51: 1 | AD51: 3 | AE51: 13 | AF51: 1
B52: 17 | C52: 17_Oso f | L52: 9 | Q52: 14 | W52: 20 | Y52: 9, 14, 20, | AC52: 9 | AD52: 14 | AE52: 20 | AF52: 0
B53: 18 | C53: 18_Oso f | D53: 1 | E53: 2 | N53: 11 | Y53: 1, 2, 11, | AC53: 1 | AD53: 2 | AE53: 11 | AF53: 0
B54: 19 | C54: 19_Oso f | Y54: 0, 0, 0, | AC54: 0 | AD54: 0 | AE54: 0 | AF54: 0
B55: 20 | C55: 20_Oso f | Y55: 0, 0, 0, | AC55: 0 | AD55: 0 | AE55: 0 | AF55: 0
AF56: =SUM($AF$36:$AF$55) -> 4

Sheet Q_10
A1: 10. Komu z triedy by si nikdy nezveril svoje tajomstvo?
B2: 3
B3: 20 | D3: 1 | E3: 2 | F3: 3 | G3: 4 | H3: 5 | I3: 6 | J3: 7 | K3: 8 | L3: 9 | M3: 10 | N3: 11 | O3: 12 | P3: 13 | Q3: 14 | R3: 15 | S3: 16 | T3: 17 | U3: 18 | V3: 19 | W3: 20
D4: 01_Oso m | E4: 02_Oso m | F4: 03_Oso m | G4: 04_Osor m | H4: 05_Oso m | I4: 06_Oso m | J4: 07_Oso m | K4: 08_Oso m | L4: 09_Oso m | M4: 10_Oso m | N4: 11_Oso m | O4: 12_Oso m | P4: 13_Oso m | Q4: 14_Oso f | R4: 15_Oso f | S4: 16_Oso f | T4: 17_Oso f | U4: 18_Oso f | V4: 19_Oso f | W4: 20_Oso f
A5: → | B5: 1 | C5: 01_Oso m | N5: 1 | X5: 1 | AQ5: 1 | AR5: 0 | AS5: 1 | AT5: 3 | AU5: 5 | AV5: 0 | AW5: 3 | AX5: 0 | AY5: 2 | AZ5: 1 | BA5: 4 | BB5: 1 | BC5: 3 | BD5: 0 | BE5: 0 | BF5: 0 | BG5: 0 | BH5: 0 | BI5: 4 | BJ5: 4
B6: 2 | C6: 02_Oso m | V6: 1 | X6: 1 | AQ6: 0 | AR6: 0 | AS6: 0 | AT6: 2 | AU6: 2 | AV6: 0 | AW6: 1 | AX6: 0 | AY6: 0 | AZ6: 1 | BA6: 2 | BB6: 0 | BC6: 1 | BD6: 0 | BE6: 0 | BF6: 0 | BG6: 0 | BH6: 0 | BI6: 3 | BJ6: 3
B7: 3 | C7: 03_Oso m | G7: 1 | J7: 2 | O7: 3 | X7: 3 | AQ7: 1 | AR7: 0 | AS7: 1 | AT7: 0 | AU7: 1 | AV7: 0 | AW7: 2 | AX7: 0 | AY7: 2 | AZ7: 0 | BA7: 1 | BB7: 0 | BC7: 0 | BD7: 0 | BE7: 0 | BF7: 0 | BG7: 0 | BH7: 0 | BI7: 1 | BJ7: 0
B8: 4 | C8: 04_Osor m | H8: 3 | L8: 2 | M8: 1 | X8: 3 | AQ8: 0 | AR8: 0 | AS8: 0 | AT8: 1 | AU8: 2 | AV8: 0 | AW8: 0 | AX8: 0 | AY8: 0 | AZ8: 0 | BA8: 1 | BB8: 1 | BC8: 2 | BD8: 0 | BE8: 0 | BF8: 0 | BG8: 0 | BH8: 0 | BI8: 0 | BJ8: 1
B9: 5 | C9: 05_Oso m | J9: 2 | N9: 1 | P9: 3 | X9: 3 | AQ9: 0 | AR9: 0 | AS9: 0 | AT9: 10 | AU9: 10 | AV9: 0 | AW9: 5 | AX9: 0 | AY9: 0 | AZ9: 5 | BA9: 10 | BB9: 0 | BC9: 5 | BD9: 0 | BE9: 0 | BF9: 0 | BG9: 0 | BH9: 0 | BI9: 15 | BJ9: 15
B10: 6 | C10: 06_Oso m | N10: 2 | V10: 1 | X10: 2 | AQ10: 5 | AR10: 0 | AS10: 5 | AT10: 0 | AU10: 5 | AV10: 0 | AW10: 10 | AX10: 0 | AY10: 10 | AZ10: 0 | BA10: 5 | BB10: 0 | BC10: 0 | BD10: 0 | BE10: 0 | BF10: 0 | BG10: 0 | BH10: 0 | BI10: 5 | BJ10: 0
B11: 7 | C11: 07_Oso m | X11: 0 | AQ11: 0 | AR11: 0 | AS11: 0 | AT11: 5 | AU11: 10 | AV11: 0 | AW11: 0 | AX11: 0 | AY11: 0 | AZ11: 0 | BA11: 5 | BB11: 5 | BC11: 10 | BD11: 0 | BE11: 0 | BF11: 0 | BG11: 0 | BH11: 0 | BI11: 0 | BJ11: 5
B12: 8 | C12: 08_Oso m | J12: 1 | X12: 1 | AQ12: 5 | AR12: 0 | AS12: 5 | AT12: 15 | AU12: 25 | AV12: 0 | AW12: 15 | AX12: 0 | AY12: 10 | AZ12: 5 | BA12: 20 | BB12: 5 | BC12: 15 | BD12: 0 | BE12: 0 | BF12: 0 | BG12: 0 | BH12: 0 | BI12: 20 | BJ12: 20
B13: 9 | C13: 09_Oso m | V13: 1 | X13: 1
B14: 10 | C14: 10_Oso m | L14: 2 | N14: 3 | P14: 1 | X14: 3
B15: 11 | C15: 11_Oso m | H15: 1 | X15: 1
B16: 12 | C16: 12_Oso m | X16: 0
B17: 13 | C17: 13_Oso m | H17: 1 | X17: 1
B18: 14 | C18: 14_Oso f | H18: 2 | P18: 3 | W18: 1 | X18: 3
B19: 15 | C19: 15_Oso f | X19: 0
B20: 16 | C20: 16_Oso f | G20: 3 | V20: 2 | W20: 1 | X20: 3
B21: 17 | C21: 17_Oso f | F21: 2 | H21: 3 | W21: 1 | X21: 3
B22: 18 | C22: 18_Oso f | D22: 2 | G22: 1 | W22: 3 | X22: 3
B23: 19 | C23: 19_Oso f | X23: 0
B24: 20 | C24: 20_Oso f | X24: 0
C25: Suma volieb 1 + 2 + 3 spolu | D25: 1 | E25: 0 | F25: 1 | G25: 3 | H25: 5 | I25: 0 | J25: 3 | K25: 0 | L25: 2 | M25: 1 | N25: 4 | O25: 1 | P25: 3 | Q25: 0 | R25: 0 | S25: 0 | T25: 0 | U25: 0 | V25: 4 | W25: 4 | X25: =SUM($D$25:$W$25) -> 32
C26: Suma volieb 1 | D26: =COUNTIF(D5:D24,1) -> 0 | E26: 0 | F26: 0 | G26: 2 | H26: 2 | I26: 0 | J26: 1 | K26: 0 | L26: 0 | M26: 1 | N26: 2 | O26: 0 | P26: 1 | Q26: 0 | R26: 0 | S26: 0 | T26: 0 | U26: 0 | V26: 3 | W26: 3
C27: Suma volieb 2 | D27: =COUNTIF(D5:D24,2) -> 1 | E27: 0 | F27: 1 | G27: 0 | H27: 1 | I27: 0 | J27: 2 | K27: 0 | L27: 2 | M27: 0 | N27: 1 | O27: 0 | P27: 0 | Q27: 0 | R27: 0 | S27: 0 | T27: 0 | U27: 0 | V27: 1 | W27: 0
C28: Suma volieb 3 | D28: =COUNTIF(D5:D24,3) -> 0 | E28: 0 | F28: 0 | G28: 1 | H28: 2 | I28: 0 | J28: 0 | K28: 0 | L28: 0 | M28: 0 | N28: 1 | O28: 1 | P28: 2 | Q28: 0 | R28: 0 | S28: 0 | T28: 0 | U28: 0 | V28: 0 | W28: 1
C29: Percento Suma volieb 1 | D29: =(D26/$B$3)*100 -> 0 | E29: 0 | F29: 0 | G29: 10 | H29: 10 | I29: 0 | J29: 5 | K29: 0 | L29: 0 | M29: 5 | N29: 10 | O29: 0 | P29: 5 | Q29: 0 | R29: 0 | S29: 0 | T29: 0 | U29: 0 | V29: 15 | W29: 15
C30: Percento Suma volieb 2 | D30: =(D27/$B$3)*100 -> 5 | E30: 0 | F30: 5 | G30: 0 | H30: 5 | I30: 0 | J30: 10 | K30: 0 | L30: 10 | M30: 0 | N30: 5 | O30: 0 | P30: 0 | Q30: 0 | R30: 0 | S30: 0 | T30: 0 | U30: 0 | V30: 5 | W30: 0
C31: Percento Suma volieb 3 | D31: =(D28/$B$3)*100 -> 0 | E31: 0 | F31: 0 | G31: 5 | H31: 10 | I31: 0 | J31: 0 | K31: 0 | L31: 0 | M31: 0 | N31: 5 | O31: 5 | P31: 10 | Q31: 0 | R31: 0 | S31: 0 | T31: 0 | U31: 0 | V31: 0 | W31: 5
C32: Percento Suma volieb 1 + 2 + 3 spolu | D32: =(D25/$B$3)*100 -> 5 | E32: 0 | F32: 5 | G32: 15 | H32: 25 | I32: 0 | J32: 15 | K32: 0 | L32: 10 | M32: 5 | N32: 20 | O32: 5 | P32: 15 | Q32: 0 | R32: 0 | S32: 0 | T32: 0 | U32: 0 | V32: 20 | W32: 20
D34: 1 | E34: 2 | F34: 3 | G34: 4 | H34: 5 | I34: 6 | J34: 7 | K34: 8 | L34: 9 | M34: 10 | N34: 11 | O34: 12 | P34: 13 | Q34: 14 | R34: 15 | S34: 16 | T34: 17 | U34: 18 | V34: 19 | W34: 20
D35: 01_Oso m | E35: 02_Oso m | F35: 03_Oso m | G35: 04_Osor m | H35: 05_Oso m | I35: 06_Oso m | J35: 07_Oso m | K35: 08_Oso m | L35: 09_Oso m | M35: 10_Oso m | N35: 11_Oso m | O35: 12_Oso m | P35: 13_Oso m | Q35: 14_Oso f | R35: 15_Oso f | S35: 16_Oso f | T35: 17_Oso f | U35: 18_Oso f | V35: 19_Oso f | W35: 20_Oso f
B36: 1 | C36: 01_Oso m | D36: =IF(D5<>0,D$3,"") ->  | N36: 11 | Y36: 11, 0, 0, | AC36: 11 | AD36: 0 | AE36: 0 | AF36: 0
B37: 2 | C37: 02_Oso m | V37: 19 | Y37: 19, 0, 0, | AC37: 19 | AD37: 0 | AE37: 0 | AF37: 0
B38: 3 | C38: 03_Oso m | G38: 4 | J38: 7 | O38: 12 | Y38: 4, 7, 12, | AC38: 4 | AD38: 7 | AE38: 12 | AF38: 0
B39: 4 | C39: 04_Osor m | H39: 5 | L39: 9 | M39: 10 | Y39: 5, 9, 10, | AC39: 5 | AD39: 9 | AE39: 10 | AF39: 0
B40: 5 | C40: 05_Oso m | J40: 7 | N40: 11 | P40: 13 | Y40: 7, 11, 13, | AC40: 7 | AD40: 11 | AE40: 13 | AF40: 2
B41: 6 | C41: 06_Oso m | N41: 11 | V41: 19 | Y41: 11, 19, 0, | AC41: 11 | AD41: 19 | AE41: 0 | AF41: 0
B42: 7 | C42: 07_Oso m | Y42: 0, 0, 0, | AC42: 0 | AD42: 0 | AE42: 0 | AF42: 0
B43: 8 | C43: 08_Oso m | J43: 7 | Y43: 7, 0, 0, | AC43: 7 | AD43: 0 | AE43: 0 | AF43: 0
B44: 9 | C44: 09_Oso m | V44: 19 | Y44: 19, 0, 0, | AC44: 19 | AD44: 0 | AE44: 0 | AF44: 0
B45: 10 | C45: 10_Oso m | L45: 9 | N45: 11 | P45: 13 | Y45: 9, 11, 13, | AC45: 9 | AD45: 11 | AE45: 13 | AF45: 0
B46: 11 | C46: 11_Oso m | H46: 5 | Y46: 5, 0, 0, | AC46: 5 | AD46: 0 | AE46: 0 | AF46: 1
B47: 12 | C47: 12_Oso m | Y47: 0, 0, 0, | AC47: 0 | AD47: 0 | AE47: 0 | AF47: 0
B48: 13 | C48: 13_Oso m | H48: 5 | S48: =IF(S17<>0,S$3,"") ->  | T48: =IF(T17<>0,T$3,"") ->  | U48: =IF(U17<>0,U$3,"") ->  | V48: =IF(V17<>0,V$3,"") ->  | W48: =IF(W17<>0,W$3,"") ->  | Y48: 5, 0, 0, | AC48: 5 | AD48: 0 | AE48: 0 | AF48: 1
B49: 14 | C49: 14_Oso f | D49: =IF(D18<>0,D$3,"") ->  | H49: 5 | P49: 13 | W49: 20 | Y49: 5, 13, 20, | AC49: 5 | AD49: 13 | AE49: 20 | AF49: 0
B50: 15 | C50: 15_Oso f | Y50: 0, 0, 0, | AC50: 0 | AD50: 0 | AE50: 0 | AF50: 0
B51: 16 | C51: 16_Oso f | G51: 4 | V51: 19 | W51: 20 | Y51: 4, 19, 20, | AC51: 4 | AD51: 19 | AE51: 20 | AF51: 0
B52: 17 | C52: 17_Oso f | F52: 3 | H52: 5 | W52: 20 | Y52: 3, 5, 20, | AC52: 3 | AD52: 5 | AE52: 20 | AF52: 0
B53: 18 | C53: 18_Oso f | D53: 1 | G53: 4 | W53: 20 | Y53: 1, 4, 20, | AC53: 1 | AD53: 4 | AE53: 20 | AF53: 0
B54: 19 | C54: 19_Oso f | Y54: 0, 0, 0, | AC54: 0 | AD54: 0 | AE54: 0 | AF54: 0
B55: 20 | C55: 20_Oso f | Y55: 0, 0, 0, | AC55: 0 | AD55: 0 | AE55: 0 | AF55: 0
AF56: =SUM($AF$36:$AF$55) -> 4

Sheet Q_11
A1: 11. Nezadaná
B2: 3
B3: 20 | D3: 1 | E3: 2 | F3: 3 | G3: 4 | H3: 5 | I3: 6 | J3: 7 | K3: 8 | L3: 9 | M3: 10 | N3: 11 | O3: 12 | P3: 13 | Q3: 14 | R3: 15 | S3: 16 | T3: 17 | U3: 18 | V3: 19 | W3: 20
D4: 01_Oso m | E4: 02_Oso m | F4: 03_Oso m | G4: 04_Osor m | H4: 05_Oso m | I4: 06_Oso m | J4: 07_Oso m | K4: 08_Oso m | L4: 09_Oso m | M4: 10_Oso m | N4: 11_Oso m | O4: 12_Oso m | P4: 13_Oso m | Q4: 14_Oso f | R4: 15_Oso f | S4: 16_Oso f | T4: 17_Oso f | U4: 18_Oso f | V4: 19_Oso f | W4: 20_Oso f
A5: → | B5: 1 | C5: 01_Oso m
B6: 2 | C6: 02_Oso m
B7: 3 | C7: 03_Oso m
B8: 4 | C8: 04_Osor m
B9: 5 | C9: 05_Oso m
B10: 6 | C10: 06_Oso m
B11: 7 | C11: 07_Oso m
B12: 8 | C12: 08_Oso m
B13: 9 | C13: 09_Oso m
B14: 10 | C14: 10_Oso m
B15: 11 | C15: 11_Oso m
B16: 12 | C16: 12_Oso m
B17: 13 | C17: 13_Oso m
B18: 14 | C18: 14_Oso f
B19: 15 | C19: 15_Oso f
B20: 16 | C20: 16_Oso f
B21: 17 | C21: 17_Oso f
B22: 18 | C22: 18_Oso f
B23: 19 | C23: 19_Oso f
B24: 20 | C24: 20_Oso f
D34: 1 | E34: 2 | F34: 3 | G34: 4 | H34: 5 | I34: 6 | J34: 7 | K34: 8 | L34: 9 | M34: 10 | N34: 11 | O34: 12 | P34: 13 | Q34: 14 | R34: 15 | S34: 16 | T34: 17 | U34: 18 | V34: 19 | W34: 20
D35: 01_Oso m | E35: 02_Oso m | F35: 03_Oso m | G35: 04_Osor m | H35: 05_Oso m | I35: 06_Oso m | J35: 07_Oso m | K35: 08_Oso m | L35: 09_Oso m | M35: 10_Oso m | N35: 11_Oso m | O35: 12_Oso m | P35: 13_Oso m | Q35: 14_Oso f | R35: 15_Oso f | S35: 16_Oso f | T35: 17_Oso f | U35: 18_Oso f | V35: 19_Oso f | W35: 20_Oso f
B36: 1 | C36: 01_Oso m | D36: =IF(D5<>0,D$3,"") -> 
B37: 2 | C37: 02_Oso m
B38: 3 | C38: 03_Oso m
B39: 4 | C39: 04_Osor m
B40: 5 | C40: 05_Oso m
B41: 6 | C41: 06_Oso m
B42: 7 | C42: 07_Oso m
B43: 8 | C43: 08_Oso m
B44: 9 | C44: 09_Oso m
B45: 10 | C45: 10_Oso m
B46: 11 | C46: 11_Oso m
B47: 12 | C47: 12_Oso m
B48: 13 | C48: 13_Oso m | S48: =IF(S17<>0,S$3,"") ->  | T48: =IF(T17<>0,T$3,"") ->  | U48: =IF(U17<>0,U$3,"") ->  | V48: =IF(V17<>0,V$3,"") ->  | W48: =IF(W17<>0,W$3,"") -> 
B49: 14 | C49: 14_Oso f | D49: =IF(D18<>0,D$3,"") -> 
B50: 15 | C50: 15_Oso f
B51: 16 | C51: 16_Oso f
B52: 17 | C52: 17_Oso f
B53: 18 | C53: 18_Oso f
B54: 19 | C54: 19_Oso f
B55: 20 | C55: 20_Oso f

Sheet Q_12
A1: 12. Nezadaná
B2: 3
B3: 20 | D3: 1 | E3: 2 | F3: 3 | G3: 4 | H3: 5 | I3: 6 | J3: 7 | K3: 8 | L3: 9 | M3: 10 | N3: 11 | O3: 12 | P3: 13 | Q3: 14 | R3: 15 | S3: 16 | T3: 17 | U3: 18 | V3: 19 | W3: 20
D4: 01_Oso m | E4: 02_Oso m | F4: 03_Oso m | G4: 04_Osor m | H4: 05_Oso m | I4: 06_Oso m | J4: 07_Oso m | K4: 08_Oso m | L4: 09_Oso m | M4: 10_Oso m | N4: 11_Oso m | O4: 12_Oso m | P4: 13_Oso m | Q4: 14_Oso f | R4: 15_Oso f | S4: 16_Oso f | T4: 17_Oso f | U4: 18_Oso f | V4: 19_Oso f | W4: 20_Oso f
A5: → | B5: 1 | C5: 01_Oso m
B6: 2 | C6: 02_Oso m
B7: 3 | C7: 03_Oso m
B8: 4 | C8: 04_Osor m
B9: 5 | C9: 05_Oso m
B10: 6 | C10: 06_Oso m
B11: 7 | C11: 07_Oso m
B12: 8 | C12: 08_Oso m
B13: 9 | C13: 09_Oso m
B14: 10 | C14: 10_Oso m
B15: 11 | C15: 11_Oso m
B16: 12 | C16: 12_Oso m
B17: 13 | C17: 13_Oso m
B18: 14 | C18: 14_Oso f
B19: 15 | C19: 15_Oso f
B20: 16 | C20: 16_Oso f
B21: 17 | C21: 17_Oso f
B22: 18 | C22: 18_Oso f
B23: 19 | C23: 19_Oso f
B24: 20 | C24: 20_Oso f
D34: 1 | E34: 2 | F34: 3 | G34: 4 | H34: 5 | I34: 6 | J34: 7 | K34: 8 | L34: 9 | M34: 10 | N34: 11 | O34: 12 | P34: 13 | Q34: 14 | R34: 15 | S34: 16 | T34: 17 | U34: 18 | V34: 19 | W34: 20
D35: 01_Oso m | E35: 02_Oso m | F35: 03_Oso m | G35: 04_Osor m | H35: 05_Oso m | I35: 06_Oso m | J35: 07_Oso m | K35: 08_Oso m | L35: 09_Oso m | M35: 10_Oso m | N35: 11_Oso m | O35: 12_Oso m | P35: 13_Oso m | Q35: 14_Oso f | R35: 15_Oso f | S35: 16_Oso f | T35: 17_Oso f | U35: 18_Oso f | V35: 19_Oso f | W35: 20_Oso f
B36: 1 | C36: 01_Oso m | D36: =IF(D5<>0,D$3,"") -> 
B37: 2 | C37: 02_Oso m
B38: 3 | C38: 03_Oso m
B39: 4 | C39: 04_Osor m
B40: 5 | C40: 05_Oso m
B41: 6 | C41: 06_Oso m
B42: 7 | C42: 07_Oso m
B43: 8 | C43: 08_Oso m
B44: 9 | C44: 09_Oso m
B45: 10 | C45: 10_Oso m
B46: 11 | C46: 11_Oso m
B47: 12 | C47: 12_Oso m
B48: 13 | C48: 13_Oso m | S48: =IF(S17<>0,S$3,"") ->  | T48: =IF(T17<>0,T$3,"") ->  | U48: =IF(U17<>0,U$3,"") ->  | V48: =IF(V17<>0,V$3,"") ->  | W48: =IF(W17<>0,W$3,"") -> 
B49: 14 | C49: 14_Oso f | D49: =IF(D18<>0,D$3,"") -> 
B50: 15 | C50: 15_Oso f
B51: 16 | C51: 16_Oso f
B52: 17 | C52: 17_Oso f
B53: 18 | C53: 18_Oso f
B54: 19 | C54: 19_Oso f
B55: 20 | C55: 20_Oso f

Sheet Q_13
A1: 13. Nezadaná
B2: 3
B3: 20 | D3: 1 | E3: 2 | F3: 3 | G3: 4 | H3: 5 | I3: 6 | J3: 7 | K3: 8 | L3: 9 | M3: 10 | N3: 11 | O3: 12 | P3: 13 | Q3: 14 | R3: 15 | S3: 16 | T3: 17 | U3: 18 | V3: 19 | W3: 20
D4: 01_Oso m | E4: 02_Oso m | F4: 03_Oso m | G4: 04_Osor m | H4: 05_Oso m | I4: 06_Oso m | J4: 07_Oso m | K4: 08_Oso m | L4: 09_Oso m | M4: 10_Oso m | N4: 11_Oso m | O4: 12_Oso m | P4: 13_Oso m | Q4: 14_Oso f | R4: 15_Oso f | S4: 16_Oso f | T4: 17_Oso f | U4: 18_Oso f | V4: 19_Oso f | W4: 20_Oso f
A5: → | B5: 1 | C5: 01_Oso m
B6: 2 | C6: 02_Oso m
B7: 3 | C7: 03_Oso m
B8: 4 | C8: 04_Osor m
B9: 5 | C9: 05_Oso m
B10: 6 | C10: 06_Oso m
B11: 7 | C11: 07_Oso m
B12: 8 | C12: 08_Oso m
B13: 9 | C13: 09_Oso m
B14: 10 | C14: 10_Oso m
B15: 11 | C15: 11_Oso m
B16: 12 | C16: 12_Oso m
B17: 13 | C17: 13_Oso m
B18: 14 | C18: 14_Oso f
B19: 15 | C19: 15_Oso f
B20: 16 | C20: 16_Oso f
B21: 17 | C21: 17_Oso f
B22: 18 | C22: 18_Oso f
B23: 19 | C23: 19_Oso f
B24: 20 | C24: 20_Oso f
D34: 1 | E34: 2 | F34: 3 | G34: 4 | H34: 5 | I34: 6 | J34: 7 | K34: 8 | L34: 9 | M34: 10 | N34: 11 | O34: 12 | P34: 13 | Q34: 14 | R34: 15 | S34: 16 | T34: 17 | U34: 18 | V34: 19 | W34: 20
D35: 01_Oso m | E35: 02_Oso m | F35: 03_Oso m | G35: 04_Osor m | H35: 05_Oso m | I35: 06_Oso m | J35: 07_Oso m | K35: 08_Oso m | L35: 09_Oso m | M35: 10_Oso m | N35: 11_Oso m | O35: 12_Oso m | P35: 13_Oso m | Q35: 14_Oso f | R35: 15_Oso f | S35: 16_Oso f | T35: 17_Oso f | U35: 18_Oso f | V35: 19_Oso f | W35: 20_Oso f
B36: 1 | C36: 01_Oso m | D36: =IF(D5<>0,D$3,"") -> 
B37: 2 | C37: 02_Oso m
B38: 3 | C38: 03_Oso m
B39: 4 | C39: 04_Osor m
B40: 5 | C40: 05_Oso m
B41: 6 | C41: 06_Oso m
B42: 7 | C42: 07_Oso m
B43: 8 | C43: 08_Oso m
B44: 9 | C44: 09_Oso m
B45: 10 | C45: 10_Oso m
B46: 11 | C46: 11_Oso m
B47: 12 | C47: 12_Oso m
B48: 13 | C48: 13_Oso m | S48: =IF(S17<>0,S$3,"") ->  | T48: =IF(T17<>0,T$3,"") ->  | U48: =IF(U17<>0,U$3,"") ->  | V48: =IF(V17<>0,V$3,"") ->  | W48: =IF(W17<>0,W$3,"") -> 
B49: 14 | C49: 14_Oso f | D49: =IF(D18<>0,D$3,"") -> 
B50: 15 | C50: 15_Oso f
B51: 16 | C51: 16_Oso f
B52: 17 | C52: 17_Oso f
B53: 18 | C53: 18_Oso f
B54: 19 | C54: 19_Oso f
B55: 20 | C55: 20_Oso f

Sheet Q_14
A1: 14. Nezadaná
B2: 3
B3: 20 | D3: 1 | E3: 2 | F3: 3 | G3: 4 | H3: 5 | I3: 6 | J3: 7 | K3: 8 | L3: 9 | M3: 10 | N3: 11 | O3: 12 | P3: 13 | Q3: 14 | R3: 15 | S3: 16 | T3: 17 | U3: 18 | V3: 19 | W3: 20
D4: 01_Oso m | E4: 02_Oso m | F4: 03_Oso m | G4: 04_Osor m | H4: 05_Oso m | I4: 06_Oso m | J4: 07_Oso m | K4: 08_Oso m | L4: 09_Oso m | M4: 10_Oso m | N4: 11_Oso m | O4: 12_Oso m | P4: 13_Oso m | Q4: 14_Oso f | R4: 15_Oso f | S4: 16_Oso f | T4: 17_Oso f | U4: 18_Oso f | V4: 19_Oso f | W4: 20_Oso f
A5: → | B5: 1 | C5: 01_Oso m
B6: 2 | C6: 02_Oso m
B7: 3 | C7: 03_Oso m
B8: 4 | C8: 04_Osor m
B9: 5 | C9: 05_Oso m
B10: 6 | C10: 06_Oso m
B11: 7 | C11: 07_Oso m
B12: 8 | C12: 08_Oso m
B13: 9 | C13: 09_Oso m
B14: 10 | C14: 10_Oso m
B15: 11 | C15: 11_Oso m
B16: 12 | C16: 12_Oso m
B17: 13 | C17: 13_Oso m
B18: 14 | C18: 14_Oso f
B19: 15 | C19: 15_Oso f
B20: 16 | C20: 16_Oso f
B21: 17 | C21: 17_Oso f
B22: 18 | C22: 18_Oso f
B23: 19 | C23: 19_Oso f
B24: 20 | C24: 20_Oso f
D34: 1 | E34: 2 | F34: 3 | G34: 4 | H34: 5 | I34: 6 | J34: 7 | K34: 8 | L34: 9 | M34: 10 | N34: 11 | O34: 12 | P34: 13 | Q34: 14 | R34: 15 | S34: 16 | T34: 17 | U34: 18 | V34: 19 | W34: 20
D35: 01_Oso m | E35: 02_Oso m | F35: 03_Oso m | G35: 04_Osor m | H35: 05_Oso m | I35: 06_Oso m | J35: 07_Oso m | K35: 08_Oso m | L35: 09_Oso m | M35: 10_Oso m | N35: 11_Oso m | O35: 12_Oso m | P35: 13_Oso m | Q35: 14_Oso f | R35: 15_Oso f | S35: 16_Oso f | T35: 17_Oso f | U35: 18_Oso f | V35: 19_Oso f | W35: 20_Oso f
B36: 1 | C36: 01_Oso m | D36: =IF(D5<>0,D$3,"") -> 
B37: 2 | C37: 02_Oso m
B38: 3 | C38: 03_Oso m
B39: 4 | C39: 04_Osor m
B40: 5 | C40: 05_Oso m
B41: 6 | C41: 06_Oso m
B42: 7 | C42: 07_Oso m
B43: 8 | C43: 08_Oso m
B44: 9 | C44: 09_Oso m
B45: 10 | C45: 10_Oso m
B46: 11 | C46: 11_Oso m
B47: 12 | C47: 12_Oso m
B48: 13 | C48: 13_Oso m | S48: =IF(S17<>0,S$3,"") ->  | T48: =IF(T17<>0,T$3,"") ->  | U48: =IF(U17<>0,U$3,"") ->  | V48: =IF(V17<>0,V$3,"") ->  | W48: =IF(W17<>0,W$3,"") -> 
B49: 14 | C49: 14_Oso f | D49: =IF(D18<>0,D$3,"") -> 
B50: 15 | C50: 15_Oso f
B51: 16 | C51: 16_Oso f
B52: 17 | C52: 17_Oso f
B53: 18 | C53: 18_Oso f
B54: 19 | C54: 19_Oso f
B55: 20 | C55: 20_Oso f

Sheet Q_15
A1: 15. Nezadaná
B2: 3
B3: 20 | D3: 1 | E3: 2 | F3: 3 | G3: 4 | H3: 5 | I3: 6 | J3: 7 | K3: 8 | L3: 9 | M3: 10 | N3: 11 | O3: 12 | P3: 13 | Q3: 14 | R3: 15 | S3: 16 | T3: 17 | U3: 18 | V3: 19 | W3: 20
D4: 01_Oso m | E4: 02_Oso m | F4: 03_Oso m | G4: 04_Osor m | H4: 05_Oso m | I4: 06_Oso m | J4: 07_Oso m | K4: 08_Oso m | L4: 09_Oso m | M4: 10_Oso m | N4: 11_Oso m | O4: 12_Oso m | P4: 13_Oso m | Q4: 14_Oso f | R4: 15_Oso f | S4: 16_Oso f | T4: 17_Oso f | U4: 18_Oso f | V4: 19_Oso f | W4: 20_Oso f
A5: → | B5: 1 | C5: 01_Oso m
B6: 2 | C6: 02_Oso m
B7: 3 | C7: 03_Oso m
B8: 4 | C8: 04_Osor m
B9: 5 | C9: 05_Oso m
B10: 6 | C10: 06_Oso m
B11: 7 | C11: 07_Oso m
B12: 8 | C12: 08_Oso m
B13: 9 | C13: 09_Oso m
B14: 10 | C14: 10_Oso m
B15: 11 | C15: 11_Oso m
B16: 12 | C16: 12_Oso m
B17: 13 | C17: 13_Oso m
B18: 14 | C18: 14_Oso f
B19: 15 | C19: 15_Oso f
B20: 16 | C20: 16_Oso f
B21: 17 | C21: 17_Oso f
B22: 18 | C22: 18_Oso f
B23: 19 | C23: 19_Oso f
B24: 20 | C24: 20_Oso f
D34: 1 | E34: 2 | F34: 3 | G34: 4 | H34: 5 | I34: 6 | J34: 7 | K34: 8 | L34: 9 | M34: 10 | N34: 11 | O34: 12 | P34: 13 | Q34: 14 | R34: 15 | S34: 16 | T34: 17 | U34: 18 | V34: 19 | W34: 20
D35: 01_Oso m | E35: 02_Oso m | F35: 03_Oso m | G35: 04_Osor m | H35: 05_Oso m | I35: 06_Oso m | J35: 07_Oso m | K35: 08_Oso m | L35: 09_Oso m | M35: 10_Oso m | N35: 11_Oso m | O35: 12_Oso m | P35: 13_Oso m | Q35: 14_Oso f | R35: 15_Oso f | S35: 16_Oso f | T35: 17_Oso f | U35: 18_Oso f | V35: 19_Oso f | W35: 20_Oso f
B36: 1 | C36: 01_Oso m | D36: =IF(D5<>0,D$3,"") -> 
B37: 2 | C37: 02_Oso m
B38: 3 | C38: 03_Oso m
B39: 4 | C39: 04_Osor m
B40: 5 | C40: 05_Oso m
B41: 6 | C41: 06_Oso m
B42: 7 | C42: 07_Oso m
B43: 8 | C43: 08_Oso m
B44: 9 | C44: 09_Oso m
B45: 10 | C45: 10_Oso m
B46: 11 | C46: 11_Oso m
B47: 12 | C47: 12_Oso m
B48: 13 | C48: 13_Oso m | S48: =IF(S17<>0,S$3,"") ->  | T48: =IF(T17<>0,T$3,"") ->  | U48: =IF(U17<>0,U$3,"") ->  | V48: =IF(V17<>0,V$3,"") ->  | W48: =IF(W17<>0,W$3,"") -> 
B49: 14 | C49: 14_Oso f | D49: =IF(D18<>0,D$3,"") -> 
B50: 15 | C50: 15_Oso f
B51: 16 | C51: 16_Oso f
B52: 17 | C52: 17_Oso f
B53: 18 | C53: 18_Oso f
B54: 19 | C54: 19_Oso f
B55: 20 | C55: 20_Oso f

Sheet Q_16
A1: 16. Nezadaná
B2: 3
B3: 20 | D3: 1 | E3: 2 | F3: 3 | G3: 4 | H3: 5 | I3: 6 | J3: 7 | K3: 8 | L3: 9 | M3: 10 | N3: 11 | O3: 12 | P3: 13 | Q3: 14 | R3: 15 | S3: 16 | T3: 17 | U3: 18 | V3: 19 | W3: 20
D4: 01_Oso m | E4: 02_Oso m | F4: 03_Oso m | G4: 04_Osor m | H4: 05_Oso m | I4: 06_Oso m | J4: 07_Oso m | K4: 08_Oso m | L4: 09_Oso m | M4: 10_Oso m | N4: 11_Oso m | O4: 12_Oso m | P4: 13_Oso m | Q4: 14_Oso f | R4: 15_Oso f | S4: 16_Oso f | T4: 17_Oso f | U4: 18_Oso f | V4: 19_Oso f | W4: 20_Oso f
A5: → | B5: 1 | C5: 01_Oso m
B6: 2 | C6: 02_Oso m
B7: 3 | C7: 03_Oso m
B8: 4 | C8: 04_Osor m
B9: 5 | C9: 05_Oso m
B10: 6 | C10: 06_Oso m
B11: 7 | C11: 07_Oso m
B12: 8 | C12: 08_Oso m
B13: 9 | C13: 09_Oso m
B14: 10 | C14: 10_Oso m
B15: 11 | C15: 11_Oso m
B16: 12 | C16: 12_Oso m
B17: 13 | C17: 13_Oso m
B18: 14 | C18: 14_Oso f
B19: 15 | C19: 15_Oso f
B20: 16 | C20: 16_Oso f
B21: 17 | C21: 17_Oso f
B22: 18 | C22: 18_Oso f
B23: 19 | C23: 19_Oso f
B24: 20 | C24: 20_Oso f
D34: 1 | E34: 2 | F34: 3 | G34: 4 | H34: 5 | I34: 6 | J34: 7 | K34: 8 | L34: 9 | M34: 10 | N34: 11 | O34: 12 | P34: 13 | Q34: 14 | R34: 15 | S34: 16 | T34: 17 | U34: 18 | V34: 19 | W34: 20
D35: 01_Oso m | E35: 02_Oso m | F35: 03_Oso m | G35: 04_Osor m | H35: 05_Oso m | I35: 06_Oso m | J35: 07_Oso m | K35: 08_Oso m | L35: 09_Oso m | M35: 10_Oso m | N35: 11_Oso m | O35: 12_Oso m | P35: 13_Oso m | Q35: 14_Oso f | R35: 15_Oso f | S35: 16_Oso f | T35: 17_Oso f | U35: 18_Oso f | V35: 19_Oso f | W35: 20_Oso f
B36: 1 | C36: 01_Oso m | D36: =IF(D5<>0,D$3,"") -> 
B37: 2 | C37: 02_Oso m
B38: 3 | C38: 03_Oso m
B39: 4 | C39: 04_Osor m
B40: 5 | C40: 05_Oso m
B41: 6 | C41: 06_Oso m
B42: 7 | C42: 07_Oso m
B43: 8 | C43: 08_Oso m
B44: 9 | C44: 09_Oso m
B45: 10 | C45: 10_Oso m
B46: 11 | C46: 11_Oso m
B47: 12 | C47: 12_Oso m
B48: 13 | C48: 13_Oso m | S48: =IF(S17<>0,S$3,"") ->  | T48: =IF(T17<>0,T$3,"") ->  | U48: =IF(U17<>0,U$3,"") ->  | V48: =IF(V17<>0,V$3,"") ->  | W48: =IF(W17<>0,W$3,"") -> 
B49: 14 | C49: 14_Oso f | D49: =IF(D18<>0,D$3,"") -> 
B50: 15 | C50: 15_Oso f
B51: 16 | C51: 16_Oso f
B52: 17 | C52: 17_Oso f
B53: 18 | C53: 18_Oso f
B54: 19 | C54: 19_Oso f
B55: 20 | C55: 20_Oso f

Sheet Q_17
A1: 17. Nezadaná
B2: 3
B3: 20 | D3: 1 | E3: 2 | F3: 3 | G3: 4 | H3: 5 | I3: 6 | J3: 7 | K3: 8 | L3: 9 | M3: 10 | N3: 11 | O3: 12 | P3: 13 | Q3: 14 | R3: 15 | S3: 16 | T3: 17 | U3: 18 | V3: 19 | W3: 20
D4: 01_Oso m | E4: 02_Oso m | F4: 03_Oso m | G4: 04_Osor m | H4: 05_Oso m | I4: 06_Oso m | J4: 07_Oso m | K4: 08_Oso m | L4: 09_Oso m | M4: 10_Oso m | N4: 11_Oso m | O4: 12_Oso m | P4: 13_Oso m | Q4: 14_Oso f | R4: 15_Oso f | S4: 16_Oso f | T4: 17_Oso f | U4: 18_Oso f | V4: 19_Oso f | W4: 20_Oso f
A5: → | B5: 1 | C5: 01_Oso m
B6: 2 | C6: 02_Oso m
B7: 3 | C7: 03_Oso m
B8: 4 | C8: 04_Osor m
B9: 5 | C9: 05_Oso m
B10: 6 | C10: 06_Oso m
B11: 7 | C11: 07_Oso m
B12: 8 | C12: 08_Oso m
B13: 9 | C13: 09_Oso m
B14: 10 | C14: 10_Oso m
B15: 11 | C15: 11_Oso m
B16: 12 | C16: 12_Oso m
B17: 13 | C17: 13_Oso m
B18: 14 | C18: 14_Oso f
B19: 15 | C19: 15_Oso f
B20: 16 | C20: 16_Oso f
B21: 17 | C21: 17_Oso f
B22: 18 | C22: 18_Oso f
B23: 19 | C23: 19_Oso f
B24: 20 | C24: 20_Oso f
D34: 1 | E34: 2 | F34: 3 | G34: 4 | H34: 5 | I34: 6 | J34: 7 | K34: 8 | L34: 9 | M34: 10 | N34: 11 | O34: 12 | P34: 13 | Q34: 14 | R34: 15 | S34: 16 | T34: 17 | U34: 18 | V34: 19 | W34: 20
D35: 01_Oso m | E35: 02_Oso m | F35: 03_Oso m | G35: 04_Osor m | H35: 05_Oso m | I35: 06_Oso m | J35: 07_Oso m | K35: 08_Oso m | L35: 09_Oso m | M35: 10_Oso m | N35: 11_Oso m | O35: 12_Oso m | P35: 13_Oso m | Q35: 14_Oso f | R35: 15_Oso f | S35: 16_Oso f | T35: 17_Oso f | U35: 18_Oso f | V35: 19_Oso f | W35: 20_Oso f
B36: 1 | C36: 01_Oso m | D36: =IF(D5<>0,D$3,"") -> 
B37: 2 | C37: 02_Oso m
B38: 3 | C38: 03_Oso m
B39: 4 | C39: 04_Osor m
B40: 5 | C40: 05_Oso m
B41: 6 | C41: 06_Oso m
B42: 7 | C42: 07_Oso m
B43: 8 | C43: 08_Oso m
B44: 9 | C44: 09_Oso m
B45: 10 | C45: 10_Oso m
B46: 11 | C46: 11_Oso m
B47: 12 | C47: 12_Oso m
B48: 13 | C48: 13_Oso m | S48: =IF(S17<>0,S$3,"") ->  | T48: =IF(T17<>0,T$3,"") ->  | U48: =IF(U17<>0,U$3,"") ->  | V48: =IF(V17<>0,V$3,"") ->  | W48: =IF(W17<>0,W$3,"") -> 
B49: 14 | C49: 14_Oso f | D49: =IF(D18<>0,D$3,"") -> 
B50: 15 | C50: 15_Oso f
B51: 16 | C51: 16_Oso f
B52: 17 | C52: 17_Oso f
B53: 18 | C53: 18_Oso f
B54: 19 | C54: 19_Oso f
B55: 20 | C55: 20_Oso f

Sheet Q_18
A1: 18. Nezadaná
B2: 3
B3: 20 | D3: 1 | E3: 2 | F3: 3 | G3: 4 | H3: 5 | I3: 6 | J3: 7 | K3: 8 | L3: 9 | M3: 10 | N3: 11 | O3: 12 | P3: 13 | Q3: 14 | R3: 15 | S3: 16 | T3: 17 | U3: 18 | V3: 19 | W3: 20
D4: 01_Oso m | E4: 02_Oso m | F4: 03_Oso m | G4: 04_Osor m | H4: 05_Oso m | I4: 06_Oso m | J4: 07_Oso m | K4: 08_Oso m | L4: 09_Oso m | M4: 10_Oso m | N4: 11_Oso m | O4: 12_Oso m | P4: 13_Oso m | Q4: 14_Oso f | R4: 15_Oso f | S4: 16_Oso f | T4: 17_Oso f | U4: 18_Oso f | V4: 19_Oso f | W4: 20_Oso f
A5: → | B5: 1 | C5: 01_Oso m
B6: 2 | C6: 02_Oso m
B7: 3 | C7: 03_Oso m
B8: 4 | C8: 04_Osor m
B9: 5 | C9: 05_Oso m
B10: 6 | C10: 06_Oso m
B11: 7 | C11: 07_Oso m
B12: 8 | C12: 08_Oso m
B13: 9 | C13: 09_Oso m
B14: 10 | C14: 10_Oso m
B15: 11 | C15: 11_Oso m
B16: 12 | C16: 12_Oso m
B17: 13 | C17: 13_Oso m
B18: 14 | C18: 14_Oso f
B19: 15 | C19: 15_Oso f
B20: 16 | C20: 16_Oso f
B21: 17 | C21: 17_Oso f
B22: 18 | C22: 18_Oso f
B23: 19 | C23: 19_Oso f
B24: 20 | C24: 20_Oso f
D34: 1 | E34: 2 | F34: 3 | G34: 4 | H34: 5 | I34: 6 | J34: 7 | K34: 8 | L34: 9 | M34: 10 | N34: 11 | O34: 12 | P34: 13 | Q34: 14 | R34: 15 | S34: 16 | T34: 17 | U34: 18 | V34: 19 | W34: 20
D35: 01_Oso m | E35: 02_Oso m | F35: 03_Oso m | G35: 04_Osor m | H35: 05_Oso m | I35: 06_Oso m | J35: 07_Oso m | K35: 08_Oso m | L35: 09_Oso m | M35: 10_Oso m | N35: 11_Oso m | O35: 12_Oso m | P35: 13_Oso m | Q35: 14_Oso f | R35: 15_Oso f | S35: 16_Oso f | T35: 17_Oso f | U35: 18_Oso f | V35: 19_Oso f | W35: 20_Oso f
B36: 1 | C36: 01_Oso m | D36: =IF(D5<>0,D$3,"") -> 
B37: 2 | C37: 02_Oso m
B38: 3 | C38: 03_Oso m
B39: 4 | C39: 04_Osor m
B40: 5 | C40: 05_Oso m
B41: 6 | C41: 06_Oso m
B42: 7 | C42: 07_Oso m
B43: 8 | C43: 08_Oso m
B44: 9 | C44: 09_Oso m
B45: 10 | C45: 10_Oso m
B46: 11 | C46: 11_Oso m
B47: 12 | C47: 12_Oso m
B48: 13 | C48: 13_Oso m | S48: =IF(S17<>0,S$3,"") ->  | T48: =IF(T17<>0,T$3,"") ->  | U48: =IF(U17<>0,U$3,"") ->  | V48: =IF(V17<>0,V$3,"") ->  | W48: =IF(W17<>0,W$3,"") -> 
B49: 14 | C49: 14_Oso f | D49: =IF(D18<>0,D$3,"") -> 
B50: 15 | C50: 15_Oso f
B51: 16 | C51: 16_Oso f
B52: 17 | C52: 17_Oso f
B53: 18 | C53: 18_Oso f
B54: 19 | C54: 19_Oso f
B55: 20 | C55: 20_Oso f

Sheet Q_19
A1: 19. Nezadaná
B2: 3
B3: 20 | D3: 1 | E3: 2 | F3: 3 | G3: 4 | H3: 5 | I3: 6 | J3: 7 | K3: 8 | L3: 9 | M3: 10 | N3: 11 | O3: 12 | P3: 13 | Q3: 14 | R3: 15 | S3: 16 | T3: 17 | U3: 18 | V3: 19 | W3: 20
D4: 01_Oso m | E4: 02_Oso m | F4: 03_Oso m | G4: 04_Osor m | H4: 05_Oso m | I4: 06_Oso m | J4: 07_Oso m | K4: 08_Oso m | L4: 09_Oso m | M4: 10_Oso m | N4: 11_Oso m | O4: 12_Oso m | P4: 13_Oso m | Q4: 14_Oso f | R4: 15_Oso f | S4: 16_Oso f | T4: 17_Oso f | U4: 18_Oso f | V4: 19_Oso f | W4: 20_Oso f
A5: → | B5: 1 | C5: 01_Oso m
B6: 2 | C6: 02_Oso m
B7: 3 | C7: 03_Oso m
B8: 4 | C8: 04_Osor m
B9: 5 | C9: 05_Oso m
B10: 6 | C10: 06_Oso m
B11: 7 | C11: 07_Oso m
B12: 8 | C12: 08_Oso m
B13: 9 | C13: 09_Oso m
B14: 10 | C14: 10_Oso m
B15: 11 | C15: 11_Oso m
B16: 12 | C16: 12_Oso m
B17: 13 | C17: 13_Oso m
B18: 14 | C18: 14_Oso f
B19: 15 | C19: 15_Oso f
B20: 16 | C20: 16_Oso f
B21: 17 | C21: 17_Oso f
B22: 18 | C22: 18_Oso f
B23: 19 | C23: 19_Oso f
B24: 20 | C24: 20_Oso f
D34: 1 | E34: 2 | F34: 3 | G34: 4 | H34: 5 | I34: 6 | J34: 7 | K34: 8 | L34: 9 | M34: 10 | N34: 11 | O34: 12 | P34: 13 | Q34: 14 | R34: 15 | S34: 16 | T34: 17 | U34: 18 | V34: 19 | W34: 20
D35: 01_Oso m | E35: 02_Oso m | F35: 03_Oso m | G35: 04_Osor m | H35: 05_Oso m | I35: 06_Oso m | J35: 07_Oso m | K35: 08_Oso m | L35: 09_Oso m | M35: 10_Oso m | N35: 11_Oso m | O35: 12_Oso m | P35: 13_Oso m | Q35: 14_Oso f | R35: 15_Oso f | S35: 16_Oso f | T35: 17_Oso f | U35: 18_Oso f | V35: 19_Oso f | W35: 20_Oso f
B36: 1 | C36: 01_Oso m | D36: =IF(D5<>0,D$3,"") -> 
B37: 2 | C37: 02_Oso m
B38: 3 | C38: 03_Oso m
B39: 4 | C39: 04_Osor m
B40: 5 | C40: 05_Oso m
B41: 6 | C41: 06_Oso m
B42: 7 | C42: 07_Oso m
B43: 8 | C43: 08_Oso m
B44: 9 | C44: 09_Oso m
B45: 10 | C45: 10_Oso m
B46: 11 | C46: 11_Oso m
B47: 12 | C47: 12_Oso m
B48: 13 | C48: 13_Oso m | S48: =IF(S17<>0,S$3,"") ->  | T48: =IF(T17<>0,T$3,"") ->  | U48: =IF(U17<>0,U$3,"") ->  | V48: =IF(V17<>0,V$3,"") ->  | W48: =IF(W17<>0,W$3,"") -> 
B49: 14 | C49: 14_Oso f | D49: =IF(D18<>0,D$3,"") -> 
B50: 15 | C50: 15_Oso f
B51: 16 | C51: 16_Oso f
B52: 17 | C52: 17_Oso f
B53: 18 | C53: 18_Oso f
B54: 19 | C54: 19_Oso f
B55: 20 | C55: 20_Oso f

Sheet Q_20
A1: 20. Nezadaná
B2: 3
B3: 20 | D3: 1 | E3: 2 | F3: 3 | G3: 4 | H3: 5 | I3: 6 | J3: 7 | K3: 8 | L3: 9 | M3: 10 | N3: 11 | O3: 12 | P3: 13 | Q3: 14 | R3: 15 | S3: 16 | T3: 17 | U3: 18 | V3: 19 | W3: 20
D4: 01_Oso m | E4: 02_Oso m | F4: 03_Oso m | G4: 04_Osor m | H4: 05_Oso m | I4: 06_Oso m | J4: 07_Oso m | K4: 08_Oso m | L4: 09_Oso m | M4: 10_Oso m | N4: 11_Oso m | O4: 12_Oso m | P4: 13_Oso m | Q4: 14_Oso f | R4: 15_Oso f | S4: 16_Oso f | T4: 17_Oso f | U4: 18_Oso f | V4: 19_Oso f | W4: 20_Oso f
A5: → | B5: 1 | C5: 01_Oso m
B6: 2 | C6: 02_Oso m
B7: 3 | C7: 03_Oso m
B8: 4 | C8: 04_Osor m
B9: 5 | C9: 05_Oso m
B10: 6 | C10: 06_Oso m
B11: 7 | C11: 07_Oso m
B12: 8 | C12: 08_Oso m
B13: 9 | C13: 09_Oso m
B14: 10 | C14: 10_Oso m
B15: 11 | C15: 11_Oso m
B16: 12 | C16: 12_Oso m
B17: 13 | C17: 13_Oso m
B18: 14 | C18: 14_Oso f
B19: 15 | C19: 15_Oso f
B20: 16 | C20: 16_Oso f
B21: 17 | C21: 17_Oso f
B22: 18 | C22: 18_Oso f
B23: 19 | C23: 19_Oso f
B24: 20 | C24: 20_Oso f
D34: 1 | E34: 2 | F34: 3 | G34: 4 | H34: 5 | I34: 6 | J34: 7 | K34: 8 | L34: 9 | M34: 10 | N34: 11 | O34: 12 | P34: 13 | Q34: 14 | R34: 15 | S34: 16 | T34: 17 | U34: 18 | V34: 19 | W34: 20
D35: 01_Oso m | E35: 02_Oso m | F35: 03_Oso m | G35: 04_Osor m | H35: 05_Oso m | I35: 06_Oso m | J35: 07_Oso m | K35: 08_Oso m | L35: 09_Oso m | M35: 10_Oso m | N35: 11_Oso m | O35: 12_Oso m | P35: 13_Oso m | Q35: 14_Oso f | R35: 15_Oso f | S35: 16_Oso f | T35: 17_Oso f | U35: 18_Oso f | V35: 19_Oso f | W35: 20_Oso f
B36: 1 | C36: 01_Oso m | D36: =IF(D5<>0,D$3,"") -> 
B37: 2 | C37: 02_Oso m
B38: 3 | C38: 03_Oso m
B39: 4 | C39: 04_Osor m
B40: 5 | C40: 05_Oso m
B41: 6 | C41: 06_Oso m
B42: 7 | C42: 07_Oso m
B43: 8 | C43: 08_Oso m
B44: 9 | C44: 09_Oso m
B45: 10 | C45: 10_Oso m
B46: 11 | C46: 11_Oso m
B47: 12 | C47: 12_Oso m
B48: 13 | C48: 13_Oso m | S48: =IF(S17<>0,S$3,"") ->  | T48: =IF(T17<>0,T$3,"") ->  | U48: =IF(U17<>0,U$3,"") ->  | V48: =IF(V17<>0,V$3,"") ->  | W48: =IF(W17<>0,W$3,"") -> 
B49: 14 | C49: 14_Oso f | D49: =IF(D18<>0,D$3,"") -> 
B50: 15 | C50: 15_Oso f
B51: 16 | C51: 16_Oso f
B52: 17 | C52: 17_Oso f
B53: 18 | C53: 18_Oso f
B54: 19 | C54: 19_Oso f
B55: 20 | C55: 20_Oso f

Sheet Sumy_All_Q
D1: 1 | E1: 2 | F1: 3 | G1: 4 | H1: 5 | I1: 6 | J1: 7 | K1: 8 | L1: 9 | M1: 10 | N1: 11 | O1: 12 | P1: 13 | Q1: 14 | R1: 15 | S1: 16 | T1: 17 | U1: 18 | V1: 19 | W1: 20 | X1: 21 | Y1: 22 | Z1: 23 | AA1: 24 | AB1: 25 | AC1: 26 | AD1: 27 | AE1: 28 | AF1: 29 | AG1: 30 | AH1: 31 | AI1: 32 | AJ1: 33 | AK1: 34 | AL1: 35 | AM1: 36 | AN1: 37 | AO1: 38 | AP1: 39 | AQ1: 40
A2: Počet volieb | B2: 3
A3: Počet osôb | B3: 20
C4: Konotácia P +; N –; Q = nezadaná | D4: 01_Oso m | E4: 02_Oso m | F4: 03_Oso m | G4: 04_Osor m | H4: 05_Oso m | I4: 06_Oso m | J4: 07_Oso m | K4: 08_Oso m | L4: 09_Oso m | M4: 10_Oso m | N4: 11_Oso m | O4: 12_Oso m | P4: 13_Oso m | Q4: 14_Oso f | R4: 15_Oso f | S4: 16_Oso f | T4: 17_Oso f | U4: 18_Oso f | V4: 19_Oso f | W4: 20_Oso f | AR4: Total | AS4: AM | AT4: SD | AU4: MAX
A5: Q_1 | B5: Voľby spolu n | C5: P | D5: 2 | E5: 2 | F5: 1 | G5: 5 | H5: 4 | I5: 2 | J5: 1 | K5: 1 | L5: 4 | M5: 2 | N5: 0 | O5: 2 | P5: 5 | Q5: 2 | R5: 1 | S5: 4 | T5: 2 | U5: 3 | V5: 1 | W5: 0 | AR5: =SUM(D5:AQ5) -> 44 | AS5: =IF(AR5>0,AVERAGE(D5:AQ5),"") -> 2.2 | AT5: =IF(AR5>0,STDEV(D5:AQ5),"") -> 1.50787407 | AU5: =MAX(D5:AQ5) -> 5
B6: Prvá voľba n | C6: 0 | D6: 2 | E6: 1 | F6: 1 | G6: 1 | H6: 1 | I6: 2 | J6: 0 | K6: 1 | L6: 1 | M6: 1 | N6: 0 | O6: 0 | P6: 2 | Q6: 1 | R6: 0 | S6: 3 | T6: 0 | U6: 0 | V6: 1 | W6: 0 | AR6: =SUM(D6:AQ6) -> 18 | AS6: =IF(AR5>0,AVERAGE(D6:AQ6),"") -> 0.9 | AT6: =IF(AR5>0,STDEV(D6:AQ6),"") -> 0.8522416262
B7: Druhá voľba n | C7: 0 | D7: 0 | E7: 0 | F7: 0 | G7: 0 | H7: 3 | I7: 0 | J7: 1 | K7: 0 | L7: 2 | M7: 1 | N7: 0 | O7: 2 | P7: 0 | Q7: 1 | R7: 1 | S7: 0 | T7: 2 | U7: 1 | V7: 0 | W7: 0 | AR7: =SUM(D7:AQ7) -> 14 | AS7: =IF(AR5>0,AVERAGE(D7:AQ7),"") -> 0.7 | AT7: =IF(AR5>0,STDEV(D7:AQ7),"") -> 0.9233805169
B8: Tretia voľba n | C8: 0 | D8: 0 | E8: 1 | F8: 0 | G8: 4 | H8: 0 | I8: 0 | J8: 0 | K8: 0 | L8: 1 | M8: 0 | N8: 0 | O8: 0 | P8: 3 | Q8: 0 | R8: 0 | S8: 1 | T8: 0 | U8: 2 | V8: 0 | W8: 0 | AR8: =SUM(D8:AQ8) -> 12 | AS8: =IF(AR5>0,AVERAGE(D8:AQ8),"") -> 0.6 | AT8: =IF(AR5>0,STDEV(D8:AQ8),"") -> 1.142481141 | AU8: =MAX(D8:AQ8) -> 4
B9: Voľby spolu % | C9: 0 | D9: 10 | E9: 5 | F9: 5 | G9: 5 | H9: 5 | I9: 10 | J9: 0 | K9: 5 | L9: 5 | M9: 5 | N9: 0 | O9: 0 | P9: 10 | Q9: 5 | R9: 0 | S9: 15 | T9: 0 | U9: 0 | V9: 5 | W9: 0
B10: Prvá voľba % | C10: 0 | D10: 0 | E10: 0 | F10: 0 | G10: 0 | H10: 15 | I10: 0 | J10: 5 | K10: 0 | L10: 10 | M10: 5 | N10: 0 | O10: 10 | P10: 0 | Q10: 5 | R10: 5 | S10: 0 | T10: 10 | U10: 5 | V10: 0 | W10: 0
B11: Druhá voľba % | C11: 0 | D11: 0 | E11: 5 | F11: 0 | G11: 20 | H11: 0 | I11: 0 | J11: 0 | K11: 0 | L11: 5 | M11: 0 | N11: 0 | O11: 0 | P11: 15 | Q11: 0 | R11: 0 | S11: 5 | T11: 0 | U11: 10 | V11: 0 | W11: 0
B12: Tretia voľba % | C12: 0 | D12: 10 | E12: 10 | F12: 5 | G12: 25 | H12: 20 | I12: 10 | J12: 5 | K12: 5 | L12: 20 | M12: 10 | N12: 0 | O12: 10 | P12: 25 | Q12: 10 | R12: 5 | S12: 20 | T12: 10 | U12: 15 | V12: 5 | W12: 0
A13: * | B13: Voľby spolu z-skóre | C13: P | D13: =IF(D5<>"",IF($AT$5<>"",IF($AT$5>0,(D5-$AS$5)/$AT$5,""),""),"") -> -0.132637071 | E13: =IF(E5<>"",IF($AT$5<>"",IF($AT$5>0,(E5-$AS$5)/$AT$5,""),""),"") -> -0.132637071 | F13: -0.7958224258 | G13: 1.856918993 | H13: 1.193733639 | I13: -0.132637071 | J13: -0.7958224258 | K13: -0.7958224258 | L13: 1.193733639 | M13: -0.132637071 | N13: -1.459007781 | O13: -0.132637071 | P13: 1.856918993 | Q13: -0.132637071 | R13: -0.7958224258 | S13: 1.193733639 | T13: -0.132637071 | U13: 0.5305482838 | V13: -0.7958224258 | W13: -1.459007781
B14: Prvá voľba z-skóre | D14: =IF(D6<>"",IF($AT$6<>"",IF($AT$6>0,(D6-$AS$6)/$AT$6,""),""),"") -> 1.290713767 | E14: =IF(E6<>"",IF($AT$6<>"",IF($AT$6>0,(E6-$AS$6)/$AT$6,""),""),"") -> 0.1173376152 | F14: 0.1173376152 | G14: 0.1173376152 | H14: 0.1173376152 | I14: 1.290713767 | J14: -1.056038537 | K14: 0.1173376152 | L14: 0.1173376152 | M14: 0.1173376152 | N14: -1.056038537 | O14: -1.056038537 | P14: 1.290713767 | Q14: 0.1173376152 | R14: -1.056038537 | S14: 2.464089919 | T14: -1.056038537 | U14: -1.056038537 | V14: 0.1173376152 | W14: -1.056038537
B15: Druhá voľba z-skóre | D15: =IF(D7<>"",IF($AT$7<>"",IF($AT$7>0,(D7-$AS$7)/$AT$7,""),""),"") -> -0.7580840046 | E15: =IF(E7<>"",IF($AT$7<>"",IF($AT$7>0,(E7-$AS$7)/$AT$7,""),""),"") -> -0.7580840046 | F15: -0.7580840046 | G15: -0.7580840046 | H15: 2.490847444 | I15: -0.7580840046 | J15: 0.3248931448 | K15: -0.7580840046 | L15: 1.407870294 | M15: 0.3248931448 | N15: -0.7580840046 | O15: 1.407870294 | P15: -0.7580840046 | Q15: 0.3248931448 | R15: 0.3248931448 | S15: -0.7580840046 | T15: 1.407870294 | U15: 0.3248931448 | V15: -0.7580840046 | W15: -0.7580840046
B16: Tretia voľba z-skóre | D16: =IF(D8<>"",IF($AT$8<>"",IF($AT$8>0,(D8-$AS$8)/$AT$8,""),""),"") -> -0.5251727826 | E16: =IF(E8<>"",IF($AT$8<>"",IF($AT$8>0,(E8-$AS$8)/$AT$8,""),""),"") -> 0.3501151884 | F16: -0.5251727826 | G16: 2.975979102 | H16: -0.5251727826 | I16: -0.5251727826 | J16: -0.5251727826 | K16: -0.5251727826 | L16: 0.3501151884 | M16: -0.5251727826 | N16: -0.5251727826 | O16: -0.5251727826 | P16: 2.100691131 | Q16: -0.5251727826 | R16: -0.5251727826 | S16: 0.3501151884 | T16: -0.5251727826 | U16: 1.225403159 | V16: -0.5251727826 | W16: -0.5251727826
A17: Q_2 | B17: Voľby spolu n | C17: P | D17: 3 | E17: 3 | F17: 0 | G17: 4 | H17: 2 | I17: 1 | J17: 0 | K17: 3 | L17: 2 | M17: 4 | N17: 1 | O17: 1 | P17: 1 | Q17: 3 | R17: 2 | S17: 3 | T17: 1 | U17: 3 | V17: 0 | W17: 0 | AR17: =SUM(D17:AQ17) -> 37 | AS17: =IF(AR17>0,AVERAGE(D17:AQ17),"") -> 1.85 | AT17: =IF(AR17>0,STDEV(D17:AQ17),"") -> 1.348488433 | AU17: =MAX(D17:AQ17) -> 4
B18: Prvá voľba n | C18: 0 | D18: 1 | E18: 1 | F18: 0 | G18: 1 | H18: 0 | I18: 1 | J18: 0 | K18: 2 | L18: 2 | M18: 3 | N18: 0 | O18: 1 | P18: 0 | Q18: 1 | R18: 0 | S18: 3 | T18: 0 | U18: 1 | V18: 0 | W18: 0 | AR18: =SUM(D18:AQ18) -> 17 | AS18: =IF(AR17>0,AVERAGE(D18:AQ18),"") -> 0.85 | AT18: =IF(AR17>0,STDEV(D18:AQ18),"") -> 0.9880869342
B19: Druhá voľba n | C19: 0 | D19: 2 | E19: 0 | F19: 0 | G19: 0 | H19: 2 | I19: 0 | J19: 0 | K19: 1 | L19: 0 | M19: 1 | N19: 0 | O19: 0 | P19: 0 | Q19: 2 | R19: 1 | S19: 0 | T19: 1 | U19: 0 | V19: 0 | W19: 0 | AR19: =SUM(D19:AQ19) -> 10 | AS19: =IF(AR17>0,AVERAGE(D19:AQ19),"") -> 0.5 | AT19: =IF(AR17>0,STDEV(D19:AQ19),"") -> 0.7608859103
B20: Tretia voľba n | C20: 0 | D20: 0 | E20: 2 | F20: 0 | G20: 3 | H20: 0 | I20: 0 | J20: 0 | K20: 0 | L20: 0 | M20: 0 | N20: 1 | O20: 0 | P20: 1 | Q20: 0 | R20: 1 | S20: 0 | T20: 0 | U20: 2 | V20: 0 | W20: 0 | AR20: =SUM(D20:AQ20) -> 10 | AS20: =IF(AR17>0,AVERAGE(D20:AQ20),"") -> 0.5 | AT20: =IF(AR17>0,STDEV(D20:AQ20),"") -> 0.8885233166 | AU20: =MAX(D20:AQ20) -> 3
B21: Voľby spolu % | C21: 0 | D21: 5 | E21: 5 | F21: 0 | G21: 5 | H21: 0 | I21: 5 | J21: 0 | K21: 10 | L21: 10 | M21: 15 | N21: 0 | O21: 5 | P21: 0 | Q21: 5 | R21: 0 | S21: 15 | T21: 0 | U21: 5 | V21: 0 | W21: 0
B22: Prvá voľba % | C22: 0 | D22: 10 | E22: 0 | F22: 0 | G22: 0 | H22: 10 | I22: 0 | J22: 0 | K22: 5 | L22: 0 | M22: 5 | N22: 0 | O22: 0 | P22: 0 | Q22: 10 | R22: 5 | S22: 0 | T22: 5 | U22: 0 | V22: 0 | W22: 0
B23: Druhá voľba % | C23: 0 | D23: 0 | E23: 10 | F23: 0 | G23: 15 | H23: 0 | I23: 0 | J23: 0 | K23: 0 | L23: 0 | M23: 0 | N23: 5 | O23: 0 | P23: 5 | Q23: 0 | R23: 5 | S23: 0 | T23: 0 | U23: 10 | V23: 0 | W23: 0
B24: Tretia voľba % | C24: 0 | D24: 15 | E24: 15 | F24: 0 | G24: 20 | H24: 10 | I24: 5 | J24: 0 | K24: 15 | L24: 10 | M24: 20 | N24: 5 | O24: 5 | P24: 5 | Q24: 15 | R24: 10 | S24: 15 | T24: 5 | U24: 15 | V24: 0 | W24: 0
A25: * | B25: Voľby spolu z-skóre | C25: P | D25: =IF(D17<>"",IF($AT$17<>"",IF($AT$17>0,(D17-$AS$17)/$AT$17,""),""),"") -> 0.8528067222 | E25: =IF(E17<>"",IF($AT$17<>"",IF($AT$17>0,(E17-$AS$17)/$AT$17,""),""),"") -> 0.8528067222 | F25: -1.371906466 | G25: 1.594377785 | H25: 0.1112356594 | I25: -0.6303354033 | J25: -1.371906466 | K25: 0.8528067222 | L25: 0.1112356594 | M25: 1.594377785 | N25: -0.6303354033 | O25: -0.6303354033 | P25: -0.6303354033 | Q25: 0.8528067222 | R25: 0.1112356594 | S25: 0.8528067222 | T25: -0.6303354033 | U25: 0.8528067222 | V25: -1.371906466 | W25: -1.371906466
B26: Prvá voľba z-skóre | D26: =IF(D18<>"",IF($AT$18<>"",IF($AT$18>0,(D18-$AS$18)/$AT$18,""),""),"") -> 0.1518085047 | E26: =IF(E18<>"",IF($AT$18<>"",IF($AT$18>0,(E18-$AS$18)/$AT$18,""),""),"") -> 0.1518085047 | F26: -0.8602481934 | G26: 0.1518085047 | H26: -0.8602481934 | I26: 0.1518085047 | J26: -0.8602481934 | K26: 1.163865203 | L26: 1.163865203 | M26: 2.175921901 | N26: -0.8602481934 | O26: 0.1518085047 | P26: -0.8602481934 | Q26: 0.1518085047 | R26: -0.8602481934 | S26: 2.175921901 | T26: -0.8602481934 | U26: 0.1518085047 | V26: -0.8602481934 | W26: -0.8602481934
B27: Druhá voľba z-skóre | D27: =IF(D19<>"",IF($AT$19<>"",IF($AT$19>0,(D19-$AS$19)/$AT$19,""),""),"") -> 1.971386222 | E27: =IF(E19<>"",IF($AT$19<>"",IF($AT$19>0,(E19-$AS$19)/$AT$19,""),""),"") -> -0.6571287407 | F27: -0.6571287407 | G27: -0.6571287407 | H27: 1.971386222 | I27: -0.6571287407 | J27: -0.6571287407 | K27: 0.6571287407 | L27: -0.6571287407 | M27: 0.6571287407 | N27: -0.6571287407 | O27: -0.6571287407 | P27: -0.6571287407 | Q27: 1.971386222 | R27: 0.6571287407 | S27: -0.6571287407 | T27: 0.6571287407 | U27: -0.6571287407 | V27: -0.6571287407 | W27: -0.6571287407
B28: Tretia voľba z-skóre | D28: =IF(D20<>"",IF($AT$20<>"",IF($AT$20>0,(D20-$AS$20)/$AT$20,""),""),"") -> -0.5627314339 | E28: =IF(E20<>"",IF($AT$20<>"",IF($AT$20>0,(E20-$AS$20)/$AT$20,""),""),"") -> 1.688194302 | F28: -0.5627314339 | G28: 2.813657169 | H28: -0.5627314339 | I28: -0.5627314339 | J28: -0.5627314339 | K28: -0.5627314339 | L28: -0.5627314339 | M28: -0.5627314339 | N28: 0.5627314339 | O28: -0.5627314339 | P28: 0.5627314339 | Q28: -0.5627314339 | R28: 0.5627314339 | S28: -0.5627314339 | T28: -0.5627314339 | U28: 1.688194302 | V28: -0.5627314339 | W28: -0.5627314339
A29: Q_3 | B29: Voľby spolu n | C29: P | D29: 3 | E29: 2 | F29: 0 | G29: 6 | H29: 4 | I29: 1 | J29: 0 | K29: 1 | L29: 2 | M29: 3 | N29: 1 | O29: 1 | P29: 5 | Q29: 2 | R29: 3 | S29: 4 | T29: 3 | U29: 2 | V29: 0 | W29: 1 | AR29: =SUM(D29:AQ29) -> 44 | AS29: =IF(AR29>0,AVERAGE(D29:AQ29),"") -> 2.2 | AT29: =IF(AR29>0,STDEV(D29:AQ29),"") -> 1.673320053 | AU29: =MAX(D29:AQ29) -> 6
B30: Prvá voľba n | C30: 0 | D30: 1 | E30: 1 | F30: 0 | G30: 2 | H30: 2 | I30: 1 | J30: 0 | K30: 0 | L30: 2 | M30: 2 | N30: 0 | O30: 1 | P30: 1 | Q30: 2 | R30: 0 | S30: 2 | T30: 0 | U30: 1 | V30: 0 | W30: 0 | AR30: =SUM(D30:AQ30) -> 18 | AS30: =IF(AR29>0,AVERAGE(D30:AQ30),"") -> 0.9 | AT30: =IF(AR29>0,STDEV(D30:AQ30),"") -> 0.8522416262
B31: Druhá voľba n | C31: 0 | D31: 2 | E31: 0 | F31: 0 | G31: 2 | H31: 2 | I31: 0 | J31: 0 | K31: 1 | L31: 0 | M31: 1 | N31: 0 | O31: 0 | P31: 0 | Q31: 0 | R31: 2 | S31: 2 | T31: 2 | U31: 0 | V31: 0 | W31: 0 | AR31: =SUM(D31:AQ31) -> 14 | AS31: =IF(AR29>0,AVERAGE(D31:AQ31),"") -> 0.7 | AT31: =IF(AR29>0,STDEV(D31:AQ31),"") -> 0.9233805169
B32: Tretia voľba n | C32: 0 | D32: 0 | E32: 1 | F32: 0 | G32: 2 | H32: 0 | I32: 0 | J32: 0 | K32: 0 | L32: 0 | M32: 0 | N32: 1 | O32: 0 | P32: 4 | Q32: 0 | R32: 1 | S32: 0 | T32: 1 | U32: 1 | V32: 0 | W32: 1 | AR32: =SUM(D32:AQ32) -> 12 | AS32: =IF(AR29>0,AVERAGE(D32:AQ32),"") -> 0.6 | AT32: =IF(AR29>0,STDEV(D32:AQ32),"") -> 0.9947229183 | AU32: =MAX(D32:AQ32) -> 4
B33: Voľby spolu % | C33: 0 | D33: 5 | E33: 5 | F33: 0 | G33: 10 | H33: 10 | I33: 5 | J33: 0 | K33: 0 | L33: 10 | M33: 10 | N33: 0 | O33: 5 | P33: 5 | Q33: 10 | R33: 0 | S33: 10 | T33: 0 | U33: 5 | V33: 0 | W33: 0
B34: Prvá voľba % | C34: 0 | D34: 10 | E34: 0 | F34: 0 | G34: 10 | H34: 10 | I34: 0 | J34: 0 | K34: 5 | L34: 0 | M34: 5 | N34: 0 | O34: 0 | P34: 0 | Q34: 0 | R34: 10 | S34: 10 | T34: 10 | U34: 0 | V34: 0 | W34: 0
B35: Druhá voľba % | C35: 0 | D35: 0 | E35: 5 | F35: 0 | G35: 10 | H35: 0 | I35: 0 | J35: 0 | K35: 0 | L35: 0 | M35: 0 | N35: 5 | O35: 0 | P35: 20 | Q35: 0 | R35: 5 | S35: 0 | T35: 5 | U35: 5 | V35: 0 | W35: 5
B36: Tretia voľba % | C36: 0 | D36: 15 | E36: 10 | F36: 0 | G36: 30 | H36: 20 | I36: 5 | J36: 0 | K36: 5 | L36: 10 | M36: 15 | N36: 5 | O36: 5 | P36: 25 | Q36: 10 | R36: 15 | S36: 20 | T36: 15 | U36: 10 | V36: 0 | W36: 5
A37: * | B37: Voľby spolu z-skóre | C37: P | D37: =IF(D29<>"",IF($AT$29<>"",IF($AT$29>0,(D29-$AS$29)/$AT$29,""),""),"") -> 0.4780914437 | E37: =IF(E29<>"",IF($AT$29<>"",IF($AT$29>0,(E29-$AS$29)/$AT$29,""),""),"") -> -0.1195228609 | F37: -1.31475147 | G37: 2.270934358 | H37: 1.075705748 | I37: -0.7171371656 | J37: -1.31475147 | K37: -0.7171371656 | L37: -0.1195228609 | M37: 0.4780914437 | N37: -0.7171371656 | O37: -0.7171371656 | P37: 1.673320053 | Q37: -0.1195228609 | R37: 0.4780914437 | S37: 1.075705748 | T37: 0.4780914437 | U37: -0.1195228609 | V37: -1.31475147 | W37: -0.7171371656
B38: Prvá voľba z-skóre | D38: =IF(D30<>"",IF($AT$30<>"",IF($AT$30>0,(D30-$AS$30)/$AT$30,""),""),"") -> 0.1173376152 | E38: =IF(E30<>"",IF($AT$30<>"",IF($AT$30>0,(E30-$AS$30)/$AT$30,""),""),"") -> 0.1173376152 | F38: -1.056038537 | G38: 1.290713767 | H38: 1.290713767 | I38: 0.1173376152 | J38: -1.056038537 | K38: -1.056038537 | L38: 1.290713767 | M38: 1.290713767 | N38: -1.056038537 | O38: 0.1173376152 | P38: 0.1173376152 | Q38: 1.290713767 | R38: -1.056038537 | S38: 1.290713767 | T38: -1.056038537 | U38: 0.1173376152 | V38: -1.056038537 | W38: -1.056038537
B39: Druhá voľba z-skóre | D39: =IF(D31<>"",IF($AT$31<>"",IF($AT$31>0,(D31-$AS$31)/$AT$31,""),""),"") -> 1.407870294 | E39: =IF(E31<>"",IF($AT$31<>"",IF($AT$31>0,(E31-$AS$31)/$AT$31,""),""),"") -> -0.7580840046 | F39: -0.7580840046 | G39: 1.407870294 | H39: 1.407870294 | I39: -0.7580840046 | J39: -0.7580840046 | K39: 0.3248931448 | L39: -0.7580840046 | M39: 0.3248931448 | N39: -0.7580840046 | O39: -0.7580840046 | P39: -0.7580840046 | Q39: -0.7580840046 | R39: 1.407870294 | S39: 1.407870294 | T39: 1.407870294 | U39: -0.7580840046 | V39: -0.7580840046 | W39: -0.7580840046
B40: Tretia voľba z-skóre | D40: =IF(D32<>"",IF($AT$32<>"",IF($AT$32>0,(D32-$AS$32)/$AT$32,""),""),"") -> -0.6031830462 | E40: =IF(E32<>"",IF($AT$32<>"",IF($AT$32>0,(E32-$AS$32)/$AT$32,""),""),"") -> 0.4021220308 | F40: -0.6031830462 | G40: 1.407427108 | H40: -0.6031830462 | I40: -0.6031830462 | J40: -0.6031830462 | K40: -0.6031830462 | L40: -0.6031830462 | M40: -0.6031830462 | N40: 0.4021220308 | O40: -0.6031830462 | P40: 3.418037262 | Q40: -0.6031830462 | R40: 0.4021220308 | S40: -0.6031830462 | T40: 0.4021220308 | U40: 0.4021220308 | V40: -0.6031830462 | W40: 0.4021220308
A41: Q_4 | B41: Voľby spolu n | C41: P | D41: 0 | E41: 1 | F41: 0 | G41: 1 | H41: 3 | I41: 0 | J41: 0 | K41: 0 | L41: 0 | M41: 10 | N41: 0 | O41: 0 | P41: 1 | Q41: 1 | R41: 1 | S41: 6 | T41: 0 | U41: 4 | V41: 0 | W41: 5 | AR41: =SUM(D41:AQ41) -> 33 | AS41: =IF(AR41>0,AVERAGE(D41:AQ41),"") -> 1.65 | AT41: =IF(AR41>0,STDEV(D41:AQ41),"") -> 2.680828623 | AU41: =MAX(D41:AQ41) -> 10
B42: Prvá voľba n | C42: 0 | D42: 0 | E42: 0 | F42: 0 | G42: 0 | H42: 2 | I42: 0 | J42: 0 | K42: 0 | L42: 0 | M42: 8 | N42: 0 | O42: 0 | P42: 1 | Q42: 0 | R42: 0 | S42: 2 | T42: 0 | U42: 2 | V42: 0 | W42: 1 | AR42: =SUM(D42:AQ42) -> 16 | AS42: =IF(AR41>0,AVERAGE(D42:AQ42),"") -> 0.8 | AT42: =IF(AR41>0,STDEV(D42:AQ42),"") -> 1.852452144
B43: Druhá voľba n | C43: 0 | D43: 0 | E43: 1 | F43: 0 | G43: 0 | H43: 0 | I43: 0 | J43: 0 | K43: 0 | L43: 0 | M43: 2 | N43: 0 | O43: 0 | P43: 0 | Q43: 0 | R43: 0 | S43: 1 | T43: 0 | U43: 1 | V43: 0 | W43: 4 | AR43: =SUM(D43:AQ43) -> 9 | AS43: =IF(AR41>0,AVERAGE(D43:AQ43),"") -> 0.45 | AT43: =IF(AR41>0,STDEV(D43:AQ43),"") -> 0.9986833437
B44: Tretia voľba n | C44: 0 | D44: 0 | E44: 0 | F44: 0 | G44: 1 | H44: 1 | I44: 0 | J44: 0 | K44: 0 | L44: 0 | M44: 0 | N44: 0 | O44: 0 | P44: 0 | Q44: 1 | R44: 1 | S44: 3 | T44: 0 | U44: 1 | V44: 0 | W44: 0 | AR44: =SUM(D44:AQ44) -> 8 | AS44: =IF(AR41>0,AVERAGE(D44:AQ44),"") -> 0.4 | AT44: =IF(AR41>0,STDEV(D44:AQ44),"") -> 0.7539370349 | AU44: =MAX(D44:AQ44) -> 3
B45: Voľby spolu % | C45: 0 | D45: 0 | E45: 0 | F45: 0 | G45: 0 | H45: 10 | I45: 0 | J45: 0 | K45: 0 | L45: 0 | M45: 40 | N45: 0 | O45: 0 | P45: 5 | Q45: 0 | R45: 0 | S45: 10 | T45: 0 | U45: 10 | V45: 0 | W45: 5
B46: Prvá voľba % | C46: 0 | D46: 0 | E46: 5 | F46: 0 | G46: 0 | H46: 0 | I46: 0 | J46: 0 | K46: 0 | L46: 0 | M46: 10 | N46: 0 | O46: 0 | P46: 0 | Q46: 0 | R46: 0 | S46: 5 | T46: 0 | U46: 5 | V46: 0 | W46: 20
B47: Druhá voľba % | C47: 0 | D47: 0 | E47: 0 | F47: 0 | G47: 5 | H47: 5 | I47: 0 | J47: 0 | K47: 0 | L47: 0 | M47: 0 | N47: 0 | O47: 0 | P47: 0 | Q47: 5 | R47: 5 | S47: 15 | T47: 0 | U47: 5 | V47: 0 | W47: 0
B48: Tretia voľba % | C48: 0 | D48: 0 | E48: 5 | F48: 0 | G48: 5 | H48: 15 | I48: 0 | J48: 0 | K48: 0 | L48: 0 | M48: 50 | N48: 0 | O48: 0 | P48: 5 | Q48: 5 | R48: 5 | S48: 30 | T48: 0 | U48: 20 | V48: 0 | W48: 25
A49: * | B49: Voľby spolu z-skóre | C49: P | D49: =IF(D41<>"",IF($AT41<>"",IF($AT41>0,(D41-$AS41)/$AT41,""),""),"") -> -0.6154813426 | E49: =IF(E41<>"",IF($AT$41<>"",IF($AT$41>0,(E41-$AS$41)/$AT$41,""),""),"") -> -0.2424623471 | F49: -0.6154813426 | G49: -0.2424623471 | H49: 0.5035756439 | I49: -0.6154813426 | J49: -0.6154813426 | K49: -0.6154813426 | L49: -0.6154813426 | M49: 3.114708612 | N49: -0.6154813426 | O49: -0.6154813426 | P49: -0.2424623471 | Q49: -0.2424623471 | R49: -0.2424623471 | S49: 1.62263263 | T49: -0.6154813426 | U49: 0.8765946394 | V49: -0.6154813426 | W49: 1.249613635
B50: Prvá voľba z-skóre | D50: =IF(D42<>"",IF($AT42<>"",IF($AT42>0,(D42-$AS42)/$AT42,""),""),"") -> -0.4318600091 | E50: =IF(E42<>"",IF($AT$42<>"",IF($AT$42>0,(E42-$AS$42)/$AT$42,""),""),"") -> -0.4318600091 | F50: -0.4318600091 | G50: -0.4318600091 | H50: 0.6477900137 | I50: -0.4318600091 | J50: -0.4318600091 | K50: -0.4318600091 | L50: -0.4318600091 | M50: 3.886740082 | N50: -0.4318600091 | O50: -0.4318600091 | P50: 0.1079650023 | Q50: -0.4318600091 | R50: -0.4318600091 | S50: 0.6477900137 | T50: -0.4318600091 | U50: 0.6477900137 | V50: -0.4318600091 | W50: 0.1079650023
B51: Druhá voľba z-skóre | D51: =IF(D43<>"",IF($AT43<>"",IF($AT43>0,(D43-$AS43)/$AT43,""),""),"") -> -0.4505932765 | E51: =IF(E43<>"",IF($AT$43<>"",IF($AT$43>0,(E43-$AS$43)/$AT$43,""),""),"") -> 0.5507251157 | F51: -0.4505932765 | G51: -0.4505932765 | H51: -0.4505932765 | I51: -0.4505932765 | J51: -0.4505932765 | K51: -0.4505932765 | L51: -0.4505932765 | M51: 1.552043508 | N51: -0.4505932765 | O51: -0.4505932765 | P51: -0.4505932765 | Q51: -0.4505932765 | R51: -0.4505932765 | S51: 0.5507251157 | T51: -0.4505932765 | U51: 0.5507251157 | V51: -0.4505932765 | W51: 3.554680292
B52: Tretia voľba z-skóre | D52: =IF(D44<>"",IF($AT44<>"",IF($AT44>0,(D44-$AS44)/$AT44,""),""),"") -> -0.5305482838 | E52: =IF(E44<>"",IF($AT$44<>"",IF($AT$44>0,(E44-$AS$44)/$AT$44,""),""),"") -> -0.5305482838 | F52: -0.5305482838 | G52: 0.7958224258 | H52: 0.7958224258 | I52: -0.5305482838 | J52: -0.5305482838 | K52: -0.5305482838 | L52: -0.5305482838 | M52: -0.5305482838 | N52: -0.5305482838 | O52: -0.5305482838 | P52: -0.5305482838 | Q52: 0.7958224258 | R52: 0.7958224258 | S52: 3.448563845 | T52: -0.5305482838 | U52: 0.7958224258 | V52: -0.5305482838 | W52: -0.5305482838
A53: Q_5 | B53: Voľby spolu n | C53: P | D53: 2 | E53: 1 | F53: 0 | G53: 2 | H53: 2 | I53: 2 | J53: 1 | K53: 2 | L53: 1 | M53: 3 | N53: 0 | O53: 1 | P53: 2 | Q53: 1 | R53: 3 | S53: 2 | T53: 2 | U53: 1 | V53: 0 | W53: 0 | AR53: =SUM(D53:AQ53) -> 28 | AS53: =IF(AR53>0,AVERAGE(D53:AQ53),"") -> 1.4 | AT53: =IF(AR53>0,STDEV(D53:AQ53),"") -> 0.940324692 | AU53: =MAX(D53:AQ53) -> 3
B54: Prvá voľba n | C54: 0 | D54: 0 | E54: 0 | F54: 0 | G54: 1 | H54: 1 | I54: 1 | J54: 1 | K54: 1 | L54: 1 | M54: 3 | N54: 0 | O54: 1 | P54: 0 | Q54: 1 | R54: 0 | S54: 2 | T54: 0 | U54: 0 | V54: 0 | W54: 0 | AR54: =SUM(D54:AQ54) -> 13 | AS54: =IF(AR53>0,AVERAGE(D54:AQ54),"") -> 0.65 | AT54: =IF(AR53>0,STDEV(D54:AQ54),"") -> 0.8127277009
B55: Druhá voľba n | C55: 0 | D55: 2 | E55: 0 | F55: 0 | G55: 0 | H55: 1 | I55: 1 | J55: 0 | K55: 0 | L55: 0 | M55: 0 | N55: 0 | O55: 0 | P55: 0 | Q55: 0 | R55: 2 | S55: 0 | T55: 2 | U55: 0 | V55: 0 | W55: 0 | AR55: =SUM(D55:AQ55) -> 8 | AS55: =IF(AR53>0,AVERAGE(D55:AQ55),"") -> 0.4 | AT55: =IF(AR53>0,STDEV(D55:AQ55),"") -> 0.7539370349
B56: Tretia voľba n | C56: 0 | D56: 0 | E56: 1 | F56: 0 | G56: 1 | H56: 0 | I56: 0 | J56: 0 | K56: 1 | L56: 0 | M56: 0 | N56: 0 | O56: 0 | P56: 2 | Q56: 0 | R56: 1 | S56: 0 | T56: 0 | U56: 1 | V56: 0 | W56: 0 | AR56: =SUM(D56:AQ56) -> 7 | AS56: =IF(AR53>0,AVERAGE(D56:AQ56),"") -> 0.35 | AT56: =IF(AR53>0,STDEV(D56:AQ56),"") -> 0.5871429486 | AU56: =MAX(D56:AQ56) -> 2
B57: Voľby spolu % | C57: 0 | D57: 0 | E57: 0 | F57: 0 | G57: 5 | H57: 5 | I57: 5 | J57: 5 | K57: 5 | L57: 5 | M57: 15 | N57: 0 | O57: 5 | P57: 0 | Q57: 5 | R57: 0 | S57: 10 | T57: 0 | U57: 0 | V57: 0 | W57: 0
B58: Prvá voľba % | C58: 0 | D58: 10 | E58: 0 | F58: 0 | G58: 0 | H58: 5 | I58: 5 | J58: 0 | K58: 0 | L58: 0 | M58: 0 | N58: 0 | O58: 0 | P58: 0 | Q58: 0 | R58: 10 | S58: 0 | T58: 10 | U58: 0 | V58: 0 | W58: 0
B59: Druhá voľba % | C59: 0 | D59: 0 | E59: 5 | F59: 0 | G59: 5 | H59: 0 | I59: 0 | J59: 0 | K59: 5 | L59: 0 | M59: 0 | N59: 0 | O59: 0 | P59: 10 | Q59: 0 | R59: 5 | S59: 0 | T59: 0 | U59: 5 | V59: 0 | W59: 0
B60: Tretia voľba % | C60: 0 | D60: 10 | E60: 5 | F60: 0 | G60: 10 | H60: 10 | I60: 10 | J60: 5 | K60: 10 | L60: 5 | M60: 15 | N60: 0 | O60: 5 | P60: 10 | Q60: 5 | R60: 15 | S60: 10 | T60: 10 | U60: 5 | V60: 0 | W60: 0
A61: * | B61: Voľby spolu z-skóre | C61: P | D61: =IF(D53<>"",IF($AT$53<>"",IF($AT$53>0,(D53-$AS$53)/$AT$53,""),""),"") -> 0.6380774695 | E61: =IF(E53<>"",IF($AT$53<>"",IF($AT$53>0,(E53-$AS$53)/$AT$53,""),""),"") -> -0.4253849797 | F61: -1.488847429 | G61: 0.6380774695 | H61: 0.6380774695 | I61: 0.6380774695 | J61: -0.4253849797 | K61: 0.6380774695 | L61: -0.4253849797 | M61: 1.701539919 | N61: -1.488847429 | O61: -0.4253849797 | P61: 0.6380774695 | Q61: -0.4253849797 | R61: 1.701539919 | S61: 0.6380774695 | T61: 0.6380774695 | U61: -0.4253849797 | V61: -1.488847429 | W61: -1.488847429
B62: Prvá voľba z-skóre | D62: =IF(D54<>"",IF($AT$54<>"",IF($AT$54>0,(D54-$AS$54)/$AT$54,""),""),"") -> -0.799775865 | E62: =IF(E54<>"",IF($AT$54<>"",IF($AT$54>0,(E54-$AS$54)/$AT$54,""),""),"") -> -0.799775865 | F62: -0.799775865 | G62: 0.4306485427 | H62: 0.4306485427 | I62: 0.4306485427 | J62: 0.4306485427 | K62: 0.4306485427 | L62: 0.4306485427 | M62: 2.891497358 | N62: -0.799775865 | O62: 0.4306485427 | P62: -0.799775865 | Q62: 0.4306485427 | R62: -0.799775865 | S62: 1.66107295 | T62: -0.799775865 | U62: -0.799775865 | V62: -0.799775865 | W62: -0.799775865
B63: Druhá voľba z-skóre | D63: =IF(D55<>"",IF($AT$55<>"",IF($AT$55>0,(D55-$AS$55)/$AT$55,""),""),"") -> 2.122193135 | E63: =IF(E55<>"",IF($AT$55<>"",IF($AT$55>0,(E55-$AS$55)/$AT$55,""),""),"") -> -0.5305482838 | F63: -0.5305482838 | G63: -0.5305482838 | H63: 0.7958224258 | I63: 0.7958224258 | J63: -0.5305482838 | K63: -0.5305482838 | L63: -0.5305482838 | M63: -0.5305482838 | N63: -0.5305482838 | O63: -0.5305482838 | P63: -0.5305482838 | Q63: -0.5305482838 | R63: 2.122193135 | S63: -0.5305482838 | T63: 2.122193135 | U63: -0.5305482838 | V63: -0.5305482838 | W63: -0.5305482838
B64: Tretia voľba z-skóre | D64: =IF(D56<>"",IF($AT$56<>"",IF($AT$56>0,(D56-$AS$56)/$AT$56,""),""),"") -> -0.5961069631 | E64: =IF(E56<>"",IF($AT$56<>"",IF($AT$56>0,(E56-$AS$56)/$AT$56,""),""),"") -> 1.107055789 | F64: -0.5961069631 | G64: 1.107055789 | H64: -0.5961069631 | I64: -0.5961069631 | J64: -0.5961069631 | K64: 1.107055789 | L64: -0.5961069631 | M64: -0.5961069631 | N64: -0.5961069631 | O64: -0.5961069631 | P64: 2.81021854 | Q64: -0.5961069631 | R64: 1.107055789 | S64: -0.5961069631 | T64: -0.5961069631 | U64: 1.107055789 | V64: -0.5961069631 | W64: -0.5961069631
A65: Q_6 | B65: Voľby spolu n | C65: N | D65: 1 | E65: 0 | F65: 4 | G65: 1 | H65: 1 | I65: 0 | J65: 0 | K65: 0 | L65: 3 | M65: 1 | N65: 6 | O65: 0 | P65: 1 | Q65: 4 | R65: 3 | S65: 4 | T65: 2 | U65: 0 | V65: 10 | W65: 5 | AR65: =SUM(D65:AQ65) -> 46 | AS65: =IF(AR65>0,AVERAGE(D65:AQ65),"") -> 2.3 | AT65: =IF(AR65>0,STDEV(D65:AQ65),"") -> 2.617753155 | AU65: =MAX(D65:AQ65) -> 10
B66: Prvá voľba n | C66: 0 | D66: 0 | E66: 0 | F66: 0 | G66: 0 | H66: 1 | I66: 0 | J66: 0 | K66: 0 | L66: 1 | M66: 0 | N66: 1 | O66: 0 | P66: 1 | Q66: 0 | R66: 0 | S66: 1 | T66: 0 | U66: 0 | V66: 9 | W66: 3 | AR66: =SUM(D66:AQ66) -> 17 | AS66: =IF(AR65>0,AVERAGE(D66:AQ66),"") -> 0.85 | AT66: =IF(AR65>0,STDEV(D66:AQ66),"") -> 2.058998223
B67: Druhá voľba n | C67: 0 | D67: 1 | E67: 0 | F67: 3 | G67: 1 | H67: 0 | I67: 0 | J67: 0 | K67: 0 | L67: 0 | M67: 0 | N67: 4 | O67: 0 | P67: 0 | Q67: 1 | R67: 1 | S67: 2 | T67: 1 | U67: 0 | V67: 1 | W67: 1 | AR67: =SUM(D67:AQ67) -> 16 | AS67: =IF(AR65>0,AVERAGE(D67:AQ67),"") -> 0.8 | AT67: =IF(AR65>0,STDEV(D67:AQ67),"") -> 1.105012503
B68: Tretia voľba n | C68: 0 | D68: 0 | E68: 0 | F68: 1 | G68: 0 | H68: 0 | I68: 0 | J68: 0 | K68: 0 | L68: 2 | M68: 1 | N68: 1 | O68: 0 | P68: 0 | Q68: 3 | R68: 2 | S68: 1 | T68: 1 | U68: 0 | V68: 0 | W68: 1 | AR68: =SUM(D68:AQ68) -> 13 | AS68: =IF(AR65>0,AVERAGE(D68:AQ68),"") -> 0.65 | AT68: =IF(AR65>0,STDEV(D68:AQ68),"") -> 0.8750939799 | AU68: =MAX(D68:AQ68) -> 3
B69: Voľby spolu % | C69: 0 | D69: 0 | E69: 0 | F69: 0 | G69: 0 | H69: 5 | I69: 0 | J69: 0 | K69: 0 | L69: 5 | M69: 0 | N69: 5 | O69: 0 | P69: 5 | Q69: 0 | R69: 0 | S69: 5 | T69: 0 | U69: 0 | V69: 45 | W69: 15
B70: Prvá voľba % | C70: 0 | D70: 5 | E70: 0 | F70: 15 | G70: 5 | H70: 0 | I70: 0 | J70: 0 | K70: 0 | L70: 0 | M70: 0 | N70: 20 | O70: 0 | P70: 0 | Q70: 5 | R70: 5 | S70: 10 | T70: 5 | U70: 0 | V70: 5 | W70: 5
B71: Druhá voľba % | C71: 0 | D71: 0 | E71: 0 | F71: 5 | G71: 0 | H71: 0 | I71: 0 | J71: 0 | K71: 0 | L71: 10 | M71: 5 | N71: 5 | O71: 0 | P71: 0 | Q71: 15 | R71: 10 | S71: 5 | T71: 5 | U71: 0 | V71: 0 | W71: 5
B72: Tretia voľba % | C72: 0 | D72: 5 | E72: 0 | F72: 20 | G72: 5 | H72: 5 | I72: 0 | J72: 0 | K72: 0 | L72: 15 | M72: 5 | N72: 30 | O72: 0 | P72: 5 | Q72: 20 | R72: 15 | S72: 20 | T72: 10 | U72: 0 | V72: 50 | W72: 25
A73: * | B73: Voľby spolu z-skóre | C73: N | D73: =IF(D65<>"",IF($AT$65<>"",IF($AT$65>0,(D65-$AS$65)/$AT$65,""),""),"") -> -0.4966090854 | E73: =IF(E65<>"",IF($AT$65<>"",IF($AT$65>0,(E65-$AS$65)/$AT$65,""),""),"") -> -0.8786160742 | F73: 0.6494118809 | G73: -0.4966090854 | H73: -0.4966090854 | I73: -0.8786160742 | J73: -0.8786160742 | K73: -0.8786160742 | L73: 0.2674048921 | M73: -0.4966090854 | N73: 1.413425858 | O73: -0.8786160742 | P73: -0.4966090854 | Q73: 0.6494118809 | R73: 0.2674048921 | S73: 0.6494118809 | T73: -0.1146020966 | U73: -0.8786160742 | V73: 2.941453814 | W73: 1.03141887
B74: Prvá voľba z-skóre | D74: =IF(D66<>"",IF($AT$66<>"",IF($AT$66>0,(D66-$AS$66)/$AT$66,""),""),"") -> -0.4128221143 | E74: =IF(E66<>"",IF($AT$66<>"",IF($AT$66>0,(E66-$AS$66)/$AT$66,""),""),"") -> -0.4128221143 | F74: -0.4128221143 | G74: -0.4128221143 | H74: 0.07285096135 | I74: -0.4128221143 | J74: -0.4128221143 | K74: -0.4128221143 | L74: 0.07285096135 | M74: -0.4128221143 | N74: 0.07285096135 | O74: -0.4128221143 | P74: 0.07285096135 | Q74: -0.4128221143 | R74: -0.4128221143 | S74: 0.07285096135 | T74: -0.4128221143 | U74: -0.4128221143 | V74: 3.958235567 | W74: 1.044197113
B75: Druhá voľba z-skóre | D75: =IF(D67<>"",IF($AT$67<>"",IF($AT$67>0,(D67-$AS$67)/$AT$67,""),""),"") -> 0.1809934272 | E75: =IF(E67<>"",IF($AT$67<>"",IF($AT$67>0,(E67-$AS$67)/$AT$67,""),""),"") -> -0.7239737088 | F75: 1.990927699 | G75: 0.1809934272 | H75: -0.7239737088 | I75: -0.7239737088 | J75: -0.7239737088 | K75: -0.7239737088 | L75: -0.7239737088 | M75: -0.7239737088 | N75: 2.895894835 | O75: -0.7239737088 | P75: -0.7239737088 | Q75: 0.1809934272 | R75: 0.1809934272 | S75: 1.085960563 | T75: 0.1809934272 | U75: -0.7239737088 | V75: 0.1809934272 | W75: 0.1809934272
B76: Tretia voľba z-skóre | D76: =IF(D68<>"",IF($AT$68<>"",IF($AT$68>0,(D68-$AS$68)/$AT$68,""),""),"") -> -0.7427773644 | E76: =IF(E68<>"",IF($AT$68<>"",IF($AT$68>0,(E68-$AS$68)/$AT$68,""),""),"") -> -0.7427773644 | F76: 0.3999570424 | G76: -0.7427773644 | H76: -0.7427773644 | I76: -0.7427773644 | J76: -0.7427773644 | K76: -0.7427773644 | L76: 1.542691449 | M76: 0.3999570424 | N76: 0.3999570424 | O76: -0.7427773644 | P76: -0.7427773644 | Q76: 2.685425856 | R76: 1.542691449 | S76: 0.3999570424 | T76: 0.3999570424 | U76: -0.7427773644 | V76: -0.7427773644 | W76: 0.3999570424
A77: Q_7 | B77: Voľby spolu n | C77: N | D77: 0 | E77: 1 | F77: 1 | G77: 2 | H77: 2 | I77: 1 | J77: 4 | K77: 0 | L77: 3 | M77: 0 | N77: 5 | O77: 2 | P77: 4 | Q77: 0 | R77: 3 | S77: 2 | T77: 1 | U77: 0 | V77: 4 | W77: 3 | AR77: =SUM(D77:AQ77) -> 38 | AS77: =IF(AR77>0,AVERAGE(D77:AQ77),"") -> 1.9 | AT77: =IF(AR77>0,STDEV(D77:AQ77),"") -> 1.586124041 | AU77: =MAX(D77:AQ77) -> 5
B78: Prvá voľba n | C78: 0 | D78: 0 | E78: 0 | F78: 0 | G78: 1 | H78: 1 | I78: 0 | J78: 3 | K78: 0 | L78: 2 | M78: 0 | N78: 1 | O78: 0 | P78: 2 | Q78: 0 | R78: 0 | S78: 1 | T78: 0 | U78: 0 | V78: 3 | W78: 2 | AR78: =SUM(D78:AQ78) -> 16 | AS78: =IF(AR77>0,AVERAGE(D78:AQ78),"") -> 0.8 | AT78: =IF(AR77>0,STDEV(D78:AQ78),"") -> 1.056309365
B79: Druhá voľba n | C79: 0 | D79: 0 | E79: 0 | F79: 0 | G79: 0 | H79: 0 | I79: 0 | J79: 1 | K79: 0 | L79: 1 | M79: 0 | N79: 3 | O79: 2 | P79: 1 | Q79: 0 | R79: 3 | S79: 1 | T79: 0 | U79: 0 | V79: 0 | W79: 0 | AR79: =SUM(D79:AQ79) -> 12 | AS79: =IF(AR77>0,AVERAGE(D79:AQ79),"") -> 0.6 | AT79: =IF(AR77>0,STDEV(D79:AQ79),"") -> 0.9947229183
B80: Tretia voľba n | C80: 0 | D80: 0 | E80: 1 | F80: 1 | G80: 1 | H80: 1 | I80: 1 | J80: 0 | K80: 0 | L80: 0 | M80: 0 | N80: 1 | O80: 0 | P80: 1 | Q80: 0 | R80: 0 | S80: 0 | T80: 1 | U80: 0 | V80: 1 | W80: 1 | AR80: =SUM(D80:AQ80) -> 10 | AS80: =IF(AR77>0,AVERAGE(D80:AQ80),"") -> 0.5 | AT80: =IF(AR77>0,STDEV(D80:AQ80),"") -> 0.512989176 | AU80: =MAX(D80:AQ80) -> 1
B81: Voľby spolu % | C81: 0 | D81: 0 | E81: 0 | F81: 0 | G81: 5 | H81: 5 | I81: 0 | J81: 15 | K81: 0 | L81: 10 | M81: 0 | N81: 5 | O81: 0 | P81: 10 | Q81: 0 | R81: 0 | S81: 5 | T81: 0 | U81: 0 | V81: 15 | W81: 10
B82: Prvá voľba % | C82: 0 | D82: 0 | E82: 0 | F82: 0 | G82: 0 | H82: 0 | I82: 0 | J82: 5 | K82: 0 | L82: 5 | M82: 0 | N82: 15 | O82: 10 | P82: 5 | Q82: 0 | R82: 15 | S82: 5 | T82: 0 | U82: 0 | V82: 0 | W82: 0
B83: Druhá voľba % | C83: 0 | D83: 0 | E83: 5 | F83: 5 | G83: 5 | H83: 5 | I83: 5 | J83: 0 | K83: 0 | L83: 0 | M83: 0 | N83: 5 | O83: 0 | P83: 5 | Q83: 0 | R83: 0 | S83: 0 | T83: 5 | U83: 0 | V83: 5 | W83: 5
B84: Tretia voľba % | C84: 0 | D84: 0 | E84: 5 | F84: 5 | G84: 10 | H84: 10 | I84: 5 | J84: 20 | K84: 0 | L84: 15 | M84: 0 | N84: 25 | O84: 10 | P84: 20 | Q84: 0 | R84: 15 | S84: 10 | T84: 5 | U84: 0 | V84: 20 | W84: 15
A85: * | B85: Voľby spolu z-skóre | C85: N | D85: =IF(D77<>"",IF($AT$77<>"",IF($AT$77>0,(D77-$AS$77)/$AT$77,""),""),"") -> -1.197888659 | E85: =IF(E77<>"",IF($AT$77<>"",IF($AT$77>0,(E77-$AS$77)/$AT$77,""),""),"") -> -0.5674209436 | F85: -0.5674209436 | G85: 0.06304677151 | H85: 0.06304677151 | I85: -0.5674209436 | J85: 1.323982202 | K85: -1.197888659 | L85: 0.6935144866 | M85: -1.197888659 | N85: 1.954449917 | O85: 0.06304677151 | P85: 1.323982202 | Q85: -1.197888659 | R85: 0.6935144866 | S85: 0.06304677151 | T85: -0.5674209436 | U85: -1.197888659 | V85: 1.323982202 | W85: 0.6935144866
B86: Prvá voľba z-skóre | D86: =IF(D78<>"",IF($AT$78<>"",IF($AT$78>0,(D78-$AS$78)/$AT$78,""),""),"") -> -0.757353884 | E86: =IF(E78<>"",IF($AT$78<>"",IF($AT$78>0,(E78-$AS$78)/$AT$78,""),""),"") -> -0.757353884 | F86: -0.757353884 | G86: 0.189338471 | H86: 0.189338471 | I86: -0.757353884 | J86: 2.082723181 | K86: -0.757353884 | L86: 1.136030826 | M86: -0.757353884 | N86: 0.189338471 | O86: -0.757353884 | P86: 1.136030826 | Q86: -0.757353884 | R86: -0.757353884 | S86: 0.189338471 | T86: -0.757353884 | U86: -0.757353884 | V86: 2.082723181 | W86: 1.136030826
B87: Druhá voľba z-skóre | D87: =IF(D79<>"",IF($AT$79<>"",IF($AT$79>0,(D79-$AS$79)/$AT$79,""),""),"") -> -0.6031830462 | E87: =IF(E79<>"",IF($AT$79<>"",IF($AT$79>0,(E79-$AS$79)/$AT$79,""),""),"") -> -0.6031830462 | F87: -0.6031830462 | G87: -0.6031830462 | H87: -0.6031830462 | I87: -0.6031830462 | J87: 0.4021220308 | K87: -0.6031830462 | L87: 0.4021220308 | M87: -0.6031830462 | N87: 2.412732185 | O87: 1.407427108 | P87: 0.4021220308 | Q87: -0.6031830462 | R87: 2.412732185 | S87: 0.4021220308 | T87: -0.6031830462 | U87: -0.6031830462 | V87: -0.6031830462 | W87: -0.6031830462
B88: Tretia voľba z-skóre | D88: =IF(D80<>"",IF($AT$80<>"",IF($AT$80>0,(D80-$AS$80)/$AT$80,""),""),"") -> -0.9746794345 | E88: =IF(E80<>"",IF($AT$80<>"",IF($AT$80>0,(E80-$AS$80)/$AT$80,""),""),"") -> 0.9746794345 | F88: 0.9746794345 | G88: 0.9746794345 | H88: 0.9746794345 | I88: 0.9746794345 | J88: -0.9746794345 | K88: -0.9746794345 | L88: -0.9746794345 | M88: -0.9746794345 | N88: 0.9746794345 | O88: -0.9746794345 | P88: 0.9746794345 | Q88: -0.9746794345 | R88: -0.9746794345 | S88: -0.9746794345 | T88: 0.9746794345 | U88: -0.9746794345 | V88: 0.9746794345 | W88: 0.9746794345
A89: Q_8 | B89: Voľby spolu n | C89: N | D89: 2 | E89: 0 | F89: 3 | G89: 1 | H89: 2 | I89: 0 | J89: 1 | K89: 1 | L89: 1 | M89: 0 | N89: 5 | O89: 0 | P89: 2 | Q89: 0 | R89: 1 | S89: 3 | T89: 0 | U89: 0 | V89: 8 | W89: 6 | AR89: =SUM(D89:AQ89) -> 36 | AS89: =IF(AR89>0,AVERAGE(D89:AQ89),"") -> 1.8 | AT89: =IF(AR89>0,STDEV(D89:AQ89),"") -> 2.238420496 | AU89: =MAX(D89:AQ89) -> 8
B90: Prvá voľba n | C90: 0 | D90: 1 | E90: 0 | F90: 1 | G90: 0 | H90: 1 | I90: 0 | J90: 0 | K90: 1 | L90: 0 | M90: 0 | N90: 2 | O90: 0 | P90: 0 | Q90: 0 | R90: 0 | S90: 0 | T90: 0 | U90: 0 | V90: 6 | W90: 3 | AR90: =SUM(D90:AQ90) -> 15 | AS90: =IF(AR89>0,AVERAGE(D90:AQ90),"") -> 0.75 | AT90: =IF(AR89>0,STDEV(D90:AQ90),"") -> 1.482352327
B91: Druhá voľba n | C91: 0 | D91: 1 | E91: 0 | F91: 0 | G91: 0 | H91: 1 | I91: 0 | J91: 0 | K91: 0 | L91: 0 | M91: 0 | N91: 3 | O91: 0 | P91: 2 | Q91: 0 | R91: 1 | S91: 2 | T91: 0 | U91: 0 | V91: 1 | W91: 0 | AR91: =SUM(D91:AQ91) -> 11 | AS91: =IF(AR89>0,AVERAGE(D91:AQ91),"") -> 0.55 | AT91: =IF(AR89>0,STDEV(D91:AQ91),"") -> 0.8870412083
B92: Tretia voľba n | C92: 0 | D92: 0 | E92: 0 | F92: 2 | G92: 1 | H92: 0 | I92: 0 | J92: 1 | K92: 0 | L92: 1 | M92: 0 | N92: 0 | O92: 0 | P92: 0 | Q92: 0 | R92: 0 | S92: 1 | T92: 0 | U92: 0 | V92: 1 | W92: 3 | AR92: =SUM(D92:AQ92) -> 10 | AS92: =IF(AR89>0,AVERAGE(D92:AQ92),"") -> 0.5 | AT92: =IF(AR89>0,STDEV(D92:AQ92),"") -> 0.8271701919 | AU92: =MAX(D92:AQ92) -> 3
B93: Voľby spolu % | C93: 0 | D93: 5 | E93: 0 | F93: 5 | G93: 0 | H93: 5 | I93: 0 | J93: 0 | K93: 5 | L93: 0 | M93: 0 | N93: 10 | O93: 0 | P93: 0 | Q93: 0 | R93: 0 | S93: 0 | T93: 0 | U93: 0 | V93: 30 | W93: 15
B94: Prvá voľba % | C94: 0 | D94: 5 | E94: 0 | F94: 0 | G94: 0 | H94: 5 | I94: 0 | J94: 0 | K94: 0 | L94: 0 | M94: 0 | N94: 15 | O94: 0 | P94: 10 | Q94: 0 | R94: 5 | S94: 10 | T94: 0 | U94: 0 | V94: 5 | W94: 0
B95: Druhá voľba % | C95: 0 | D95: 0 | E95: 0 | F95: 10 | G95: 5 | H95: 0 | I95: 0 | J95: 5 | K95: 0 | L95: 5 | M95: 0 | N95: 0 | O95: 0 | P95: 0 | Q95: 0 | R95: 0 | S95: 5 | T95: 0 | U95: 0 | V95: 5 | W95: 15
B96: Tretia voľba % | C96: 0 | D96: 10 | E96: 0 | F96: 15 | G96: 5 | H96: 10 | I96: 0 | J96: 5 | K96: 5 | L96: 5 | M96: 0 | N96: 25 | O96: 0 | P96: 10 | Q96: 0 | R96: 5 | S96: 15 | T96: 0 | U96: 0 | V96: 40 | W96: 30
A97: * | B97: Voľby spolu z-skóre | C97: N | D97: =IF(D89<>"",IF($AT$89<>"",IF($AT$89>0,(D89-$AS$89)/$AT$89,""),""),"") -> 0.08934871727 | E97: =IF(E89<>"",IF($AT$89<>"",IF($AT$89>0,(E89-$AS$89)/$AT$89,""),""),"") -> -0.8041384554 | F97: 0.5360923036 | G97: -0.3573948691 | H97: 0.08934871727 | I97: -0.8041384554 | J97: -0.3573948691 | K97: -0.3573948691 | L97: -0.3573948691 | M97: -0.8041384554 | N97: 1.429579476 | O97: -0.8041384554 | P97: 0.08934871727 | Q97: -0.8041384554 | R97: -0.3573948691 | S97: 0.5360923036 | T97: -0.8041384554 | U97: -0.8041384554 | V97: 2.769810235 | W97: 1.876323063
B98: Prvá voľba z-skóre | D98: =IF(D90<>"",IF($AT$90<>"",IF($AT$90>0,(D90-$AS$90)/$AT$90,""),""),"") -> 0.1686508635 | E98: =IF(E90<>"",IF($AT$90<>"",IF($AT$90>0,(E90-$AS$90)/$AT$90,""),""),"") -> -0.5059525906 | F98: 0.1686508635 | G98: -0.5059525906 | H98: 0.1686508635 | I98: -0.5059525906 | J98: -0.5059525906 | K98: 0.1686508635 | L98: -0.5059525906 | M98: -0.5059525906 | N98: 0.8432543177 | O98: -0.5059525906 | P98: -0.5059525906 | Q98: -0.5059525906 | R98: -0.5059525906 | S98: -0.5059525906 | T98: -0.5059525906 | U98: -0.5059525906 | V98: 3.541668134 | W98: 1.517857772
B99: Druhá voľba z-skóre | D99: =IF(D91<>"",IF($AT$91<>"",IF($AT$91>0,(D91-$AS$91)/$AT$91,""),""),"") -> 0.5073045038 | E99: =IF(E91<>"",IF($AT$91<>"",IF($AT$91>0,(E91-$AS$91)/$AT$91,""),""),"") -> -0.6200388379 | F99: -0.6200388379 | G99: -0.6200388379 | H99: 0.5073045038 | I99: -0.6200388379 | J99: -0.6200388379 | K99: -0.6200388379 | L99: -0.6200388379 | M99: -0.6200388379 | N99: 2.761991187 | O99: -0.6200388379 | P99: 1.634647845 | Q99: -0.6200388379 | R99: 0.5073045038 | S99: 1.634647845 | T99: -0.6200388379 | U99: -0.6200388379 | V99: 0.5073045038 | W99: -0.6200388379
B100: Tretia voľba z-skóre | D100: =IF(D92<>"",IF($AT$92<>"",IF($AT$92>0,(D92-$AS$92)/$AT$92,""),""),"") -> -0.6044705248 | E100: =IF(E92<>"",IF($AT$92<>"",IF($AT$92>0,(E92-$AS$92)/$AT$92,""),""),"") -> -0.6044705248 | F100: 1.813411574 | G100: 0.6044705248 | H100: -0.6044705248 | I100: -0.6044705248 | J100: 0.6044705248 | K100: -0.6044705248 | L100: 0.6044705248 | M100: -0.6044705248 | N100: -0.6044705248 | O100: -0.6044705248 | P100: -0.6044705248 | Q100: -0.6044705248 | R100: -0.6044705248 | S100: 0.6044705248 | T100: -0.6044705248 | U100: -0.6044705248 | V100: 0.6044705248 | W100: 3.022352624
A101: Q_9 | B101: Voľby spolu n | C101: N | D101: 2 | E101: 1 | F101: 3 | G101: 1 | H101: 2 | I101: 0 | J101: 1 | K101: 0 | L101: 2 | M101: 0 | N101: 8 | O101: 0 | P101: 4 | Q101: 1 | R101: 1 | S101: 1 | T101: 0 | U101: 0 | V101: 8 | W101: 4 | AR101: =SUM(D101:AQ101) -> 39 | AS101: =IF(AR101>0,AVERAGE(D101:AQ101),"") -> 1.95 | AT101: =IF(AR101>0,STDEV(D101:AQ101),"") -> 2.416500297 | AU101: =MAX(D101:AQ101) -> 8
B102: Prvá voľba n | C102: 0 | D102: 1 | E102: 1 | F102: 0 | G102: 1 | H102: 2 | I102: 0 | J102: 1 | K102: 0 | L102: 0 | M102: 0 | N102: 2 | O102: 0 | P102: 2 | Q102: 1 | R102: 0 | S102: 0 | T102: 0 | U102: 0 | V102: 5 | W102: 2 | AR102: =SUM(D102:AQ102) -> 18 | AS102: =IF(AR101>0,AVERAGE(D102:AQ102),"") -> 0.9 | AT102: =IF(AR101>0,STDEV(D102:AQ102),"") -> 1.252366182
B103: Druhá voľba n | C103: 0 | D103: 0 | E103: 0 | F103: 2 | G103: 0 | H103: 0 | I103: 0 | J103: 0 | K103: 0 | L103: 0 | M103: 0 | N103: 4 | O103: 0 | P103: 2 | Q103: 0 | R103: 0 | S103: 0 | T103: 0 | U103: 0 | V103: 3 | W103: 1 | AR103: =SUM(D103:AQ103) -> 12 | AS103: =IF(AR101>0,AVERAGE(D103:AQ103),"") -> 0.6 | AT103: =IF(AR101>0,STDEV(D103:AQ103),"") -> 1.187655807
B104: Tretia voľba n | C104: 0 | D104: 1 | E104: 0 | F104: 1 | G104: 0 | H104: 0 | I104: 0 | J104: 0 | K104: 0 | L104: 2 | M104: 0 | N104: 2 | O104: 0 | P104: 0 | Q104: 0 | R104: 1 | S104: 1 | T104: 0 | U104: 0 | V104: 0 | W104: 1 | AR104: =SUM(D104:AQ104) -> 9 | AS104: =IF(AR101>0,AVERAGE(D104:AQ104),"") -> 0.45 | AT104: =IF(AR101>0,STDEV(D104:AQ104),"") -> 0.6863327412 | AU104: =MAX(D104:AQ104) -> 2
B105: Voľby spolu % | C105: 0 | D105: 5 | E105: 5 | F105: 0 | G105: 5 | H105: 10 | I105: 0 | J105: 5 | K105: 0 | L105: 0 | M105: 0 | N105: 10 | O105: 0 | P105: 10 | Q105: 5 | R105: 0 | S105: 0 | T105: 0 | U105: 0 | V105: 25 | W105: 10
B106: Prvá voľba % | C106: 0 | D106: 0 | E106: 0 | F106: 10 | G106: 0 | H106: 0 | I106: 0 | J106: 0 | K106: 0 | L106: 0 | M106: 0 | N106: 20 | O106: 0 | P106: 10 | Q106: 0 | R106: 0 | S106: 0 | T106: 0 | U106: 0 | V106: 15 | W106: 5
B107: Druhá voľba % | C107: 0 | D107: 5 | E107: 0 | F107: 5 | G107: 0 | H107: 0 | I107: 0 | J107: 0 | K107: 0 | L107: 10 | M107: 0 | N107: 10 | O107: 0 | P107: 0 | Q107: 0 | R107: 5 | S107: 5 | T107: 0 | U107: 0 | V107: 0 | W107: 5
B108: Tretia voľba % | C108: 0 | D108: 10 | E108: 5 | F108: 15 | G108: 5 | H108: 10 | I108: 0 | J108: 5 | K108: 0 | L108: 10 | M108: 0 | N108: 40 | O108: 0 | P108: 20 | Q108: 5 | R108: 5 | S108: 5 | T108: 0 | U108: 0 | V108: 40 | W108: 20
A109: * | B109: Voľby spolu z-skóre | C109: N | D109: =IF(D101<>"",IF($AT$101<>"",IF($AT$101>0,(D101-$AS$101)/$AT$101,""),""),"") -> 0.0206910796 | E109: =IF(E101<>"",IF($AT$101<>"",IF($AT$101>0,(E101-$AS$101)/$AT$101,""),""),"") -> -0.3931305125 | F109: 0.4345126717 | G109: -0.3931305125 | H109: 0.0206910796 | I109: -0.8069521045 | J109: -0.3931305125 | K109: -0.8069521045 | L109: 0.0206910796 | M109: -0.8069521045 | N109: 2.503620632 | O109: -0.8069521045 | P109: 0.8483342637 | Q109: -0.3931305125 | R109: -0.3931305125 | S109: -0.3931305125 | T109: -0.8069521045 | U109: -0.8069521045 | V109: 2.503620632 | W109: 0.8483342637
B110: Prvá voľba z-skóre | D110: =IF(D102<>"",IF($AT$102<>"",IF($AT$102>0,(D102-$AS$102)/$AT$102,""),""),"") -> 0.0798488505 | E110: =IF(E102<>"",IF($AT$102<>"",IF($AT$102>0,(E102-$AS$102)/$AT$102,""),""),"") -> 0.0798488505 | F110: -0.7186396545 | G110: 0.0798488505 | H110: 0.8783373555 | I110: -0.7186396545 | J110: 0.0798488505 | K110: -0.7186396545 | L110: -0.7186396545 | M110: -0.7186396545 | N110: 0.8783373555 | O110: -0.7186396545 | P110: 0.8783373555 | Q110: 0.0798488505 | R110: -0.7186396545 | S110: -0.7186396545 | T110: -0.7186396545 | U110: -0.7186396545 | V110: 3.273802871 | W110: 0.8783373555
B111: Druhá voľba z-skóre | D111: =IF(D103<>"",IF($AT$103<>"",IF($AT$103>0,(D103-$AS$103)/$AT$103,""),""),"") -> -0.5051968731 | E111: =IF(E103<>"",IF($AT$103<>"",IF($AT$103>0,(E103-$AS$103)/$AT$103,""),""),"") -> -0.5051968731 | F111: 1.178792704 | G111: -0.5051968731 | H111: -0.5051968731 | I111: -0.5051968731 | J111: -0.5051968731 | K111: -0.5051968731 | L111: -0.5051968731 | M111: -0.5051968731 | N111: 2.862782281 | O111: -0.5051968731 | P111: 1.178792704 | Q111: -0.5051968731 | R111: -0.5051968731 | S111: -0.5051968731 | T111: -0.5051968731 | U111: -0.5051968731 | V111: 2.020787492 | W111: 0.3367979154
B112: Tretia voľba z-skóre | D112: =IF(D104<>"",IF($AT$104<>"",IF($AT$104>0,(D104-$AS$104)/$AT$104,""),""),"") -> 0.8013605749 | E112: =IF(E104<>"",IF($AT$104<>"",IF($AT$104>0,(E104-$AS$104)/$AT$104,""),""),"") -> -0.6556586522 | F112: 0.8013605749 | G112: -0.6556586522 | H112: -0.6556586522 | I112: -0.6556586522 | J112: -0.6556586522 | K112: -0.6556586522 | L112: 2.258379802 | M112: -0.6556586522 | N112: 2.258379802 | O112: -0.6556586522 | P112: -0.6556586522 | Q112: -0.6556586522 | R112: 0.8013605749 | S112: 0.8013605749 | T112: -0.6556586522 | U112: -0.6556586522 | V112: -0.6556586522 | W112: 0.8013605749
A113: Q_10 | B113: Voľby spolu n | C113: N | D113: 1 | E113: 0 | F113: 1 | G113: 3 | H113: 5 | I113: 0 | J113: 3 | K113: 0 | L113: 2 | M113: 1 | N113: 4 | O113: 1 | P113: 3 | Q113: 0 | R113: 0 | S113: 0 | T113: 0 | U113: 0 | V113: 4 | W113: 4 | AR113: =SUM(D113:AQ113) -> 32 | AS113: =IF(AR113>0,AVERAGE(D113:AQ113),"") -> 1.6 | AT113: =IF(AR113>0,STDEV(D113:AQ113),"") -> 1.729009452 | AU113: =MAX(D113:AQ113) -> 5
B114: Prvá voľba n | C114: 0 | D114: 0 | E114: 0 | F114: 0 | G114: 2 | H114: 2 | I114: 0 | J114: 1 | K114: 0 | L114: 0 | M114: 1 | N114: 2 | O114: 0 | P114: 1 | Q114: 0 | R114: 0 | S114: 0 | T114: 0 | U114: 0 | V114: 3 | W114: 3 | AR114: =SUM(D114:AQ114) -> 15 | AS114: =IF(AR113>0,AVERAGE(D114:AQ114),"") -> 0.75 | AT114: =IF(AR113>0,STDEV(D114:AQ114),"") -> 1.069923755
B115: Druhá voľba n | C115: 0 | D115: 1 | E115: 0 | F115: 1 | G115: 0 | H115: 1 | I115: 0 | J115: 2 | K115: 0 | L115: 2 | M115: 0 | N115: 1 | O115: 0 | P115: 0 | Q115: 0 | R115: 0 | S115: 0 | T115: 0 | U115: 0 | V115: 1 | W115: 0 | AR115: =SUM(D115:AQ115) -> 9 | AS115: =IF(AR113>0,AVERAGE(D115:AQ115),"") -> 0.45 | AT115: =IF(AR113>0,STDEV(D115:AQ115),"") -> 0.6863327412
B116: Tretia voľba n | C116: 0 | D116: 0 | E116: 0 | F116: 0 | G116: 1 | H116: 2 | I116: 0 | J116: 0 | K116: 0 | L116: 0 | M116: 0 | N116: 1 | O116: 1 | P116: 2 | Q116: 0 | R116: 0 | S116: 0 | T116: 0 | U116: 0 | V116: 0 | W116: 1 | AR116: =SUM(D116:AQ116) -> 8 | AS116: =IF(AR113>0,AVERAGE(D116:AQ116),"") -> 0.4 | AT116: =IF(AR113>0,STDEV(D116:AQ116),"") -> 0.6805570474 | AU116: =MAX(D116:AQ116) -> 2
B117: Voľby spolu % | C117: 0 | D117: 0 | E117: 0 | F117: 0 | G117: 10 | H117: 10 | I117: 0 | J117: 5 | K117: 0 | L117: 0 | M117: 5 | N117: 10 | O117: 0 | P117: 5 | Q117: 0 | R117: 0 | S117: 0 | T117: 0 | U117: 0 | V117: 15 | W117: 15
B118: Prvá voľba % | C118: 0 | D118: 5 | E118: 0 | F118: 5 | G118: 0 | H118: 5 | I118: 0 | J118: 10 | K118: 0 | L118: 10 | M118: 0 | N118: 5 | O118: 0 | P118: 0 | Q118: 0 | R118: 0 | S118: 0 | T118: 0 | U118: 0 | V118: 5 | W118: 0
B119: Druhá voľba % | C119: 0 | D119: 0 | E119: 0 | F119: 0 | G119: 5 | H119: 10 | I119: 0 | J119: 0 | K119: 0 | L119: 0 | M119: 0 | N119: 5 | O119: 5 | P119: 10 | Q119: 0 | R119: 0 | S119: 0 | T119: 0 | U119: 0 | V119: 0 | W119: 5
B120: Tretia voľba % | C120: 0 | D120: 5 | E120: 0 | F120: 5 | G120: 15 | H120: 25 | I120: 0 | J120: 15 | K120: 0 | L120: 10 | M120: 5 | N120: 20 | O120: 5 | P120: 15 | Q120: 0 | R120: 0 | S120: 0 | T120: 0 | U120: 0 | V120: 20 | W120: 20
A121: * | B121: Voľby spolu z-skóre | C121: N | D121: =IF(D113<>"",IF($AT$113<>"",IF($AT$113>0,(D113-$AS$113)/$AT$113,""),""),"") -> -0.3470195026 | E121: =IF(E113<>"",IF($AT$113<>"",IF($AT$113>0,(E113-$AS$113)/$AT$113,""),""),"") -> -0.9253853404 | F121: -0.3470195026 | G121: 0.8097121728 | H121: 1.966443848 | I121: -0.9253853404 | J121: 0.8097121728 | K121: -0.9253853404 | L121: 0.2313463351 | M121: -0.3470195026 | N121: 1.388078011 | O121: -0.3470195026 | P121: 0.8097121728 | Q121: -0.9253853404 | R121: -0.9253853404 | S121: -0.9253853404 | T121: -0.9253853404 | U121: -0.9253853404 | V121: 1.388078011 | W121: 1.388078011
B122: Prvá voľba z-skóre | D122: =IF(D114<>"",IF($AT$114<>"",IF($AT$114>0,(D114-$AS$114)/$AT$114,""),""),"") -> -0.7009845293 | E122: =IF(E114<>"",IF($AT$114<>"",IF($AT$114>0,(E114-$AS$114)/$AT$114,""),""),"") -> -0.7009845293 | F122: -0.7009845293 | G122: 1.168307549 | H122: 1.168307549 | I122: -0.7009845293 | J122: 0.2336615098 | K122: -0.7009845293 | L122: -0.7009845293 | M122: 0.2336615098 | N122: 1.168307549 | O122: -0.7009845293 | P122: 0.2336615098 | Q122: -0.7009845293 | R122: -0.7009845293 | S122: -0.7009845293 | T122: -0.7009845293 | U122: -0.7009845293 | V122: 2.102953588 | W122: 2.102953588
B123: Druhá voľba z-skóre | D123: =IF(D115<>"",IF($AT$115<>"",IF($AT$115>0,(D115-$AS$115)/$AT$115,""),""),"") -> 0.8013605749 | E123: =IF(E115<>"",IF($AT$115<>"",IF($AT$115>0,(E115-$AS$115)/$AT$115,""),""),"") -> -0.6556586522 | F123: 0.8013605749 | G123: -0.6556586522 | H123: 0.8013605749 | I123: -0.6556586522 | J123: 2.258379802 | K123: -0.6556586522 | L123: 2.258379802 | M123: -0.6556586522 | N123: 0.8013605749 | O123: -0.6556586522 | P123: -0.6556586522 | Q123: -0.6556586522 | R123: -0.6556586522 | S123: -0.6556586522 | T123: -0.6556586522 | U123: -0.6556586522 | V123: 0.8013605749 | W123: -0.6556586522
B124: Tretia voľba z-skóre | D124: =IF(D116<>"",IF($AT$116<>"",IF($AT$116>0,(D116-$AS$116)/$AT$116,""),""),"") -> -0.5877538136 | E124: =IF(E116<>"",IF($AT$116<>"",IF($AT$116>0,(E116-$AS$116)/$AT$116,""),""),"") -> -0.5877538136 | F124: -0.5877538136 | G124: 0.8816307205 | H124: 2.351015255 | I124: -0.5877538136 | J124: -0.5877538136 | K124: -0.5877538136 | L124: -0.5877538136 | M124: -0.5877538136 | N124: 0.8816307205 | O124: 0.8816307205 | P124: 2.351015255 | Q124: -0.5877538136 | R124: -0.5877538136 | S124: -0.5877538136 | T124: -0.5877538136 | U124: -0.5877538136 | V124: -0.5877538136 | W124: 0.8816307205
A125: Q_11 | B125: Voľby spolu n | C125: Q | D125: 0 | E125: 0 | F125: 0 | G125: 0 | H125: 0 | I125: 0 | J125: 0 | K125: 0 | L125: 0 | M125: 0 | N125: 0 | O125: 0 | P125: 0 | Q125: 0 | R125: 0 | S125: 0 | T125: 0 | U125: 0 | V125: 0 | W125: 0 | AR125: =SUM(D125:AQ125) -> 0 | AS125: =IF(AR125>0,AVERAGE(D125:AQ125),"") ->  | AT125: =IF(AR125>0,STDEV(D125:AQ125),"") ->  | AU125: =MAX(D125:AQ125) -> 0
B126: Prvá voľba n | C126: 0 | D126: 0 | E126: 0 | F126: 0 | G126: 0 | H126: 0 | I126: 0 | J126: 0 | K126: 0 | L126: 0 | M126: 0 | N126: 0 | O126: 0 | P126: 0 | Q126: 0 | R126: 0 | S126: 0 | T126: 0 | U126: 0 | V126: 0 | W126: 0 | AR126: =SUM(D126:AQ126) -> 0 | AS126: =IF(AR125>0,AVERAGE(D126:AQ126),"") ->  | AT126: =IF(AR125>0,STDEV(D126:AQ126),"") -> 
B127: Druhá voľba n | C127: 0 | D127: 0 | E127: 0 | F127: 0 | G127: 0 | H127: 0 | I127: 0 | J127: 0 | K127: 0 | L127: 0 | M127: 0 | N127: 0 | O127: 0 | P127: 0 | Q127: 0 | R127: 0 | S127: 0 | T127: 0 | U127: 0 | V127: 0 | W127: 0 | AR127: =SUM(D127:AQ127) -> 0 | AS127: =IF(AR125>0,AVERAGE(D127:AQ127),"") ->  | AT127: =IF(AR125>0,STDEV(D127:AQ127),"") -> 
B128: Tretia voľba n | C128: 0 | D128: 0 | E128: 0 | F128: 0 | G128: 0 | H128: 0 | I128: 0 | J128: 0 | K128: 0 | L128: 0 | M128: 0 | N128: 0 | O128: 0 | P128: 0 | Q128: 0 | R128: 0 | S128: 0 | T128: 0 | U128: 0 | V128: 0 | W128: 0 | AR128: =SUM(D128:AQ128) -> 0 | AS128: =IF(AR125>0,AVERAGE(D128:AQ128),"") ->  | AT128: =IF(AR125>0,STDEV(D128:AQ128),"") ->  | AU128: =MAX(D128:AQ128) -> 0
B129: Voľby spolu % | C129: 0 | D129: 0 | E129: 0 | F129: 0 | G129: 0 | H129: 0 | I129: 0 | J129: 0 | K129: 0 | L129: 0 | M129: 0 | N129: 0 | O129: 0 | P129: 0 | Q129: 0 | R129: 0 | S129: 0 | T129: 0 | U129: 0 | V129: 0 | W129: 0
B130: Prvá voľba % | C130: 0 | D130: 0 | E130: 0 | F130: 0 | G130: 0 | H130: 0 | I130: 0 | J130: 0 | K130: 0 | L130: 0 | M130: 0 | N130: 0 | O130: 0 | P130: 0 | Q130: 0 | R130: 0 | S130: 0 | T130: 0 | U130: 0 | V130: 0 | W130: 0
B131: Druhá voľba % | C131: 0 | D131: 0 | E131: 0 | F131: 0 | G131: 0 | H131: 0 | I131: 0 | J131: 0 | K131: 0 | L131: 0 | M131: 0 | N131: 0 | O131: 0 | P131: 0 | Q131: 0 | R131: 0 | S131: 0 | T131: 0 | U131: 0 | V131: 0 | W131: 0
B132: Tretia voľba % | C132: 0 | D132: 0 | E132: 0 | F132: 0 | G132: 0 | H132: 0 | I132: 0 | J132: 0 | K132: 0 | L132: 0 | M132: 0 | N132: 0 | O132: 0 | P132: 0 | Q132: 0 | R132: 0 | S132: 0 | T132: 0 | U132: 0 | V132: 0 | W132: 0
A133: * | B133: Voľby spolu z-skóre | C133: Q | D133: =IF(D125<>"",IF($AT$125<>"",IF($AT$125>0,(D125-$AS$125)/$AT$125,""),""),"") ->  | E133: =IF(E125<>"",IF($AT$125<>"",IF($AT$125>0,(E125-$AS$125)/$AT$125,""),""),"") -> 
B134: Prvá voľba z-skóre | D134: =IF(D126<>"",IF($AT$126<>"",IF($AT$126>0,(D126-$AS$126)/$AT$126,""),""),"") ->  | E134: =IF(E126<>"",IF($AT$126<>"",IF($AT$126>0,(E126-$AS$126)/$AT$126,""),""),"") -> 
B135: Druhá voľba z-skóre | D135: =IF(D127<>"",IF($AT$127<>"",IF($AT$127>0,(D127-$AS$127)/$AT$127,""),""),"") ->  | E135: =IF(E127<>"",IF($AT$127<>"",IF($AT$127>0,(E127-$AS$127)/$AT$127,""),""),"") -> 
B136: Tretia voľba z-skóre | D136: =IF(D128<>"",IF($AT$128<>"",IF($AT$128>0,(D128-$AS$128)/$AT$128,""),""),"") ->  | E136: =IF(E128<>"",IF($AT$128<>"",IF($AT$128>0,(E128-$AS$128)/$AT$128,""),""),"") -> 
A137: Q_12 | B137: Voľby spolu n | C137: Q | D137: 0 | E137: 0 | F137: 0 | G137: 0 | H137: 0 | I137: 0 | J137: 0 | K137: 0 | L137: 0 | M137: 0 | N137: 0 | O137: 0 | P137: 0 | Q137: 0 | R137: 0 | S137: 0 | T137: 0 | U137: 0 | V137: 0 | W137: 0 | AR137: =SUM(D137:AQ137) -> 0 | AS137: =IF(AR137>0,AVERAGE(D137:AQ137),"") ->  | AT137: =IF(AR137>0,STDEV(D137:AQ137),"") ->  | AU137: =MAX(D137:AQ137) -> 0
B138: Prvá voľba n | C138: 0 | D138: 0 | E138: 0 | F138: 0 | G138: 0 | H138: 0 | I138: 0 | J138: 0 | K138: 0 | L138: 0 | M138: 0 | N138: 0 | O138: 0 | P138: 0 | Q138: 0 | R138: 0 | S138: 0 | T138: 0 | U138: 0 | V138: 0 | W138: 0 | AR138: =SUM(D138:AQ138) -> 0 | AS138: =IF(AR137>0,AVERAGE(D138:AQ138),"") ->  | AT138: =IF(AR137>0,STDEV(D138:AQ138),"") -> 
B139: Druhá voľba n | C139: 0 | D139: 0 | E139: 0 | F139: 0 | G139: 0 | H139: 0 | I139: 0 | J139: 0 | K139: 0 | L139: 0 | M139: 0 | N139: 0 | O139: 0 | P139: 0 | Q139: 0 | R139: 0 | S139: 0 | T139: 0 | U139: 0 | V139: 0 | W139: 0 | AR139: =SUM(D139:AQ139) -> 0 | AS139: =IF(AR137>0,AVERAGE(D139:AQ139),"") ->  | AT139: =IF(AR137>0,STDEV(D139:AQ139),"") -> 
B140: Tretia voľba n | C140: 0 | D140: 0 | E140: 0 | F140: 0 | G140: 0 | H140: 0 | I140: 0 | J140: 0 | K140: 0 | L140: 0 | M140: 0 | N140: 0 | O140: 0 | P140: 0 | Q140: 0 | R140: 0 | S140: 0 | T140: 0 | U140: 0 | V140: 0 | W140: 0 | AR140: =SUM(D140:AQ140) -> 0 | AS140: =IF(AR137>0,AVERAGE(D140:AQ140),"") ->  | AT140: =IF(AR137>0,STDEV(D140:AQ140),"") ->  | AU140: =MAX(D140:AQ140) -> 0
B141: Voľby spolu % | C141: 0 | D141: 0 | E141: 0 | F141: 0 | G141: 0 | H141: 0 | I141: 0 | J141: 0 | K141: 0 | L141: 0 | M141: 0 | N141: 0 | O141: 0 | P141: 0 | Q141: 0 | R141: 0 | S141: 0 | T141: 0 | U141: 0 | V141: 0 | W141: 0
B142: Prvá voľba % | C142: 0 | D142: 0 | E142: 0 | F142: 0 | G142: 0 | H142: 0 | I142: 0 | J142: 0 | K142: 0 | L142: 0 | M142: 0 | N142: 0 | O142: 0 | P142: 0 | Q142: 0 | R142: 0 | S142: 0 | T142: 0 | U142: 0 | V142: 0 | W142: 0
B143: Druhá voľba % | C143: 0 | D143: 0 | E143: 0 | F143: 0 | G143: 0 | H143: 0 | I143: 0 | J143: 0 | K143: 0 | L143: 0 | M143: 0 | N143: 0 | O143: 0 | P143: 0 | Q143: 0 | R143: 0 | S143: 0 | T143: 0 | U143: 0 | V143: 0 | W143: 0
B144: Tretia voľba % | C144: 0 | D144: 0 | E144: 0 | F144: 0 | G144: 0 | H144: 0 | I144: 0 | J144: 0 | K144: 0 | L144: 0 | M144: 0 | N144: 0 | O144: 0 | P144: 0 | Q144: 0 | R144: 0 | S144: 0 | T144: 0 | U144: 0 | V144: 0 | W144: 0
A145: * | B145: Voľby spolu z-skóre | C145: Q | D145: =IF(D137<>"",IF($AT$137<>"",IF($AT$137>0,(D137-$AS$137)/$AT$137,""),""),"") ->  | E145: =IF(E137<>"",IF($AT$137<>"",IF($AT$137>0,(E137-$AS$137)/$AT$137,""),""),"") -> 
B146: Prvá voľba z-skóre | D146: =IF(D138<>"",IF($AT$138<>"",IF($AT$138>0,(D138-$AS$138)/$AT$138,""),""),"") ->  | E146: =IF(E138<>"",IF($AT$138<>"",IF($AT$138>0,(E138-$AS$138)/$AT$138,""),""),"") -> 
B147: Druhá voľba z-skóre | D147: =IF(D139<>"",IF($AT$139<>"",IF($AT$139>0,(D139-$AS$139)/$AT$139,""),""),"") ->  | E147: =IF(E139<>"",IF($AT$139<>"",IF($AT$139>0,(E139-$AS$139)/$AT$139,""),""),"") -> 
B148: Tretia voľba z-skóre | D148: =IF(D140<>"",IF($AT$140<>"",IF($AT$140>0,(D140-$AS$140)/$AT$140,""),""),"") ->  | E148: =IF(E140<>"",IF($AT$140<>"",IF($AT$140>0,(E140-$AS$140)/$AT$140,""),""),"") -> 
A149: Q_13 | B149: Voľby spolu n | C149: Q | D149: 0 | E149: 0 | F149: 0 | G149: 0 | H149: 0 | I149: 0 | J149: 0 | K149: 0 | L149: 0 | M149: 0 | N149: 0 | O149: 0 | P149: 0 | Q149: 0 | R149: 0 | S149: 0 | T149: 0 | U149: 0 | V149: 0 | W149: 0 | AR149: =SUM(D149:AQ149) -> 0 | AS149: =IF(AR149>0,AVERAGE(D149:AQ149),"") ->  | AT149: =IF(AR149>0,STDEV(D149:AQ149),"") ->  | AU149: =MAX(D149:AQ149) -> 0
B150: Prvá voľba n | C150: 0 | D150: 0 | E150: 0 | F150: 0 | G150: 0 | H150: 0 | I150: 0 | J150: 0 | K150: 0 | L150: 0 | M150: 0 | N150: 0 | O150: 0 | P150: 0 | Q150: 0 | R150: 0 | S150: 0 | T150: 0 | U150: 0 | V150: 0 | W150: 0 | AR150: =SUM(D150:AQ150) -> 0 | AS150: =IF(AR149>0,AVERAGE(D150:AQ150),"") ->  | AT150: =IF(AR149>0,STDEV(D150:AQ150),"") -> 
B151: Druhá voľba n | C151: 0 | D151: 0 | E151: 0 | F151: 0 | G151: 0 | H151: 0 | I151: 0 | J151: 0 | K151: 0 | L151: 0 | M151: 0 | N151: 0 | O151: 0 | P151: 0 | Q151: 0 | R151: 0 | S151: 0 | T151: 0 | U151: 0 | V151: 0 | W151: 0 | AR151: =SUM(D151:AQ151) -> 0 | AS151: =IF(AR149>0,AVERAGE(D151:AQ151),"") ->  | AT151: =IF(AR149>0,STDEV(D151:AQ151),"") -> 
B152: Tretia voľba n | C152: 0 | D152: 0 | E152: 0 | F152: 0 | G152: 0 | H152: 0 | I152: 0 | J152: 0 | K152: 0 | L152: 0 | M152: 0 | N152: 0 | O152: 0 | P152: 0 | Q152: 0 | R152: 0 | S152: 0 | T152: 0 | U152: 0 | V152: 0 | W152: 0 | AR152: =SUM(D152:AQ152) -> 0 | AS152: =IF(AR149>0,AVERAGE(D152:AQ152),"") ->  | AT152: =IF(AR149>0,STDEV(D152:AQ152),"") ->  | AU152: =MAX(D152:AQ152) -> 0
B153: Voľby spolu % | C153: 0 | D153: 0 | E153: 0 | F153: 0 | G153: 0 | H153: 0 | I153: 0 | J153: 0 | K153: 0 | L153: 0 | M153: 0 | N153: 0 | O153: 0 | P153: 0 | Q153: 0 | R153: 0 | S153: 0 | T153: 0 | U153: 0 | V153: 0 | W153: 0
B154: Prvá voľba % | C154: 0 | D154: 0 | E154: 0 | F154: 0 | G154: 0 | H154: 0 | I154: 0 | J154: 0 | K154: 0 | L154: 0 | M154: 0 | N154: 0 | O154: 0 | P154: 0 | Q154: 0 | R154: 0 | S154: 0 | T154: 0 | U154: 0 | V154: 0 | W154: 0
B155: Druhá voľba % | C155: 0 | D155: 0 | E155: 0 | F155: 0 | G155: 0 | H155: 0 | I155: 0 | J155: 0 | K155: 0 | L155: 0 | M155: 0 | N155: 0 | O155: 0 | P155: 0 | Q155: 0 | R155: 0 | S155: 0 | T155: 0 | U155: 0 | V155: 0 | W155: 0
B156: Tretia voľba % | C156: 0 | D156: 0 | E156: 0 | F156: 0 | G156: 0 | H156: 0 | I156: 0 | J156: 0 | K156: 0 | L156: 0 | M156: 0 | N156: 0 | O156: 0 | P156: 0 | Q156: 0 | R156: 0 | S156: 0 | T156: 0 | U156: 0 | V156: 0 | W156: 0
A157: * | B157: Voľby spolu z-skóre | C157: Q | D157: =IF(D149<>"",IF($AT$149<>"",IF($AT$149>0,(D149-$AS$149)/$AT$149,""),""),"") ->  | E157: =IF(E149<>"",IF($AT$149<>"",IF($AT$149>0,(E149-$AS$149)/$AT$149,""),""),"") -> 
B158: Prvá voľba z-skóre | D158: =IF(D150<>"",IF($AT$150<>"",IF($AT$150>0,(D150-$AS$150)/$AT$150,""),""),"") ->  | E158: =IF(E150<>"",IF($AT$150<>"",IF($AT$150>0,(E150-$AS$150)/$AT$150,""),""),"") -> 
B159: Druhá voľba z-skóre | D159: =IF(D151<>"",IF($AT$151<>"",IF($AT$151>0,(D151-$AS$151)/$AT$151,""),""),"") ->  | E159: =IF(E151<>"",IF($AT$151<>"",IF($AT$151>0,(E151-$AS$151)/$AT$151,""),""),"") -> 
B160: Tretia voľba z-skóre | D160: =IF(D152<>"",IF($AT$152<>"",IF($AT$152>0,(D152-$AS$152)/$AT$152,""),""),"") ->  | E160: =IF(E152<>"",IF($AT$152<>"",IF($AT$152>0,(E152-$AS$152)/$AT$152,""),""),"") -> 
A161: Q_14 | B161: Voľby spolu n | C161: Q | D161: 0 | E161: 0 | F161: 0 | G161: 0 | H161: 0 | I161: 0 | J161: 0 | K161: 0 | L161: 0 | M161: 0 | N161: 0 | O161: 0 | P161: 0 | Q161: 0 | R161: 0 | S161: 0 | T161: 0 | U161: 0 | V161: 0 | W161: 0 | AR161: =SUM(D161:AQ161) -> 0 | AS161: =IF(AR161>0,AVERAGE(D161:AQ161),"") ->  | AT161: =IF(AR161>0,STDEV(D161:AQ161),"") ->  | AU161: =MAX(D161:AQ161) -> 0
B162: Prvá voľba n | C162: 0 | D162: 0 | E162: 0 | F162: 0 | G162: 0 | H162: 0 | I162: 0 | J162: 0 | K162: 0 | L162: 0 | M162: 0 | N162: 0 | O162: 0 | P162: 0 | Q162: 0 | R162: 0 | S162: 0 | T162: 0 | U162: 0 | V162: 0 | W162: 0 | AR162: =SUM(D162:AQ162) -> 0 | AS162: =IF(AR161>0,AVERAGE(D162:AQ162),"") ->  | AT162: =IF(AR161>0,STDEV(D162:AQ162),"") -> 
B163: Druhá voľba n | C163: 0 | D163: 0 | E163: 0 | F163: 0 | G163: 0 | H163: 0 | I163: 0 | J163: 0 | K163: 0 | L163: 0 | M163: 0 | N163: 0 | O163: 0 | P163: 0 | Q163: 0 | R163: 0 | S163: 0 | T163: 0 | U163: 0 | V163: 0 | W163: 0 | AR163: =SUM(D163:AQ163) -> 0 | AS163: =IF(AR161>0,AVERAGE(D163:AQ163),"") ->  | AT163: =IF(AR161>0,STDEV(D163:AQ163),"") -> 
B164: Tretia voľba n | C164: 0 | D164: 0 | E164: 0 | F164: 0 | G164: 0 | H164: 0 | I164: 0 | J164: 0 | K164: 0 | L164: 0 | M164: 0 | N164: 0 | O164: 0 | P164: 0 | Q164: 0 | R164: 0 | S164: 0 | T164: 0 | U164: 0 | V164: 0 | W164: 0 | AR164: =SUM(D164:AQ164) -> 0 | AS164: =IF(AR161>0,AVERAGE(D164:AQ164),"") ->  | AT164: =IF(AR161>0,STDEV(D164:AQ164),"") ->  | AU164: =MAX(D164:AQ164) -> 0
B165: Voľby spolu % | C165: 0 | D165: 0 | E165: 0 | F165: 0 | G165: 0 | H165: 0 | I165: 0 | J165: 0 | K165: 0 | L165: 0 | M165: 0 | N165: 0 | O165: 0 | P165: 0 | Q165: 0 | R165: 0 | S165: 0 | T165: 0 | U165: 0 | V165: 0 | W165: 0
B166: Prvá voľba % | C166: 0 | D166: 0 | E166: 0 | F166: 0 | G166: 0 | H166: 0 | I166: 0 | J166: 0 | K166: 0 | L166: 0 | M166: 0 | N166: 0 | O166: 0 | P166: 0 | Q166: 0 | R166: 0 | S166: 0 | T166: 0 | U166: 0 | V166: 0 | W166: 0
B167: Druhá voľba % | C167: 0 | D167: 0 | E167: 0 | F167: 0 | G167: 0 | H167: 0 | I167: 0 | J167: 0 | K167: 0 | L167: 0 | M167: 0 | N167: 0 | O167: 0 | P167: 0 | Q167: 0 | R167: 0 | S167: 0 | T167: 0 | U167: 0 | V167: 0 | W167: 0
B168: Tretia voľba % | C168: 0 | D168: 0 | E168: 0 | F168: 0 | G168: 0 | H168: 0 | I168: 0 | J168: 0 | K168: 0 | L168: 0 | M168: 0 | N168: 0 | O168: 0 | P168: 0 | Q168: 0 | R168: 0 | S168: 0 | T168: 0 | U168: 0 | V168: 0 | W168: 0
A169: * | B169: Voľby spolu z-skóre | C169: Q | D169: =IF(D161<>"",IF($AT$161<>"",IF($AT$161>0,(D161-$AS$161)/$AT$161,""),""),"") ->  | E169: =IF(E161<>"",IF($AT$161<>"",IF($AT$161>0,(E161-$AS$161)/$AT$161,""),""),"") -> 
B170: Prvá voľba z-skóre | D170: =IF(D162<>"",IF($AT$162<>"",IF($AT$162>0,(D162-$AS$162)/$AT$162,""),""),"") ->  | E170: =IF(E162<>"",IF($AT$162<>"",IF($AT$162>0,(E162-$AS$162)/$AT$162,""),""),"") -> 
B171: Druhá voľba z-skóre | D171: =IF(D163<>"",IF($AT$163<>"",IF($AT$163>0,(D163-$AS$163)/$AT$163,""),""),"") ->  | E171: =IF(E163<>"",IF($AT$163<>"",IF($AT$163>0,(E163-$AS$163)/$AT$163,""),""),"") -> 
B172: Tretia voľba z-skóre | D172: =IF(D164<>"",IF($AT$164<>"",IF($AT$164>0,(D164-$AS$164)/$AT$164,""),""),"") ->  | E172: =IF(E164<>"",IF($AT$164<>"",IF($AT$164>0,(E164-$AS$164)/$AT$164,""),""),"") -> 
A173: Q_15 | B173: Voľby spolu n | C173: Q | D173: 0 | E173: 0 | F173: 0 | G173: 0 | H173: 0 | I173: 0 | J173: 0 | K173: 0 | L173: 0 | M173: 0 | N173: 0 | O173: 0 | P173: 0 | Q173: 0 | R173: 0 | S173: 0 | T173: 0 | U173: 0 | V173: 0 | W173: 0 | AR173: =SUM(D173:AQ173) -> 0 | AS173: =IF(AR173>0,AVERAGE(D173:AQ173),"") ->  | AT173: =IF(AR173>0,STDEV(D173:AQ173),"") ->  | AU173: =MAX(D173:AQ173) -> 0
B174: Prvá voľba n | C174: 0 | D174: 0 | E174: 0 | F174: 0 | G174: 0 | H174: 0 | I174: 0 | J174: 0 | K174: 0 | L174: 0 | M174: 0 | N174: 0 | O174: 0 | P174: 0 | Q174: 0 | R174: 0 | S174: 0 | T174: 0 | U174: 0 | V174: 0 | W174: 0 | AR174: =SUM(D174:AQ174) -> 0 | AS174: =IF(AR173>0,AVERAGE(D174:AQ174),"") ->  | AT174: =IF(AR173>0,STDEV(D174:AQ174),"") -> 
B175: Druhá voľba n | C175: 0 | D175: 0 | E175: 0 | F175: 0 | G175: 0 | H175: 0 | I175: 0 | J175: 0 | K175: 0 | L175: 0 | M175: 0 | N175: 0 | O175: 0 | P175: 0 | Q175: 0 | R175: 0 | S175: 0 | T175: 0 | U175: 0 | V175: 0 | W175: 0 | AR175: =SUM(D175:AQ175) -> 0 | AS175: =IF(AR173>0,AVERAGE(D175:AQ175),"") ->  | AT175: =IF(AR173>0,STDEV(D175:AQ175),"") -> 
B176: Tretia voľba n | C176: 0 | D176: 0 | E176: 0 | F176: 0 | G176: 0 | H176: 0 | I176: 0 | J176: 0 | K176: 0 | L176: 0 | M176: 0 | N176: 0 | O176: 0 | P176: 0 | Q176: 0 | R176: 0 | S176: 0 | T176: 0 | U176: 0 | V176: 0 | W176: 0 | AR176: =SUM(D176:AQ176) -> 0 | AS176: =IF(AR173>0,AVERAGE(D176:AQ176),"") ->  | AT176: =IF(AR173>0,STDEV(D176:AQ176),"") ->  | AU176: =MAX(D176:AQ176) -> 0
B177: Voľby spolu % | C177: 0 | D177: 0 | E177: 0 | F177: 0 | G177: 0 | H177: 0 | I177: 0 | J177: 0 | K177: 0 | L177: 0 | M177: 0 | N177: 0 | O177: 0 | P177: 0 | Q177: 0 | R177: 0 | S177: 0 | T177: 0 | U177: 0 | V177: 0 | W177: 0
B178: Prvá voľba % | C178: 0 | D178: 0 | E178: 0 | F178: 0 | G178: 0 | H178: 0 | I178: 0 | J178: 0 | K178: 0 | L178: 0 | M178: 0 | N178: 0 | O178: 0 | P178: 0 | Q178: 0 | R178: 0 | S178: 0 | T178: 0 | U178: 0 | V178: 0 | W178: 0
B179: Druhá voľba % | C179: 0 | D179: 0 | E179: 0 | F179: 0 | G179: 0 | H179: 0 | I179: 0 | J179: 0 | K179: 0 | L179: 0 | M179: 0 | N179: 0 | O179: 0 | P179: 0 | Q179: 0 | R179: 0 | S179: 0 | T179: 0 | U179: 0 | V179: 0 | W179: 0
B180: Tretia voľba % | C180: 0 | D180: 0 | E180: 0 | F180: 0 | G180: 0 | H180: 0 | I180: 0 | J180: 0 | K180: 0 | L180: 0 | M180: 0 | N180: 0 | O180: 0 | P180: 0 | Q180: 0 | R180: 0 | S180: 0 | T180: 0 | U180: 0 | V180: 0 | W180: 0
A181: * | B181: Voľby spolu z-skóre | C181: Q | D181: =IF(D173<>"",IF($AT$173<>"",IF($AT$173>0,(D173-$AS$173)/$AT$173,""),""),"") ->  | E181: =IF(E173<>"",IF($AT$173<>"",IF($AT$173>0,(E173-$AS$173)/$AT$173,""),""),"") -> 
B182: Prvá voľba z-skóre | D182: =IF(D174<>"",IF($AT$174<>"",IF($AT$174>0,(D174-$AS$174)/$AT$174,""),""),"") ->  | E182: =IF(E174<>"",IF($AT$174<>"",IF($AT$174>0,(E174-$AS$174)/$AT$174,""),""),"") -> 
B183: Druhá voľba z-skóre | D183: =IF(D175<>"",IF($AT$175<>"",IF($AT$175>0,(D175-$AS$175)/$AT$175,""),""),"") ->  | E183: =IF(E175<>"",IF($AT$175<>"",IF($AT$175>0,(E175-$AS$175)/$AT$175,""),""),"") -> 
B184: Tretia voľba z-skóre | D184: =IF(D176<>"",IF($AT$176<>"",IF($AT$176>0,(D176-$AS$176)/$AT$176,""),""),"") ->  | E184: =IF(E176<>"",IF($AT$176<>"",IF($AT$176>0,(E176-$AS$176)/$AT$176,""),""),"") -> 
A185: Q_16 | B185: Voľby spolu n | C185: Q | D185: 0 | E185: 0 | F185: 0 | G185: 0 | H185: 0 | I185: 0 | J185: 0 | K185: 0 | L185: 0 | M185: 0 | N185: 0 | O185: 0 | P185: 0 | Q185: 0 | R185: 0 | S185: 0 | T185: 0 | U185: 0 | V185: 0 | W185: 0 | AR185: =SUM(D185:AQ185) -> 0 | AS185: =IF(AR185>0,AVERAGE(D185:AQ185),"") ->  | AT185: =IF(AR185>0,STDEV(D185:AQ185),"") ->  | AU185: =MAX(D185:AQ185) -> 0
B186: Prvá voľba n | C186: 0 | D186: 0 | E186: 0 | F186: 0 | G186: 0 | H186: 0 | I186: 0 | J186: 0 | K186: 0 | L186: 0 | M186: 0 | N186: 0 | O186: 0 | P186: 0 | Q186: 0 | R186: 0 | S186: 0 | T186: 0 | U186: 0 | V186: 0 | W186: 0 | AR186: =SUM(D186:AQ186) -> 0 | AS186: =IF(AR185>0,AVERAGE(D186:AQ186),"") ->  | AT186: =IF(AR185>0,STDEV(D186:AQ186),"") -> 
B187: Druhá voľba n | C187: 0 | D187: 0 | E187: 0 | F187: 0 | G187: 0 | H187: 0 | I187: 0 | J187: 0 | K187: 0 | L187: 0 | M187: 0 | N187: 0 | O187: 0 | P187: 0 | Q187: 0 | R187: 0 | S187: 0 | T187: 0 | U187: 0 | V187: 0 | W187: 0 | AR187: =SUM(D187:AQ187) -> 0 | AS187: =IF(AR185>0,AVERAGE(D187:AQ187),"") ->  | AT187: =IF(AR185>0,STDEV(D187:AQ187),"") -> 
B188: Tretia voľba n | C188: 0 | D188: 0 | E188: 0 | F188: 0 | G188: 0 | H188: 0 | I188: 0 | J188: 0 | K188: 0 | L188: 0 | M188: 0 | N188: 0 | O188: 0 | P188: 0 | Q188: 0 | R188: 0 | S188: 0 | T188: 0 | U188: 0 | V188: 0 | W188: 0 | AR188: =SUM(D188:AQ188) -> 0 | AS188: =IF(AR185>0,AVERAGE(D188:AQ188),"") ->  | AT188: =IF(AR185>0,STDEV(D188:AQ188),"") ->  | AU188: =MAX(D188:AQ188) -> 0
B189: Voľby spolu % | C189: 0 | D189: 0 | E189: 0 | F189: 0 | G189: 0 | H189: 0 | I189: 0 | J189: 0 | K189: 0 | L189: 0 | M189: 0 | N189: 0 | O189: 0 | P189: 0 | Q189: 0 | R189: 0 | S189: 0 | T189: 0 | U189: 0 | V189: 0 | W189: 0
B190: Prvá voľba % | C190: 0 | D190: 0 | E190: 0 | F190: 0 | G190: 0 | H190: 0 | I190: 0 | J190: 0 | K190: 0 | L190: 0 | M190: 0 | N190: 0 | O190: 0 | P190: 0 | Q190: 0 | R190: 0 | S190: 0 | T190: 0 | U190: 0 | V190: 0 | W190: 0
B191: Druhá voľba % | C191: 0 | D191: 0 | E191: 0 | F191: 0 | G191: 0 | H191: 0 | I191: 0 | J191: 0 | K191: 0 | L191: 0 | M191: 0 | N191: 0 | O191: 0 | P191: 0 | Q191: 0 | R191: 0 | S191: 0 | T191: 0 | U191: 0 | V191: 0 | W191: 0
B192: Tretia voľba % | C192: 0 | D192: 0 | E192: 0 | F192: 0 | G192: 0 | H192: 0 | I192: 0 | J192: 0 | K192: 0 | L192: 0 | M192: 0 | N192: 0 | O192: 0 | P192: 0 | Q192: 0 | R192: 0 | S192: 0 | T192: 0 | U192: 0 | V192: 0 | W192: 0
A193: * | B193: Voľby spolu z-skóre | C193: Q | D193: =IF(D185<>"",IF($AT185<>"",IF($AT185>0,(D185-$AS185)/$AT185,""),""),"") ->  | E193: =IF(E185<>"",IF(E185<>0,IF($AT$5>0,(E185-$AS$5)/$AT$5,""),""),"") -> 
B194: Prvá voľba z-skóre | D194: =IF(D186<>"",IF($AT186<>"",IF($AT186>0,(D186-$AS186)/$AT186,""),""),"") ->  | E194: =IF(E186<>"",IF(E186<>0,IF($AT$6>0,(E186-$AS$6)/$AT$6,""),""),"") -> 
B195: Druhá voľba z-skóre | D195: =IF(D187<>"",IF($AT187<>"",IF($AT187>0,(D187-$AS187)/$AT187,""),""),"") ->  | E195: =IF(E187<>"",IF(E187<>0,IF($AT$7>0,(E187-$AS$7)/$AT$7,""),""),"") -> 
B196: Tretia voľba z-skóre | D196: =IF(D188<>"",IF($AT188<>"",IF($AT188>0,(D188-$AS188)/$AT188,""),""),"") ->  | E196: =IF(E188<>"",IF(E188<>0,IF($AT$8>0,(E188-$AS$8)/$AT$8,""),""),"") -> 
A197: Q_17 | B197: Voľby spolu n | C197: Q | D197: 0 | E197: 0 | F197: 0 | G197: 0 | H197: 0 | I197: 0 | J197: 0 | K197: 0 | L197: 0 | M197: 0 | N197: 0 | O197: 0 | P197: 0 | Q197: 0 | R197: 0 | S197: 0 | T197: 0 | U197: 0 | V197: 0 | W197: 0 | AR197: =SUM(D197:AQ197) -> 0 | AS197: =IF(AR197>0,AVERAGE(D197:AQ197),"") ->  | AT197: =IF(AR197>0,STDEV(D197:AQ197),"") ->  | AU197: =MAX(D197:AQ197) -> 0
B198: Prvá voľba n | C198: 0 | D198: 0 | E198: 0 | F198: 0 | G198: 0 | H198: 0 | I198: 0 | J198: 0 | K198: 0 | L198: 0 | M198: 0 | N198: 0 | O198: 0 | P198: 0 | Q198: 0 | R198: 0 | S198: 0 | T198: 0 | U198: 0 | V198: 0 | W198: 0 | AR198: =SUM(D198:AQ198) -> 0 | AS198: =IF(AR197>0,AVERAGE(D198:AQ198),"") ->  | AT198: =IF(AR197>0,STDEV(D198:AQ198),"") -> 
B199: Druhá voľba n | C199: 0 | D199: 0 | E199: 0 | F199: 0 | G199: 0 | H199: 0 | I199: 0 | J199: 0 | K199: 0 | L199: 0 | M199: 0 | N199: 0 | O199: 0 | P199: 0 | Q199: 0 | R199: 0 | S199: 0 | T199: 0 | U199: 0 | V199: 0 | W199: 0 | AR199: =SUM(D199:AQ199) -> 0 | AS199: =IF(AR197>0,AVERAGE(D199:AQ199),"") ->  | AT199: =IF(AR197>0,STDEV(D199:AQ199),"") -> 
B200: Tretia voľba n | C200: 0 | D200: 0 | E200: 0 | F200: 0 | G200: 0 | H200: 0 | I200: 0 | J200: 0 | K200: 0 | L200: 0 | M200: 0 | N200: 0 | O200: 0 | P200: 0 | Q200: 0 | R200: 0 | S200: 0 | T200: 0 | U200: 0 | V200: 0 | W200: 0 | AR200: =SUM(D200:AQ200) -> 0 | AS200: =IF(AR197>0,AVERAGE(D200:AQ200),"") ->  | AT200: =IF(AR197>0,STDEV(D200:AQ200),"") ->  | AU200: =MAX(D200:AQ200) -> 0
... 75 more rows

Sheet Questions
B1: → | C1: Hlavička sgm. Nemazať! | D1: "Version 01.00","Škola","Psychológ","Obdobie","Dátum","Trieda"
A2: Konotácia | C2: Nemazať! | D2: Skrátené
A3: P | B3: 1 | C3: 1. S kým z triedy by si chcel sedieť v jednej lavici? | D3: 1. Sedieť
A4: P | B4: 2 | C4: 2. S kým z triedy by si najradšej písaval úlohy a učieval sa? | D4: 2. Učiť sa
A5: P | B5: 3 | C5: 3. S kým z triedy by si chcel stráviť prázdniny na pustom ostrove? | D5: 3. Ostrov
A6: P | B6: 4 | C6: 4. Kto by najlepšie dokázal hájiť záujmy triedy? | D6: 4. Hájiť
A7: P | B7: 5 | C7: 5. Komu z triedy by si zveril svoje tajomstvo? | D7: 5. Tajomstvo
A8: N | B8: 6 | C8: 6. S kým z triedy by si nechcel sedieť v jednej lavici? | D8: 6. Nesedieť
A9: N | B9: 7 | C9: 7. S kým z triedy by si v žiadnom prípade nechcel písavať úlohy a učievať sa? | D9: 7. Neučiť sa
A10: N | B10: 8 | C10: 8. S kým z triedy by si nechcel stráviť prázdniny na pustom ostrove? | D10: 8. Nie Ostrov
A11: N | B11: 9 | C11: 9. Koho by si vôbec nevybral na hájenie záujmov triedy? | D11: 9. Nie Hájiť
A12: N | B12: 10 | C12: 10. Komu z triedy by si nikdy nezveril svoje tajomstvo? | D12: 10. Nezveril
A13: Q | B13: 11 | C13: 11. Nezadaná | D13: 11. Nezadaná
A14: Q | B14: 12 | C14: 12. Nezadaná | D14: 12. Nezadaná
A15: Q | B15: 13 | C15: 13. Nezadaná | D15: 13. Nezadaná
A16: Q | B16: 14 | C16: 14. Nezadaná | D16: 14. Nezadaná
A17: Q | B17: 15 | C17: 15. Nezadaná | D17: 15. Nezadaná
A18: Q | B18: 16 | C18: 16. Nezadaná | D18: 16. Nezadaná
A19: Q | B19: 17 | C19: 17. Nezadaná | D19: 17. Nezadaná
A20: Q | B20: 18 | C20: 18. Nezadaná | D20: 18. Nezadaná
A21: Q | B21: 19 | C21: 19. Nezadaná | D21: 19. Nezadaná
A22: Q | B22: 20 | C22: 20. Nezadaná | D22: 20. Nezadaná
C24: Nemazať!
C25: Suma volieb 1 + 2 + 3 spolu
C26: Suma volieb 1
C27: Suma volieb 2
C28: Suma volieb 3
C29: Percento Suma volieb 1
C30: Percento Suma volieb 2
C31: Percento Suma volieb 3
C32: Percento Suma volieb 1 + 2 + 3 spolu

Sheet Grafy
A1: Bar grafy z-skóre na steny 20 otázok max | E1: 5 | F1: 6 | G1: 7 | H1: 8 | I1: 9 | J1: 10 | K1: 11 | L1: 12 | M1: 13 | N1: 14 | O1: 15 | P1: 16 | Q1: 17 | R1: 18 | S1: 19 | T1: 20 | U1: 21 | V1: 22 | W1: 23 | X1: 24 | Y1: 25 | Z1: 26 | AA1: 27 | AB1: 28
E2: 1 | F2: 2 | G2: 3 | H2: 4 | I2: 5 | J2: 6 | K2: 7 | L2: 8 | M2: 9 | N2: 10 | O2: 11 | P2: 12 | Q2: 13 | R2: 14 | S2: 15 | T2: 16 | U2: 17 | V2: 18 | W2: 19 | X2: 20 | Y2: 21 | Z2: 22 | AA2: 23 | AB2: 24 | AC2: 25 | AD2: 26 | AE2: 27 | AF2: 28 | AG2: 29 | AH2: 30 | AI2: 31 | AJ2: 32 | AK2: 33 | AL2: 34 | AM2: 35 | AN2: 36 | AO2: 37 | AP2: 38 | AQ2: 39 | AR2: 40
B3: Počet | C3: =Sumy_All_Q!B3 -> 20 | D3: Konotácia P +; N –; Q = nezadaná | E3: =IF(Sumy_All_Q!D4<>"",Sumy_All_Q!D4,"") -> 01_Oso m | F3: =IF(Sumy_All_Q!E4<>"",Sumy_All_Q!E4,"") -> 02_Oso m | G3: =IF(Sumy_All_Q!F4<>"",Sumy_All_Q!F4,"") -> 03_Oso m | H3: =IF(Sumy_All_Q!G4<>"",Sumy_All_Q!G4,"") -> 04_Osor m | I3: =IF(Sumy_All_Q!H4<>"",Sumy_All_Q!H4,"") -> 05_Oso m | J3: =IF(Sumy_All_Q!I4<>"",Sumy_All_Q!I4,"") -> 06_Oso m | K3: =IF(Sumy_All_Q!J4<>"",Sumy_All_Q!J4,"") -> 07_Oso m | L3: =IF(Sumy_All_Q!K4<>"",Sumy_All_Q!K4,"") -> 08_Oso m | M3: =IF(Sumy_All_Q!L4<>"",Sumy_All_Q!L4,"") -> 09_Oso m | N3: =IF(Sumy_All_Q!M4<>"",Sumy_All_Q!M4,"") -> 10_Oso m | O3: =IF(Sumy_All_Q!N4<>"",Sumy_All_Q!N4,"") -> 11_Oso m | P3: =IF(Sumy_All_Q!O4<>"",Sumy_All_Q!O4,"") -> 12_Oso m | Q3: =IF(Sumy_All_Q!P4<>"",Sumy_All_Q!P4,"") -> 13_Oso m | R3: =IF(Sumy_All_Q!Q4<>"",Sumy_All_Q!Q4,"") -> 14_Oso f | S3: =IF(Sumy_All_Q!R4<>"",Sumy_All_Q!R4,"") -> 15_Oso f | T3: =IF(Sumy_All_Q!S4<>"",Sumy_All_Q!S4,"") -> 16_Oso f | U3: =IF(Sumy_All_Q!T4<>"",Sumy_All_Q!T4,"") -> 17_Oso f | V3: =IF(Sumy_All_Q!U4<>"",Sumy_All_Q!U4,"") -> 18_Oso f | W3: =IF(Sumy_All_Q!V4<>"",Sumy_All_Q!V4,"") -> 19_Oso f | X3: =IF(Sumy_All_Q!W4<>"",Sumy_All_Q!W4,"") -> 20_Oso f | Y3: =IF(Sumy_All_Q!X4<>"",Sumy_All_Q!X4,"") ->  | Z3: =IF(Sumy_All_Q!Y4<>"",Sumy_All_Q!Y4,"") ->  | AA3: =IF(Sumy_All_Q!Z4<>"",Sumy_All_Q!Z4,"") ->  | AB3: =IF(Sumy_All_Q!AA4<>"",Sumy_All_Q!AA4,"") ->  | AC3: =IF(Sumy_All_Q!AB4<>"",Sumy_All_Q!AB4,"") ->  | AD3: =IF(Sumy_All_Q!AC4<>"",Sumy_All_Q!AC4,"") ->  | AE3: =IF(Sumy_All_Q!AD4<>"",Sumy_All_Q!AD4,"") ->  | AF3: =IF(Sumy_All_Q!AE4<>"",Sumy_All_Q!AE4,"") ->  | AG3: =IF(Sumy_All_Q!AF4<>"",Sumy_All_Q!AF4,"") ->  | AH3: =IF(Sumy_All_Q!AG4<>"",Sumy_All_Q!AG4,"") ->  | AI3: =IF(Sumy_All_Q!AH4<>"",Sumy_All_Q!AH4,"") ->  | AJ3: =IF(Sumy_All_Q!AI4<>"",Sumy_All_Q!AI4,"") ->  | AK3: =IF(Sumy_All_Q!AJ4<>"",Sumy_All_Q!AJ4,"") ->  | AL3: =IF(Sumy_All_Q!AK4<>"",Sumy_All_Q!AK4,"") ->  | AM3: =IF(Sumy_All_Q!AL4<>"",Sumy_All_Q!AL4,"") ->  | AN3: =IF(Sumy_All_Q!AM4<>"",Sumy_All_Q!AM4,"") ->  | AO3: =IF(Sumy_All_Q!AN4<>"",Sumy_All_Q!AN4,"") ->  | AP3: =IF(Sumy_All_Q!AO4<>"",Sumy_All_Q!AO4,"") ->  | AQ3: =IF(Sumy_All_Q!AP4<>"",Sumy_All_Q!AP4,"") ->  | AR3: =IF(Sumy_All_Q!AQ4<>"",Sumy_All_Q!AQ4,"") -> 
B4: Otázka 1 | C4: z-skóre | D4: P | E4: =Sumy_All_Q!D13 -> -0.132637071 | F4: =Sumy_All_Q!E13 -> -0.132637071 | G4: =Sumy_All_Q!F13 -> -0.7958224258 | H4: =Sumy_All_Q!G13 -> 1.856918993 | I4: =Sumy_All_Q!H13 -> 1.193733639 | J4: =Sumy_All_Q!I13 -> -0.132637071 | K4: =Sumy_All_Q!J13 -> -0.7958224258 | L4: =Sumy_All_Q!K13 -> -0.7958224258 | M4: =Sumy_All_Q!L13 -> 1.193733639 | N4: =Sumy_All_Q!M13 -> -0.132637071 | O4: =Sumy_All_Q!N13 -> -1.459007781 | P4: =Sumy_All_Q!O13 -> -0.132637071 | Q4: =Sumy_All_Q!P13 -> 1.856918993 | R4: =Sumy_All_Q!Q13 -> -0.132637071 | S4: =Sumy_All_Q!R13 -> -0.7958224258 | T4: =Sumy_All_Q!S13 -> 1.193733639 | U4: =Sumy_All_Q!T13 -> -0.132637071 | V4: =Sumy_All_Q!U13 -> 0.5305482838 | W4: =Sumy_All_Q!V13 -> -0.7958224258 | X4: =Sumy_All_Q!W13 -> -1.459007781 | Y4: =Sumy_All_Q!X13 ->  | Z4: =Sumy_All_Q!Y13 ->  | AA4: =Sumy_All_Q!Z13 ->  | AB4: =Sumy_All_Q!AA13 ->  | AC4: =Sumy_All_Q!AB13 ->  | AD4: =Sumy_All_Q!AC13 ->  | AE4: =Sumy_All_Q!AD13 ->  | AF4: =Sumy_All_Q!AE13 ->  | AG4: =Sumy_All_Q!AF13 ->  | AH4: =Sumy_All_Q!AG13 ->  | AI4: =Sumy_All_Q!AH13 ->  | AJ4: =Sumy_All_Q!AI13 ->  | AK4: =Sumy_All_Q!AJ13 ->  | AL4: =Sumy_All_Q!AK13 ->  | AM4: =Sumy_All_Q!AL13 ->  | AN4: =Sumy_All_Q!AM13 ->  | AO4: =Sumy_All_Q!AN13 ->  | AP4: =Sumy_All_Q!AO13 ->  | AQ4: =Sumy_All_Q!AP13 ->  | AR4: =Sumy_All_Q!AQ13 -> 
B5: Otázka 2 | C5: z-skóre | D5: =Sumy_All_Q!C25 -> P | E5: =Sumy_All_Q!D25 -> 0.8528067222 | F5: =Sumy_All_Q!E25 -> 0.8528067222 | G5: =Sumy_All_Q!F25 -> -1.371906466 | H5: =Sumy_All_Q!G25 -> 1.594377785 | I5: =Sumy_All_Q!H25 -> 0.1112356594 | J5: =Sumy_All_Q!I25 -> -0.6303354033 | K5: =Sumy_All_Q!J25 -> -1.371906466 | L5: =Sumy_All_Q!K25 -> 0.8528067222 | M5: =Sumy_All_Q!L25 -> 0.1112356594 | N5: =Sumy_All_Q!M25 -> 1.594377785 | O5: =Sumy_All_Q!N25 -> -0.6303354033 | P5: =Sumy_All_Q!O25 -> -0.6303354033 | Q5: =Sumy_All_Q!P25 -> -0.6303354033 | R5: =Sumy_All_Q!Q25 -> 0.8528067222 | S5: =Sumy_All_Q!R25 -> 0.1112356594 | T5: =Sumy_All_Q!S25 -> 0.8528067222 | U5: =Sumy_All_Q!T25 -> -0.6303354033 | V5: =Sumy_All_Q!U25 -> 0.8528067222 | W5: =Sumy_All_Q!V25 -> -1.371906466 | X5: =Sumy_All_Q!W25 -> -1.371906466 | Y5: =Sumy_All_Q!X25 ->  | Z5: =Sumy_All_Q!Y25 ->  | AA5: =Sumy_All_Q!Z25 ->  | AB5: =Sumy_All_Q!AA25 ->  | AC5: =Sumy_All_Q!AB25 ->  | AD5: =Sumy_All_Q!AC25 ->  | AE5: =Sumy_All_Q!AD25 ->  | AF5: =Sumy_All_Q!AE25 ->  | AG5: =Sumy_All_Q!AF25 ->  | AH5: =Sumy_All_Q!AG25 ->  | AI5: =Sumy_All_Q!AH25 ->  | AJ5: =Sumy_All_Q!AI25 ->  | AK5: =Sumy_All_Q!AJ25 ->  | AL5: =Sumy_All_Q!AK25 ->  | AM5: =Sumy_All_Q!AL25 ->  | AN5: =Sumy_All_Q!AM25 ->  | AO5: =Sumy_All_Q!AN25 ->  | AP5: =Sumy_All_Q!AO25 ->  | AQ5: =Sumy_All_Q!AP25 ->  | AR5: =Sumy_All_Q!AQ25 -> 
B6: Otázka 3 | C6: z-skóre | D6: =Sumy_All_Q!C37 -> P | E6: =Sumy_All_Q!D37 -> 0.4780914437 | F6: =Sumy_All_Q!E37 -> -0.1195228609 | G6: =Sumy_All_Q!F37 -> -1.31475147 | H6: =Sumy_All_Q!G37 -> 2.270934358 | I6: =Sumy_All_Q!H37 -> 1.075705748 | J6: =Sumy_All_Q!I37 -> -0.7171371656 | K6: =Sumy_All_Q!J37 -> -1.31475147 | L6: =Sumy_All_Q!K37 -> -0.7171371656 | M6: =Sumy_All_Q!L37 -> -0.1195228609 | N6: =Sumy_All_Q!M37 -> 0.4780914437 | O6: =Sumy_All_Q!N37 -> -0.7171371656 | P6: =Sumy_All_Q!O37 -> -0.7171371656 | Q6: =Sumy_All_Q!P37 -> 1.673320053 | R6: =Sumy_All_Q!Q37 -> -0.1195228609 | S6: =Sumy_All_Q!R37 -> 0.4780914437 | T6: =Sumy_All_Q!S37 -> 1.075705748 | U6: =Sumy_All_Q!T37 -> 0.4780914437 | V6: =Sumy_All_Q!U37 -> -0.1195228609 | W6: =Sumy_All_Q!V37 -> -1.31475147 | X6: =Sumy_All_Q!W37 -> -0.7171371656 | Y6: =Sumy_All_Q!X37 ->  | Z6: =Sumy_All_Q!Y37 ->  | AA6: =Sumy_All_Q!Z37 ->  | AB6: =Sumy_All_Q!AA37 ->  | AC6: =Sumy_All_Q!AB37 ->  | AD6: =Sumy_All_Q!AC37 ->  | AE6: =Sumy_All_Q!AD37 ->  | AF6: =Sumy_All_Q!AE37 ->  | AG6: =Sumy_All_Q!AF37 ->  | AH6: =Sumy_All_Q!AG37 ->  | AI6: =Sumy_All_Q!AH37 ->  | AJ6: =Sumy_All_Q!AI37 ->  | AK6: =Sumy_All_Q!AJ37 ->  | AL6: =Sumy_All_Q!AK37 ->  | AM6: =Sumy_All_Q!AL37 ->  | AN6: =Sumy_All_Q!AM37 ->  | AO6: =Sumy_All_Q!AN37 ->  | AP6: =Sumy_All_Q!AO37 ->  | AQ6: =Sumy_All_Q!AP37 ->  | AR6: =Sumy_All_Q!AQ37 -> 
B7: Otázka 4 | C7: z-skóre | D7: =Sumy_All_Q!C49 -> P | E7: =Sumy_All_Q!D49 -> -0.6154813426 | F7: =Sumy_All_Q!E49 -> -0.2424623471 | G7: =Sumy_All_Q!F49 -> -0.6154813426 | H7: =Sumy_All_Q!G49 -> -0.2424623471 | I7: =Sumy_All_Q!H49 -> 0.5035756439 | J7: =Sumy_All_Q!I49 -> -0.6154813426 | K7: =Sumy_All_Q!J49 -> -0.6154813426 | L7: =Sumy_All_Q!K49 -> -0.6154813426 | M7: =Sumy_All_Q!L49 -> -0.6154813426 | N7: =Sumy_All_Q!M49 -> 3.114708612 | O7: =Sumy_All_Q!N49 -> -0.6154813426 | P7: =Sumy_All_Q!O49 -> -0.6154813426 | Q7: =Sumy_All_Q!P49 -> -0.2424623471 | R7: =Sumy_All_Q!Q49 -> -0.2424623471 | S7: =Sumy_All_Q!R49 -> -0.2424623471 | T7: =Sumy_All_Q!S49 -> 1.62263263 | U7: =Sumy_All_Q!T49 -> -0.6154813426 | V7: =Sumy_All_Q!U49 -> 0.8765946394 | W7: =Sumy_All_Q!V49 -> -0.6154813426 | X7: =Sumy_All_Q!W49 -> 1.249613635 | Y7: =Sumy_All_Q!X49 ->  | Z7: =Sumy_All_Q!Y49 ->  | AA7: =Sumy_All_Q!Z49 ->  | AB7: =Sumy_All_Q!AA49 ->  | AC7: =Sumy_All_Q!AB49 ->  | AD7: =Sumy_All_Q!AC49 ->  | AE7: =Sumy_All_Q!AD49 ->  | AF7: =Sumy_All_Q!AE49 ->  | AG7: =Sumy_All_Q!AF49 ->  | AH7: =Sumy_All_Q!AG49 ->  | AI7: =Sumy_All_Q!AH49 ->  | AJ7: =Sumy_All_Q!AI49 ->  | AK7: =Sumy_All_Q!AJ49 ->  | AL7: =Sumy_All_Q!AK49 ->  | AM7: =Sumy_All_Q!AL49 ->  | AN7: =Sumy_All_Q!AM49 ->  | AO7: =Sumy_All_Q!AN49 ->  | AP7: =Sumy_All_Q!AO49 ->  | AQ7: =Sumy_All_Q!AP49 ->  | AR7: =Sumy_All_Q!AQ49 -> 
B8: Otázka 5 | C8: z-skóre | D8: =Sumy_All_Q!C61 -> P | E8: =Sumy_All_Q!D61 -> 0.6380774695 | F8: =Sumy_All_Q!E61 -> -0.4253849797 | G8: =Sumy_All_Q!F61 -> -1.488847429 | H8: =Sumy_All_Q!G61 -> 0.6380774695 | I8: =Sumy_All_Q!H61 -> 0.6380774695 | J8: =Sumy_All_Q!I61 -> 0.6380774695 | K8: =Sumy_All_Q!J61 -> -0.4253849797 | L8: =Sumy_All_Q!K61 -> 0.6380774695 | M8: =Sumy_All_Q!L61 -> -0.4253849797 | N8: =Sumy_All_Q!M61 -> 1.701539919 | O8: =Sumy_All_Q!N61 -> -1.488847429 | P8: =Sumy_All_Q!O61 -> -0.4253849797 | Q8: =Sumy_All_Q!P61 -> 0.6380774695 | R8: =Sumy_All_Q!Q61 -> -0.4253849797 | S8: =Sumy_All_Q!R61 -> 1.701539919 | T8: =Sumy_All_Q!S61 -> 0.6380774695 | U8: =Sumy_All_Q!T61 -> 0.6380774695 | V8: =Sumy_All_Q!U61 -> -0.4253849797 | W8: =Sumy_All_Q!V61 -> -1.488847429 | X8: =Sumy_All_Q!W61 -> -1.488847429 | Y8: =Sumy_All_Q!X61 ->  | Z8: =Sumy_All_Q!Y61 ->  | AA8: =Sumy_All_Q!Z61 ->  | AB8: =Sumy_All_Q!AA61 ->  | AC8: =Sumy_All_Q!AB61 ->  | AD8: =Sumy_All_Q!AC61 ->  | AE8: =Sumy_All_Q!AD61 ->  | AF8: =Sumy_All_Q!AE61 ->  | AG8: =Sumy_All_Q!AF61 ->  | AH8: =Sumy_All_Q!AG61 ->  | AI8: =Sumy_All_Q!AH61 ->  | AJ8: =Sumy_All_Q!AI61 ->  | AK8: =Sumy_All_Q!AJ61 ->  | AL8: =Sumy_All_Q!AK61 ->  | AM8: =Sumy_All_Q!AL61 ->  | AN8: =Sumy_All_Q!AM61 ->  | AO8: =Sumy_All_Q!AN61 ->  | AP8: =Sumy_All_Q!AO61 ->  | AQ8: =Sumy_All_Q!AP61 ->  | AR8: =Sumy_All_Q!AQ61 -> 
B9: Otázka 6 | C9: z-skóre | D9: =Sumy_All_Q!C73 -> N | E9: =Sumy_All_Q!D73 -> -0.4966090854 | F9: =Sumy_All_Q!E73 -> -0.8786160742 | G9: =Sumy_All_Q!F73 -> 0.6494118809 | H9: =Sumy_All_Q!G73 -> -0.4966090854 | I9: =Sumy_All_Q!H73 -> -0.4966090854 | J9: =Sumy_All_Q!I73 -> -0.8786160742 | K9: =Sumy_All_Q!J73 -> -0.8786160742 | L9: =Sumy_All_Q!K73 -> -0.8786160742 | M9: =Sumy_All_Q!L73 -> 0.2674048921 | N9: =Sumy_All_Q!M73 -> -0.4966090854 | O9: =Sumy_All_Q!N73 -> 1.413425858 | P9: =Sumy_All_Q!O73 -> -0.8786160742 | Q9: =Sumy_All_Q!P73 -> -0.4966090854 | R9: =Sumy_All_Q!Q73 -> 0.6494118809 | S9: =Sumy_All_Q!R73 -> 0.2674048921 | T9: =Sumy_All_Q!S73 -> 0.6494118809 | U9: =Sumy_All_Q!T73 -> -0.1146020966 | V9: =Sumy_All_Q!U73 -> -0.8786160742 | W9: =Sumy_All_Q!V73 -> 2.941453814 | X9: =Sumy_All_Q!W73 -> 1.03141887 | Y9: =Sumy_All_Q!X73 ->  | Z9: =Sumy_All_Q!Y73 ->  | AA9: =Sumy_All_Q!Z73 ->  | AB9: =Sumy_All_Q!AA73 ->  | AC9: =Sumy_All_Q!AB73 ->  | AD9: =Sumy_All_Q!AC73 ->  | AE9: =Sumy_All_Q!AD73 ->  | AF9: =Sumy_All_Q!AE73 ->  | AG9: =Sumy_All_Q!AF73 ->  | AH9: =Sumy_All_Q!AG73 ->  | AI9: =Sumy_All_Q!AH73 ->  | AJ9: =Sumy_All_Q!AI73 ->  | AK9: =Sumy_All_Q!AJ73 ->  | AL9: =Sumy_All_Q!AK73 ->  | AM9: =Sumy_All_Q!AL73 ->  | AN9: =Sumy_All_Q!AM73 ->  | AO9: =Sumy_All_Q!AN73 ->  | AP9: =Sumy_All_Q!AO73 ->  | AQ9: =Sumy_All_Q!AP73 ->  | AR9: =Sumy_All_Q!AQ73 -> 
B10: Otázka 7 | C10: z-skóre | D10: =Sumy_All_Q!C85 -> N | E10: =Sumy_All_Q!D85 -> -1.197888659 | F10: =Sumy_All_Q!E85 -> -0.5674209436 | G10: =Sumy_All_Q!F85 -> -0.5674209436 | H10: =Sumy_All_Q!G85 -> 0.06304677151 | I10: =Sumy_All_Q!H85 -> 0.06304677151 | J10: =Sumy_All_Q!I85 -> -0.5674209436 | K10: =Sumy_All_Q!J85 -> 1.323982202 | L10: =Sumy_All_Q!K85 -> -1.197888659 | M10: =Sumy_All_Q!L85 -> 0.6935144866 | N10: =Sumy_All_Q!M85 -> -1.197888659 | O10: =Sumy_All_Q!N85 -> 1.954449917 | P10: =Sumy_All_Q!O85 -> 0.06304677151 | Q10: =Sumy_All_Q!P85 -> 1.323982202 | R10: =Sumy_All_Q!Q85 -> -1.197888659 | S10: =Sumy_All_Q!R85 -> 0.6935144866 | T10: =Sumy_All_Q!S85 -> 0.06304677151 | U10: =Sumy_All_Q!T85 -> -0.5674209436 | V10: =Sumy_All_Q!U85 -> -1.197888659 | W10: =Sumy_All_Q!V85 -> 1.323982202 | X10: =Sumy_All_Q!W85 -> 0.6935144866 | Y10: =Sumy_All_Q!X85 ->  | Z10: =Sumy_All_Q!Y85 ->  | AA10: =Sumy_All_Q!Z85 ->  | AB10: =Sumy_All_Q!AA85 ->  | AC10: =Sumy_All_Q!AB85 ->  | AD10: =Sumy_All_Q!AC85 ->  | AE10: =Sumy_All_Q!AD85 ->  | AF10: =Sumy_All_Q!AE85 ->  | AG10: =Sumy_All_Q!AF85 ->  | AH10: =Sumy_All_Q!AG85 ->  | AI10: =Sumy_All_Q!AH85 ->  | AJ10: =Sumy_All_Q!AI85 ->  | AK10: =Sumy_All_Q!AJ85 ->  | AL10: =Sumy_All_Q!AK85 ->  | AM10: =Sumy_All_Q!AL85 ->  | AN10: =Sumy_All_Q!AM85 ->  | AO10: =Sumy_All_Q!AN85 ->  | AP10: =Sumy_All_Q!AO85 ->  | AQ10: =Sumy_All_Q!AP85 ->  | AR10: =Sumy_All_Q!AQ85 -> 
B11: Otázka 8 | C11: z-skóre | D11: =Sumy_All_Q!C97 -> N | E11: =Sumy_All_Q!D97 -> 0.08934871727 | F11: =Sumy_All_Q!E97 -> -0.8041384554 | G11: =Sumy_All_Q!F97 -> 0.5360923036 | H11: =Sumy_All_Q!G97 -> -0.3573948691 | I11: =Sumy_All_Q!H97 -> 0.08934871727 | J11: =Sumy_All_Q!I97 -> -0.8041384554 | K11: =Sumy_All_Q!J97 -> -0.3573948691 | L11: =Sumy_All_Q!K97 -> -0.3573948691 | M11: =Sumy_All_Q!L97 -> -0.3573948691 | N11: =Sumy_All_Q!M97 -> -0.8041384554 | O11: =Sumy_All_Q!N97 -> 1.429579476 | P11: =Sumy_All_Q!O97 -> -0.8041384554 | Q11: =Sumy_All_Q!P97 -> 0.08934871727 | R11: =Sumy_All_Q!Q97 -> -0.8041384554 | S11: =Sumy_All_Q!R97 -> -0.3573948691 | T11: =Sumy_All_Q!S97 -> 0.5360923036 | U11: =Sumy_All_Q!T97 -> -0.8041384554 | V11: =Sumy_All_Q!U97 -> -0.8041384554 | W11: =Sumy_All_Q!V97 -> 2.769810235 | X11: =Sumy_All_Q!W97 -> 1.876323063 | Y11: =Sumy_All_Q!X97 ->  | Z11: =Sumy_All_Q!Y97 ->  | AA11: =Sumy_All_Q!Z97 ->  | AB11: =Sumy_All_Q!AA97 ->  | AC11: =Sumy_All_Q!AB97 ->  | AD11: =Sumy_All_Q!AC97 ->  | AE11: =Sumy_All_Q!AD97 ->  | AF11: =Sumy_All_Q!AE97 ->  | AG11: =Sumy_All_Q!AF97 ->  | AH11: =Sumy_All_Q!AG97 ->  | AI11: =Sumy_All_Q!AH97 ->  | AJ11: =Sumy_All_Q!AI97 ->  | AK11: =Sumy_All_Q!AJ97 ->  | AL11: =Sumy_All_Q!AK97 ->  | AM11: =Sumy_All_Q!AL97 ->  | AN11: =Sumy_All_Q!AM97 ->  | AO11: =Sumy_All_Q!AN97 ->  | AP11: =Sumy_All_Q!AO97 ->  | AQ11: =Sumy_All_Q!AP97 ->  | AR11: =Sumy_All_Q!AQ97 -> 
B12: Otázka 9 | C12: z-skóre | D12: =Sumy_All_Q!C109 -> N | E12: =Sumy_All_Q!D109 -> 0.0206910796 | F12: =Sumy_All_Q!E109 -> -0.3931305125 | G12: =Sumy_All_Q!F109 -> 0.4345126717 | H12: =Sumy_All_Q!G109 -> -0.3931305125 | I12: =Sumy_All_Q!H109 -> 0.0206910796 | J12: =Sumy_All_Q!I109 -> -0.8069521045 | K12: =Sumy_All_Q!J109 -> -0.3931305125 | L12: =Sumy_All_Q!K109 -> -0.8069521045 | M12: =Sumy_All_Q!L109 -> 0.0206910796 | N12: =Sumy_All_Q!M109 -> -0.8069521045 | O12: =Sumy_All_Q!N109 -> 2.503620632 | P12: =Sumy_All_Q!O109 -> -0.8069521045 | Q12: =Sumy_All_Q!P109 -> 0.8483342637 | R12: =Sumy_All_Q!Q109 -> -0.3931305125 | S12: =Sumy_All_Q!R109 -> -0.3931305125 | T12: =Sumy_All_Q!S109 -> -0.3931305125 | U12: =Sumy_All_Q!T109 -> -0.8069521045 | V12: =Sumy_All_Q!U109 -> -0.8069521045 | W12: =Sumy_All_Q!V109 -> 2.503620632 | X12: =Sumy_All_Q!W109 -> 0.8483342637 | Y12: =Sumy_All_Q!X109 ->  | Z12: =Sumy_All_Q!Y109 ->  | AA12: =Sumy_All_Q!Z109 ->  | AB12: =Sumy_All_Q!AA109 ->  | AC12: =Sumy_All_Q!AB109 ->  | AD12: =Sumy_All_Q!AC109 ->  | AE12: =Sumy_All_Q!AD109 ->  | AF12: =Sumy_All_Q!AE109 ->  | AG12: =Sumy_All_Q!AF109 ->  | AH12: =Sumy_All_Q!AG109 ->  | AI12: =Sumy_All_Q!AH109 ->  | AJ12: =Sumy_All_Q!AI109 ->  | AK12: =Sumy_All_Q!AJ109 ->  | AL12: =Sumy_All_Q!AK109 ->  | AM12: =Sumy_All_Q!AL109 ->  | AN12: =Sumy_All_Q!AM109 ->  | AO12: =Sumy_All_Q!AN109 ->  | AP12: =Sumy_All_Q!AO109 ->  | AQ12: =Sumy_All_Q!AP109 ->  | AR12: =Sumy_All_Q!AQ109 -> 
B13: Otázka 10 | C13: z-skóre | D13: =Sumy_All_Q!C121 -> N | E13: =Sumy_All_Q!D121 -> -0.3470195026 | F13: =Sumy_All_Q!E121 -> -0.9253853404 | G13: =Sumy_All_Q!F121 -> -0.3470195026 | H13: =Sumy_All_Q!G121 -> 0.8097121728 | I13: =Sumy_All_Q!H121 -> 1.966443848 | J13: =Sumy_All_Q!I121 -> -0.9253853404 | K13: =Sumy_All_Q!J121 -> 0.8097121728 | L13: =Sumy_All_Q!K121 -> -0.9253853404 | M13: =Sumy_All_Q!L121 -> 0.2313463351 | N13: =Sumy_All_Q!M121 -> -0.3470195026 | O13: =Sumy_All_Q!N121 -> 1.388078011 | P13: =Sumy_All_Q!O121 -> -0.3470195026 | Q13: =Sumy_All_Q!P121 -> 0.8097121728 | R13: =Sumy_All_Q!Q121 -> -0.9253853404 | S13: =Sumy_All_Q!R121 -> -0.9253853404 | T13: =Sumy_All_Q!S121 -> -0.9253853404 | U13: =Sumy_All_Q!T121 -> -0.9253853404 | V13: =Sumy_All_Q!U121 -> -0.9253853404 | W13: =Sumy_All_Q!V121 -> 1.388078011 | X13: =Sumy_All_Q!W121 -> 1.388078011 | Y13: =Sumy_All_Q!X121 ->  | Z13: =Sumy_All_Q!Y121 ->  | AA13: =Sumy_All_Q!Z121 ->  | AB13: =Sumy_All_Q!AA121 ->  | AC13: =Sumy_All_Q!AB121 ->  | AD13: =Sumy_All_Q!AC121 ->  | AE13: =Sumy_All_Q!AD121 ->  | AF13: =Sumy_All_Q!AE121 ->  | AG13: =Sumy_All_Q!AF121 ->  | AH13: =Sumy_All_Q!AG121 ->  | AI13: =Sumy_All_Q!AH121 ->  | AJ13: =Sumy_All_Q!AI121 ->  | AK13: =Sumy_All_Q!AJ121 ->  | AL13: =Sumy_All_Q!AK121 ->  | AM13: =Sumy_All_Q!AL121 ->  | AN13: =Sumy_All_Q!AM121 ->  | AO13: =Sumy_All_Q!AN121 ->  | AP13: =Sumy_All_Q!AO121 ->  | AQ13: =Sumy_All_Q!AP121 ->  | AR13: =Sumy_All_Q!AQ121 -> 
B14: Otázka 11 | C14: z-skóre | D14: =Sumy_All_Q!C133 -> Q | E14: =Sumy_All_Q!D133 ->  | F14: =Sumy_All_Q!E133 ->  | G14: =Sumy_All_Q!F133 ->  | H14: =Sumy_All_Q!G133 ->  | I14: =Sumy_All_Q!H133 ->  | J14: =Sumy_All_Q!I133 ->  | K14: =Sumy_All_Q!J133 ->  | L14: =Sumy_All_Q!K133 ->  | M14: =Sumy_All_Q!L133 ->  | N14: =Sumy_All_Q!M133 ->  | O14: =Sumy_All_Q!N133 ->  | P14: =Sumy_All_Q!O133 ->  | Q14: =Sumy_All_Q!P133 ->  | R14: =Sumy_All_Q!Q133 ->  | S14: =Sumy_All_Q!R133 ->  | T14: =Sumy_All_Q!S133 ->  | U14: =Sumy_All_Q!T133 ->  | V14: =Sumy_All_Q!U133 ->  | W14: =Sumy_All_Q!V133 ->  | X14: =Sumy_All_Q!W133 ->  | Y14: =Sumy_All_Q!X133 ->  | Z14: =Sumy_All_Q!Y133 ->  | AA14: =Sumy_All_Q!Z133 ->  | AB14: =Sumy_All_Q!AA133 ->  | AC14: =Sumy_All_Q!AB133 ->  | AD14: =Sumy_All_Q!AC133 ->  | AE14: =Sumy_All_Q!AD133 ->  | AF14: =Sumy_All_Q!AE133 ->  | AG14: =Sumy_All_Q!AF133 ->  | AH14: =Sumy_All_Q!AG133 ->  | AI14: =Sumy_All_Q!AH133 ->  | AJ14: =Sumy_All_Q!AI133 ->  | AK14: =Sumy_All_Q!AJ133 ->  | AL14: =Sumy_All_Q!AK133 ->  | AM14: =Sumy_All_Q!AL133 ->  | AN14: =Sumy_All_Q!AM133 ->  | AO14: =Sumy_All_Q!AN133 ->  | AP14: =Sumy_All_Q!AO133 ->  | AQ14: =Sumy_All_Q!AP133 ->  | AR14: =Sumy_All_Q!AQ133 -> 
B15: Otázka 12 | C15: z-skóre | D15: =Sumy_All_Q!C145 -> Q | E15: =Sumy_All_Q!D145 ->  | F15: =Sumy_All_Q!E145 ->  | G15: =Sumy_All_Q!F145 ->  | H15: =Sumy_All_Q!G145 ->  | I15: =Sumy_All_Q!H145 ->  | J15: =Sumy_All_Q!I145 ->  | K15: =Sumy_All_Q!J145 ->  | L15: =Sumy_All_Q!K145 ->  | M15: =Sumy_All_Q!L145 ->  | N15: =Sumy_All_Q!M145 ->  | O15: =Sumy_All_Q!N145 ->  | P15: =Sumy_All_Q!O145 ->  | Q15: =Sumy_All_Q!P145 ->  | R15: =Sumy_All_Q!Q145 ->  | S15: =Sumy_All_Q!R145 ->  | T15: =Sumy_All_Q!S145 ->  | U15: =Sumy_All_Q!T145 ->  | V15: =Sumy_All_Q!U145 ->  | W15: =Sumy_All_Q!V145 ->  | X15: =Sumy_All_Q!W145 ->  | Y15: =Sumy_All_Q!X145 ->  | Z15: =Sumy_All_Q!Y145 ->  | AA15: =Sumy_All_Q!Z145 ->  | AB15: =Sumy_All_Q!AA145 ->  | AC15: =Sumy_All_Q!AB145 ->  | AD15: =Sumy_All_Q!AC145 ->  | AE15: =Sumy_All_Q!AD145 ->  | AF15: =Sumy_All_Q!AE145 ->  | AG15: =Sumy_All_Q!AF145 ->  | AH15: =Sumy_All_Q!AG145 ->  | AI15: =Sumy_All_Q!AH145 ->  | AJ15: =Sumy_All_Q!AI145 ->  | AK15: =Sumy_All_Q!AJ145 ->  | AL15: =Sumy_All_Q!AK145 ->  | AM15: =Sumy_All_Q!AL145 ->  | AN15: =Sumy_All_Q!AM145 ->  | AO15: =Sumy_All_Q!AN145 ->  | AP15: =Sumy_All_Q!AO145 ->  | AQ15: =Sumy_All_Q!AP145 ->  | AR15: =Sumy_All_Q!AQ145 -> 
B16: Otázka 13 | C16: z-skóre | D16: =Sumy_All_Q!C157 -> Q | E16: =Sumy_All_Q!D157 ->  | F16: =Sumy_All_Q!E157 ->  | G16: =Sumy_All_Q!F157 ->  | H16: =Sumy_All_Q!G157 ->  | I16: =Sumy_All_Q!H157 ->  | J16: =Sumy_All_Q!I157 ->  | K16: =Sumy_All_Q!J157 ->  | L16: =Sumy_All_Q!K157 ->  | M16: =Sumy_All_Q!L157 ->  | N16: =Sumy_All_Q!M157 ->  | O16: =Sumy_All_Q!N157 ->  | P16: =Sumy_All_Q!O157 ->  | Q16: =Sumy_All_Q!P157 ->  | R16: =Sumy_All_Q!Q157 ->  | S16: =Sumy_All_Q!R157 ->  | T16: =Sumy_All_Q!S157 ->  | U16: =Sumy_All_Q!T157 ->  | V16: =Sumy_All_Q!U157 ->  | W16: =Sumy_All_Q!V157 ->  | X16: =Sumy_All_Q!W157 ->  | Y16: =Sumy_All_Q!X157 ->  | Z16: =Sumy_All_Q!Y157 ->  | AA16: =Sumy_All_Q!Z157 ->  | AB16: =Sumy_All_Q!AA157 ->  | AC16: =Sumy_All_Q!AB157 ->  | AD16: =Sumy_All_Q!AC157 ->  | AE16: =Sumy_All_Q!AD157 ->  | AF16: =Sumy_All_Q!AE157 ->  | AG16: =Sumy_All_Q!AF157 ->  | AH16: =Sumy_All_Q!AG157 ->  | AI16: =Sumy_All_Q!AH157 ->  | AJ16: =Sumy_All_Q!AI157 ->  | AK16: =Sumy_All_Q!AJ157 ->  | AL16: =Sumy_All_Q!AK157 ->  | AM16: =Sumy_All_Q!AL157 ->  | AN16: =Sumy_All_Q!AM157 ->  | AO16: =Sumy_All_Q!AN157 ->  | AP16: =Sumy_All_Q!AO157 ->  | AQ16: =Sumy_All_Q!AP157 ->  | AR16: =Sumy_All_Q!AQ157 -> 
B17: Otázka 14 | C17: z-skóre | D17: =Sumy_All_Q!C169 -> Q | E17: =Sumy_All_Q!D169 ->  | F17: =Sumy_All_Q!E169 ->  | G17: =Sumy_All_Q!F169 ->  | H17: =Sumy_All_Q!G169 ->  | I17: =Sumy_All_Q!H169 ->  | J17: =Sumy_All_Q!I169 ->  | K17: =Sumy_All_Q!J169 ->  | L17: =Sumy_All_Q!K169 ->  | M17: =Sumy_All_Q!L169 ->  | N17: =Sumy_All_Q!M169 ->  | O17: =Sumy_All_Q!N169 ->  | P17: =Sumy_All_Q!O169 ->  | Q17: =Sumy_All_Q!P169 ->  | R17: =Sumy_All_Q!Q169 ->  | S17: =Sumy_All_Q!R169 ->  | T17: =Sumy_All_Q!S169 ->  | U17: =Sumy_All_Q!T169 ->  | V17: =Sumy_All_Q!U169 ->  | W17: =Sumy_All_Q!V169 ->  | X17: =Sumy_All_Q!W169 ->  | Y17: =Sumy_All_Q!X169 ->  | Z17: =Sumy_All_Q!Y169 ->  | AA17: =Sumy_All_Q!Z169 ->  | AB17: =Sumy_All_Q!AA169 ->  | AC17: =Sumy_All_Q!AB169 ->  | AD17: =Sumy_All_Q!AC169 ->  | AE17: =Sumy_All_Q!AD169 ->  | AF17: =Sumy_All_Q!AE169 ->  | AG17: =Sumy_All_Q!AF169 ->  | AH17: =Sumy_All_Q!AG169 ->  | AI17: =Sumy_All_Q!AH169 ->  | AJ17: =Sumy_All_Q!AI169 ->  | AK17: =Sumy_All_Q!AJ169 ->  | AL17: =Sumy_All_Q!AK169 ->  | AM17: =Sumy_All_Q!AL169 ->  | AN17: =Sumy_All_Q!AM169 ->  | AO17: =Sumy_All_Q!AN169 ->  | AP17: =Sumy_All_Q!AO169 ->  | AQ17: =Sumy_All_Q!AP169 ->  | AR17: =Sumy_All_Q!AQ169 -> 
B18: Otázka 15 | C18: z-skóre | D18: =Sumy_All_Q!C181 -> Q | E18: =Sumy_All_Q!D181 ->  | F18: =Sumy_All_Q!E181 ->  | G18: =Sumy_All_Q!F181 ->  | H18: =Sumy_All_Q!G181 ->  | I18: =Sumy_All_Q!H181 ->  | J18: =Sumy_All_Q!I181 ->  | K18: =Sumy_All_Q!J181 ->  | L18: =Sumy_All_Q!K181 ->  | M18: =Sumy_All_Q!L181 ->  | N18: =Sumy_All_Q!M181 ->  | O18: =Sumy_All_Q!N181 ->  | P18: =Sumy_All_Q!O181 ->  | Q18: =Sumy_All_Q!P181 ->  | R18: =Sumy_All_Q!Q181 ->  | S18: =Sumy_All_Q!R181 ->  | T18: =Sumy_All_Q!S181 ->  | U18: =Sumy_All_Q!T181 ->  | V18: =Sumy_All_Q!U181 ->  | W18: =Sumy_All_Q!V181 ->  | X18: =Sumy_All_Q!W181 ->  | Y18: =Sumy_All_Q!X181 ->  | Z18: =Sumy_All_Q!Y181 ->  | AA18: =Sumy_All_Q!Z181 ->  | AB18: =Sumy_All_Q!AA181 ->  | AC18: =Sumy_All_Q!AB181 ->  | AD18: =Sumy_All_Q!AC181 ->  | AE18: =Sumy_All_Q!AD181 ->  | AF18: =Sumy_All_Q!AE181 ->  | AG18: =Sumy_All_Q!AF181 ->  | AH18: =Sumy_All_Q!AG181 ->  | AI18: =Sumy_All_Q!AH181 ->  | AJ18: =Sumy_All_Q!AI181 ->  | AK18: =Sumy_All_Q!AJ181 ->  | AL18: =Sumy_All_Q!AK181 ->  | AM18: =Sumy_All_Q!AL181 ->  | AN18: =Sumy_All_Q!AM181 ->  | AO18: =Sumy_All_Q!AN181 ->  | AP18: =Sumy_All_Q!AO181 ->  | AQ18: =Sumy_All_Q!AP181 ->  | AR18: =Sumy_All_Q!AQ181 -> 
B19: Otázka 16 | C19: z-skóre | D19: =Sumy_All_Q!C193 -> Q | E19: =Sumy_All_Q!D193 ->  | F19: =Sumy_All_Q!E193 ->  | G19: =Sumy_All_Q!F193 ->  | H19: =Sumy_All_Q!G193 ->  | I19: =Sumy_All_Q!H193 ->  | J19: =Sumy_All_Q!I193 ->  | K19: =Sumy_All_Q!J193 ->  | L19: =Sumy_All_Q!K193 ->  | M19: =Sumy_All_Q!L193 ->  | N19: =Sumy_All_Q!M193 ->  | O19: =Sumy_All_Q!N193 ->  | P19: =Sumy_All_Q!O193 ->  | Q19: =Sumy_All_Q!P193 ->  | R19: =Sumy_All_Q!Q193 ->  | S19: =Sumy_All_Q!R193 ->  | T19: =Sumy_All_Q!S193 ->  | U19: =Sumy_All_Q!T193 ->  | V19: =Sumy_All_Q!U193 ->  | W19: =Sumy_All_Q!V193 ->  | X19: =Sumy_All_Q!W193 ->  | Y19: =Sumy_All_Q!X193 ->  | Z19: =Sumy_All_Q!Y193 ->  | AA19: =Sumy_All_Q!Z193 ->  | AB19: =Sumy_All_Q!AA193 ->  | AC19: =Sumy_All_Q!AB193 ->  | AD19: =Sumy_All_Q!AC193 ->  | AE19: =Sumy_All_Q!AD193 ->  | AF19: =Sumy_All_Q!AE193 ->  | AG19: =Sumy_All_Q!AF193 ->  | AH19: =Sumy_All_Q!AG193 ->  | AI19: =Sumy_All_Q!AH193 ->  | AJ19: =Sumy_All_Q!AI193 ->  | AK19: =Sumy_All_Q!AJ193 ->  | AL19: =Sumy_All_Q!AK193 ->  | AM19: =Sumy_All_Q!AL193 ->  | AN19: =Sumy_All_Q!AM193 ->  | AO19: =Sumy_All_Q!AN193 ->  | AP19: =Sumy_All_Q!AO193 ->  | AQ19: =Sumy_All_Q!AP193 ->  | AR19: =Sumy_All_Q!AQ193 -> 
B20: Otázka 17 | C20: z-skóre | D20: =Sumy_All_Q!C205 -> Q | E20: =Sumy_All_Q!D205 ->  | F20: =Sumy_All_Q!E205 ->  | G20: =Sumy_All_Q!F205 ->  | H20: =Sumy_All_Q!G205 ->  | I20: =Sumy_All_Q!H205 ->  | J20: =Sumy_All_Q!I205 ->  | K20: =Sumy_All_Q!J205 ->  | L20: =Sumy_All_Q!K205 ->  | M20: =Sumy_All_Q!L205 ->  | N20: =Sumy_All_Q!M205 ->  | O20: =Sumy_All_Q!N205 ->  | P20: =Sumy_All_Q!O205 ->  | Q20: =Sumy_All_Q!P205 ->  | R20: =Sumy_All_Q!Q205 ->  | S20: =Sumy_All_Q!R205 ->  | T20: =Sumy_All_Q!S205 ->  | U20: =Sumy_All_Q!T205 ->  | V20: =Sumy_All_Q!U205 ->  | W20: =Sumy_All_Q!V205 ->  | X20: =Sumy_All_Q!W205 ->  | Y20: =Sumy_All_Q!X205 ->  | Z20: =Sumy_All_Q!Y205 ->  | AA20: =Sumy_All_Q!Z205 ->  | AB20: =Sumy_All_Q!AA205 ->  | AC20: =Sumy_All_Q!AB205 ->  | AD20: =Sumy_All_Q!AC205 ->  | AE20: =Sumy_All_Q!AD205 ->  | AF20: =Sumy_All_Q!AE205 ->  | AG20: =Sumy_All_Q!AF205 ->  | AH20: =Sumy_All_Q!AG205 ->  | AI20: =Sumy_All_Q!AH205 ->  | AJ20: =Sumy_All_Q!AI205 ->  | AK20: =Sumy_All_Q!AJ205 ->  | AL20: =Sumy_All_Q!AK205 ->  | AM20: =Sumy_All_Q!AL205 ->  | AN20: =Sumy_All_Q!AM205 ->  | AO20: =Sumy_All_Q!AN205 ->  | AP20: =Sumy_All_Q!AO205 ->  | AQ20: =Sumy_All_Q!AP205 ->  | AR20: =Sumy_All_Q!AQ205 -> 
B21: Otázka 18 | C21: z-skóre | D21: =Sumy_All_Q!C217 -> Q | E21: =Sumy_All_Q!D217 ->  | F21: =Sumy_All_Q!E217 ->  | G21: =Sumy_All_Q!F217 ->  | H21: =Sumy_All_Q!G217 ->  | I21: =Sumy_All_Q!H217 ->  | J21: =Sumy_All_Q!I217 ->  | K21: =Sumy_All_Q!J217 ->  | L21: =Sumy_All_Q!K217 ->  | M21: =Sumy_All_Q!L217 ->  | N21: =Sumy_All_Q!M217 ->  | O21: =Sumy_All_Q!N217 ->  | P21: =Sumy_All_Q!O217 ->  | Q21: =Sumy_All_Q!P217 ->  | R21: =Sumy_All_Q!Q217 ->  | S21: =Sumy_All_Q!R217 ->  | T21: =Sumy_All_Q!S217 ->  | U21: =Sumy_All_Q!T217 ->  | V21: =Sumy_All_Q!U217 ->  | W21: =Sumy_All_Q!V217 ->  | X21: =Sumy_All_Q!W217 ->  | Y21: =Sumy_All_Q!X217 ->  | Z21: =Sumy_All_Q!Y217 ->  | AA21: =Sumy_All_Q!Z217 ->  | AB21: =Sumy_All_Q!AA217 ->  | AC21: =Sumy_All_Q!AB217 ->  | AD21: =Sumy_All_Q!AC217 ->  | AE21: =Sumy_All_Q!AD217 ->  | AF21: =Sumy_All_Q!AE217 ->  | AG21: =Sumy_All_Q!AF217 ->  | AH21: =Sumy_All_Q!AG217 ->  | AI21: =Sumy_All_Q!AH217 ->  | AJ21: =Sumy_All_Q!AI217 ->  | AK21: =Sumy_All_Q!AJ217 ->  | AL21: =Sumy_All_Q!AK217 ->  | AM21: =Sumy_All_Q!AL217 ->  | AN21: =Sumy_All_Q!AM217 ->  | AO21: =Sumy_All_Q!AN217 ->  | AP21: =Sumy_All_Q!AO217 ->  | AQ21: =Sumy_All_Q!AP217 ->  | AR21: =Sumy_All_Q!AQ217 -> 
B22: Otázka 19 | C22: z-skóre | D22: =Sumy_All_Q!C229 -> Q | E22: =Sumy_All_Q!D229 ->  | F22: =Sumy_All_Q!E229 ->  | G22: =Sumy_All_Q!F229 ->  | H22: =Sumy_All_Q!G229 ->  | I22: =Sumy_All_Q!H229 ->  | J22: =Sumy_All_Q!I229 ->  | K22: =Sumy_All_Q!J229 ->  | L22: =Sumy_All_Q!K229 ->  | M22: =Sumy_All_Q!L229 ->  | N22: =Sumy_All_Q!M229 ->  | O22: =Sumy_All_Q!N229 ->  | P22: =Sumy_All_Q!O229 ->  | Q22: =Sumy_All_Q!P229 ->  | R22: =Sumy_All_Q!Q229 ->  | S22: =Sumy_All_Q!R229 ->  | T22: =Sumy_All_Q!S229 ->  | U22: =Sumy_All_Q!T229 ->  | V22: =Sumy_All_Q!U229 ->  | W22: =Sumy_All_Q!V229 ->  | X22: =Sumy_All_Q!W229 ->  | Y22: =Sumy_All_Q!X229 ->  | Z22: =Sumy_All_Q!Y229 ->  | AA22: =Sumy_All_Q!Z229 ->  | AB22: =Sumy_All_Q!AA229 ->  | AC22: =Sumy_All_Q!AB229 ->  | AD22: =Sumy_All_Q!AC229 ->  | AE22: =Sumy_All_Q!AD229 ->  | AF22: =Sumy_All_Q!AE229 ->  | AG22: =Sumy_All_Q!AF229 ->  | AH22: =Sumy_All_Q!AG229 ->  | AI22: =Sumy_All_Q!AH229 ->  | AJ22: =Sumy_All_Q!AI229 ->  | AK22: =Sumy_All_Q!AJ229 ->  | AL22: =Sumy_All_Q!AK229 ->  | AM22: =Sumy_All_Q!AL229 ->  | AN22: =Sumy_All_Q!AM229 ->  | AO22: =Sumy_All_Q!AN229 ->  | AP22: =Sumy_All_Q!AO229 ->  | AQ22: =Sumy_All_Q!AP229 ->  | AR22: =Sumy_All_Q!AQ229 -> 
B23: Otázka 20 | C23: z-skóre | D23: =Sumy_All_Q!C241 -> Q | E23: =Sumy_All_Q!D241 ->  | F23: =Sumy_All_Q!E241 ->  | G23: =Sumy_All_Q!F241 ->  | H23: =Sumy_All_Q!G241 ->  | I23: =Sumy_All_Q!H241 ->  | J23: =Sumy_All_Q!I241 ->  | K23: =Sumy_All_Q!J241 ->  | L23: =Sumy_All_Q!K241 ->  | M23: =Sumy_All_Q!L241 ->  | N23: =Sumy_All_Q!M241 ->  | O23: =Sumy_All_Q!N241 ->  | P23: =Sumy_All_Q!O241 ->  | Q23: =Sumy_All_Q!P241 ->  | R23: =Sumy_All_Q!Q241 ->  | S23: =Sumy_All_Q!R241 ->  | T23: =Sumy_All_Q!S241 ->  | U23: =Sumy_All_Q!T241 ->  | V23: =Sumy_All_Q!U241 ->  | W23: =Sumy_All_Q!V241 ->  | X23: =Sumy_All_Q!W241 ->  | Y23: =Sumy_All_Q!X241 ->  | Z23: =Sumy_All_Q!Y241 ->  | AA23: =Sumy_All_Q!Z241 ->  | AB23: =Sumy_All_Q!AA241 ->  | AC23: =Sumy_All_Q!AB241 ->  | AD23: =Sumy_All_Q!AC241 ->  | AE23: =Sumy_All_Q!AD241 ->  | AF23: =Sumy_All_Q!AE241 ->  | AG23: =Sumy_All_Q!AF241 ->  | AH23: =Sumy_All_Q!AG241 ->  | AI23: =Sumy_All_Q!AH241 ->  | AJ23: =Sumy_All_Q!AI241 ->  | AK23: =Sumy_All_Q!AJ241 ->  | AL23: =Sumy_All_Q!AK241 ->  | AM23: =Sumy_All_Q!AL241 ->  | AN23: =Sumy_All_Q!AM241 ->  | AO23: =Sumy_All_Q!AN241 ->  | AP23: =Sumy_All_Q!AO241 ->  | AQ23: =Sumy_All_Q!AP241 ->  | AR23: =Sumy_All_Q!AQ241 -> 
B25: Otázka 1 | C25: steny | D25: =D4 -> P | E25: =IF(E4<>"",IF(E4>2.5,10,ROUND(E4 *2+5.5,0)),"") -> 5 | F25: =IF(F4<>"",IF(F4>2.5,10,ROUND(F4 *2+5.5,0)),"") -> 5 | G25: 4 | H25: 9 | I25: 8 | J25: 5 | K25: 4 | L25: 4 | M25: 8 | N25: 5 | O25: 3 | P25: 5 | Q25: 9 | R25: 5 | S25: 4 | T25: 8 | U25: 5 | V25: 7 | W25: 4 | X25: 3
B26: Otázka 2 | C26: steny | D26: =D5 -> P | E26: 7 | F26: =IF(F5<>"",IF(F5>2.5,10,ROUND(F5 *2+5.5,0)),"") -> 7 | G26: 3 | H26: 9 | I26: 6 | J26: 4 | K26: 3 | L26: 7 | M26: 6 | N26: 9 | O26: 4 | P26: 4 | Q26: 4 | R26: 7 | S26: 6 | T26: 7 | U26: =IF(U5<>"",IF(U5>2.5,10,ROUND(U5 *2+5.5,0)),"") -> 4 | V26: 7 | W26: 3 | X26: 3
B27: Otázka 3 | C27: steny | D27: P | E27: 6 | F27: =IF(F6<>"",IF(F6>2.5,10,ROUND(F6 *2+5.5,0)),"") -> 5 | G27: 3 | H27: 10 | I27: 8 | J27: 4 | K27: 3 | L27: 4 | M27: 5 | N27: 6 | O27: 4 | P27: 4 | Q27: 9 | R27: 5 | S27: 6 | T27: 8 | U27: =IF(U6<>"",IF(U6>2.5,10,ROUND(U6 *2+5.5,0)),"") -> 6 | V27: 5 | W27: 3 | X27: 4
B28: Otázka 4 | C28: steny | D28: P | E28: 4 | F28: =IF(F7<>"",IF(F7>2.5,10,ROUND(F7 *2+5.5,0)),"") -> 5 | G28: 4 | H28: 5 | I28: 7 | J28: 4 | K28: 4 | L28: 4 | M28: 4 | N28: 10 | O28: 4 | P28: 4 | Q28: 5 | R28: 5 | S28: 5 | T28: 9 | U28: =IF(U7<>"",IF(U7>2.5,10,ROUND(U7 *2+5.5,0)),"") -> 4 | V28: 7 | W28: 4 | X28: 8
B29: Otázka 5 | C29: steny | D29: P | E29: 7 | F29: =IF(F8<>"",IF(F8>2.5,10,ROUND(F8 *2+5.5,0)),"") -> 5 | G29: 3 | H29: 7 | I29: 7 | J29: 7 | K29: 5 | L29: 7 | M29: 5 | N29: 9 | O29: 3 | P29: 5 | Q29: 7 | R29: 5 | S29: 9 | T29: 7 | U29: =IF(U8<>"",IF(U8>2.5,10,ROUND(U8 *2+5.5,0)),"") -> 7 | V29: 5 | W29: 3 | X29: 3
B30: Otázka 6 | C30: steny | D30: N | E30: 5 | F30: =IF(F9<>"",IF(F9>2.5,10,ROUND(F9 *2+5.5,0)),"") -> 4 | G30: 7 | H30: 5 | I30: 5 | J30: 4 | K30: 4 | L30: 4 | M30: 6 | N30: 5 | O30: 8 | P30: 4 | Q30: 5 | R30: 7 | S30: 6 | T30: 7 | U30: =IF(U9<>"",IF(U9>2.5,10,ROUND(U9 *2+5.5,0)),"") -> 5 | V30: 4 | W30: 10 | X30: 8
B31: Otázka 7 | C31: steny | D31: N | E31: 3 | F31: =IF(F10<>"",IF(F10>2.5,10,ROUND(F10 *2+5.5,0)),"") -> 4 | G31: 4 | H31: 6 | I31: 6 | J31: 4 | K31: 8 | L31: 3 | M31: 7 | N31: 3 | O31: 9 | P31: 6 | Q31: 8 | R31: 3 | S31: 7 | T31: 6 | U31: =IF(U10<>"",IF(U10>2.5,10,ROUND(U10 *2+5.5,0)),"") -> 4 | V31: 3 | W31: 8 | X31: 7
B32: Otázka 8 | C32: steny | D32: N | E32: 6 | F32: =IF(F11<>"",IF(F11>2.5,10,ROUND(F11 *2+5.5,0)),"") -> 4 | G32: 7 | H32: 5 | I32: 6 | J32: 4 | K32: 5 | L32: 5 | M32: 5 | N32: 4 | O32: 8 | P32: 4 | Q32: 6 | R32: 4 | S32: 5 | T32: 7 | U32: =IF(U11<>"",IF(U11>2.5,10,ROUND(U11 *2+5.5,0)),"") -> 4 | V32: 4 | W32: 10 | X32: 9
B33: Otázka 9 | C33: steny | D33: N | E33: 6 | F33: =IF(F12<>"",IF(F12>2.5,10,ROUND(F12 *2+5.5,0)),"") -> 5 | G33: 6 | H33: 5 | I33: 6 | J33: 4 | K33: 5 | L33: 4 | M33: 6 | N33: 4 | O33: 10 | P33: 4 | Q33: 7 | R33: 5 | S33: 5 | T33: 5 | U33: =IF(U12<>"",IF(U12>2.5,10,ROUND(U12 *2+5.5,0)),"") -> 4 | V33: 4 | W33: 10 | X33: 7
B34: Otázka 10 | C34: steny | D34: N | E34: 5 | F34: =IF(F13<>"",IF(F13>2.5,10,ROUND(F13 *2+5.5,0)),"") -> 4 | G34: 5 | H34: 7 | I34: 9 | J34: 4 | K34: 7 | L34: 4 | M34: 6 | N34: 5 | O34: 8 | P34: 5 | Q34: 7 | R34: 4 | S34: 4 | T34: 4 | U34: =IF(U13<>"",IF(U13>2.5,10,ROUND(U13 *2+5.5,0)),"") -> 4 | V34: 4 | W34: 8 | X34: 8
B35: Otázka 11 | C35: steny | D35: Q | F35: =IF(F14<>"",IF(F14>2.5,10,ROUND(F14 *2+5.5,0)),"") ->  | U35: =IF(U14<>"",IF(U14>2.5,10,ROUND(U14 *2+5.5,0)),"") -> 
B36: Otázka 12 | C36: steny | D36: Q | F36: =IF(F15<>"",IF(F15>2.5,10,ROUND(F15 *2+5.5,0)),"") ->  | U36: =IF(U15<>"",IF(U15>2.5,10,ROUND(U15 *2+5.5,0)),"") -> 
B37: Otázka 13 | C37: steny | D37: Q | F37: =IF(F16<>"",IF(F16>2.5,10,ROUND(F16 *2+5.5,0)),"") ->  | U37: =IF(U16<>"",IF(U16>2.5,10,ROUND(U16 *2+5.5,0)),"") -> 
B38: Otázka 14 | C38: steny | D38: Q | F38: =IF(F17<>"",IF(F17>2.5,10,ROUND(F17 *2+5.5,0)),"") ->  | U38: =IF(U17<>"",IF(U17>2.5,10,ROUND(U17 *2+5.5,0)),"") -> 
B39: Otázka 15 | C39: steny | D39: Q | F39: =IF(F18<>"",IF(F18>2.5,10,ROUND(F18 *2+5.5,0)),"") ->  | U39: =IF(U18<>"",IF(U18>2.5,10,ROUND(U18 *2+5.5,0)),"") -> 
B40: Otázka 16 | C40: steny | D40: Q | F40: =IF(F19<>"",IF(F19>2.5,10,ROUND(F19 *2+5.5,0)),"") ->  | U40: =IF(U19<>"",IF(U19>2.5,10,ROUND(U19 *2+5.5,0)),"") -> 
B41: Otázka 17 | C41: steny | D41: Q | F41: =IF(F20<>"",IF(F20>2.5,10,ROUND(F20 *2+5.5,0)),"") ->  | U41: =IF(U20<>"",IF(U20>2.5,10,ROUND(U20 *2+5.5,0)),"") -> 
B42: Otázka 18 | C42: steny | D42: Q | F42: =IF(F21<>"",IF(F21>2.5,10,ROUND(F21 *2+5.5,0)),"") ->  | U42: =IF(U21<>"",IF(U21>2.5,10,ROUND(U21 *2+5.5,0)),"") -> 
B43: Otázka 19 | C43: steny | D43: Q | E43: =IF(E22<>"",IF(E22>2.5,10,ROUND(E22 *2+5.5,0)),"") ->  | U43: =IF(U22<>"",IF(U22>2.5,10,ROUND(U22 *2+5.5,0)),"") -> 
B44: Otázka 20 | C44: steny | D44: Q | E44: =IF(E23<>"",IF(E23>2.5,10,ROUND(E23 *2+5.5,0)),"") -> 
B46: Hranica normy P | C46: P_HH | D46: P | E46: =IF(E4<>"",7,"") -> 7 | F46: =IF(F4<>"",7,"") -> 7 | G46: 7 | H46: 7 | I46: 7 | J46: 7 | K46: 7 | L46: 7 | M46: 7 | N46: 7 | O46: 7 | P46: 7 | Q46: 7 | R46: 7 | S46: 7 | T46: 7 | U46: 7 | V46: 7 | W46: 7 | X46: 7
B47: Hranica normy N | C47: N_HH | D47: N | E47: =IF(E4<>"",3,"") -> 3 | F47: =IF(F4<>"",3,"") -> 3 | G47: 3 | H47: 3 | I47: 3 | J47: 3 | K47: 3 | L47: 3 | M47: 3 | N47: 3 | O47: 3 | P47: 3 | Q47: 3 | R47: 3 | S47: 3 | T47: 3 | U47: 3 | V47: 3 | W47: 3 | X47: 3
K49: Pozicie žiakov vo všetkých otázkach; 3 voľby Pozitívne konotácie versus Negatívne
D75: Pozicie žiakov v jednotlivých otázkach; 3 voľby

Sheet Histogramy
A1: 1 | B1: 3 | C1: 3 | D1: 4 | E1: 5 | F1: 6 | G1: 7 | H1: 8 | I1: 9 | J1: 10 | K1: 11 | L1: 12 | M1: 13 | N1: 14 | O1: 15 | P1: 16 | Q1: 17 | R1: 18 | S1: 19 | T1: 20 | U1: 21 | V1: 22 | W1: 23 | X1: 24 | Y1: 25 | Z1: 26 | AA1: 27 | AB1: 28 | AC1: 29 | AD1: 30 | AE1: 31 | AF1: 32 | AG1: 33 | AH1: 34 | AI1: 35 | AJ1: 36 | AK1: 37 | AL1: 38 | AM1: 39 | AN1: 40 | AO1: 41 | AP1: 42 | AQ1: 43 | AR1: 44 | AS1: 45 | AT1: 46 | AU1: 47 | AV1: 48 | AW1: 49 | AX1: 50 | AY1: 51 | AZ1: 52 | BA1: 53 | BB1: 54 | BC1: 55 | BD1: 56 | BE1: 57 | BF1: 58 | BG1: 59 | BH1: 60 | BI1: 61 | BJ1: 62 | BK1: 63 | BL1: 64 | BM1: 65 | BN1: 66 | BO1: 67 | BP1: 68 | BQ1: 69 | BR1: 70 | BS1: 71 | BT1: 72 | BU1: 73 | BV1: 74 | BW1: 75 | BX1: 76 | BY1: 77 | BZ1: 78 | CA1: 79 | CB1: 80 | CC1: 81 | CD1: 82 | CE1: 83 | CF1: 84 | CG1: 85 | CH1: 86 | CI1: 87 | CJ1: 88 | CK1: 89 | CL1: 90 | CM1: 91 | CN1: 92 | CO1: 93 | CP1: 94 | CQ1: 95 | CR1: 96 | CS1: 97 | CT1: 98 | CU1: 99 | CV1: 100 | CW1: 101 | CX1: 102 | CY1: 103 | CZ1: 104 | DA1: 105 | DB1: 106 | DC1: 107 | DD1: 108 | DE1: 109 | DF1: 110 | DG1: 111 | DH1: 112 | DI1: 113 | DJ1: 114 | DK1: 115 | DL1: 116 | DM1: 117 | DN1: 118 | DO1: 119 | DP1: 120 | DQ1: 121 | DR1: 122 | DS1: 123 | DT1: 124 | DU1: 125 | DV1: 126 | DW1: 127 | DX1: 128 | DY1: 129 | DZ1: 130 | EA1: 131 | EB1: 132 | EC1: 133 | ED1: 134 | EE1: 135 | EF1: 136 | EG1: 137 | EH1: 138 | EI1: 139 | EJ1: 140 | EK1: 141 | EL1: 142 | EM1: 143 | EN1: 144 | EO1: 145 | EP1: 146 | EQ1: 147 | ER1: 148 | ES1: 149 | ET1: 150 | EU1: 151 | EV1: 152 | EW1: 153 | EX1: 154 | EY1: 155 | EZ1: 156 | FA1: 157 | FB1: 158 | FC1: 159 | FD1: 160 | FE1: 161 | FF1: 162 | FG1: 163 | FH1: 164 | FI1: 165 | FJ1: 166 | FK1: 167 | FL1: 168 | FM1: 169 | FN1: 170 | FO1: 171 | FP1: 172 | FQ1: 173 | FR1: 174 | FS1: 175 | FT1: 176 | FU1: 177 | FV1: 178 | FW1: 179 | FX1: 180 | FY1: 181 | FZ1: 182 | GA1: 183 | GB1: 184 | GC1: 185 | GD1: 186 | GE1: 187 | GF1: 188 | GG1: 189 | GH1: 190 | GI1: 191 | GJ1: 192 | GK1: 193 | GL1: 194 | GM1: 195 | GN1: 196 | GO1: 197 | GP1: 198 | GQ1: 199 | GR1: 200 | GS1: 201 | GT1: 202 | GU1: 203 | GV1: 204 | GW1: 205 | GX1: 206 | GY1: 207 | GZ1: 208 | HA1: 209 | HB1: 210 | HC1: 211 | HD1: 212 | HE1: 213 | HF1: 214 | HG1: 215 | HH1: 216 | HI1: 217 | HJ1: 218 | HK1: 219 | HL1: 220 | HM1: 221 | HN1: 222 | HO1: 223 | HP1: 224 | HQ1: 225 | HR1: 226 | HS1: 227 | HT1: 228 | HU1: 229 | HV1: 230 | HW1: 231 | HX1: 232 | HY1: 233 | HZ1: 234 | IA1: 235 | IB1: 236 | IC1: 237 | ID1: 238 | IE1: 239 | IF1: 240 | IG1: 241 | IH1: 242 | II1: 243 | IJ1: 244 | IK1: 245 | IL1: 246 | IM1: 247 | IN1: 248 | IO1: 249 | IP1: 250 | IQ1: 251 | IR1: 252 | IS1: 253 | IT1: 254 | IU1: 255 | IV1: 256
B2: 20
C3: 0 | D3: 1 | E3: 2 | F3: 3 | G3: 4 | H3: 5 | I3: 6 | J3: 7 | K3: 8 | L3: 9 | M3: 10 | N3: 11 | O3: 12 | P3: 13 | Q3: 14 | R3: 15 | S3: 16 | T3: 17 | U3: 18 | V3: 19 | W3: 20 | X3: 21 | Y3: 22 | Z3: 23 | AA3: 24 | AB3: 25 | AC3: 26 | AD3: 27 | AE3: 28 | AF3: 29 | AG3: 30 | AH3: 31 | AI3: 32 | AJ3: 33 | AK3: 34 | AL3: 35 | AM3: 36 | AN3: 37 | AO3: 38 | AP3: 39 | AQ3: 40
A4: Konotácia | B4: Kód otázky | D4: 01_Oso m | E4: 02_Oso m | F4: 03_Oso m | G4: 04_Osor m | H4: 05_Oso m | I4: 06_Oso m | J4: 07_Oso m | K4: 08_Oso m | L4: 09_Oso m | M4: 10_Oso m | N4: 11_Oso m | O4: 12_Oso m | P4: 13_Oso m | Q4: 14_Oso f | R4: 15_Oso f | S4: 16_Oso f | T4: 17_Oso f | U4: 18_Oso f | V4: 19_Oso f | W4: 20_Oso f | AR4: MAX | AS4: AM | AT4: SD | AU4: MAX D | AV4: 1 | AX4: fi % | AY4: cum fi % | AZ4: gausso solo | BA4: gausso cumul | BB4: Gausso E kumul | BC4: Gausso E solo | BL4: 2 | BN4: fi % | BO4: cum fi % | BP4: gausso solo | BQ4: gausso cumul | BR4: Gausso E kumul | BS4: Gausso E solo | CB4: 3 | CD4: fi % | CE4: cum fi % | CF4: gausso solo | CG4: gausso cumul | CH4: Gausso E kumul | CI4: Gausso E solo | CR4: 4 | CT4: fi % | CU4: cum fi % | CV4: gausso solo | CW4: gausso cumul | CX4: Gausso E kumul | CY4: Gausso E solo | DH4: 5 | DJ4: fi % | DK4: cum fi % | DL4: gausso solo | DM4: gausso cumul | DN4: Gausso E kumul | DO4: Gausso E solo | DX4: 6 | DZ4: fi % | EA4: cum fi % | EB4: gausso solo | EC4: gausso cumul | ED4: Gausso E kumul | EE4: Gausso E solo | EN4: 7 | EP4: fi % | EQ4: cum fi % | ER4: gausso solo | ES4: gausso cumul | ET4: Gausso E kumul | EU4: Gausso E solo | FD4: 8 | FF4: fi % | FG4: cum fi % | FH4: gausso solo | FI4: gausso cumul | FJ4: Gausso E kumul | FK4: Gausso E solo | FT4: 9 | FV4: fi % | FW4: cum fi % | FX4: gausso solo | FY4: gausso cumul | FZ4: Gausso E kumul | GA4: Gausso E solo | GJ4: 10 | GL4: fi % | GM4: cum fi % | GN4: gausso solo | GO4: gausso cumul | GP4: Gausso E kumul | GQ4: Gausso E solo
A5: P | B5: Q_1 | C5: 1. Sedieť | D5: 2 | E5: 2 | F5: 1 | G5: 5 | H5: 4 | I5: 2 | J5: 1 | K5: 1 | L5: 4 | M5: 2 | N5: 0 | O5: 2 | P5: 5 | Q5: 2 | R5: 1 | S5: 4 | T5: 2 | U5: 3 | V5: 1 | W5: 0 | AR5: =IF(A5<>"Q",MAX(D5:AQ5),0) -> 5 | AS5: =IF(A5<>"Q",IF(AR5>0,AVERAGE(D5:AQ5),""),"") -> 2.2 | AT5: =IF(A5<>"Q",IF(AR5>0,STDEV(D5:AQ5),""),"") -> 1.50787407 | AU5: =IF(AR5<>"",IF(AR5<>0,IF(C5<>"",MAX(AR122,AR143),""),""),"") -> 0.2527597935 | AV5: Třídy | AW5: Četnost | BL5: Třídy | BM5: Četnost | CB5: Třídy | CC5: Četnost | CR5: Třídy | CS5: Četnost | DH5: Třídy | DI5: Četnost | DX5: Třídy | DY5: Četnost | EN5: Třídy | EO5: Četnost | FD5: Třídy | FE5: Četnost | FT5: Třídy | FU5: Četnost | GJ5: Třídy | GK5: Četnost
A6: P | B6: Q_2 | C6: 2. Učiť sa | D6: 3 | E6: 3 | F6: 0 | G6: 4 | H6: 2 | I6: 1 | J6: 0 | K6: 3 | L6: 2 | M6: 4 | N6: 1 | O6: 1 | P6: 1 | Q6: 3 | R6: 2 | S6: 3 | T6: 1 | U6: 3 | V6: 0 | W6: 0 | AR6: =IF(A6<>"Q",MAX(D6:AQ6),0) -> 4 | AS6: =IF(A6<>"Q",IF(AR6>0,AVERAGE(D6:AQ6),""),"") -> 1.85 | AT6: =IF(A6<>"Q",IF(AR6>0,STDEV(D6:AQ6),""),"") -> 1.348488433 | AU6: 0.2031167522 | AV6: 0 | AW6: 2 | AX6: =($AW$6/$B$2)*100 -> 10 | AY6: =($AY$5+$AX$6) -> 10 | AZ6: 2.140023392 | BA6: 2.140023392 | BB6: =(NORMSDIST(STANDARDIZE($AV$6,$AS$5,$AT$5)))*100 -> 7.228148311 | BC6: =NORMDIST($AV$6,$AS$5,$AT$5,FALSE)*100 -> 9.126470552 | BL6: 0 | BM6: 4 | BN6: =($BM$6/$B$2)*100 -> 20 | BO6: =($BO$5+$BN$6) -> 20 | BP6: 2.950733647 | BQ6: 2.950733647 | BR6: =(NORMSDIST(STANDARDIZE($BL$6,$AS$6,$AT$6)))*100 -> 8.504627861 | BS6: =NORMDIST($BL$6,$AS$6,$AT$6,FALSE)*100 -> 11.54420629 | CB6: 0 | CC6: 3 | CD6: =($CC$6/$B$2)*100 -> 15 | CE6: =($CE$5+$CD$6) -> 15 | CF6: 1.684145695 | CG6: 1.684145695 | CH6: =(NORMSDIST(STANDARDIZE($CB$6,$AS$7,$AT$7)))*100 -> 9.429672109 | CI6: =NORMDIST($CB$6,$AS$7,$AT$7,FALSE)*100 -> 10.04561509 | CR6: 0 | CS6: 10 | CT6: =($CS$6/$B$2)*100 -> 50 | CU6: =($CU$5+$CT$6) -> 50 | CV6: 0.924470942 | CW6: 0.924470942 | CX6: =(NORMSDIST(STANDARDIZE($CR$6,$AS$8,$AT$8)))*100 -> 26.91184435 | CY6: =NORMDIST($CR$6,$AS$8,$AT$8,FALSE)*100 -> 12.31351053 | DH6: 0 | DI6: 4 | DJ6: =($DI$6/$B$2)*100 -> 20 | DK6: =($DK$5+$DJ$6) -> 20 | DL6: 4.736129194 | DM6: 4.736129194 | DN6: =(NORMSDIST(STANDARDIZE($DH$6,$AS$9,$AT$9)))*100 -> 6.826377483 | DO6: =NORMDIST($DH$6,$AS$9,$AT$9,FALSE)*100 -> 14.00519547 | DX6: 0 | DY6: 6 | DZ6: =($DY$6/$B$2)*100 -> 30 | EA6: =($EA$5+$DZ$6) -> 30 | EB6: 0.924470942 | EC6: 0.924470942 | ED6: =(NORMSDIST(STANDARDIZE($DX$6,$AS$10,$AT$10)))*100 -> 18.98047386 | EE6: =NORMDIST($DX$6,$AS$10,$AT$10,FALSE)*100 -> 10.35979216 | EN6: 0 | EO6: 5 | EP6: =($EO$6/$B$2)*100 -> 25 | EQ6: =($EQ$5+$EP$6) -> 25 | ER6: 2.140023392 | ES6: 2.140023392 | ET6: =(NORMSDIST(STANDARDIZE($EN$6,$AS$11,$AT$11)))*100 -> 11.54801828 | EU6: =NORMDIST($EN$6,$AS$11,$AT$11,FALSE)*100 -> 12.27383429 | FD6: 0 | FE6: 7 | FF6: =($FE$6/$B$2)*100 -> 35 | FG6: =($FG$5+$FF$6) -> 35 | FH6: 1.189512043 | FI6: 1.189512043 | FJ6: =(NORMSDIST(STANDARDIZE($FD$6,$AS$12,$AT$12)))*100 -> 21.06585088 | FK6: =NORMDIST($FD$6,$AS$12,$AT$12,FALSE)*100 -> 12.89889751 | FT6: 0 | FU6: 6 | FV6: =($FU$6/$B$2)*100 -> 30 | FW6: =($FW$5+$FV$6) -> 30 | FX6: 1.189512043 | FY6: 1.189512043 | FZ6: =(NORMSDIST(STANDARDIZE($FT$6,$AS$13,$AT$13)))*100 -> 20.98470389 | GA6: =NORMDIST($FT$6,$AS$13,$AT$13,FALSE)*100 -> 11.92128512 | GJ6: 0 | GK6: 8 | GL6: =($GK$6/$B$2)*100 -> 40 | GM6: =($GM$5+$GL$6) -> 40 | GN6: 2.140023392 | GO6: 2.140023392 | GP6: =(NORMSDIST(STANDARDIZE($GJ$6,$AS$14,$AT$14)))*100 -> 17.73827508 | GQ6: =NORMDIST($GJ$6,$AS$14,$AT$14,FALSE)*100 -> 15.03700203
A7: P | B7: Q_3 | C7: 3. Ostrov | D7: 3 | E7: 2 | F7: 0 | G7: 6 | H7: 4 | I7: 1 | J7: 0 | K7: 1 | L7: 2 | M7: 3 | N7: 1 | O7: 1 | P7: 5 | Q7: 2 | R7: 3 | S7: 4 | T7: 3 | U7: 2 | V7: 0 | W7: 1 | AR7: 6 | AS7: 2.2 | AT7: 1.673320053 | AU7: 0.1633552673 | AV7: 1 | AW7: 5 | AX7: =($AW$7/$B$2)*100 -> 25 | AY7: =($AY$6+$AX$7) -> 35 | AZ7: 13.5905122 | BA7: 15.73053559 | BB7: =(NORMSDIST(STANDARDIZE($AV$7,$AS$5,$AT$5)))*100 -> 21.30676276 | BC7: =NORMDIST($AV$7,$AS$5,$AT$5,FALSE)*100 -> 19.2760661 | BL7: 1 | BM7: 5 | BN7: =($BM$7/$B$2)*100 -> 25 | BO7: =($BO$6+$BN$7) -> 45 | BP7: 23.55891673 | BQ7: 26.50965037 | BR7: =(NORMSDIST(STANDARDIZE($BL$7,$AS$6,$AT$6)))*100 -> 26.42375822 | BS7: =NORMDIST($BL$7,$AS$6,$AT$6,FALSE)*100 -> 24.25410804 | CB7: 1 | CC7: 5 | CD7: =($CC$7/$B$2)*100 -> 25 | CE7: =($CE$6+$CD$7) -> 40 | CF7: 8.703934848 | CG7: 10.38808054 | CH7: =(NORMSDIST(STANDARDIZE($CB$7,$AS$7,$AT$7)))*100 -> 23.66447327 | CI7: =NORMDIST($CB$7,$AS$7,$AT$7,FALSE)*100 -> 18.43551721 | CR7: 1 | CS7: 5 | CT7: =($CS$7/$B$2)*100 -> 25 | CU7: =($CU$6+$CT$7) -> 75 | CV7: 2.783468421 | CW7: 3.707939363 | CX7: =(NORMSDIST(STANDARDIZE($CR$7,$AS$8,$AT$8)))*100 -> 40.42109646 | CY7: =NORMDIST($CR$7,$AS$8,$AT$8,FALSE)*100 -> 14.45025012 | DH7: 1 | DI7: 6 | DJ7: =($DI$7/$B$2)*100 -> 30 | DK7: =($DK$6+$DJ$7) -> 50 | DL7: 45.22096477 | DM7: 49.95709397 | DN7: =(NORMSDIST(STANDARDIZE($DH$7,$AS$9,$AT$9)))*100 -> 33.52780269 | DO7: =NORMDIST($DH$7,$AS$9,$AT$9,FALSE)*100 -> 38.75599714 | DX7: 1 | DY7: 5 | DZ7: =($DY$7/$B$2)*100 -> 25 | EA7: =($EA$6+$DZ$7) -> 55 | EB7: 2.783468421 | EC7: 3.707939363 | ED7: =(NORMSDIST(STANDARDIZE($DX$7,$AS$10,$AT$10)))*100 -> 30.97323725 | EE7: =NORMDIST($DX$7,$AS$10,$AT$10,FALSE)*100 -> 13.47188587 | EN7: 1 | EO7: 4 | EP7: =($EO$7/$B$2)*100 -> 20 | EQ7: =($EQ$6+$EP$7) -> 45 | ER7: 13.5905122 | ES7: 15.73053559 | ET7: =(NORMSDIST(STANDARDIZE($EN$7,$AS$11,$AT$11)))*100 -> 28.5214112 | EU7: =NORMDIST($EN$7,$AS$11,$AT$11,FALSE)*100 -> 21.41207594 | FD7: 1 | FE7: 5 | FF7: =($FE$7/$B$2)*100 -> 25 | FG7: =($FG$6+$FF$7) -> 60 | FH7: 4.473210132 | FI7: 5.662722176 | FJ7: =(NORMSDIST(STANDARDIZE($FD$7,$AS$12,$AT$12)))*100 -> 36.03981087 | FK7: =NORMDIST($FD$7,$AS$12,$AT$12,FALSE)*100 -> 16.71983309 | FT7: 1 | FU7: 6 | FV7: =($FU$7/$B$2)*100 -> 30 | FW7: =($FW$6+$FV$7) -> 60 | FX7: 4.473210132 | FY7: 5.662722176 | FZ7: =(NORMSDIST(STANDARDIZE($FT$7,$AS$13,$AT$13)))*100 -> 34.71115445 | GA7: =NORMDIST($FT$7,$AS$13,$AT$13,FALSE)*100 -> 15.28138648 | GJ7: 1 | GK7: 4 | GL7: =($GK$7/$B$2)*100 -> 20 | GM7: =($GM$6+$GL$7) -> 60 | GN7: 13.5905122 | GO7: 15.73053559 | GP7: =(NORMSDIST(STANDARDIZE($GJ$7,$AS$14,$AT$14)))*100 -> 36.42883336 | GQ7: =NORMDIST($GJ$7,$AS$14,$AT$14,FALSE)*100 -> 21.72517469
A8: P | B8: Q_4 | C8: 4. Hájiť | D8: 0 | E8: 1 | F8: 0 | G8: 1 | H8: 3 | I8: 0 | J8: 0 | K8: 0 | L8: 0 | M8: 10 | N8: 0 | O8: 0 | P8: 1 | Q8: 1 | R8: 1 | S8: 6 | T8: 0 | U8: 4 | V8: 0 | W8: 5 | AR8: 10 | AS8: 1.65 | AT8: 2.680828623 | AU8: 0.3457890354 | AV8: 2 | AW8: 7 | AX8: =($AW$8/$B$2)*100 -> 35 | AY8: =($AY$7+$AX$8) -> 70 | AZ8: 34.13447461 | BA8: 49.8650102 | BB8: =(NORMSDIST(STANDARDIZE($AV$8,$AS$5,$AT$5)))*100 -> 44.72402065 | BC8: =NORMDIST($AV$8,$AS$5,$AT$5,FALSE)*100 -> 26.22556238 | BL8: 2 | BM8: 3 | BN8: =($BM$8/$B$2)*100 -> 15 | BO8: =($BO$7+$BN$8) -> 60 | BP8: 46.80289419 | BQ8: 73.31254457 | BR8: =(NORMSDIST(STANDARDIZE($BL$8,$AS$6,$AT$6)))*100 -> 54.42852625 | BS8: =NORMDIST($BL$8,$AS$6,$AT$6,FALSE)*100 -> 29.40194067 | CB8: 2 | CC8: 4 | CD8: =($CC$8/$B$2)*100 -> 20 | CE8: =($CE$7+$CD$8) -> 60 | CF8: 23.28113458 | CG8: 33.66921513 | CH8: =(NORMSDIST(STANDARDIZE($CB$8,$AS$7,$AT$7)))*100 -> 45.24305647 | CI8: =NORMDIST($CB$8,$AS$7,$AT$7,FALSE)*100 -> 23.67167266 | CR8: 2 | CS8: 0 | CT8: =($CS$8/$B$2)*100 -> 0 | CU8: =($CU$7+$CT$8) -> 75 | CV8: 6.55906168 | CW8: 10.26700104 | CX8: =(NORMSDIST(STANDARDIZE($CR$8,$AS$8,$AT$8)))*100 -> 55.19369807 | CY8: =NORMDIST($CR$8,$AS$8,$AT$8,FALSE)*100 -> 14.75501757 | DH8: 2 | DI8: 8 | DJ8: =($DI$8/$B$2)*100 -> 40 | DK8: =($DK$7+$DJ$8) -> 90 | DL8: 45.22096477 | DM8: 95.17805874 | DN8: =(NORMSDIST(STANDARDIZE($DH$8,$AS$9,$AT$9)))*100 -> 73.8288374 | DO8: =NORMDIST($DH$8,$AS$9,$AT$9,FALSE)*100 -> 34.61164792 | DX8: 2 | DY8: 1 | DZ8: =($DY$8/$B$2)*100 -> 5 | EA8: =($EA$7+$DZ$8) -> 60 | EB8: 6.55906168 | EC8: 10.26700104 | ED8: =(NORMSDIST(STANDARDIZE($DX$8,$AS$10,$AT$10)))*100 -> 45.43802589 | EE8: =NORMDIST($DX$8,$AS$10,$AT$10,FALSE)*100 -> 15.14012429 | EN8: 2 | EO8: 4 | EP8: =($EO$8/$B$2)*100 -> 20 | EQ8: =($EQ$7+$EP$8) -> 65 | ER8: 34.13447461 | ES8: 49.8650102 | ET8: =(NORMSDIST(STANDARDIZE($EN$8,$AS$11,$AT$11)))*100 -> 52.513537 | EU8: =NORMDIST($EN$8,$AS$11,$AT$11,FALSE)*100 -> 25.10208411 | FD8: 2 | FE8: 3 | FF8: =($FE$8/$B$2)*100 -> 15 | FG8: =($FG$7+$FF$8) -> 75 | FH8: 11.51655889 | FI8: 17.17928107 | FJ8: =(NORMSDIST(STANDARDIZE($FD$8,$AS$12,$AT$12)))*100 -> 53.5597611 | FK8: =NORMDIST($FD$8,$AS$12,$AT$12,FALSE)*100 -> 17.75149211 | FT8: 2 | FU8: 3 | FV8: =($FU$8/$B$2)*100 -> 15 | FW8: =($FW$7+$FV$8) -> 75 | FX8: 11.51655889 | FY8: 17.17928107 | FZ8: =(NORMSDIST(STANDARDIZE($FT$8,$AS$13,$AT$13)))*100 -> 50.82539575 | GA8: =NORMDIST($FT$8,$AS$13,$AT$13,FALSE)*100 -> 16.5055594 | GJ8: 2 | GK8: 1 | GL8: =($GK$8/$B$2)*100 -> 5 | GM8: =($GM$7+$GL$8) -> 65 | GN8: 34.13447461 | GO8: 49.8650102 | GP8: =(NORMSDIST(STANDARDIZE($GJ$8,$AS$14,$AT$14)))*100 -> 59.14771237 | GQ8: =NORMDIST($GJ$8,$AS$14,$AT$14,FALSE)*100 -> 22.46418844
A9: P | B9: Q_5 | C9: 5. Tajomstvo | D9: 2 | E9: 1 | F9: 0 | G9: 2 | H9: 2 | I9: 2 | J9: 1 | K9: 2 | L9: 1 | M9: 3 | N9: 0 | O9: 1 | P9: 2 | Q9: 1 | R9: 3 | S9: 2 | T9: 2 | U9: 1 | V9: 0 | W9: 0 | AR9: 3 | AS9: 1.4 | AT9: 0.940324692 | AU9: 0.238288374 | AV9: 3 | AW9: 1 | AX9: =($AW$9/$B$2)*100 -> 5 | AY9: =($AY$8+$AX$9) -> 75 | AZ9: 34.13447461 | BA9: 83.9994848 | BB9: =(NORMSDIST(STANDARDIZE($AV$9,$AS$5,$AT$5)))*100 -> 70.21340793 | BC9: =NORMDIST($AV$9,$AS$5,$AT$5,FALSE)*100 -> 22.98381227 | BL9: 3 | BM9: 6 | BN9: =($BM$9/$B$2)*100 -> 30 | BO9: =($BO$8+$BN$9) -> 90 | BP9: 23.55891673 | BQ9: 96.87146129 | BR9: =(NORMSDIST(STANDARDIZE($BL$9,$AS$6,$AT$6)))*100 -> 80.31167522 | BS9: =NORMDIST($BL$9,$AS$6,$AT$6,FALSE)*100 -> 20.56535193 | CB9: 3 | CC9: 4 | CD9: =($CC$9/$B$2)*100 -> 20 | CE9: =($CE$8+$CD$9) -> 80 | CF9: 32.3077761 | CG9: 65.97699123 | CH9: =(NORMSDIST(STANDARDIZE($CB$9,$AS$7,$AT$7)))*100 -> 68.37074392 | CI9: =NORMDIST($CB$9,$AS$7,$AT$7,FALSE)*100 -> 21.26656731 | CR9: 3 | CS9: 1 | CT9: =($CS$9/$B$2)*100 -> 5 | CU9: =($CU$8+$CT$9) -> 80 | CV9: 12.09775787 | CW9: 22.36475891 | CX9: =(NORMSDIST(STANDARDIZE($CR$9,$AS$8,$AT$8)))*100 -> 69.27201942 | CY9: =NORMDIST($CR$9,$AS$8,$AT$8,FALSE)*100 -> 13.10916369 | DH9: 3 | DI9: 2 | DJ9: =($DI$9/$B$2)*100 -> 10 | DK9: =($DK$8+$DJ$9) -> 100 | DL9: 4.736129194 | DM9: 99.91418793 | DN9: =(NORMSDIST(STANDARDIZE($DH$9,$AS$9,$AT$9)))*100 -> 95.55791757 | DO9: =NORMDIST($DH$9,$AS$9,$AT$9,FALSE)*100 -> 9.975605389 | DX9: 3 | DY9: 2 | DZ9: =($DY$9/$B$2)*100 -> 10 | EA9: =($EA$8+$DZ$9) -> 70 | EB9: 12.09775787 | EC9: 22.36475891 | ED9: =(NORMSDIST(STANDARDIZE($DX$9,$AS$10,$AT$10)))*100 -> 60.54212834 | EE9: =NORMDIST($DX$9,$AS$10,$AT$10,FALSE)*100 -> 14.70463263 | EN9: 3 | EO9: 3 | EP9: =($EO$9/$B$2)*100 -> 15 | EQ9: =($EQ$8+$EP$9) -> 80 | ER9: 34.13447461 | ES9: 83.9994848 | ET9: =(NORMSDIST(STANDARDIZE($EN$9,$AS$11,$AT$11)))*100 -> 75.60066311 | EU9: =NORMDIST($EN$9,$AS$11,$AT$11,FALSE)*100 -> 19.77576407 | FD9: 3 | FE9: 2 | FF9: =($FE$9/$B$2)*100 -> 10 | FG9: =($FG$8+$FF$9) -> 85 | FH9: 20.30795696 | FI9: 37.48723804 | FJ9: =(NORMSDIST(STANDARDIZE($FD$9,$AS$12,$AT$12)))*100 -> 70.40526205 | FK9: =NORMDIST($FD$9,$AS$12,$AT$12,FALSE)*100 -> 15.43694547 | FT9: 3 | FU9: 1 | FV9: =($FU$9/$B$2)*100 -> 5 | FW9: =($FW$8+$FV$9) -> 80 | FX9: 20.30795696 | FY9: 37.48723804 | FZ9: =(NORMSDIST(STANDARDIZE($FT$9,$AS$13,$AT$13)))*100 -> 66.80419025 | GA9: =NORMDIST($FT$9,$AS$13,$AT$13,FALSE)*100 -> 15.02192329 | GJ9: 3 | GK9: 3 | GL9: =($GK$9/$B$2)*100 -> 15 | GM9: =($GM$8+$GL$9) -> 80 | GN9: 34.13447461 | GO9: 83.9994848 | GP9: =(NORMSDIST(STANDARDIZE($GJ$9,$AS$14,$AT$14)))*100 -> 79.09471899 | GQ9: =NORMDIST($GJ$9,$AS$14,$AT$14,FALSE)*100 -> 16.62430994
A10: N | B10: Q_6 | C10: 6. Nesedieť | D10: 1 | E10: 0 | F10: 4 | G10: 1 | H10: 1 | I10: 0 | J10: 0 | K10: 0 | L10: 3 | M10: 1 | N10: 6 | O10: 0 | P10: 1 | Q10: 4 | R10: 3 | S10: 4 | T10: 2 | U10: 0 | V10: 10 | W10: 5 | AR10: 10 | AS10: 2.3 | AT10: 2.617753155 | AU10: 0.2402676275 | AV10: 4 | AW10: 3 | AX10: =($AW$10/$B$2)*100 -> 15 | AY10: =($AY$9+$AX$10) -> 90 | AZ10: 13.5905122 | BA10: 97.589997 | BB10: =(NORMSDIST(STANDARDIZE($AV$10,$AS$5,$AT$5)))*100 -> 88.37089112 | BC10: =NORMDIST($AV$10,$AS$5,$AT$5,FALSE)*100 -> 12.97508389 | BL10: 4 | BM10: 2 | BN10: =($BM$10/$B$2)*100 -> 10 | BO10: =($BO$9+$BN$10) -> 100 | BP10: 2.950733647 | BQ10: 99.82219494 | BR10: =(NORMSDIST(STANDARDIZE($BL$10,$AS$6,$AT$6)))*100 -> 94.45742775 | BS10: =NORMDIST($BL$10,$AS$6,$AT$6,FALSE)*100 -> 8.299764217 | CB10: 4 | CC10: 2 | CD10: =($CC$10/$B$2)*100 -> 10 | CE10: =($CE$9+$CD$10) -> 90 | CF10: 23.28113458 | CG10: 89.25812581 | CH10: =(NORMSDIST(STANDARDIZE($CB$10,$AS$7,$AT$7)))*100 -> 85.89705621 | CI10: =NORMDIST($CB$10,$AS$7,$AT$7,FALSE)*100 -> 13.36782253 | CR10: 4 | CS10: 1 | CT10: =($CS$10/$B$2)*100 -> 5 | CU10: =($CU$9+$CT$10) -> 85 | CV10: 17.46663219 | CW10: 39.83139111 | CX10: =(NORMSDIST(STANDARDIZE($CR$10,$AS$8,$AT$8)))*100 -> 80.96465741 | CY10: =NORMDIST($CR$10,$AS$8,$AT$8,FALSE)*100 -> 10.13400538 | DH10: Další | DI10: 0 | DX10: 4 | DY10: 3 | DZ10: =($DY$10/$B$2)*100 -> 15 | EA10: =($EA$9+$DZ$10) -> 85 | EB10: 17.46663219 | EC10: 39.83139111 | ED10: =(NORMSDIST(STANDARDIZE($DX$10,$AS$10,$AT$10)))*100 -> 74.19639067 | EE10: =NORMDIST($DX$10,$AS$10,$AT$10,FALSE)*100 -> 12.34248508 | EN10: 4 | EO10: 3 | EP10: =($EO$10/$B$2)*100 -> 15 | EQ10: =($EQ$9+$EP$10) -> 95 | ER10: 13.5905122 | ES10: 97.589997 | ET10: =(NORMSDIST(STANDARDIZE($EN$10,$AS$11,$AT$11)))*100 -> 90.72455221 | EU10: =NORMDIST($EN$10,$AS$11,$AT$11,FALSE)*100 -> 10.46957977 | FD10: 4 | FE10: 0 | FF10: =($FE$10/$B$2)*100 -> 0 | FG10: =($FG$9+$FF$10) -> 85 | FH10: 24.53394369 | FI10: 62.02118173 | FJ10: =(NORMSDIST(STANDARDIZE($FD$10,$AS$12,$AT$12)))*100 -> 83.71558926 | FK10: =NORMDIST($FD$10,$AS$12,$AT$12,FALSE)*100 -> 10.99541072 | FT10: 4 | FU10: 2 | FV10: =($FU$10/$B$2)*100 -> 10 | FW10: =($FW$9+$FV$10) -> 90 | FX10: 24.53394369 | FY10: 62.02118173 | FZ10: =(NORMSDIST(STANDARDIZE($FT$10,$AS$13,$AT$13)))*100 -> 80.18740796 | GA10: =NORMDIST($FT$10,$AS$13,$AT$13,FALSE)*100 -> 11.51989806 | GJ10: 4 | GK10: 3 | GL10: =($GK$10/$B$2)*100 -> 15 | GM10: =($GM$9+$GL$10) -> 95 | GN10: 13.5905122 | GO10: 97.589997 | GP10: =(NORMSDIST(STANDARDIZE($GJ$10,$AS$14,$AT$14)))*100 -> 91.74433542 | GQ10: =NORMDIST($GJ$10,$AS$14,$AT$14,FALSE)*100 -> 8.804849928
A11: N | B11: Q_7 | C11: 7. Neučiť sa | D11: 0 | E11: 1 | F11: 1 | G11: 2 | H11: 2 | I11: 1 | J11: 4 | K11: 0 | L11: 3 | M11: 0 | N11: 5 | O11: 2 | P11: 4 | Q11: 0 | R11: 3 | S11: 2 | T11: 1 | U11: 0 | V11: 4 | W11: 3 | AR11: 5 | AS11: 1.9 | AT11: 1.586124041 | AU11: 0.164785888 | AV11: 5 | AW11: 2 | AX11: =($AW$11/$B$2)*100 -> 10 | AY11: =($AY$10+$AX$11) -> 100 | AZ11: 2.140023392 | BA11: 99.73002039 | BB11: =(NORMSDIST(STANDARDIZE($AV$11,$AS$5,$AT$5)))*100 -> 96.833866 | BC11: =NORMDIST($AV$11,$AS$5,$AT$5,FALSE)*100 -> 4.718338952 | BL11: Další | BM11: 0 | CB11: 5 | CC11: 1 | CD11: =($CC$11/$B$2)*100 -> 5 | CE11: =($CE$10+$CD$11) -> 95 | CF11: 8.703934848 | CG11: 97.96206066 | CH11: =(NORMSDIST(STANDARDIZE($CB$11,$AS$7,$AT$7)))*100 -> 95.28678466 | CI11: =NORMDIST($CB$11,$AS$7,$AT$7,FALSE)*100 -> 5.879207325 | CR11: 5 | CS11: 1 | CT11: =($CS$11/$B$2)*100 -> 5 | CU11: =($CU$10+$CT$11) -> 90 | CV11: 19.74126514 | CW11: 59.57265624 | CX11: =(NORMSDIST(STANDARDIZE($CR$11,$AS$8,$AT$8)))*100 -> 89.42796401 | CY11: =NORMDIST($CR$11,$AS$8,$AT$8,FALSE)*100 -> 6.81644858 | DX11: 5 | DY11: 1 | DZ11: =($DY$11/$B$2)*100 -> 5 | EA11: =($EA$10+$DZ$11) -> 90 | EB11: 19.74126514 | EC11: 59.57265624 | ED11: =(NORMSDIST(STANDARDIZE($DX$11,$AS$10,$AT$10)))*100 -> 84.88277821 | EE11: =NORMDIST($DX$11,$AS$10,$AT$10,FALSE)*100 -> 8.953126806 | EN11: 5 | EO11: 1 | EP11: =($EO$11/$B$2)*100 -> 5 | EQ11: =($EQ$10+$EP$11) -> 100 | ER11: 2.140023392 | ES11: 99.73002039 | ET11: =(NORMSDIST(STANDARDIZE($EN$11,$AS$11,$AT$11)))*100 -> 97.46759838 | EU11: =NORMDIST($EN$11,$AS$11,$AT$11,FALSE)*100 -> 3.724755023 | FD11: 5 | FE11: 1 | FF11: =($FE$11/$B$2)*100 -> 5 | FG11: =($FG$10+$FF$11) -> 90 | FH11: 20.30795696 | FI11: 82.32913869 | FJ11: =(NORMSDIST(STANDARDIZE($FD$11,$AS$12,$AT$12)))*100 -> 92.35811252 | FK11: =NORMDIST($FD$11,$AS$12,$AT$12,FALSE)*100 -> 6.414829581 | FT11: 5 | FU11: 0 | FV11: =($FU$11/$B$2)*100 -> 0 | FW11: =($FW$10+$FV$11) -> 90 | FX11: 20.30795696 | FY11: 82.32913869 | FZ11: =(NORMSDIST(STANDARDIZE($FT$11,$AS$13,$AT$13)))*100 -> 89.65536451 | GA11: =NORMDIST($FT$11,$AS$13,$AT$13,FALSE)*100 -> 7.443882957 | GJ11: 5 | GK11: 1 | GL11: =($GK$11/$B$2)*100 -> 5 | GM11: =($GM$10+$GL$11) -> 100 | GN11: 2.140023392 | GO11: 99.73002039 | GP11: =(NORMSDIST(STANDARDIZE($GJ$11,$AS$14,$AT$14)))*100 -> 97.53763187 | GQ11: =NORMDIST($GJ$11,$AS$14,$AT$14,FALSE)*100 -> 3.337534215
A12: N | B12: Q_8 | C12: 8. Nie Ostrov | D12: 2 | E12: 0 | F12: 3 | G12: 1 | H12: 2 | I12: 0 | J12: 1 | K12: 1 | L12: 1 | M12: 0 | N12: 5 | O12: 0 | P12: 2 | Q12: 0 | R12: 1 | S12: 3 | T12: 0 | U12: 0 | V12: 8 | W12: 6 | AR12: 8 | AS12: 1.8 | AT12: 2.238420496 | AU12: 0.2396018913 | AV12: Další | AW12: 0 | CB12: 6 | CC12: 1 | CD12: =($CC$12/$B$2)*100 -> 5 | CE12: =($CE$11+$CD$12) -> 100 | CF12: 1.684145695 | CG12: 99.64620635 | CH12: =(NORMSDIST(STANDARDIZE($CB$12,$AS$7,$AT$7)))*100 -> 98.8424524 | CI12: =NORMDIST($CB$12,$AS$7,$AT$7,FALSE)*100 -> 1.809138049 | CR12: 6 | CS12: 1 | CT12: =($CS$12/$B$2)*100 -> 5 | CU12: =($CU$11+$CT$12) -> 95 | CV12: 17.46663219 | CW12: 77.03928844 | CX12: =(NORMSDIST(STANDARDIZE($CR$12,$AS$8,$AT$8)))*100 -> 94.76660196 | CY12: =NORMDIST($CR$12,$AS$8,$AT$8,FALSE)*100 -> 3.989386229 | DX12: 6 | DY12: 1 | DZ12: =($DY$12/$B$2)*100 -> 5 | EA12: =($EA$11+$DZ$12) -> 95 | EB12: 17.46663219 | EC12: 77.03928844 | ED12: =(NORMSDIST(STANDARDIZE($DX$12,$AS$10,$AT$10)))*100 -> 92.12347266 | EE12: =NORMDIST($DX$12,$AS$10,$AT$10,FALSE)*100 -> 5.612683508 | EN12: Další | EO12: 0 | FD12: 6 | FE12: 1 | FF12: =($FE$12/$B$2)*100 -> 5 | FG12: =($FG$11+$FF$12) -> 95 | FH12: 11.51655889 | FI12: 93.84569759 | FJ12: =(NORMSDIST(STANDARDIZE($FD$12,$AS$12,$AT$12)))*100 -> 96.9694534 | FK12: =NORMDIST($FD$12,$AS$12,$AT$12,FALSE)*100 -> 3.065366242 | FT12: 6 | FU12: 0 | FV12: =($FU$12/$B$2)*100 -> 0 | FW12: =($FW$11+$FV$12) -> 90 | FX12: 11.51655889 | FY12: 93.84569759 | FZ12: =(NORMSDIST(STANDARDIZE($FT$12,$AS$13,$AT$13)))*100 -> 95.31286949 | GA12: =NORMDIST($FT$12,$AS$13,$AT$13,FALSE)*100 -> 4.053015269 | GJ12: Další | GK12: 0
A13: N | B13: Q_9 | C13: 9. Nie Hájiť | D13: 2 | E13: 1 | F13: 3 | G13: 1 | H13: 2 | I13: 0 | J13: 1 | K13: 0 | L13: 2 | M13: 0 | N13: 8 | O13: 0 | P13: 4 | Q13: 1 | R13: 1 | S13: 1 | T13: 0 | U13: 0 | V13: 8 | W13: 4 | AR13: 8 | AS13: 1.95 | AT13: 2.416500297 | AU13: 0.2528884555 | CB13: Další | CC13: 0 | CR13: 7 | CS13: 0 | CT13: =($CS$13/$B$2)*100 -> 0 | CU13: =($CU$12+$CT$13) -> 95 | CV13: 12.09775787 | CW13: 89.13704631 | CX13: =(NORMSDIST(STANDARDIZE($CR$13,$AS$8,$AT$8)))*100 -> 97.7014072 | CY13: =NORMDIST($CR$13,$AS$8,$AT$8,FALSE)*100 -> 2.031537737 | DX13: 7 | DY13: 0 | DZ13: =($DY$13/$B$2)*100 -> 0 | EA13: =($EA$12+$DZ$13) -> 95 | EB13: 12.09775787 | EC13: 89.13704631 | ED13: =(NORMSDIST(STANDARDIZE($DX$13,$AS$10,$AT$10)))*100 -> 96.37076185 | EE13: =NORMDIST($DX$13,$AS$10,$AT$10,FALSE)*100 -> 3.04081546 | FD13: 7 | FE13: 0 | FF13: =($FE$13/$B$2)*100 -> 0 | FG13: =($FG$12+$FF$13) -> 95 | FH13: 4.473210132 | FI13: 98.31890772 | FJ13: =(NORMSDIST(STANDARDIZE($FD$13,$AS$12,$AT$12)))*100 -> 98.99122139 | FK13: =NORMDIST($FD$13,$AS$12,$AT$12,FALSE)*100 -> 1.199784364 | FT13: 7 | FU13: 0 | FV13: =($FU$13/$B$2)*100 -> 0 | FW13: =($FW$12+$FV$13) -> 90 | FX13: 4.473210132 | FY13: 98.31890772 | FZ13: =(NORMSDIST(STANDARDIZE($FT$13,$AS$13,$AT$13)))*100 -> 98.16820722 | GA13: =NORMDIST($FT$13,$AS$13,$AT$13,FALSE)*100 -> 1.85945104
A14: N | B14: Q_10 | C14: 10. Nezveril | D14: 1 | E14: 0 | F14: 1 | G14: 3 | H14: 5 | I14: 0 | J14: 3 | K14: 0 | L14: 2 | M14: 1 | N14: 4 | O14: 1 | P14: 3 | Q14: 0 | R14: 0 | S14: 0 | T14: 0 | U14: 0 | V14: 4 | W14: 4 | AR14: 5 | AS14: 1.6 | AT14: 1.729009452 | AU14: 0.2357116664 | CR14: 8 | CS14: 0 | CT14: =($CS$14/$B$2)*100 -> 0 | CU14: =($CU$13+$CT$14) -> 95 | CV14: 6.55906168 | CW14: 95.69610799 | CX14: =(NORMSDIST(STANDARDIZE($CR$14,$AS$8,$AT$8)))*100 -> 99.1073928 | CY14: =NORMDIST($CR$14,$AS$8,$AT$8,FALSE)*100 -> 0.9001493924 | DX14: 8 | DY14: 0 | DZ14: =($DY$14/$B$2)*100 -> 0 | EA14: =($EA$13+$DZ$14) -> 95 | EB14: 6.55906168 | EC14: 95.69610799 | ED14: =(NORMSDIST(STANDARDIZE($DX$14,$AS$10,$AT$10)))*100 -> 98.52761169 | EE14: =NORMDIST($DX$14,$AS$10,$AT$10,FALSE)*100 -> 1.423748465 | FD14: 8 | FE14: 1 | FF14: =($FE$14/$B$2)*100 -> 5 | FG14: =($FG$13+$FF$14) -> 100 | FH14: 1.189512043 | FI14: 99.50841976 | FJ14: =(NORMSDIST(STANDARDIZE($FD$14,$AS$12,$AT$12)))*100 -> 99.7195552 | FK14: =NORMDIST($FD$14,$AS$12,$AT$12,FALSE)*100 -> 0.3846339415 | FT14: 8 | FU14: 2 | FV14: =($FU$14/$B$2)*100 -> 10 | FW14: =($FW$13+$FV$14) -> 100 | FX14: 1.189512043 | FY14: 99.50841976 | FZ14: =(NORMSDIST(STANDARDIZE($FT$14,$AS$13,$AT$13)))*100 -> 99.38535117 | GA14: =NORMDIST($FT$14,$AS$13,$AT$13,FALSE)*100 -> 0.7188181912
A15: Q | B15: Q_1 | C15: 11. Nezadaná | D15: 0 | E15: 0 | F15: 0 | G15: 0 | H15: 0 | I15: 0 | J15: 0 | K15: 0 | L15: 0 | M15: 0 | N15: 0 | O15: 0 | P15: 0 | Q15: 0 | R15: 0 | S15: 0 | T15: 0 | U15: 0 | V15: 0 | W15: 0 | AR15: 0 | CR15: 9 | CS15: 0 | CT15: =($CS$15/$B$2)*100 -> 0 | CU15: =($CU$14+$CT$15) -> 95 | CV15: 2.783468421 | CW15: 98.47957641 | CX15: =(NORMSDIST(STANDARDIZE($CR$15,$AS$8,$AT$8)))*100 -> 99.69437965 | CY15: =NORMDIST($CR$15,$AS$8,$AT$8,FALSE)*100 -> 0.3470365201 | DX15: 9 | DY15: 0 | DZ15: =($DY$15/$B$2)*100 -> 0 | EA15: =($EA$14+$DZ$15) -> 95 | EB15: 2.783468421 | EC15: 98.47957641 | ED15: =(NORMSDIST(STANDARDIZE($DX$15,$AS$10,$AT$10)))*100 -> 99.47580553 | EE15: =NORMDIST($DX$15,$AS$10,$AT$10,FALSE)*100 -> 0.576103039 | FD15: Další | FE15: 0 | FT15: Další | FU15: 0
A16: Q | B16: Q_2 | C16: 12. Nezadaná | D16: 0 | E16: 0 | F16: 0 | G16: 0 | H16: 0 | I16: 0 | J16: 0 | K16: 0 | L16: 0 | M16: 0 | N16: 0 | O16: 0 | P16: 0 | Q16: 0 | R16: 0 | S16: 0 | T16: 0 | U16: 0 | V16: 0 | W16: 0 | AR16: 0 | CR16: 10 | CS16: 1 | CT16: =($CS$16/$B$2)*100 -> 5 | CU16: =($CU$15+$CT$16) -> 100 | CV16: 0.924470942 | CW16: 99.40404735 | CX16: =(NORMSDIST(STANDARDIZE($CR$16,$AS$8,$AT$8)))*100 -> 99.90793665 | CY16: =NORMDIST($CR$16,$AS$8,$AT$8,FALSE)*100 -> 0.116414387 | DX16: 10 | DY16: 1 | DZ16: =($DY$16/$B$2)*100 -> 5 | EA16: =($EA$15+$DZ$16) -> 100 | EB16: 0.924470942 | EC16: 99.40404735 | ED16: =(NORMSDIST(STANDARDIZE($DX$16,$AS$10,$AT$10)))*100 -> 99.83666222 | EE16: =NORMDIST($DX$16,$AS$10,$AT$10,FALSE)*100 -> 0.2014608939
A17: Q | B17: Q_3 | C17: 13. Nezadaná | D17: 0 | E17: 0 | F17: 0 | G17: 0 | H17: 0 | I17: 0 | J17: 0 | K17: 0 | L17: 0 | M17: 0 | N17: 0 | O17: 0 | P17: 0 | Q17: 0 | R17: 0 | S17: 0 | T17: 0 | U17: 0 | V17: 0 | W17: 0 | AR17: 0 | CR17: Další | CS17: 0 | DX17: Další | DY17: 0
A18: Q | B18: Q_4 | C18: 14. Nezadaná | D18: 0 | E18: 0 | F18: 0 | G18: 0 | H18: 0 | I18: 0 | J18: 0 | K18: 0 | L18: 0 | M18: 0 | N18: 0 | O18: 0 | P18: 0 | Q18: 0 | R18: 0 | S18: 0 | T18: 0 | U18: 0 | V18: 0 | W18: 0 | AR18: 0
A19: Q | B19: Q_5 | C19: 15. Nezadaná | D19: 0 | E19: 0 | F19: 0 | G19: 0 | H19: 0 | I19: 0 | J19: 0 | K19: 0 | L19: 0 | M19: 0 | N19: 0 | O19: 0 | P19: 0 | Q19: 0 | R19: 0 | S19: 0 | T19: 0 | U19: 0 | V19: 0 | W19: 0 | AR19: 0
A20: Q | B20: Q_6 | C20: 16. Nezadaná | D20: 0 | E20: 0 | F20: 0 | G20: 0 | H20: 0 | I20: 0 | J20: 0 | K20: 0 | L20: 0 | M20: 0 | N20: 0 | O20: 0 | P20: 0 | Q20: 0 | R20: 0 | S20: 0 | T20: 0 | U20: 0 | V20: 0 | W20: 0 | AR20: 0 | BG20: D = | BH20: 0.2527597935 | BW20: D = | BX20: 0.2031167522 | CM20: D = | CN20: 0.1633552673 | DC20: D = | DD20: 0.3457890354 | DS20: D = | DT20: 0.238288374 | EI20: D = | EJ20: 0.2402676275 | EY20: D = | EZ20: 0.164785888 | FO20: D = | FP20: 0.2396018913 | GE20: D = | GF20: 0.2528884555 | GU20: D = | GV20: 0.2357116664
A21: Q | B21: Q_7 | C21: 17. Nezadaná | D21: 0 | E21: 0 | F21: 0 | G21: 0 | H21: 0 | I21: 0 | J21: 0 | K21: 0 | L21: 0 | M21: 0 | N21: 0 | O21: 0 | P21: 0 | Q21: 0 | R21: 0 | S21: 0 | T21: 0 | U21: 0 | V21: 0 | W21: 0 | AR21: 0 | BG21: Lilliefors test of normality | BW21: Lilliefors test of normality | CM21: Lilliefors test of normality | DC21: Lilliefors test of normality | DS21: Lilliefors test of normality | EI21: Lilliefors test of normality | EY21: Lilliefors test of normality | FO21: Lilliefors test of normality | GE21: Lilliefors test of normality | GU21: Lilliefors test of normality
A22: Q | B22: Q_8 | C22: 18. Nezadaná | D22: 0 | E22: 0 | F22: 0 | G22: 0 | H22: 0 | I22: 0 | J22: 0 | K22: 0 | L22: 0 | M22: 0 | N22: 0 | O22: 0 | P22: 0 | Q22: 0 | R22: 0 | S22: 0 | T22: 0 | U22: 0 | V22: 0 | W22: 0 | AR22: 0 | BG22: D(0,01)= | BH22: 0.2226893752 | BI22: význ. 0,01 | BW22: D(0,01)= | BX22: 0.2226893752 | BY22: nevýzn. 0,01 | CM22: D(0,01)= | CN22: 0.2226893752 | CO22: nevýzn. 0,01 | DC22: D(0,01)= | DD22: 0.2226893752 | DE22: význ. 0,01 | DS22: D(0,01)= | DT22: 0.2226893752 | DU22: význ. 0,01 | EI22: D(0,01)= | EJ22: 0.2226893752 | EK22: význ. 0,01 | EY22: D(0,01)= | EZ22: 0.2226893752 | FA22: nevýzn. 0,01 | FO22: D(0,01)= | FP22: 0.2226893752 | FQ22: význ. 0,01 | GE22: D(0,01)= | GF22: 0.2226893752 | GG22: význ. 0,01 | GU22: D(0,01)= | GV22: 0.2226893752 | GW22: význ. 0,01
A23: Q | B23: Q_9 | C23: 19. Nezadaná | D23: 0 | E23: 0 | F23: 0 | G23: 0 | H23: 0 | I23: 0 | J23: 0 | K23: 0 | L23: 0 | M23: 0 | N23: 0 | O23: 0 | P23: 0 | Q23: 0 | R23: 0 | S23: 0 | T23: 0 | U23: 0 | V23: 0 | W23: 0 | AR23: 0 | BG23: D(0,05)= | BH23: 0.1925671409 | BI23: význ. 0,05 | BW23: D(0,05)= | BX23: 0.1925671409 | BY23: význ. 0,05 | CM23: D(0,05)= | CN23: 0.1925671409 | CO23: nevýzn. 0,05 | DC23: D(0,05)= | DD23: 0.1925671409 | DE23: význ. 0,05 | DS23: D(0,05)= | DT23: 0.1925671409 | DU23: význ. 0,05 | EI23: D(0,05)= | EJ23: 0.1925671409 | EK23: význ. 0,05 | EY23: D(0,05)= | EZ23: 0.1925671409 | FA23: nevýzn. 0,05 | FO23: D(0,05)= | FP23: 0.1925671409 | FQ23: význ. 0,05 | GE23: D(0,05)= | GF23: 0.1925671409 | GG23: význ. 0,05 | GU23: D(0,05)= | GV23: 0.1925671409 | GW23: význ. 0,05
A24: Q | B24: Q_10 | C24: 20. Nezadaná | D24: 0 | E24: 0 | F24: 0 | G24: 0 | H24: 0 | I24: 0 | J24: 0 | K24: 0 | L24: 0 | M24: 0 | N24: 0 | O24: 0 | P24: 0 | Q24: 0 | R24: 0 | S24: 0 | T24: 0 | U24: 0 | V24: 0 | W24: 0 | AR24: 0 | BG24: p value = | BH24: 0.001641931001 | BI24: význ. 0,01 | BW24: p value = | BX24: 0.03000289671 | BY24: význ. 0,05 | CM24: p value = | CN24: 0.1662266906 | CO24: nevýzn. | DC24: p value = | DD24: 8.51033925e-07 | DE24: význ. 0,01 | DS24: p value = | DT24: 0.004154282208 | DU24: význ. 0,01 | EI24: p value = | EJ24: 0.003673447409 | EK24: význ. 0,01 | EY24: p value = | EZ24: 0.1593845152 | FA24: nevýzn. | FO24: p value = | FP24: 0.003829159223 | FQ24: význ. 0,01 | GE24: p value = | GF24: 0.001627947314 | GG24: význ. 0,01 | GU24: p value = | GV24: 0.004866644677 | GW24: význ. 0,01
A39: 0.1772025115 | B39: p value | C39: 0.004866644677 | AV39: 48 | AW39: 49 | AX39: 50 | AY39: 51 | AZ39: 52 | BA39: 53 | BB39: 54 | BC39: 55 | BD39: 56 | BE39: 57 | BF39: 58 | BG39: 59 | BH39: 60 | BI39: 61 | BJ39: 62 | BK39: 63 | BL39: 64 | BM39: 65 | BN39: 66 | BO39: 67 | BP39: 68 | BQ39: 69 | BR39: 70 | BS39: 71 | BT39: 72 | BU39: 73 | BV39: 74 | BW39: 75 | BX39: 76 | BY39: 77 | BZ39: 78 | CA39: 79 | CB39: 80 | CC39: 81 | CD39: 82 | CE39: 83 | CF39: 84 | CG39: 85 | CH39: 86 | CI39: 87 | CJ39: 88 | CK39: 89 | CL39: 90 | CM39: 91 | CN39: 92 | CO39: 93 | CP39: 94 | CQ39: 95 | CR39: 96 | CS39: 97 | CT39: 98 | CU39: 99 | CV39: 100 | CW39: 101 | CX39: 102 | CY39: 103 | CZ39: 104 | DA39: 105 | DB39: 106 | DC39: 107 | DD39: 108 | DE39: 109 | DF39: 110 | DG39: 111 | DH39: 112 | DI39: 113 | DJ39: 114 | DK39: 115 | DL39: 116 | DM39: 117 | DN39: 118 | DO39: 119 | DP39: 120 | DQ39: 121 | DR39: 122 | DS39: 123 | DT39: 124 | DU39: 125 | DV39: 126 | DW39: 127 | DX39: 128 | DY39: 129 | DZ39: 130 | EA39: 131 | EB39: 132 | EC39: 133 | ED39: 134 | EE39: 135 | EF39: 136 | EG39: 137 | EH39: 138 | EI39: 139 | EJ39: 140 | EK39: 141 | EL39: 142 | EM39: 143 | EN39: 144 | EO39: 145 | EP39: 146 | EQ39: 147 | ER39: 148 | ES39: 149 | ET39: 150 | EU39: 151 | EV39: 152 | EW39: 153 | EX39: 154 | EY39: 155 | EZ39: 156 | FA39: 157 | FB39: 158 | FC39: 159 | FD39: 160 | FE39: 161 | FF39: 162 | FG39: 163 | FH39: 164 | FI39: 165 | FJ39: 166 | FK39: 167 | FL39: 168 | FM39: 169 | FN39: 170 | FO39: 171 | FP39: 172 | FQ39: 173 | FR39: 174 | FS39: 175 | FT39: 176 | FU39: 177 | FV39: 178 | FW39: 179 | FX39: 180 | FY39: 181 | FZ39: 182 | GA39: 183 | GB39: 184 | GC39: 185 | GD39: 186 | GE39: 187 | GF39: 188 | GG39: 189 | GH39: 190 | GI39: 191 | GJ39: 192 | GK39: 193 | GL39: 194 | GM39: 195 | GN39: 196 | GO39: 197 | GP39: 198 | GQ39: 199 | GR39: 200 | GS39: 201 | GT39: 202 | GU39: 203 | GV39: 204 | GW39: 205 | GX39: 206
AV40: 11 | AX40: fi % | AY40: cum fi % | AZ40: gausso solo | BA40: gausso cumul | BB40: Gausso E kumul | BC40: Gausso E solo | BL40: 12 | BN40: fi % | BO40: cum fi % | BP40: gausso solo | BQ40: gausso cumul | BR40: Gausso E kumul | BS40: Gausso E solo | CB40: 13 | CD40: fi % | CE40: cum fi % | CF40: gausso solo | CG40: gausso cumul | CH40: Gausso E kumul | CI40: Gausso E solo | CR40: 14 | CT40: fi % | CU40: cum fi % | CV40: gausso solo | CW40: gausso cumul | CX40: Gausso E kumul | CY40: Gausso E solo | DH40: 15 | DJ40: fi % | DK40: cum fi % | DL40: gausso solo | DM40: gausso cumul | DN40: Gausso E kumul | DO40: Gausso E solo | DX40: 16 | DZ40: fi % | EA40: cum fi % | EB40: gausso solo | EC40: gausso cumul | ED40: Gausso E kumul | EE40: Gausso E solo | EN40: 17 | EP40: fi % | EQ40: cum fi % | ER40: gausso solo | ES40: gausso cumul | ET40: Gausso E kumul | EU40: Gausso E solo | FD40: 18 | FF40: fi % | FG40: cum fi % | FH40: gausso solo | FI40: gausso cumul | FJ40: Gausso E kumul | FK40: Gausso E solo | FT40: 19 | FV40: fi % | FW40: cum fi % | FX40: gausso solo | FY40: gausso cumul | FZ40: Gausso E kumul | GA40: Gausso E solo | GJ40: 20 | GL40: fi % | GM40: cum fi % | GN40: gausso solo | GO40: gausso cumul | GP40: Gausso E kumul | GQ40: Gausso E solo
AZ42: 99.9 | BA42: 99.9 | BP42: 99.9 | BQ42: 99.9 | CF42: 99.9 | CG42: 99.9 | CV42: 99.9 | CW42: 99.9 | DL42: 99.9 | DM42: 99.9 | EB42: 99.9 | EC42: 99.9 | ER42: 99.9 | ES42: 99.9 | FH42: 99.9 | FI42: 99.9 | FX42: 99.9 | FY42: 99.9 | GN42: 99.9 | GO42: 99.9
A77: cum pi | B77: All | C77: All | D77: =IF(D5<>"",((D3)/$B$2),"") -> 0.05 | E77: =IF(E5<>"",((E3)/$B$2),"") -> 0.1 | F77: 0.15 | G77: 0.2 | H77: 0.25 | I77: 0.3 | J77: 0.35 | K77: 0.4 | L77: 0.45 | M77: 0.5 | N77: 0.55 | O77: 0.6 | P77: 0.65 | Q77: 0.7 | R77: 0.75 | S77: 0.8 | T77: 0.85 | U77: 0.9 | V77: 0.95 | W77: 1
A78: Gausso N | B78: All | C78: All | D78: =IF(D5<>"",((D3-1)/$B$2),"") -> 0 | E78: =IF(E5<>"",((E3-1)/$B$2),"") -> 0.05 | F78: 0.1 | G78: 0.15 | H78: 0.2 | I78: 0.25 | J78: 0.3 | K78: 0.35 | L78: 0.4 | M78: 0.45 | N78: 0.5 | O78: 0.55 | P78: 0.6 | Q78: 0.65 | R78: 0.7 | S78: 0.75 | T78: 0.8 | U78: 0.85 | V78: 0.9 | W78: 0.95
A80: Zoradené | B80: Q_1 | C80: 1. Sedieť | D80: 0 | E80: 0 | F80: 1 | G80: 1 | H80: 1 | I80: 1 | J80: 1 | K80: 2 | L80: 2 | M80: 2 | N80: 2 | O80: 2 | P80: 2 | Q80: 2 | R80: 3 | S80: 4 | T80: 4 | U80: 4 | V80: 5 | W80: 5
B81: Q_2 | C81: 2. Učiť sa | D81: 0 | E81: 0 | F81: 0 | G81: 0 | H81: 1 | I81: 1 | J81: 1 | K81: 1 | L81: 1 | M81: 2 | N81: 2 | O81: 2 | P81: 3 | Q81: 3 | R81: 3 | S81: 3 | T81: 3 | U81: 3 | V81: 4 | W81: 4
B82: Q_3 | C82: 3. Ostrov | D82: 0 | E82: 0 | F82: 0 | G82: 1 | H82: 1 | I82: 1 | J82: 1 | K82: 1 | L82: 2 | M82: 2 | N82: 2 | O82: 2 | P82: 3 | Q82: 3 | R82: 3 | S82: 3 | T82: 4 | U82: 4 | V82: 5 | W82: 6
B83: Q_4 | C83: 4. Hájiť | D83: 0 | E83: 0 | F83: 0 | G83: 0 | H83: 0 | I83: 0 | J83: 0 | K83: 0 | L83: 0 | M83: 0 | N83: 1 | O83: 1 | P83: 1 | Q83: 1 | R83: 1 | S83: 3 | T83: 4 | U83: 5 | V83: 6 | W83: 10
B84: Q_5 | C84: 5. Tajomstvo | D84: 0 | E84: 0 | F84: 0 | G84: 0 | H84: 1 | I84: 1 | J84: 1 | K84: 1 | L84: 1 | M84: 1 | N84: 2 | O84: 2 | P84: 2 | Q84: 2 | R84: 2 | S84: 2 | T84: 2 | U84: 2 | V84: 3 | W84: 3
B85: Q_6 | C85: 6. Nesedieť | D85: 0 | E85: 0 | F85: 0 | G85: 0 | H85: 0 | I85: 0 | J85: 1 | K85: 1 | L85: 1 | M85: 1 | N85: 1 | O85: 2 | P85: 3 | Q85: 3 | R85: 4 | S85: 4 | T85: 4 | U85: 5 | V85: 6 | W85: 10
B86: Q_7 | C86: 7. Neučiť sa | D86: 0 | E86: 0 | F86: 0 | G86: 0 | H86: 0 | I86: 1 | J86: 1 | K86: 1 | L86: 1 | M86: 2 | N86: 2 | O86: 2 | P86: 2 | Q86: 3 | R86: 3 | S86: 3 | T86: 4 | U86: 4 | V86: 4 | W86: 5
B87: Q_8 | C87: 8. Nie Ostrov | D87: 0 | E87: 0 | F87: 0 | G87: 0 | H87: 0 | I87: 0 | J87: 0 | K87: 1 | L87: 1 | M87: 1 | N87: 1 | O87: 1 | P87: 2 | Q87: 2 | R87: 2 | S87: 3 | T87: 3 | U87: 5 | V87: 6 | W87: 8
B88: Q_9 | C88: 9. Nie Hájiť | D88: 0 | E88: 0 | F88: 0 | G88: 0 | H88: 0 | I88: 0 | J88: 1 | K88: 1 | L88: 1 | M88: 1 | N88: 1 | O88: 1 | P88: 2 | Q88: 2 | R88: 2 | S88: 3 | T88: 4 | U88: 4 | V88: 8 | W88: 8
B89: Q_10 | C89: 10. Nezveril | D89: 0 | E89: 0 | F89: 0 | G89: 0 | H89: 0 | I89: 0 | J89: 0 | K89: 0 | L89: 1 | M89: 1 | N89: 1 | O89: 1 | P89: 2 | Q89: 3 | R89: 3 | S89: 3 | T89: 4 | U89: 4 | V89: 4 | W89: 5
B90: Q_11 | C90: 11. Nezadaná | D90: 0 | E90: 0 | F90: 0 | G90: 0 | H90: 0 | I90: 0 | J90: 0 | K90: 0 | L90: 0 | M90: 0 | N90: 0 | O90: 0 | P90: 0 | Q90: 0 | R90: 0 | S90: 0 | T90: 0 | U90: 0 | V90: 0 | W90: 0
B91: Q_12 | C91: 12. Nezadaná | D91: 0 | E91: 0 | F91: 0 | G91: 0 | H91: 0 | I91: 0 | J91: 0 | K91: 0 | L91: 0 | M91: 0 | N91: 0 | O91: 0 | P91: 0 | Q91: 0 | R91: 0 | S91: 0 | T91: 0 | U91: 0 | V91: 0 | W91: 0
B92: Q_13 | C92: 13. Nezadaná | D92: 0 | E92: 0 | F92: 0 | G92: 0 | H92: 0 | I92: 0 | J92: 0 | K92: 0 | L92: 0 | M92: 0 | N92: 0 | O92: 0 | P92: 0 | Q92: 0 | R92: 0 | S92: 0 | T92: 0 | U92: 0 | V92: 0 | W92: 0
B93: Q_14 | C93: 14. Nezadaná | D93: 0 | E93: 0 | F93: 0 | G93: 0 | H93: 0 | I93: 0 | J93: 0 | K93: 0 | L93: 0 | M93: 0 | N93: 0 | O93: 0 | P93: 0 | Q93: 0 | R93: 0 | S93: 0 | T93: 0 | U93: 0 | V93: 0 | W93: 0
B94: Q_15 | C94: 15. Nezadaná | D94: 0 | E94: 0 | F94: 0 | G94: 0 | H94: 0 | I94: 0 | J94: 0 | K94: 0 | L94: 0 | M94: 0 | N94: 0 | O94: 0 | P94: 0 | Q94: 0 | R94: 0 | S94: 0 | T94: 0 | U94: 0 | V94: 0 | W94: 0
B95: Q_16 | C95: 16. Nezadaná | D95: 0 | E95: 0 | F95: 0 | G95: 0 | H95: 0 | I95: 0 | J95: 0 | K95: 0 | L95: 0 | M95: 0 | N95: 0 | O95: 0 | P95: 0 | Q95: 0 | R95: 0 | S95: 0 | T95: 0 | U95: 0 | V95: 0 | W95: 0
B96: Q_17 | C96: 17. Nezadaná | D96: 0 | E96: 0 | F96: 0 | G96: 0 | H96: 0 | I96: 0 | J96: 0 | K96: 0 | L96: 0 | M96: 0 | N96: 0 | O96: 0 | P96: 0 | Q96: 0 | R96: 0 | S96: 0 | T96: 0 | U96: 0 | V96: 0 | W96: 0
B97: Q_18 | C97: 18. Nezadaná | D97: 0 | E97: 0 | F97: 0 | G97: 0 | H97: 0 | I97: 0 | J97: 0 | K97: 0 | L97: 0 | M97: 0 | N97: 0 | O97: 0 | P97: 0 | Q97: 0 | R97: 0 | S97: 0 | T97: 0 | U97: 0 | V97: 0 | W97: 0
B98: Q_19 | C98: 19. Nezadaná | D98: 0 | E98: 0 | F98: 0 | G98: 0 | H98: 0 | I98: 0 | J98: 0 | K98: 0 | L98: 0 | M98: 0 | N98: 0 | O98: 0 | P98: 0 | Q98: 0 | R98: 0 | S98: 0 | T98: 0 | U98: 0 | V98: 0 | W98: 0
B99: Q_20 | C99: 20. Nezadaná | D99: 0 | E99: 0 | F99: 0 | G99: 0 | H99: 0 | I99: 0 | J99: 0 | K99: 0 | L99: 0 | M99: 0 | N99: 0 | O99: 0 | P99: 0 | Q99: 0 | R99: 0 | S99: 0 | T99: 0 | U99: 0 | V99: 0 | W99: 0
A101: Gausso E | B101: Q_1 | C101: 1. Sedieť | D101: =IF($AR$5<>"",IF($AR$5<>0,IF($A$5<>"Q",IF(D5<>"",(NORMSDIST(STANDARDIZE(D80,$AS$5,$AT$5))),""),""),""),"") -> 0.07228148311 | E101: =IF($AR$5<>"",IF($AR$5<>0,IF($A$5<>"Q",IF(E5<>"",(NORMSDIST(STANDARDIZE(E80,$AS$5,$AT$5))),""),""),""),"") -> 0.07228148311 | F101: 0.2130676276 | G101: 0.2130676276 | H101: 0.2130676276 | I101: 0.2130676276 | J101: 0.2130676276 | K101: 0.4472402065 | L101: 0.4472402065 | M101: 0.4472402065 | N101: 0.4472402065 | O101: 0.4472402065 | P101: 0.4472402065 | Q101: 0.4472402065 | R101: 0.7021340793 | S101: 0.8837089112 | T101: 0.8837089112 | U101: 0.8837089112 | V101: 0.96833866 | W101: 0.96833866
B102: Q_2 | C102: 2. Učiť sa | D102: =IF($AR$6<>"",IF($AR$6<>0,IF($A$6<>"Q",IF(D6<>"",(NORMSDIST(STANDARDIZE(D81,$AS$6,$AT$6))),""),""),""),"") -> 0.08504627861 | E102: =IF($AR$6<>"",IF($AR$6<>0,IF($A$6<>"Q",IF(E6<>"",(NORMSDIST(STANDARDIZE(E81,$AS$6,$AT$6))),""),""),""),"") -> 0.08504627861 | F102: 0.08504627861 | G102: 0.08504627861 | H102: 0.2642375822 | I102: 0.2642375822 | J102: 0.2642375822 | K102: 0.2642375822 | L102: 0.2642375822 | M102: 0.5442852625 | N102: 0.5442852625 | O102: 0.5442852625 | P102: 0.8031167522 | Q102: 0.8031167522 | R102: 0.8031167522 | S102: 0.8031167522 | T102: 0.8031167522 | U102: 0.8031167522 | V102: 0.9445742775 | W102: 0.9445742775
B103: Q_3 | C103: 3. Ostrov | D103: =IF($AR$7<>"",IF($AR$7<>0,IF($A$7<>"Q",IF(D7<>"",(NORMSDIST(STANDARDIZE(D82,$AS$7,$AT$7))),""),""),""),"") -> 0.09429672109 | E103: =IF($AR$7<>"",IF($AR$7<>0,IF($A$7<>"Q",IF(E7<>"",(NORMSDIST(STANDARDIZE(E82,$AS$7,$AT$7))),""),""),""),"") -> 0.09429672109 | F103: 0.09429672109 | G103: 0.2366447327 | H103: 0.2366447327 | I103: 0.2366447327 | J103: 0.2366447327 | K103: 0.2366447327 | L103: 0.4524305647 | M103: 0.4524305647 | N103: 0.4524305647 | O103: 0.4524305647 | P103: 0.6837074392 | Q103: 0.6837074392 | R103: 0.6837074392 | S103: 0.6837074392 | T103: 0.8589705621 | U103: 0.8589705621 | V103: 0.9528678466 | W103: 0.988424524
B104: Q_4 | C104: 4. Hájiť | D104: =IF($AR$8<>"",IF($AR$8<>0,IF($A$8<>"Q",IF(D8<>"",(NORMSDIST(STANDARDIZE(D83,$AS$8,$AT$8))),""),""),""),"") -> 0.2691184435 | E104: =IF($AR$8<>"",IF($AR$8<>0,IF($A$8<>"Q",IF(E8<>"",(NORMSDIST(STANDARDIZE(E83,$AS$8,$AT$8))),""),""),""),"") -> 0.2691184435 | F104: 0.2691184435 | G104: 0.2691184435 | H104: 0.2691184435 | I104: 0.2691184435 | J104: 0.2691184435 | K104: 0.2691184435 | L104: 0.2691184435 | M104: 0.2691184435 | N104: 0.4042109646 | O104: 0.4042109646 | P104: 0.4042109646 | Q104: 0.4042109646 | R104: 0.4042109646 | S104: 0.6927201942 | T104: 0.8096465741 | U104: 0.8942796401 | V104: 0.9476660196 | W104: 0.9990793665
B105: Q_5 | C105: 5. Tajomstvo | D105: =IF($AR$9<>"",IF($AR$9<>0,IF($A$9<>"Q",IF(D9<>"",(NORMSDIST(STANDARDIZE(D84,$AS$9,$AT$9))),""),""),""),"") -> 0.06826377483 | E105: =IF($AR$9<>"",IF($AR$9<>0,IF($A$9<>"Q",IF(E9<>"",(NORMSDIST(STANDARDIZE(E84,$AS$9,$AT$9))),""),""),""),"") -> 0.06826377483 | F105: 0.06826377483 | G105: 0.06826377483 | H105: 0.3352780269 | I105: 0.3352780269 | J105: 0.3352780269 | K105: 0.3352780269 | L105: 0.3352780269 | M105: 0.3352780269 | N105: 0.738288374 | O105: 0.738288374 | P105: 0.738288374 | Q105: 0.738288374 | R105: 0.738288374 | S105: 0.738288374 | T105: 0.738288374 | U105: 0.738288374 | V105: 0.9555791757 | W105: 0.9555791757
B106: Q_6 | C106: 6. Nesedieť | D106: =IF($AR$10<>"",IF($AR$10<>0,IF($A$10<>"Q",IF(D10<>"",(NORMSDIST(STANDARDIZE(D85,$AS$10,$AT$10))),""),""),""),"") -> 0.1898047386 | E106: =IF($AR$10<>"",IF($AR$10<>0,IF($A$10<>"Q",IF(E10<>"",(NORMSDIST(STANDARDIZE(E85,$AS$10,$AT$10))),""),""),""),"") -> 0.1898047386 | F106: 0.1898047386 | G106: 0.1898047386 | H106: 0.1898047386 | I106: 0.1898047386 | J106: 0.3097323725 | K106: 0.3097323725 | L106: 0.3097323725 | M106: 0.3097323725 | N106: 0.3097323725 | O106: 0.4543802589 | P106: 0.6054212834 | Q106: 0.6054212834 | R106: 0.7419639067 | S106: 0.7419639067 | T106: 0.7419639067 | U106: 0.8488277821 | V106: 0.9212347266 | W106: 0.9983666222
B107: Q_7 | C107: 7. Neučiť sa | D107: =IF($AR$11<>"",IF($AR$11<>0,IF($A$11<>"Q",IF(D11<>"",(NORMSDIST(STANDARDIZE(D86,$AS$11,$AT$11))),""),""),""),"") -> 0.1154801828 | E107: =IF($AR$11<>"",IF($AR$11<>0,IF($A$11<>"Q",IF(E11<>"",(NORMSDIST(STANDARDIZE(E86,$AS$11,$AT$11))),""),""),""),"") -> 0.1154801828 | F107: 0.1154801828 | G107: 0.1154801828 | H107: 0.1154801828 | I107: 0.285214112 | J107: 0.285214112 | K107: 0.285214112 | L107: 0.285214112 | M107: 0.52513537 | N107: 0.52513537 | O107: 0.52513537 | P107: 0.52513537 | Q107: 0.7560066311 | R107: 0.7560066311 | S107: 0.7560066311 | T107: 0.9072455221 | U107: 0.9072455221 | V107: 0.9072455221 | W107: 0.9746759838
B108: Q_8 | C108: 8. Nie Ostrov | D108: =IF($AR$12<>"",IF($AR$12<>0,IF($A$12<>"Q",IF(D12<>"",(NORMSDIST(STANDARDIZE(D87,$AS$12,$AT$12))),""),""),""),"") -> 0.2106585088 | E108: =IF($AR$12<>"",IF($AR$12<>0,IF($A$12<>"Q",IF(E12<>"",(NORMSDIST(STANDARDIZE(E87,$AS$12,$AT$12))),""),""),""),"") -> 0.2106585088 | F108: 0.2106585088 | G108: 0.2106585088 | H108: 0.2106585088 | I108: 0.2106585088 | J108: 0.2106585088 | K108: 0.3603981087 | L108: 0.3603981087 | M108: 0.3603981087 | N108: 0.3603981087 | O108: 0.3603981087 | P108: 0.535597611 | Q108: 0.535597611 | R108: 0.535597611 | S108: 0.7040526205 | T108: 0.7040526205 | U108: 0.9235811252 | V108: 0.969694534 | W108: 0.997195552
B109: Q_9 | C109: 9. Nie Hájiť | D109: =IF($AR$13<>"",IF($AR$13<>0,IF($A$13<>"Q",IF(D13<>"",(NORMSDIST(STANDARDIZE(D88,$AS$13,$AT$13))),""),""),""),"") -> 0.2098470389 | E109: =IF($AR$13<>"",IF($AR$13<>0,IF($A$13<>"Q",IF(E13<>"",(NORMSDIST(STANDARDIZE(E88,$AS$13,$AT$13))),""),""),""),"") -> 0.2098470389 | F109: 0.2098470389 | G109: 0.2098470389 | H109: 0.2098470389 | I109: 0.2098470389 | J109: 0.3471115445 | K109: 0.3471115445 | L109: 0.3471115445 | M109: 0.3471115445 | N109: 0.3471115445 | O109: 0.3471115445 | P109: 0.5082539575 | Q109: 0.5082539575 | R109: 0.5082539575 | S109: 0.6680419025 | T109: 0.8018740796 | U109: 0.8018740796 | V109: 0.9938535117 | W109: 0.9938535117
B110: Q_10 | C110: 10. Nezveril | D110: =IF($AR$14<>"",IF($AR$14<>0,IF($A$14<>"Q",IF(D14<>"",(NORMSDIST(STANDARDIZE(D89,$AS$14,$AT$14))),""),""),""),"") -> 0.1773827508 | E110: =IF($AR$14<>"",IF($AR$14<>0,IF($A$14<>"Q",IF(E14<>"",(NORMSDIST(STANDARDIZE(E89,$AS$14,$AT$14))),""),""),""),"") -> 0.1773827508 | F110: 0.1773827508 | G110: 0.1773827508 | H110: 0.1773827508 | I110: 0.1773827508 | J110: 0.1773827508 | K110: 0.1773827508 | L110: 0.3642883336 | M110: 0.3642883336 | N110: 0.3642883336 | O110: 0.3642883336 | P110: 0.5914771237 | Q110: 0.7909471899 | R110: 0.7909471899 | S110: 0.7909471899 | T110: 0.9174433542 | U110: 0.9174433542 | V110: 0.9174433542 | W110: 0.9753763187
B111: Q_11 | C111: 11. Nezadaná | D111: =IF($AR$15<>"",IF($AR$15<>0,IF($A$15<>"Q",IF(D15<>"",(NORMSDIST(STANDARDIZE(D90,$AS$15,$AT$15))),""),""),""),"") ->  | E111: =IF($AR$15<>"",IF($AR$15<>0,IF($A$15<>"Q",IF(E15<>"",(NORMSDIST(STANDARDIZE(E90,$AS$15,$AT$15))),""),""),""),"") -> 
B112: Q_12 | C112: 12. Nezadaná | D112: =IF($AR$16<>"",IF($AR$16<>0,IF($A$16<>"Q",IF(D16<>"",(NORMSDIST(STANDARDIZE(D91,$AS$16,$AT$16))),""),""),""),"") ->  | E112: =IF($AR$16<>"",IF($AR$16<>0,IF($A$16<>"Q",IF(E16<>"",(NORMSDIST(STANDARDIZE(E91,$AS$16,$AT$16))),""),""),""),"") -> 
B113: Q_13 | C113: 13. Nezadaná | D113: =IF($AR$17<>"",IF($AR$17<>0,IF($A$17<>"Q",IF(D17<>"",(NORMSDIST(STANDARDIZE(D92,$AS$17,$AT$17))),""),""),""),"") ->  | E113: =IF($AR$17<>"",IF($AR$17<>0,IF($A$17<>"Q",IF(E17<>"",(NORMSDIST(STANDARDIZE(E92,$AS$17,$AT$17))),""),""),""),"") -> 
B114: Q_14 | C114: 14. Nezadaná | D114: =IF($AR$18<>"",IF($AR$18<>0,IF($A$18<>"Q",IF(D18<>"",(NORMSDIST(STANDARDIZE(D93,$AS$18,$AT$18))),""),""),""),"") ->  | E114: =IF($AR$18<>"",IF($AR$18<>0,IF($A$18<>"Q",IF(E18<>"",(NORMSDIST(STANDARDIZE(E93,$AS$18,$AT$18))),""),""),""),"") -> 
B115: Q_15 | C115: 15. Nezadaná | D115: =IF($AR$19<>"",IF($AR$19<>0,IF($A$19<>"Q",IF(D19<>"",(NORMSDIST(STANDARDIZE(D94,$AS$19,$AT$19))),""),""),""),"") ->  | E115: =IF($AR$19<>"",IF($AR$19<>0,IF($A$19<>"Q",IF(E19<>"",(NORMSDIST(STANDARDIZE(E94,$AS$19,$AT$19))),""),""),""),"") -> 
B116: Q_16 | C116: 16. Nezadaná | D116: =IF($AR$20<>"",IF($AR$20<>0,IF($A$20<>"Q",IF(D20<>"",(NORMSDIST(STANDARDIZE(D95,$AS$20,$AT$20))),""),""),""),"") ->  | E116: =IF($AR$20<>"",IF($AR$20<>0,IF($A$20<>"Q",IF(E20<>"",(NORMSDIST(STANDARDIZE(E95,$AS$20,$AT$20))),""),""),""),"") -> 
B117: Q_17 | C117: 17. Nezadaná | D117: =IF($AR$21<>"",IF($AR$21<>0,IF($A$21<>"Q",IF(D21<>"",(NORMSDIST(STANDARDIZE(D96,$AS$21,$AT$21))),""),""),""),"") ->  | E117: =IF($AR$21<>"",IF($AR$21<>0,IF($A$21<>"Q",IF(E21<>"",(NORMSDIST(STANDARDIZE(E96,$AS$21,$AT$21))),""),""),""),"") -> 
B118: Q_18 | C118: 18. Nezadaná | D118: =IF($AR$22<>"",IF($AR$22<>0,IF($A$22<>"Q",IF(D22<>"",(NORMSDIST(STANDARDIZE(D97,$AS$22,$AT$22))),""),""),""),"") ->  | E118: =IF($AR$22<>"",IF($AR$22<>0,IF($A$22<>"Q",IF(E22<>"",(NORMSDIST(STANDARDIZE(E97,$AS$22,$AT$22))),""),""),""),"") -> 
B119: Q_19 | C119: 19. Nezadaná | D119: =IF($AR$23<>"",IF($AR$23<>0,IF($A$23<>"Q",IF(D23<>"",(NORMSDIST(STANDARDIZE(D98,$AS$23,$AT$23))),""),""),""),"") ->  | E119: =IF($AR$23<>"",IF($AR$23<>0,IF($A$23<>"Q",IF(E23<>"",(NORMSDIST(STANDARDIZE(E98,$AS$23,$AT$23))),""),""),""),"") -> 
B120: Q_20 | C120: 20. Nezadaná | D120: =IF($AR$24<>"",IF($AR$24<>0,IF($A$24<>"Q",IF(D24<>"",(NORMSDIST(STANDARDIZE(D99,$AS$24,$AT$24))),""),""),""),"") ->  | E120: =IF($AR$24<>"",IF($AR$24<>0,IF($A$24<>"Q",IF(E24<>"",(NORMSDIST(STANDARDIZE(E99,$AS$24,$AT$24))),""),""),""),"") -> 
AR121: MAX
A122: DIFF E-N | B122: Q_1 | C122: 1. Sedieť | D122: =IF($AR$5<>"",IF($AR$5<>0,IF(D101<>"",D101-D78,""),""),"") -> 0.07228148311 | E122: =IF($AR$5<>"",IF($AR$5<>0,IF(E101<>"",E101-E78,""),""),"") -> 0.02228148311 | F122: 0.1130676276 | G122: 0.06306762757 | H122: 0.01306762757 | I122: -0.03693237243 | J122: -0.08693237243 | K122: 0.09724020652 | L122: 0.04724020652 | M122: -0.002759793479 | N122: -0.05275979348 | O122: -0.1027597935 | P122: -0.1527597935 | Q122: -0.2027597935 | R122: 0.00213407929 | S122: 0.1337089112 | T122: 0.08370891121 | U122: 0.03370891121 | V122: 0.06833866005 | W122: 0.01833866005 | AR122: =IF($AR$5<>"",IF($AR$5<>0,IF(A5<>"Q",MAX(D122:AQ122),""),""),"") -> 0.1337089112
B123: Q_2 | C123: 2. Učiť sa | D123: =IF($AR$6<>"",IF($AR$6<>0,IF(D102<>"",D102-D78,""),""),"") -> 0.08504627861 | E123: =IF($AR$6<>"",IF($AR$6<>0,IF(E102<>"",E102-E78,""),""),"") -> 0.03504627861 | F123: -0.01495372139 | G123: -0.06495372139 | H123: 0.06423758222 | I123: 0.01423758222 | J123: -0.03576241778 | K123: -0.08576241778 | L123: -0.1357624178 | M123: 0.09428526252 | N123: 0.04428526252 | O123: -0.005714737482 | P123: 0.2031167522 | Q123: 0.1531167522 | R123: 0.1031167522 | S123: 0.05311675223 | T123: 0.003116752235 | U123: -0.04688324777 | V123: 0.04457427748 | W123: -0.005425722517 | AR123: =IF($AR$5<>"",IF($AR$5<>0,IF(A6<>"Q",MAX(D123:AQ123),""),""),"") -> 0.2031167522
B124: Q_3 | C124: 3. Ostrov | D124: =IF($AR$7<>"",IF($AR$7<>0,IF(D103<>"",D103-D78,""),""),"") -> 0.09429672109 | E124: =IF($AR$7<>"",IF($AR$7<>0,IF(E103<>"",E103-E78,""),""),"") -> 0.04429672109 | F124: -0.005703278909 | G124: 0.08664473269 | H124: 0.03664473269 | I124: -0.01335526731 | J124: -0.06335526731 | K124: -0.1133552673 | L124: 0.05243056473 | M124: 0.002430564725 | N124: -0.04756943527 | O124: -0.09756943527 | P124: 0.08370743915 | Q124: 0.03370743915 | R124: -0.01629256085 | S124: -0.06629256085 | T124: 0.05897056212 | U124: 0.008970562119 | V124: 0.05286784658 | W124: 0.03842452401 | AR124: =IF($AR$7<>"",IF($AR$7<>0,IF(A7<>"Q",MAX(D124:AQ124),""),""),"") -> 0.09429672109
B125: Q_4 | C125: 4. Hájiť | D125: =IF($AR$8<>"",IF($AR$8<>0,IF(D104<>"",D104-D78,""),""),"") -> 0.2691184435 | E125: =IF($AR$8<>"",IF($AR$8<>0,IF(E104<>"",E104-E78,""),""),"") -> 0.2191184435 | F125: 0.1691184435 | G125: 0.1191184435 | H125: 0.06911844352 | I125: 0.01911844352 | J125: -0.03088155648 | K125: -0.08088155648 | L125: -0.1308815565 | M125: -0.1808815565 | N125: -0.0957890354 | O125: -0.1457890354 | P125: -0.1957890354 | Q125: -0.2457890354 | R125: -0.2957890354 | S125: -0.0572798058 | T125: 0.009646574064 | U125: 0.04427964006 | V125: 0.04766601961 | W125: 0.04907936648 | AR125: =IF($AR$8<>"",IF($AR$8<>0,IF(A8<>"Q",MAX(D125:AQ125),""),""),"") -> 0.2691184435
B126: Q_5 | C126: 5. Tajomstvo | D126: =IF($AR$9<>"",IF($AR$9<>0,IF(D105<>"",D105-D78,""),""),"") -> 0.06826377483 | E126: =IF($AR$9<>"",IF($AR$9<>0,IF(E105<>"",E105-E78,""),""),"") -> 0.01826377483 | F126: -0.03173622517 | G126: -0.08173622517 | H126: 0.1352780269 | I126: 0.08527802688 | J126: 0.03527802688 | K126: -0.01472197312 | L126: -0.06472197312 | M126: -0.1147219731 | N126: 0.238288374 | O126: 0.188288374 | P126: 0.138288374 | Q126: 0.08828837396 | R126: 0.03828837396 | S126: -0.01171162604 | T126: -0.06171162604 | U126: -0.111711626 | V126: 0.05557917572 | W126: 0.005579175721 | AR126: =IF($AR$9<>"",IF($AR$9<>0,IF(A9<>"Q",MAX(D126:AQ126),""),""),"") -> 0.238288374
B127: Q_6 | C127: 6. Nesedieť | D127: =IF($AR$10<>"",IF($AR$10<>0,IF(D106<>"",D106-D78,""),""),"") -> 0.1898047386 | E127: =IF($AR$10<>"",IF($AR$10<>0,IF(E106<>"",E106-E78,""),""),"") -> 0.1398047386 | F127: 0.08980473865 | G127: 0.03980473865 | H127: -0.01019526135 | I127: -0.06019526135 | J127: 0.009732372497 | K127: -0.0402676275 | L127: -0.0902676275 | M127: -0.1402676275 | N127: -0.1902676275 | O127: -0.09561974111 | P127: 0.005421283421 | Q127: -0.04457871658 | R127: 0.04196390669 | S127: -0.00803609331 | T127: -0.05803609331 | U127: -0.001172217881 | V127: 0.02123472655 | W127: 0.04836662223 | AR127: =IF($AR$10<>"",IF($AR$10<>0,IF(A10<>"Q",MAX(D127:AQ127),""),""),"") -> 0.1898047386
B128: Q_7 | C128: 7. Neučiť sa | D128: =IF($AR$11<>"",IF($AR$11<>0,IF(D107<>"",D107-D78,""),""),"") -> 0.1154801828 | E128: =IF($AR$11<>"",IF($AR$11<>0,IF(E107<>"",E107-E78,""),""),"") -> 0.06548018279 | F128: 0.01548018279 | G128: -0.03451981721 | H128: -0.08451981721 | I128: 0.03521411201 | J128: -0.01478588799 | K128: -0.06478588799 | L128: -0.114785888 | M128: 0.07513536995 | N128: 0.02513536995 | O128: -0.02486463005 | P128: -0.07486463005 | Q128: 0.1060066311 | R128: 0.05600663109 | S128: 0.006006631086 | T128: 0.1072455221 | U128: 0.05724552208 | V128: 0.007245522075 | W128: 0.02467598383 | AR128: =IF($AR$11<>"",IF($AR$11<>0,IF(A11<>"Q",MAX(D128:AQ128),""),""),"") -> 0.1154801828
B129: Q_8 | C129: 8. Nie Ostrov | D129: =IF($AR$12<>"",IF($AR$12<>0,IF(D108<>"",D108-D78,""),""),"") -> 0.2106585088 | E129: =IF($AR$12<>"",IF($AR$12<>0,IF(E108<>"",E108-E78,""),""),"") -> 0.1606585088 | F129: 0.1106585088 | G129: 0.06065850883 | H129: 0.01065850883 | I129: -0.03934149117 | J129: -0.08934149117 | K129: 0.01039810868 | L129: -0.03960189132 | M129: -0.08960189132 | N129: -0.1396018913 | O129: -0.1896018913 | P129: -0.06440238904 | Q129: -0.114402389 | R129: -0.164402389 | S129: -0.0459473795 | T129: -0.0959473795 | U129: 0.07358112525 | V129: 0.06969453397 | W129: 0.04719555197 | AR129: =IF($AR$12<>"",IF($AR$12<>0,IF(A12<>"Q",MAX(D129:AQ129),""),""),"") -> 0.2106585088
B130: Q_9 | C130: 9. Nie Hájiť | D130: =IF($AR$13<>"",IF($AR$13<>0,IF(D109<>"",D109-D78,""),""),"") -> 0.2098470389 | E130: =IF($AR$13<>"",IF($AR$13<>0,IF(E109<>"",E109-E78,""),""),"") -> 0.1598470389 | F130: 0.1098470389 | G130: 0.05984703894 | H130: 0.009847038942 | I130: -0.04015296106 | J130: 0.0471115445 | K130: -0.002888455496 | L130: -0.0528884555 | M130: -0.1028884555 | N130: -0.1528884555 | O130: -0.2028884555 | P130: -0.09174604247 | Q130: -0.1417460425 | R130: -0.1917460425 | S130: -0.08195809752 | T130: 0.001874079614 | U130: -0.04812592039 | V130: 0.0938535117 | W130: 0.0438535117 | AR130: =IF($AR$13<>"",IF($AR$13<>0,IF(A13<>"Q",MAX(D130:AQ130),""),""),"") -> 0.2098470389
B131: Q_10 | C131: 10. Nezveril | D131: =IF($AR$14<>"",IF($AR$14<>0,IF(D110<>"",D110-D78,""),""),"") -> 0.1773827508 | E131: =IF($AR$14<>"",IF($AR$14<>0,IF(E110<>"",E110-E78,""),""),"") -> 0.1273827508 | F131: 0.07738275076 | G131: 0.02738275076 | H131: -0.02261724924 | I131: -0.07261724924 | J131: -0.1226172492 | K131: -0.1726172492 | L131: -0.03571166642 | M131: -0.08571166642 | N131: -0.1357116664 | O131: -0.1857116664 | P131: -0.008522876328 | Q131: 0.1409471899 | R131: 0.09094718991 | S131: 0.04094718991 | T131: 0.1174433542 | U131: 0.06744335415 | V131: 0.01744335415 | W131: 0.02537631871 | AR131: =IF($AR$14<>"",IF($AR$14<>0,IF(A14<>"Q",MAX(D131:AQ131),""),""),"") -> 0.1773827508
B132: Q_11 | C132: 11. Nezadaná | D132: =IF($AR$15<>"",IF($AR$15<>0,IF(D111<>"",D111-D78,""),""),"") ->  | E132: =IF($AR$15<>"",IF($AR$15<>0,IF(E111<>"",E111-E78,""),""),"") ->  | AR132: =IF($AR$15<>"",IF($AR$15<>0,IF(A15<>"Q",MAX(D132:AQ132),""),""),"") -> 
B133: Q_12 | C133: 12. Nezadaná | D133: =IF($AR$16<>"",IF($AR$16<>0,IF(D112<>"",D112-D78,""),""),"") ->  | E133: =IF($AR$16<>"",IF($AR$16<>0,IF(E112<>"",E112-E78,""),""),"") ->  | AR133: =IF($AR$16<>"",IF($AR$16<>0,IF(A16<>"Q",MAX(D133:AQ133),""),""),"") -> 
B134: Q_13 | C134: 13. Nezadaná | D134: =IF($AR$17<>"",IF($AR$17<>0,IF(D113<>"",D113-D78,""),""),"") ->  | E134: =IF($AR$17<>"",IF($AR$17<>0,IF(E113<>"",E113-E78,""),""),"") ->  | AR134: =IF($AR$17<>"",IF($AR$17<>0,IF(A17<>"Q",MAX(D134:AQ134),""),""),"") -> 
B135: Q_14 | C135: 14. Nezadaná | D135: =IF($AR$18<>"",IF($AR$18<>0,IF(D114<>"",D114-D78,""),""),"") ->  | E135: =IF($AR$18<>"",IF($AR$18<>0,IF(E114<>"",E114-E78,""),""),"") ->  | AR135: =IF($AR$18<>"",IF($AR$18<>0,IF(A18<>"Q",MAX(D135:AQ135),""),""),"") -> 
B136: Q_15 | C136: 15. Nezadaná | D136: =IF($AR$19<>"",IF($AR$19<>0,IF(D115<>"",D115-D78,""),""),"") ->  | E136: =IF($AR$19<>"",IF($AR$19<>0,IF(E115<>"",E115-E78,""),""),"") ->  | AR136: =IF($AR$19<>"",IF($AR$19<>0,IF(A19<>"Q",MAX(D136:AQ136),""),""),"") -> 
B137: Q_16 | C137: 16. Nezadaná | D137: =IF($AR$20<>"",IF($AR$20<>0,IF(D116<>"",D116-D78,""),""),"") ->  | E137: =IF($AR$20<>"",IF($AR$20<>0,IF(E116<>"",E116-E78,""),""),"") ->  | AR137: =IF($AR$20<>"",IF($AR$20<>0,IF(A20<>"Q",MAX(D137:AQ137),""),""),"") -> 
B138: Q_17 | C138: 17. Nezadaná | D138: =IF($AR$21<>"",IF($AR$21<>0,IF(D117<>"",D117-D78,""),""),"") ->  | E138: =IF($AR$21<>"",IF($AR$21<>0,IF(E117<>"",E117-E78,""),""),"") ->  | AR138: =IF($AR$21<>"",IF($AR$21<>0,IF(A21<>"Q",MAX(D138:AQ138),""),""),"") -> 
B139: Q_18 | C139: 18. Nezadaná | D139: =IF($AR$22<>"",IF($AR$22<>0,IF(D118<>"",D118-D78,""),""),"") ->  | E139: =IF($AR$22<>"",IF($AR$22<>0,IF(E118<>"",E118-E78,""),""),"") ->  | AR139: =IF($AR$22<>"",IF($AR$22<>0,IF(A22<>"Q",MAX(D139:AQ139),""),""),"") -> 
B140: Q_19 | C140: 19. Nezadaná | D140: =IF($AR$23<>"",IF($AR$23<>0,IF(D119<>"",D119-D78,""),""),"") ->  | E140: =IF($AR$23<>"",IF($AR$23<>0,IF(E119<>"",E119-E78,""),""),"") ->  | AR140: =IF($AR$23<>"",IF($AR$23<>0,IF(A23<>"Q",MAX(D140:AQ140),""),""),"") -> 
B141: Q_20 | C141: 20. Nezadaná | D141: =IF($AR$24<>"",IF($AR$24<>0,IF(D120<>"",D120-D78,""),""),"") ->  | E141: =IF($AR$24<>"",IF($AR$24<>0,IF(E120<>"",E120-E78,""),""),"") ->  | AR141: =IF($AR$24<>"",IF($AR$24>0,IF(A24<>"Q",MAX(D141:AQ141),""),""),"") -> 
A143: DIFF pi - E | B143: Q_1 | C143: 1. Sedieť | D143: =IF($AR$5<>"",IF($AR$5<>0,IF(D101<>"",ABS(D77-D101),""),""),"") -> 0.02228148311 | E143: =IF($AR$5<>"",IF($AR$5<>0,IF(E101<>"",ABS(E77-E101),""),""),"") -> 0.02771851689 | F143: 0.06306762757 | G143: 0.01306762757 | H143: 0.03693237243 | I143: 0.08693237243 | J143: 0.1369323724 | K143: 0.04724020652 | L143: 0.002759793479 | M143: 0.05275979348 | N143: 0.1027597935 | O143: 0.1527597935 | P143: 0.2027597935 | Q143: 0.2527597935 | R143: 0.04786592071 | S143: 0.08370891121 | T143: 0.03370891121 | U143: 0.01629108879 | V143: 0.01833866005 | W143: 0.03166133995 | AR143: =IF($AR$5<>"",IF($AR$5<>0,IF(A5<>"Q",MAX(D143:AQ143),""),""),"") -> 0.2527597935
B144: Q_2 | C144: 2. Učiť sa | D144: =IF($AR$6<>"",IF($AR$6<>0,IF(D102<>"",ABS(D77-D102),""),""),"") -> 0.03504627861 | E144: =IF($AR$6<>"",IF($AR$6<>0,IF(E102<>"",ABS(E77-E102),""),""),"") -> 0.01495372139 | F144: 0.06495372139 | G144: 0.1149537214 | H144: 0.01423758222 | I144: 0.03576241778 | J144: 0.08576241778 | K144: 0.1357624178 | L144: 0.1857624178 | M144: 0.04428526252 | N144: 0.005714737482 | O144: 0.05571473748 | P144: 0.1531167522 | Q144: 0.1031167522 | R144: 0.05311675223 | S144: 0.003116752235 | T144: 0.04688324777 | U144: 0.09688324777 | V144: 0.005425722517 | W144: 0.05542572252 | AR144: =IF($AR$6<>"",IF($AR$6<>0,IF(A6<>"Q",MAX(D144:AQ144),""),""),"") -> 0.1857624178
B145: Q_3 | C145: 3. Ostrov | D145: =IF($AR$7<>"",IF($AR$7<>0,IF(D103<>"",ABS(D77-D103),""),""),"") -> 0.04429672109 | E145: =IF($AR$7<>"",IF($AR$7<>0,IF(E103<>"",ABS(E77-E103),""),""),"") -> 0.005703278909 | F145: 0.05570327891 | G145: 0.03664473269 | H145: 0.01335526731 | I145: 0.06335526731 | J145: 0.1133552673 | K145: 0.1633552673 | L145: 0.002430564725 | M145: 0.04756943527 | N145: 0.09756943527 | O145: 0.1475694353 | P145: 0.03370743915 | Q145: 0.01629256085 | R145: 0.06629256085 | S145: 0.1162925608 | T145: 0.008970562119 | U145: 0.04102943788 | V145: 0.002867846579 | W145: 0.01157547599 | AR145: =IF($AR$7<>"",IF($AR$7<>0,IF(A7<>"Q",MAX(D145:AQ145),""),""),"") -> 0.1633552673
B146: Q_4 | C146: 4. Hájiť | D146: =IF($AR$8<>"",IF($AR$8<>0,IF(D104<>"",ABS(D77-D104),""),""),"") -> 0.2191184435 | E146: =IF($AR$8<>"",IF($AR$8<>0,IF(E104<>"",ABS(E77-E104),""),""),"") -> 0.1691184435 | F146: 0.1191184435 | G146: 0.06911844352 | H146: 0.01911844352 | I146: 0.03088155648 | J146: 0.08088155648 | K146: 0.1308815565 | L146: 0.1808815565 | M146: 0.2308815565 | N146: 0.1457890354 | O146: 0.1957890354 | P146: 0.2457890354 | Q146: 0.2957890354 | R146: 0.3457890354 | S146: 0.1072798058 | T146: 0.04035342594 | U146: 0.00572035994 | V146: 0.002333980392 | W146: 0.0009206335197 | AR146: =IF($AR$8<>"",IF($AR$8<>0,IF(A8<>"Q",MAX(D146:AQ146),""),""),"") -> 0.3457890354
B147: Q_5 | C147: 5. Tajomstvo | D147: =IF($AR$9<>"",IF($AR$9<>0,IF(D105<>"",ABS(D77-D105),""),""),"") -> 0.01826377483 | E147: =IF($AR$9<>"",IF($AR$9<>0,IF(E105<>"",ABS(E77-E105),""),""),"") -> 0.03173622517 | F147: 0.08173622517 | G147: 0.1317362252 | H147: 0.08527802688 | I147: 0.03527802688 | J147: 0.01472197312 | K147: 0.06472197312 | L147: 0.1147219731 | M147: 0.1647219731 | N147: 0.188288374 | O147: 0.138288374 | P147: 0.08828837396 | Q147: 0.03828837396 | R147: 0.01171162604 | S147: 0.06171162604 | T147: 0.111711626 | U147: 0.161711626 | V147: 0.005579175721 | W147: 0.04442082428 | AR147: =IF($AR$9<>"",IF($AR$9<>0,IF(A9<>"Q",MAX(D147:AQ147),""),""),"") -> 0.188288374
B148: Q_6 | C148: 6. Nesedieť | D148: =IF($AR$10<>"",IF($AR$10<>0,IF(D106<>"",ABS(D77-D106),""),""),"") -> 0.1398047386 | E148: =IF($AR$10<>"",IF($AR$10<>0,IF(E106<>"",ABS(E77-E106),""),""),"") -> 0.08980473865 | F148: 0.03980473865 | G148: 0.01019526135 | H148: 0.06019526135 | I148: 0.1101952614 | J148: 0.0402676275 | K148: 0.0902676275 | L148: 0.1402676275 | M148: 0.1902676275 | N148: 0.2402676275 | O148: 0.1456197411 | P148: 0.04457871658 | Q148: 0.09457871658 | R148: 0.00803609331 | S148: 0.05803609331 | T148: 0.1080360933 | U148: 0.05117221788 | V148: 0.02876527345 | W148: 0.001633377772 | AR148: =IF($AR$10<>"",IF($AR$10<>0,IF(A10<>"Q",MAX(D148:AQ148),""),""),"") -> 0.2402676275
B149: Q_7 | C149: 7. Neučiť sa | D149: =IF($AR$11<>"",IF($AR$11<>0,IF(D107<>"",ABS(D77-D107),""),""),"") -> 0.06548018279 | E149: =IF($AR$11<>"",IF($AR$11<>0,IF(E107<>"",ABS(E77-E107),""),""),"") -> 0.01548018279 | F149: 0.03451981721 | G149: 0.08451981721 | H149: 0.1345198172 | I149: 0.01478588799 | J149: 0.06478588799 | K149: 0.114785888 | L149: 0.164785888 | M149: 0.02513536995 | N149: 0.02486463005 | O149: 0.07486463005 | P149: 0.12486463 | Q149: 0.05600663109 | R149: 0.006006631086 | S149: 0.04399336891 | T149: 0.05724552208 | U149: 0.007245522075 | V149: 0.04275447792 | W149: 0.02532401617 | AR149: =IF($AR$11<>"",IF($AR$11<>0,IF(A11<>"Q",MAX(D149:AQ149),""),""),"") -> 0.164785888
B150: Q_8 | C150: 8. Nie Ostrov | D150: =IF($AR$12<>"",IF($AR$12<>0,IF(D108<>"",ABS(D77-D108),""),""),"") -> 0.1606585088 | E150: =IF($AR$12<>"",IF($AR$12<>0,IF(E108<>"",ABS(E77-E108),""),""),"") -> 0.1106585088 | F150: 0.06065850883 | G150: 0.01065850883 | H150: 0.03934149117 | I150: 0.08934149117 | J150: 0.1393414912 | K150: 0.03960189132 | L150: 0.08960189132 | M150: 0.1396018913 | N150: 0.1896018913 | O150: 0.2396018913 | P150: 0.114402389 | Q150: 0.164402389 | R150: 0.214402389 | S150: 0.0959473795 | T150: 0.1459473795 | U150: 0.02358112525 | V150: 0.01969453397 | W150: 0.002804448025 | AR150: =IF($AR$12<>"",IF($AR$12<>0,IF(A12<>"Q",MAX(D150:AQ150),""),""),"") -> 0.2396018913
B151: Q_9 | C151: 9. Nie Hájiť | D151: =IF($AR$13<>"",IF($AR$13<>0,IF(D109<>"",ABS(D77-D109),""),""),"") -> 0.1598470389 | E151: =IF($AR$13<>"",IF($AR$13<>0,IF(E109<>"",ABS(E77-E109),""),""),"") -> 0.1098470389 | F151: 0.05984703894 | G151: 0.009847038942 | H151: 0.04015296106 | I151: 0.09015296106 | J151: 0.002888455496 | K151: 0.0528884555 | L151: 0.1028884555 | M151: 0.1528884555 | N151: 0.2028884555 | O151: 0.2528884555 | P151: 0.1417460425 | Q151: 0.1917460425 | R151: 0.2417460425 | S151: 0.1319580975 | T151: 0.04812592039 | U151: 0.09812592039 | V151: 0.0438535117 | W151: 0.006146488297 | AR151: =IF($AR$13<>"",IF($AR$13<>0,IF(A13<>"Q",MAX(D151:AQ151),""),""),"") -> 0.2528884555
B152: Q_10 | C152: 10. Nezveril | D152: =IF($AR$14<>"",IF($AR$14<>0,IF(D110<>"",ABS(D77-D110),""),""),"") -> 0.1273827508 | E152: =IF($AR$14<>"",IF($AR$14<>0,IF(E110<>"",ABS(E77-E110),""),""),"") -> 0.07738275076 | F152: 0.02738275076 | G152: 0.02261724924 | H152: 0.07261724924 | I152: 0.1226172492 | J152: 0.1726172492 | K152: 0.2226172492 | L152: 0.08571166642 | M152: 0.1357116664 | N152: 0.1857116664 | O152: 0.2357116664 | P152: 0.05852287633 | Q152: 0.09094718991 | R152: 0.04094718991 | S152: 0.009052810092 | T152: 0.06744335415 | U152: 0.01744335415 | V152: 0.03255664585 | W152: 0.02462368129 | AR152: =IF($AR$14<>"",IF($AR$14<>0,IF(A14<>"Q",MAX(D152:AQ152),""),""),"") -> 0.2357116664
B153: Q_11 | C153: 11. Nezadaná | D153: =IF($AR$15<>"",IF($AR$15<>0,IF(D111<>"",ABS(D77-D111),""),""),"") ->  | E153: =IF($AR$15<>"",IF($AR$15<>0,IF(E111<>"",ABS(E77-E111),""),""),"") ->  | AR153: =IF($AR$15<>"",IF($AR$15<>0,IF(A15<>"Q",MAX(D153:AQ153),""),""),"") -> 
B154: Q_12 | C154: 12. Nezadaná | D154: =IF($AR$16<>"",IF($AR$16<>0,IF(D112<>"",ABS(D77-D112),""),""),"") ->  | E154: =IF($AR$16<>"",IF($AR$16<>0,IF(E112<>"",ABS(E77-E112),""),""),"") ->  | AR154: =IF($AR$16<>"",IF($AR$16<>0,IF(A16<>"Q",MAX(D154:AQ154),""),""),"") -> 
B155: Q_13 | C155: 13. Nezadaná | D155: =IF($AR$17<>"",IF($AR$17<>0,IF(D113<>"",ABS(D77-D113),""),""),"") ->  | E155: =IF($AR$17<>"",IF($AR$17<>0,IF(E113<>"",ABS(E77-E113),""),""),"") ->  | AR155: =IF($AR$17<>"",IF($AR$17<>0,IF(A17<>"Q",MAX(D155:AQ155),""),""),"") -> 
B156: Q_14 | C156: 14. Nezadaná | D156: =IF($AR$18<>"",IF($AR$18<>0,IF(D114<>"",ABS(D77-D114),""),""),"") ->  | E156: =IF($AR$18<>"",IF($AR$18<>0,IF(E114<>"",ABS(E77-E114),""),""),"") ->  | AR156: =IF($AR$18<>"",IF($AR$18<>0,IF(A18<>"Q",MAX(D156:AQ156),""),""),"") -> 
B157: Q_15 | C157: 15. Nezadaná | D157: =IF($AR$19<>"",IF($AR$19<>0,IF(D115<>"",ABS(D77-D115),""),""),"") ->  | E157: =IF($AR$19<>"",IF($AR$19<>0,IF(E115<>"",ABS(E77-E115),""),""),"") ->  | AR157: =IF($AR$19<>"",IF($AR$19<>0,IF(A19<>"Q",MAX(D157:AQ157),""),""),"") -> 
B158: Q_16 | C158: 16. Nezadaná | D158: =IF($AR$20<>"",IF($AR$20<>0,IF(D116<>"",ABS(D77-D116),""),""),"") ->  | E158: =IF($AR$20<>"",IF($AR$20<>0,IF(E116<>"",ABS(E77-E116),""),""),"") ->  | AR158: =IF($AR$20<>"",IF($AR$20<>0,IF(A20<>"Q",MAX(D158:AQ158),""),""),"") -> 
B159: Q_17 | C159: 17. Nezadaná | D159: =IF($AR$21<>"",IF($AR$21<>0,IF(D117<>"",ABS(D77-D117),""),""),"") ->  | E159: =IF($AR$21<>"",IF($AR$21<>0,IF(E117<>"",ABS(E77-E117),""),""),"") ->  | AR159: =IF($AR$21<>"",IF($AR$21<>0,IF(A21<>"Q",MAX(D159:AQ159),""),""),"") -> 
B160: Q_18 | C160: 18. Nezadaná | D160: =IF($AR$22<>"",IF($AR$22<>0,IF(D118<>"",ABS(D77-D118),""),""),"") ->  | E160: =IF($AR$22<>"",IF($AR$22<>0,IF(E118<>"",ABS(E77-E118),""),""),"") ->  | AR160: =IF($AR$22<>"",IF($AR$22<>0,IF(A22<>"Q",MAX(D160:AQ160),""),""),"") -> 
B161: Q_19 | C161: 19. Nezadaná | D161: =IF($AR$23<>"",IF($AR$23<>0,IF(D119<>"",ABS(D77-D119),""),""),"") ->  | E161: =IF($AR$23<>"",IF($AR$23<>0,IF(E119<>"",ABS(E77-E119),""),""),"") ->  | AR161: =IF($AR$23<>"",IF($AR$23<>0,IF(A23<>"Q",MAX(D161:AQ161),""),""),"") -> 
B162: Q_20 | C162: 20. Nezadaná | D162: =IF($AR$24<>"",IF($AR$24<>0,IF(D120<>"",ABS(D77-D120),""),""),"") ->  | E162: =IF($AR$24<>"",IF($AR$24<>0,IF(E120<>"",ABS(E77-E120),""),""),"") ->  | AR162: =IF($AR$24<>"",IF($AR$24<>0,IF(A24<>"Q",MAX(D162:AQ162),""),""),"") -> 

Sheet Histo_vzory
A2: 1 | B2: 1 hodnota | G2: Socio_vzory_z_2_11_2018.xls
B3: HS: 0 | D3: Gausso | E3: Gausso
D4: solo | E4: kumul
D5: pi % | E5: pi % cum
B6: Valid | C6: 0 | D6: 99.9 | E6: 99.9
A8: 2 | B8: 2 hodnoty
B9: HS: 0 - 1 | D9: Gausso | E9: Gausso
D10: solo | E10: kumul
D11: pi % | E11: pi % cum
B12: Valid | C12: 0 | D12: 50 | E12: 50
C13: 1 | D13: 50 | E13: 99.9
A15: 2 | B15: 3 hodnoty
B16: HS: 0 - 2 | D16: Gausso | E16: Gausso
D17: solo | E17: kumul
D18: pi % | E18: pi % cum
B19: Valid | C19: 0 | D19: 10.55613564 | E19: 10.55613564
C20: 1 | D20: 78.87004527 | E20: 89.4261809
C21: 2 | D21: 10.55613564 | E21: 99.9
A23: 1 | B23: 4 hodnoty
B24: HS: 0 - 3 | D24: Gausso | E24: Gausso
D25: solo | E25: kumul
D26: pi % | E26: pi % cum
B27: Valid | C27: 0 | D27: 4.736129194 | E27: 4.736129194
C28: 1 | D28: 45.22096477 | E28: 49.95709397
C29: 2 | D29: 45.22096477 | E29: 95.17805874
C30: 3 | D30: 4.736129194 | E30: 99.91418793
A32: 2 | B32: 5 hodnôt | D32: Gausso | E32: Gausso
B33: HS: 0 - 4 | D33: solo | E33: kumul
D34: pi % | E34: pi % cum
B35: Valid | C35: 0 | D35: 2.950733647 | E35: 2.950733647
C36: 1 | D36: 23.55891673 | E36: 26.50965037
C37: 2 | D37: 46.80289419 | E37: 73.31254457
C38: 3 | D38: 23.55891673 | E38: 96.87146129
C39: 4 | D39: 2.950733647 | E39: 99.82219494
A41: 3 | B41: 6 hodnôt | D41: Gausso | E41: Gausso
B42: HS: 0 - 5 | D42: solo | E42: kumul
D43: pi % | E43: pi % cum
B44: Valid | C44: 0 | D44: 2.140023392 | E44: 2.140023392
C45: 1 | D45: 13.5905122 | E45: 15.73053559
C46: 2 | D46: 34.13447461 | E46: 49.8650102
C47: 3 | D47: 34.13447461 | E47: 83.9994848
C48: 4 | D48: 13.5905122 | E48: 97.589997
C49: 5 | D49: 2.140023392 | E49: 99.73002039
A51: 4 | B51: 7 hodnôt | D51: Gausso | E51: Gausso
B52: HS: 0 - 6 | D52: solo | E52: kumul
D53: pi % | E53: pi % cum
B54: Valid | C54: 0 | D54: 1.684145695 | E54: 1.684145695
C55: 1 | D55: 8.703934848 | E55: 10.38808054
C56: 2 | D56: 23.28113458 | E56: 33.66921513
C57: 3 | D57: 32.3077761 | E57: 65.97699123
C58: 4 | D58: 23.28113458 | E58: 89.25812581
C59: 5 | D59: 8.703934848 | E59: 97.96206066
C60: 6 | D60: 1.684145695 | E60: 99.64620635
A62: 5 | B62: 8 hodnôt | D62: Gausso | E62: Gausso
B63: HS: 0 - 7 | D63: solo | E63: kumul
D64: pi % | E64: pi % cum
B65: Valid | C65: 0 | D65: 1.392491862 | E65: 1.392491862
C66: 1 | D66: 6.050143991 | E66: 7.442635853
C67: 2 | D67: 16.09615365 | E67: 23.5387895
C68: 3 | D68: 26.2474738 | E68: 49.7862633
C69: 4 | D69: 26.2474738 | E69: 76.0337371
C70: 5 | D70: 16.09615365 | E70: 92.12989075
C71: 6 | D71: 6.050143991 | E71: 98.18003474
C72: 7 | D72: 1.392491862 | E72: 99.5725266
A74: 6 | B74: 9 hodnôt | D74: Gausso | E74: Gausso
B75: HS: 0-8 | D75: solo | E75: kumul
D76: pi % | E76: pi % cum
B77: Valid | C77: 0 | D77: 1.189512043 | E77: 1.189512043
C78: 1 | D78: 4.473210132 | E78: 5.662722176
C79: 2 | D79: 11.51655889 | E79: 17.17928107
C80: 3 | D80: 20.30795696 | E80: 37.48723804
C81: 4 | D81: 24.53394369 | E81: 62.02118173
C82: 5 | D82: 20.30795696 | E82: 82.32913869
C83: 6 | D83: 11.51655889 | E83: 93.84569759
C84: 7 | D84: 4.473210132 | E84: 98.31890772
C85: 8 | D85: 1.189512043 | E85: 99.50841976
A87: 7 | B87: 10 hodnôt | D87: Gausso | E87: Gausso
B88: HS: 0-9 | D88: solo | E88: kumul
D89: pi % | E89: pi % cum
B90: Valid | C90: 0 | D90: 1.03975439 | E90: 1.03975439
C91: 1 | D91: 3.465620658 | E91: 4.505375049
C92: 2 | D92: 8.546991063 | E92: 13.05236611
C93: 3 | D93: 15.59970979 | E93: 28.6520759
C94: 4 | D94: 21.07426392 | E94: 49.72633982
C95: 5 | D95: 21.07426392 | E95: 70.80060375
C96: 6 | D96: 15.59970979 | E96: 86.40031353
C97: 7 | D97: 8.546991063 | E97: 94.94730459
C98: 8 | D98: 3.465620658 | E98: 98.41292525
C99: 9 | D99: 1.03975439 | E99: 99.45267964
A101: 8 | B101: 11 hodnôt | D101: Gausso | E101: Gausso
B102: HS: 0-10 | D102: solo | E102: kumul
D103: pi % | E103: pi % cum
B104: Valid | C104: 0 | D104: 0.924470942 | E104: 0.924470942
C105: 1 | D105: 2.783468421 | E105: 3.707939363
C106: 2 | D106: 6.55906168 | E106: 10.26700104
C107: 3 | D107: 12.09775787 | E107: 22.36475891
C108: 4 | D108: 17.46663219 | E108: 39.83139111
C109: 5 | D109: 19.74126514 | E109: 59.57265624
C110: 6 | D110: 17.46663219 | E110: 77.03928844
C111: 7 | D111: 12.09775787 | E111: 89.13704631
C112: 8 | D112: 6.55906168 | E112: 95.69610799
C113: 9 | D113: 2.783468421 | E113: 98.47957641
C114: 10 | D114: 0.924470942 | E114: 99.40404735
A116: 9 | B116: 12 hodnôt | D116: Gausso | E116: Gausso
B117: HS: 0-11 | D117: solo | E117: kumul
D118: pi % | E118: pi % cum
B119: Valid | C119: 0 | D119: 0.8328298403 | E119: 0.8328298403
C120: 1 | D120: 2.299686395 | E120: 3.132516236
C121: 2 | D121: 5.182284671 | E121: 8.314800907
C122: 3 | D122: 9.531004973 | E122: 17.84580588
C123: 4 | D123: 14.30670714 | E123: 32.15251302
C124: 5 | D124: 17.52818581 | E124: 49.68069884
C125: 6 | D125: 17.52818581 | E125: 67.20888465
C126: 7 | D126: 14.30670714 | E126: 81.51559179
C127: 8 | D127: 9.531004973 | E127: 91.04659676
C128: 9 | D128: 5.182284671 | E128: 96.22888144
C129: 10 | D129: 2.299686395 | E129: 98.52856783
C130: 11 | D130: 0.8328298403 | E130: 99.36139767
A132: 10 | B132: 13 hodnôt | D132: Gausso | E132: Gausso
B133: HS: 0-12 | D133: solo | E133: kumul
D134: pi % | E134: pi % cum
B135: Valid | C135: 0 | D135: 0.7581339305 | E135: 0.7581339305
C136: 1 | D136: 1.943391912 | E136: 2.701525842
C137: 2 | D137: 4.197798154 | E137: 6.899323996
C138: 3 | D138: 7.640878088 | E138: 14.54020208
C139: 4 | D139: 11.72024049 | E139: 26.26044257
C140: 5 | D140: 15.14988241 | E140: 41.41032498
C141: 6 | D141: 16.50312936 | E141: 57.91345435
C142: 7 | D142: 15.14988241 | E142: 73.06333676
C143: 8 | D143: 11.72024049 | E143: 84.78357725
C144: 9 | D144: 7.640878088 | E144: 92.42445534
C145: 10 | D145: 4.197798154 | E145: 96.62225349
C146: 11 | D146: 1.943391912 | E146: 98.5656454
C147: 12 | D147: 0.7581339305 | E147: 99.32377933
A149: 11 | B149: 14 hodnôt | D149: Gausso | E149: Gausso
B150: HS: 0-13 | D150: solo | E150: kumul
D151: pi % | E151: pi % cum
B152: Valid | C152: 0 | D152: 0.6960155842 | E152: 0.6960155842
C153: 1 | D153: 1.67270669 | E153: 2.368722274
C154: 2 | D154: 3.473270782 | E154: 5.841993056
C155: 3 | D155: 6.231372127 | E155: 12.07336518
C156: 4 | D156: 9.65965396 | E156: 21.73301914
C157: 5 | D157: 12.93830333 | E157: 34.67132248
C158: 6 | D158: 14.97388029 | E158: 49.64520277
C159: 7 | D159: 14.97388029 | E159: 64.61908307
C160: 8 | D160: 12.93830333 | E160: 77.5573864
C161: 9 | D161: 9.65965396 | E161: 87.21704036
C162: 10 | D162: 6.231372127 | E162: 93.44841249
C163: 11 | D163: 3.473270782 | E163: 96.92168327
C164: 12 | D164: 1.67270669 | E164: 98.59438996
C165: 13 | D165: 0.6960155842 | E165: 99.29040555
A167: 12 | B167: 15 hodnôt | D167: Gausso | E167: Gausso
B168: HS: 0-14 | D168: solo | E168: kumul
D169: pi % | E169: pi % cum
B170: Valid | C170: 0 | D170: 0.6435014476 | E170: 0.6435014476
C171: 1 | D171: 1.461662122 | E171: 2.105163569
C172: 2 | D172: 2.926303317 | E172: 5.031466886
C173: 3 | D173: 5.163825678 | E173: 10.19529256
C174: 4 | D174: 8.031706658 | E174: 18.22699922
C175: 5 | D175: 11.01111742 | E175: 29.23811664
C176: 6 | D176: 13.30591008 | E176: 42.54402672
C177: 7 | D177: 14.17257695 | E177: 56.71660367
C178: 8 | D178: 13.30591008 | E178: 70.02251375
C179: 9 | D179: 11.01111742 | E179: 81.03363117
C180: 10 | D180: 8.031706658 | E180: 89.06533783
C181: 11 | D181: 5.163825678 | E181: 94.22916351
C182: 12 | D182: 2.926303317 | E182: 97.15546683
C183: 13 | D183: 1.461662122 | E183: 98.61712895
C184: 14 | D184: 0.6435014476 | E184: 99.2606304
A186: 13 | B186: 16 hodnôt | D186: Gausso | E186: Gausso
B187: HS: 0-15 | D187: solo | E187: kumul
D188: pi % | E188: pi % cum
B189: Valid | C189: 0 | D189: 0.5984948061 | E189: 0.5984948061
C190: 1 | D190: 1.293480332 | E190: 1.891975138
C191: 2 | D191: 2.504022032 | E191: 4.395997171
C192: 3 | D192: 4.342086745 | E192: 8.738083916
C193: 4 | D193: 6.744403421 | E193: 15.48248734
C194: 5 | D194: 9.383728362 | E194: 24.8662157
C195: 6 | D195: 11.69488026 | E195: 36.56109596
C196: 7 | D196: 13.05586598 | E196: 49.61696194
C197: 8 | D197: 13.05586598 | E197: 62.67282793
C198: 9 | D198: 11.69488026 | E198: 74.36770819
C199: 10 | D199: 9.383728362 | E199: 83.75143655
C200: 11 | D200: 6.744403421 | E200: 90.49583997
C201: 12 | D201: 4.342086745 | E201: 94.83792672
C202: 13 | D202: 2.504022032 | E202: 97.34194875
C203: 14 | D203: 1.293480332 | E203: 98.63542908
C204: 15 | D204: 0.5984948061 | E204: 99.23392389
A206: 14 | B206: 17 hodnôt | D206: Gausso | E206: Gausso
B207: HS: 0-16 | D207: solo | E207: kumul
D208: pi % | E208: pi % cum
B209: Valid | C209: 0 | D209: 0.5594730876 | E209: 0.5594730876
C210: 1 | D210: 1.156933878 | E210: 1.716406966
C211: 2 | D211: 2.171513138 | E211: 3.887920104
C212: 3 | D212: 3.699499912 | E212: 7.587420016
C213: 4 | D213: 5.720736848 | E213: 13.30815686
C214: 5 | D214: 8.029541637 | E214: 21.3376985
C215: 6 | D215: 10.22964358 | E215: 31.56734209
C216: 7 | D216: 11.82938117 | E216: 43.39672325
C217: 8 | D217: 12.41640336 | E217: 55.81312661
... 501 more rows

Sheet Technický návod
B1: Technický návod na obsluhu všetkých spreadsheetov na vyhodnotenie sociometrie verzie A, B, C, D, E, F,G.
B2: Mgr. Stanislav Fila, psychológ CPPPaP Banská Bystrica
B4: Dôležité technické poznámky.
B6: A. Musíme mať povolené makrá. (Všetky verzie spreadsheeotov).
C8: Pretože spreadsheet obsahuje makrá v jazyku Visual Basic pred samotnou prácou
B9: je potrebné povoliť makrá.
B11: V EXCELI 2003.
B12: Dáme Nastroje → Možnosti → Zabezpečenie → Zabezpečenie makier
B34: Môžeme zvoliť podľa potreby Stredná alebo ak máme dobrý rezidentný Antivirový program aj Nizka.
B36: Ak zvolíme Stredná po spustení sa objaví oznam:
B49: V EXCELI 2007 a vyššie.
B51: Keď nie sú povolené makrá objaví sa napr. oznam:
B60: Stlačíme Tlačidlo OFFICE vľavo hore.
B62: Potom klikneme dole na Možnosti programu EXCEL a vyberieme Centrum dôveryhodnosti.
B87: Nastavenie centra dôveryhodnosti → Nastavenie makra:
B103: V EXCELI 2013.
B105: Klikneme na SÚBOR:
B123: Vyberieme Možnosti:
B157: Vyberieme Možnosti → Centrum dôveryhodnosti:
B180: Zaklikneme takto:
B205: B. Musíme mať nainštalovaný Add In XY Chart Labeler. (Nie je nutný pre verzie Socio_Semafo bez histogramov).
B207: Autor je vývojár Microsoftu Rob Bovey, je zdarma na stiahnutie napríklad na lokácii:
B208: http://www.appspro.com/Utilities/ChartLabeler.htm
B239: Stiahneme verziu pre Windows:
B252: a spustíme: | D252: XYChartLabeler.exe
B254: B. Musíme mať nainštalované a povolené tzv. Doplnky a to konkrétne
C256: Analytické nástroje
C257: Analytické nástroje - VBA
C258: XY Chart Labeler 7.1
B260: V EXCELI 2003 dáme: Nástroje → Doplnky.
B261: Zobrazí sa toto: | I261: Zaklikneme to takto:
B283: Ak by sme to nezaklikli objaví sa oznam: | G283: Keď nie je zakliknuté XY Chart Labeler: | M283: Keď nie sú zakliknuté Analytické nástroje:
B296: Keď by sme teraz stlačili Debug program vojde do makra a ukáže čo mu chýba:
B315: Makro diferencuje, či sme v prostredí EXCEL 2003 alebo EXCEL 2007 a vyššie.
B316: Z okna makra odídeme tak, že stlačíme krížik vpravo hore (Koniec) a odklikneme OK v tomto ozname:
B327: V EXCELI 2007 a vyššie.
B329: Stlačíme Tlačidlo OFFICE vľavo hore.
B330: Potom klikneme dole na Možnosti programu EXCEL a vyberieme Doplnky.
B331: Predtým sme doinštalovali XY Chart Labels.
B360: Dáme Spustiť. Môže sa objaviť oznam:
B369: Dáme Áno a Doplnok sa nainštaluje. Znovu dáme spustiť a objaví sa toto: | J369: Zaklikneme to takto:
B390: Bez zakliknutých Doplnkov sa zobrazí toto:
B412: Vidíme, že makro identifikovalo verziu EXCELU a potrebuje XY Chart Labeler alebo daný doplnok.
B413: Z makra odídeme rovnako ako v EXCELI 2003.
B415: V EXCELI 2013.
B417: Klikneme na SÚBOR:
B436: Vyberieme Možnosti:
B470: Vyberieme Doplnky:
B492: Vyberieme Spravovať : Doplnky programu Excel → Spustiť
B498: Zaklikneme takto:
B525: Dáme OK. Keď nie sú k dispozícii Analytické nástroje a Analytické nástroje - VBA
B526: musíme ich doinštalovať.
B528: V iných verziách som to netestoval.
B530: Problémy s kompatibilitou verzií EXCELU.
B532: Makrá som programoval a odladil pôvodne v EXCELI 2003.
B533: V tejto verzii programy pracujú bez problémov.
B535: Testovanie v iných verziách ukázalo, že môžu vniknúť určité problémy s vyššími verziami.
B536: Po prvom seminári 9. 10. 2017 som programy upravil, aby pracovali správne vo vyšších verziách.
B538: Ďalšie testovanie.
B540: 1. Testovanie pod OFFICE 2007 PRO pod operačných systémom Windows XP.
C541: Programy pracovali bez problémov.
B542: 2. Testovanie pod OFFICE 2013 pod operačným systémom Windows 10.
C543: Programy pracovali bez problémov.
B544: 3. Testovanie pod OFFICE 2007 pod operačným systémom Windows 10.
C545: Programy A, B, C pracovali bez problémov. Ale v programoch D, E, F, teda verziách
C546: s histogramami, program nevytvorí histogram. Pritom na niektorých PC programy pracujú
C547: správne aj pod EXCEL 2007. Nie je jasné prečo.
B549: Odporúčaný postup.
B551: 1. Natiahneme do nášho EXCELU súbor *.xls. Vyššie verzie ho načítajú.
B552: 2. Vyskúšame, či pracuje správne. Vo verziách A, B, D, E takto:
C554: a.) Prejdeme do Listu Q_10 a stlačíme tlačidlo „Prelož otázku do Sumy_All_Q“.
D555: Po chvíli sa objaví oznam:
C569: b.) Stlačíme Áno. Program zbehne a dá oznam:
C584: c.) Stlačíme OK.
B586: Vo verziách C, F overíme či program pracuje správne takto:
C588: a.) Prejdeme do Listu „Sumy_All_Q“
C589: b.) Stlačíme tlačidlo „Preložiť do Target grafov“. Program zbehne a dá oznam o voľbe výstupu.
C591: Verzia C: | I591: Verzia F:
C613: c.) Vyberieme niektorú z možností – pri verzii F zvolíme 4 aby sme videli, či sú histogramy
C614: nakreslené správne – a dáme OK. Objaví sa záverečný oznam:
B629: 3. Prekontrolujeme Histogramy. Keď sú zelené čiary vodorovné napríklad takto:
C647: znamená to, že doplnok ATPVBAEN.XLAM nepracuje správne. Dôvod zatiaľ nepoznám.
B649: 4. Potom súbor uložíme ako „Zošit programu EXCEL podporujúci makrá“.
B650: 5. Tento súbor má príponu *.xlsm.
B651: 6. Ďalej pracujeme s týmto súborom.
B653: Koniec technického návodu.
B655: V Banskej Bystrici dňa 18.10.2017
B657: Stanislav Fila

Sheet Stručný návod
B1: Stručný návod na obsluhu spreadsheetu "D_Socio_Semafo_Fila_Grun_ver_1_simple.xls"
B2: Mgr. Stanislav Fila, psychológ CPPPaP Banská Bystrica
B3: Aktualizácia 8.11.2018
B5: Program nie je možné použiť na komerčné účely.
B7: Dôležité upozornenie!
B8: Pred prácou s programom je nutné dodržať pokyny uvedené v Technickom návode.
B9: Ten je v Liste: "Technický návod".
B11: Jednoducho povedané, treba mať povolené makrá,
B12: treba mať povolené Doplnky:
C14: Analytické nástroje
C15: Analytické nástroje VBA
B17: a treba mať nainštalovaný a povolený v Doplnkoch:
C19: XY Chart Labeler 7.1
B21: Ako sa to robí a ďalšie podrobnosti sú v už spomínanom "Technickom návode".
B23: Dimenzovanie programu.
B25: Program má tieto parametre, ak chceme obmedzenia.
B28: 1. Počet otázok na jednotlivé sociálne role môže byť najviac 20.
B29: 2. Počet osôb môže byť najmenej 4 a najviac 40.
B30: 3. Počet volieb môže byť najviac 3.
B31: 4. V Liste Questions musia byť zadané mená otázok v plnom znení (hlavičky v Listoch), ako aj
B32: v skrátenom znení ktoré program vkladá do názvov grafov jednotlivých otázok.
B33: 5. V tomto liste taktiež musia byť zadané konotácie, P = pozitívna, N = negatívna, Q = nezadaná otázka.
B35: Nezadaným otázkam dávame rovnaké meno aj pre plný aj pre skrátený názov, napr. "11. Nezadaná."
B37: Názvy jednotlivých Listov nemožno meniť, pretože makrá programu sa o ne opierajú.
B39: Sú takéto:
B41: Listy Q_1; Q_2; Q_3 .... až Q_20 sú Listy, kde sú matice odpovedí.
B43: List Sumy_All_Q: tu sú preložené dáta všetkých zadaných otázok a robím tam aj nejaké výpočty.
B44: List Grafy: tu sú všetky grafy aj s dátami, ktoré potrebujú.
B45: List Technický návod: tam sú nutné technické nastavenia pre správne fungovanie programu.
B46: List Návod: tam je stručný návod na obsluhu.
B47: List Pomo: na odkladanie pomocných vecí
C49: Poznámka. Verzia_1 je verzia, ktorá nevygeneruje súbory *.sgm pre program Walsh`s
B50: Classroom Sociometrics. Preto nie je nutné zadávať mená v konvencii pre tento program. Pretože
B51: ale je škoda, keď už máme matice zadané, aby sme si nemohli pozrieť aj ako vyzerá sociogram
B52: danej otázky, spracoval som aj Verziu_2, ktorá to umožňuje. Tam je nutné zadávať mená vo
B53: vo Walshovej konvencii, teda "01_Janko m", teda v úvodzovkách nejaké meno medzera
B54: a písmeno pohlavia m, resp. f.
B56: Práca s programom.
B58: Po otvorení súboru najprv zadáme znenie použitých sociometrických otázok, konotáciu a skrátené názvy.
B60: Prejdeme do Listu Questions.
B62: Do stĺpca B dáme konotácie otázok. Pre pozitívne otázky písmeno P, pre negatívne písmeno N
C63: pre pozitívne otázky písmeno P
C64: pre negatívne otázky písmeno N
C65: pre nepoužité otázky písmeno Q
B66: Písmená P a N sú povinné. Makrá kontroluje ich zadanie.
B68: Do stĺpca C dáme znenie otázok.
B70: Nemusia byť v konvencii pre Walshov program Sociometry, teda úvodzovky vľavo, text otázky a úvodzovky vpravo.
B72: Do stĺpca D dáme skrátené názvy otázok. Nemusia byť v konvencii Walshovho programu, teda v úvodzovkách.
B73: Program ich dáva do názvov grafov.
B75: Správne vyplnenie otázok v Liste Questions vyzerá napríklad takto:
B77: Otázky v Liste Questions vyzerajú napr. takto:
B104: Potom prejdeme do Listu: Q_1. Dole vidíme tieto tlačidlá:
B121: Najprv stlačíme tlačidlo „Vymaž údaje“.
B126: Makro vykoná rôcne kontroly (viď Poddobný návod) a dá oznam:
B144: Stlačíme OK , makro sa nastaví na bunku „B5“ v Liste „Q_1“ teda sem:
B156: Postupne vkladáme čísla osôb do stĺpca „B“ a mená osôb do stĺpca „C“. Keď skončíme stlačíme
B157: tlačidlo „Prelož mená“.
B162: Makro vykoná ďalšie kontroly (viď Podrobný návod) a vyžiada si počet volieb:
B174: Zadáme počet volieb, ak sú tri, stlačíme len OK a program preloží mená do všetkých Listov.
B175: Potom dá oznam o preložení mien do všetkých Listov::
B197: Pred preložením mien to v Liste Q_1 vyzerá napr. takto:
B227: Po preložení sú mená aj v hlavičkách stĺpcov napr.
B252: Údaje zadávame dvojklikmi na myši takto:
C253: Nastavíme sa v danom riadku pod osobu, ktorá bola zvolená ako prvá
D254: a dáme ľavý dvojklik myšou. V danej bunke sa objaví číslo 1.
C255: Nastavíme sa v danom riadku pod osobu, ktorá bola zvolená ako druhá
D256: a dáme ľavý dvojklik myšou. V danej bunke sa objaví číslo 2.
C257: Nastavíme sa v danom riadku pod osobu, ktorá bola zvolená ako tretia
D258: a dáme ľavý dvojklik myšou. V danej bunke sa objaví číslo 3.
C260: Prejdeme do ďalšieho riadku a postup opakujeme.
B262: Vyzerá to napr. takto (neukotvené priečky):
B284: Môžeme si ukotviť priečky, kvôli prehľadu. Klikneme na Riadok 4 a dáme ukotviť priečky.
B296: Čo robiť, keď sa pomýlime:
B298: V bunke C3 je počítadlo klikov.
B309: 1. Vymažeme chybné číslo.
B310: 2. Nastavíme počítadlo, ktoré je v bunke C3 na hodnotu, ktorú chceme vložiť.
B311: 3. Klikneme znovu na novú bunku 2x.
B313: Alebo:
B314: 1. Vymažeme všetky čísla v danom riadku.
B315: 2. Do bunky počítadla dáme hodnotu nula = 0
B316: 3. Znovu zadáme tri správne čísla.
B318: Alebo:
B319: 1. Dvojklikneme na chybnom čísle. Číslo zmizne.
B320: 2. Dáme ľavý klik na hociktorej inej prázdnej bunke. Chybné číslo zmizne.
B321: 3. Teraz dvojklikneme na správnej bunke.
B322: 4. Toto opakujeme, kým tam nebude správne číslo (max 3 razy), pretože to súvisí s počítadlom.
B324: Lepšie je dávať pozor, alebo druhý postup s vymazaním riadku a nastavením počítadla na nulu.
B325: Matice môžeme aj kopírovať, ak ich máme vyhotovené predtým v EXCELI. (Tak postupujem pri
B326: ladení).
B328: Keď vyplníme maticu stlačíme tlačidlo „Vypočítaj sumy“.
B329: pod maticu. Vyzerá to takto:
B334: Makro vypočíta potrebné sumy a dá ich pod maticu. Vyzerá to napr. takto:
B352: Program nič neoznámi,
B354: Teraz stlačíme tlačidlo „Prelož otázku do Sumy_All_Q“.
B359: Program preloží údaje do Listu Sumy_All_Q a položí otázku:
B374: Stlačíme podľa situácie. Ak to nie je posledná otázka zvolíme Nie,
B375: a program prejde do ďalšieho Listu.
B376: Vyplníme ďalšiu maticu a znovu stlačíme tlačidlá:
B380: a potom
B384: Keď je to posledná otázka stlačíme Áno.
B386: Program ponúkne voľbu Listu, ktorý chceme poyrieť ako prvý:
B399: Stlačíme OK.
B401: Program ešte vykoná nejaké kontroly a dá oznam:
B416: Stlačíme OK a program skončí.
B418: To je všetko.
B419: 2018-11-18

Sheet Podrobný návod
B1: Návod na obsluhu spreadsheetu "E_Socio_Semafo_Fila_Grun_ver_2_full_H_new.xls" | J1: s histogramami | L1: verzia 17.11.2018
B2: Mgr. Stanislav Fila, psychológ CPPPaP Banská Bystrica
B3: Aktualizácia 17.11.2018
B5: Tento materiál i program nie je možné použiť na komerčné účely.
B7: Dôležité upozornenie!
B8: Pred prácou s programom je nutné dodržať pokyny uvedené v Technickom návode.
B9: Ten je v Liste: "Technický návod".
B11: Jednoducho povedané, treba mať povolené makrá,
B12: treba mať povolené Doplnky:
C14: Analytické nástroje
C15: Analytické nástroje VBA
B17: a treba mať nainštalovaný a povolený v Doplnkoch:
C19: XY Chart Labeler 7.1
B21: Ako sa to robí a ďalšie podrobnosti sú v už spomínanom "Technickom návode".
B23: Úvod.
C25: Tento spreadsheet som naprogramoval inšpirovaný postupom, ktorý používa na vyhodnotenie
B26: sociometrie v triede Mgr. Dušan Grúň, psychológ, riaditeľ CPPPaP v Žiline.
B28: Svoj postup popísal takto:
C30: Ad 2) Sociometria. Prikláňam sa ale k názoru, že sociometria mi povie o triede (a teraz
B31: doplním nie moc odborné), že naozaj nemusím mať normy. Nemusím porovnávať 6.A z jednej ZŠ
B32: so 6.B z inej ZŠ). Čiže: u nás v hárku v inštrukcii hovoríme deťom, že nech dajú prvé tri voľby
B33: (spracúvame iba dve). To je Príloha Word. Aby sme podporili anonymitu, tak na tabuli majú
B34: napísané čísla v triednom výkaze a k tomu mená (od 1. Áxxx až po napr. 22. Žxxx). No a teda tie
B35: deti píšu do nášho hárku ku každej položke iba 3 čísla svojich spolužiakov. Od "najsilnejšej" voľby
B36: po "najslabšiu". Koloniek je tam 5 voľných ku každej položke, oni píšu tri a spracúvame 2. Aby sme
B37: tie dáta vôbec od nich dostali. No a celé to vidno spracované v Prílohe Excel, kde si vyznačím ja
B38: sám farebne veci, ktoré sa tlačia na povrch, čiže, konkrétne:
B40: Základná škola v .................., dotazník o žiakoch, sociometria z roku 2010
C41: 1 | D41: 2 | E41: 3 | F41: 4 | G41: 5 | H41: 6 | I41: 7 | J41: 8 | K41: 9 | L41: 10 | M41: 11 | N41: 12 | O41: 13 | P41: 14 | Q41: 15 | R41: 16 | S41: 17 | T41: 18 | U41: 19
B42: Sympatický | C42: 0,0/0,0 | D42: 10,5/0,0 | E42: 0,0/5,3 | F42: 0,0/5,3 | G42: 0,0/0,0 | H42: 0,0/0,0 | I42: 0,0/5,3 | J42: 0,0/0,0 | K42: 0,0/0,0 | L42: 5,3/5,3 | M42: 10,5/10,5 | N42: 10,5/10,5 | O42: 26,3/5,3 | P42: 0,0/0,0 | Q42: 5,3/5,3 | R42: 5,3/5,3 | S42: 0,0/15,8 | T42: 0,0/0,0 | U42: 0,0/0,0
B43: Voľný čas | C43: 0,0/0,0 | D43: 10,5/15,8 | E43: 5,3/5,3 | F43: 0,0/0,0 | G43: 0,0/0,0 | H43: 0,0/5,3 | I43: 0,0/5,3 | J43: 5,3/0,0 | K43: 5,3/0,0 | L43: 10,5/0,0 | M43: 15,8/5,3 | N43: 0,0/10,5 | O43: 21,1/10,5 | P43: 0,0/5,3 | Q43: 5,3/5,3 | R43: 0,0/10,5 | S43: 5,3/5,3 | T43: 0,0/0,0 | U43: 5,3/5,3
B44: O problémoch | C44: 0,0/0,0 | D44: 10,5/5,3 | E44: 5,3/0,0 | F44: 5,3/0,0 | G44: 0,0/0,0 | H44: 5,3/5,3 | I44: 5,3/26,3 | J44: 5,3/0,0 | K44: 10,5/0,0 | L44: 5,3/0,0 | M44: 10,5/0,0 | N44: 5,3/0,0 | O44: 5,3/5,3 | P44: 5,3/0,0 | Q44: 5,3/15,8 | R44: 0,0/5,3 | S44: 0,0/15,8 | T44: 0,0/0,0 | U44: 0,0/5,3
B45: Spolupráca | C45: 0,0/0,0 | D45: 15,8/0,0 | E45: 0,0/10,5 | F45: 0,0/5,3 | G45: 0,0/0,0 | H45: 0,0/5,3 | I45: 5,3/15,8 | J45: 5,3/0,0 | K45: 5,3/0,0 | L45: 5,3/10,5 | M45: 15,8/5,3 | N45: 5,3/5,3 | O45: 10,5/5,3 | P45: 10,5/5,3 | Q45: 0,0/10,5 | R45: 0,0/0,0 | S45: 5,3/10,5 | T45: 0,0/0,0 | U45: 5,3/0,0
B46: Dôveruješ | C46: 0,0/0,0 | D46: 5,3/21,1 | E46: 10,5/0,0 | F46: 0,0/0,0 | G46: 0,0/0,0 | H46: 0,0/0,0 | I46: 0,0/0,0 | J46: 5,3/0,0 | K46: 10,5/0,0 | L46: 0,0/0,0 | M46: 15,8/0,0 | N46: 10,5/15,8 | O46: 15,8/5,3 | P46: 5,3/15,8 | Q46: 10,5/5,3 | R46: 0,0/0,0 | S46: 0,0/10,5 | T46: 0,0/0,0 | U46: 0,0/0,0
B47: Bojíš sa | C47: 0,0/0,0 | D47: 0,0/5,3 | E47: 10,5/0,0 | F47: 0,0/0,0 | G47: 15,8/0,0 | H47: 5,3/0,0 | I47: 0,0/5,3 | J47: 0,0/0,0 | K47: 0,0/0,0 | L47: 5,3/0,0 | M47: 0,0/0,0 | N47: 0,0/5,3 | O47: 5,3/0,0 | P47: 5,3/0,0 | Q47: 0,0/0,0 | R47: 10,5/10,5 | S47: 5,3/5,3 | T47: 0,0/0,0 | U47: 0,0/10,5
B48: Rozčuľuje ťa | C48: 15,8/15,8 | D48: 0,0/0,0 | E48: 0,0/0,0 | F48: 5,3/0,0 | G48: 57,9/5,3 | H48: 0,0/0,0 | I48: 0,0/0,0 | J48: 0,0/0,0 | K48: 0,0/0,0 | L48: 0,0/10,5 | M48: 0,0/0,0 | N48: 0,0/0,0 | O48: 0,0/5,3 | P48: 0,0/5,3 | Q48: 0,0/5,3 | R48: 5,3/15,8 | S48: 5,3/5,3 | T48: 0,0/0,0 | U48: 0,0/0,0
B49: Nespolupráca | C49: 15,8/15,8 | D49: 0,0/0,0 | E49: 0,0/10,5 | F49: 0,0/0,0 | G49: 63,2/5,3 | H49: 0,0/0,0 | I49: 0,0/0,0 | J49: 0,0/5,3 | K49: 0,0/5,3 | L49: 0,0/0,0 | M49: 5,3/0,0 | N49: 0,0/5,3 | O49: 0,0/0,0 | P49: 0,0/5,3 | Q49: 0,0/0,0 | R49: 0,0/5,3 | S49: 5,3/0,0 | T49: 0,0/0,0 | U49: 0,0/5,3
B50: Nepoznáš | C50: 0,0/0,0 | D50: 0,0/0,0 | E50: 0,0/0,0 | F50: 0,0/5,3 | G50: 36,8/0,0 | H50: 0,0/0,0 | I50: 5,3/0,0 | J50: 31,6/10,5 | K50: 0,0/31,6 | L50: 0,0/0,0 | M50: 0,0/0,0 | N50: 0,0/0,0 | O50: 0,0/0,0 | P50: 0,0/0,0 | Q50: 0,0/0,0 | R50: 0,0/0,0 | S50: 5,3/5,3 | T50: 5,3/15,8 | U50: 0,0/0,0
B51: Ľahostajný | C51: 5,3/21,1 | D51: 0,0/5,3 | E51: 0,0/0,0 | F51: 5,3/0,0 | G51: 47,4/0,0 | H51: 0,0/0,0 | I51: 5,3/10,5 | J51: 0,0/5,3 | K51: 0,0/0,0 | L51: 0,0/0,0 | M51: 0,0/0,0 | N51: 0,0/0,0 | O51: 0,0/0,0 | P51: 5,3/10,5 | Q51: 5,3/0,0 | R51: 0,0/0,0 | S51: 0,0/5,3 | T51: 5,3/5,3 | U51: 0,0/5,3
B52: Utláčaný | C52: 42,1/26,3 | D52: 0,0/10,5 | E52: 0,0/0,0 | F52: 0,0/0,0 | G52: 26,3/26,3 | H52: 0,0/0,0 | I52: 0,0/0,0 | J52: 0,0/0,0 | K52: 0,0/0,0 | L52: 0,0/0,0 | M52: 0,0/0,0 | N52: 0,0/0,0 | O52: 0,0/0,0 | P52: 0,0/5,3 | Q52: 0,0/0,0 | R52: 0,0/0,0 | S52: 10,5/5,3 | T52: 0,0/0,0 | U52: 0,0/0,0
B53: Nespoľahneš | C53: 5,3/15,8 | D53: 0,0/0,0 | E53: 0,0/0,0 | F53: 5,3/0,0 | G53: 42,1/5,3 | H53: 0,0/0,0 | I53: 0,0/0,0 | J53: 0,0/15,8 | K53: 0,0/0,0 | L53: 0,0/5,3 | M53: 0,0/0,0 | N53: 0,0/0,0 | O53: 0,0/0,0 | P53: 0,0/10,5 | Q53: 0,0/0,0 | R53: 0,0/10,5 | S53: 5,3/0,0 | T53: 0,0/0,0 | U53: 21,1/15,8
C56: Riadok hore sú čísla žiakov (tu konkrétne od 1 do 19). V stĺpci vľavo sú stručné odkazy na
B57: otázky z hárku. V každej bunke sú dve čísla. Konkrétne: Napr. žiak číslo 8, v bunke I 11 má čísla
B58: 31,6/10,5. Čiže 31,6 percenta žiakov z triedy ho dalo v otázke "Nepoznám ho" na prvé miesto a
B59: 10,5 percenta žiakov z triedy ho dalo v tejto otázke na druhé miesto. Čiže o žiakovi číslo 8 môžem
B60: povedať, že cca 42 percent žiakov ho v otázke "Nepoznám ho" dalo buď na prvé alebo na druhé
B61: miesto. Čo už je teda pre mňa dosť veľa. A takto si vypočítam každú bunku a rozmýšľam nad
B62: každou bunkou, či je to "dosť" alebo "málo" v rámci triedy. No a potom použijem tzv. "semafor".
B63: Kde sú tie konotácie kladné a je ich dosť, dám tam zelenú, čiže "prejazd povolený", a kde sú
B64: konotácie viac záporné a je ich dosť, dám tam "stopku", čiže červenú. No a potom vidím tie
B65: triedne hviezdy (zelené) a problémových (červené), prípadne šedé myši (biele). Proste keď si
B66: predstavím triedu ako obrus, tak niekde tie "píky" vyskočiť musia, niektoré sú červené, niektoré
B67: zelené.. A o triede mám prehľad (viem, že nie je personifikovaný, čiže neviem, kto koho sýtil, ale
B68: pre prácu s triedou to stačí, aj tak sa to na skupinách ukáže). No a potom vidím napr. žiaka č. 5,
B69: kde nazbieral krásny červený trs a snažím sa to predstaviť vzťahovo a v rámci správania a
B70: prežívania v tej triede a (že naraz sa mu dejú veci z riadku 8, 9, 10, 11, 12, 13, 14) v tej sile, ktorá je
B71: tam uvedená. Často môžu byť aj protichodné. Aj červené, aj zelené. Nie je tam veľa vedy, ale je to
B72: funkčné. Ako keby mi bola trieda sama pre seba normou. No a ten žiak číslo 5 bol v tej triede
B73: vtedy kľúčový. On bol vlastne zákazkou.
B75: Príloha Word:
